Workbook

Sheet Unique Data Times
H4: VLOOKUP | J4: SUMPRODUCT | L4: INDEX/MATCH | N4: OFFSET/MATCH | P4: VLOOKUP/MATCH | R4: SUMPRODUCT | T4: INDEX/MATCH/MATCH | V4: OFFSET/MATCH/MATCH
A5: Year | B5: Period | C5: Sales Person | D5: Product | E5: Customer | F5: Forecast/Actual | H5: Unsorted List | J5: Unsorted List | L5: Unsorted List | N5: Unsorted List | P5: Unsorted Table | R5: Unsorted Table | T5: Unsorted Table | V5: Unsorted Table
A6: 2014 | B6: 8 | C6: B. Paisley | D6: DFG001 | E6: CA01 | F6: Actual | H6: =VLOOKUP(A6&"-"&B6&"-"&C6&"-"&D6&"-"&E6&"-"&F6,'List Unsorted Data - Unique'!$G$2:$H$42942,2,0) -> 172 | J6: =SUMPRODUCT(('List Unsorted Data - Unique'!$G$2:$G$42942=A6&"-"&B6&"-"&C6&"-"&D6&"-"&E6&"-"&F6)*('List Unsorted Data - Unique'!$H$2:$H$42942)) -> 172 | L6: =INDEX('List Unsorted Data - Unique'!$H$2:$H$42942,MATCH(A6&"-"&B6&"-"&C6&"-"&D6&"-"&E6&"-"&F6,'List Unsorted Data - Unique'!$G$2:$G$42942,0)) -> 172 | N6: =OFFSET('List Unsorted Data - Unique'!G1,MATCH(A6&"-"&B6&"-"&C6&"-"&D6&"-"&E6&"-"&F6,'List Unsorted Data - Unique'!$G$2:$G$42942,0),1) -> 172 | P6: =VLOOKUP(C6&"-"&D6&"-"&E6&"-"&F6,'Table Unsorted Data - Unique'!$A$2:$AK$1621,MATCH(A6&"-"&B6,'Table Unsorted Data - Unique'!$A$1:$AK$1,0),0) -> 172 | R6: =SUMPRODUCT(('Table Unsorted Data - Unique'!$A$2:$A$1621=C6&"-"&D6&"-"&E6&"-"&F6)*('Table Unsorted Data - Unique'!$B$1:$AK$1=A6&"-"&B6)*('Table Unsorted Data - Unique'!$B$2:$AK$1621)) -> 172 | T6: =INDEX('Table Unsorted Data - Unique'!$B$2:$AK$1621,MATCH(C6&"-"&D6&"-"&E6&"-"&F6,'Table Unsorted Data - Unique'!$A$2:$A$1621,0),MATCH(A6&"-"&B6,'Table Unsorted Data - Unique'!$B$1:$AK$1,0)) -> 172 | V6: =OFFSET('Table Unsorted Data - Unique'!$A$1,MATCH(C6&"-"&D6&"-"&E6&"-"&F6,'Table Unsorted Data - Unique'!$A$2:$A$1621,0),MATCH(A6&"-"&B6,'Table Unsorted Data - Unique'!$B$1:$AK$1,0)) -> 172
A7: 2015 | B7: 6 | C7: J. Lennon | D7: POT002 | E7: NC01 | F7: Actual | H7: =VLOOKUP(A7&"-"&B7&"-"&C7&"-"&D7&"-"&E7&"-"&F7,'List Unsorted Data - Unique'!$G$2:$H$42942,2,0) -> 438 | J7: =SUMPRODUCT(('List Unsorted Data - Unique'!$G$2:$G$42942=A7&"-"&B7&"-"&C7&"-"&D7&"-"&E7&"-"&F7)*('List Unsorted Data - Unique'!$H$2:$H$42942)) -> 438 | L7: =INDEX('List Unsorted Data - Unique'!$H$2:$H$42942,MATCH(A7&"-"&B7&"-"&C7&"-"&D7&"-"&E7&"-"&F7,'List Unsorted Data - Unique'!$G$2:$G$42942,0)) -> 438 | N7: =OFFSET('List Unsorted Data - Unique'!G2,MATCH(A7&"-"&B7&"-"&C7&"-"&D7&"-"&E7&"-"&F7,'List Unsorted Data - Unique'!$G$2:$G$42942,0),1) -> 441 | P7: =VLOOKUP(C7&"-"&D7&"-"&E7&"-"&F7,'Table Unsorted Data - Unique'!$A$2:$AK$1621,MATCH(A7&"-"&B7,'Table Unsorted Data - Unique'!$A$1:$AK$1,0),0) -> 438 | R7: =SUMPRODUCT(('Table Unsorted Data - Unique'!$A$2:$A$1621=C7&"-"&D7&"-"&E7&"-"&F7)*('Table Unsorted Data - Unique'!$B$1:$AK$1=A7&"-"&B7)*('Table Unsorted Data - Unique'!$B$2:$AK$1621)) -> 438 | T7: =INDEX('Table Unsorted Data - Unique'!$B$2:$AK$1621,MATCH(C7&"-"&D7&"-"&E7&"-"&F7,'Table Unsorted Data - Unique'!$A$2:$A$1621,0),MATCH(A7&"-"&B7,'Table Unsorted Data - Unique'!$B$1:$AK$1,0)) -> 438 | V7: =OFFSET('Table Unsorted Data - Unique'!$A$1,MATCH(C7&"-"&D7&"-"&E7&"-"&F7,'Table Unsorted Data - Unique'!$A$2:$A$1621,0),MATCH(A7&"-"&B7,'Table Unsorted Data - Unique'!$B$1:$AK$1,0)) -> 438
A8: 2014 | B8: 10 | C8: P. Buck | D8: ASL002 | E8: MN01 | F8: Forecast | H8: =VLOOKUP(A8&"-"&B8&"-"&C8&"-"&D8&"-"&E8&"-"&F8,'List Unsorted Data - Unique'!$G$2:$H$42942,2,0) -> 160 | J8: =SUMPRODUCT(('List Unsorted Data - Unique'!$G$2:$G$42942=A8&"-"&B8&"-"&C8&"-"&D8&"-"&E8&"-"&F8)*('List Unsorted Data - Unique'!$H$2:$H$42942)) -> 160 | L8: =INDEX('List Unsorted Data - Unique'!$H$2:$H$42942,MATCH(A8&"-"&B8&"-"&C8&"-"&D8&"-"&E8&"-"&F8,'List Unsorted Data - Unique'!$G$2:$G$42942,0)) -> 160 | N8: =OFFSET('List Unsorted Data - Unique'!G3,MATCH(A8&"-"&B8&"-"&C8&"-"&D8&"-"&E8&"-"&F8,'List Unsorted Data - Unique'!$G$2:$G$42942,0),1) -> 414 | P8: =VLOOKUP(C8&"-"&D8&"-"&E8&"-"&F8,'Table Unsorted Data - Unique'!$A$2:$AK$1621,MATCH(A8&"-"&B8,'Table Unsorted Data - Unique'!$A$1:$AK$1,0),0) -> 160 | R8: =SUMPRODUCT(('Table Unsorted Data - Unique'!$A$2:$A$1621=C8&"-"&D8&"-"&E8&"-"&F8)*('Table Unsorted Data - Unique'!$B$1:$AK$1=A8&"-"&B8)*('Table Unsorted Data - Unique'!$B$2:$AK$1621)) -> 160 | T8: =INDEX('Table Unsorted Data - Unique'!$B$2:$AK$1621,MATCH(C8&"-"&D8&"-"&E8&"-"&F8,'Table Unsorted Data - Unique'!$A$2:$A$1621,0),MATCH(A8&"-"&B8,'Table Unsorted Data - Unique'!$B$1:$AK$1,0)) -> 160 | V8: =OFFSET('Table Unsorted Data - Unique'!$A$1,MATCH(C8&"-"&D8&"-"&E8&"-"&F8,'Table Unsorted Data - Unique'!$A$2:$A$1621,0),MATCH(A8&"-"&B8,'Table Unsorted Data - Unique'!$B$1:$AK$1,0)) -> 160
A9: 2014 | B9: 10 | C9: C. Underwood | D9: PRD002 | E9: VA01 | F9: Actual | H9: =VLOOKUP(A9&"-"&B9&"-"&C9&"-"&D9&"-"&E9&"-"&F9,'List Unsorted Data - Unique'!$G$2:$H$42942,2,0) -> 158 | J9: =SUMPRODUCT(('List Unsorted Data - Unique'!$G$2:$G$42942=A9&"-"&B9&"-"&C9&"-"&D9&"-"&E9&"-"&F9)*('List Unsorted Data - Unique'!$H$2:$H$42942)) -> 158 | L9: =INDEX('List Unsorted Data - Unique'!$H$2:$H$42942,MATCH(A9&"-"&B9&"-"&C9&"-"&D9&"-"&E9&"-"&F9,'List Unsorted Data - Unique'!$G$2:$G$42942,0)) -> 158 | N9: =OFFSET('List Unsorted Data - Unique'!G4,MATCH(A9&"-"&B9&"-"&C9&"-"&D9&"-"&E9&"-"&F9,'List Unsorted Data - Unique'!$G$2:$G$42942,0),1) -> 293 | P9: =VLOOKUP(C9&"-"&D9&"-"&E9&"-"&F9,'Table Unsorted Data - Unique'!$A$2:$AK$1621,MATCH(A9&"-"&B9,'Table Unsorted Data - Unique'!$A$1:$AK$1,0),0) -> 158 | R9: =SUMPRODUCT(('Table Unsorted Data - Unique'!$A$2:$A$1621=C9&"-"&D9&"-"&E9&"-"&F9)*('Table Unsorted Data - Unique'!$B$1:$AK$1=A9&"-"&B9)*('Table Unsorted Data - Unique'!$B$2:$AK$1621)) -> 158 | T9: =INDEX('Table Unsorted Data - Unique'!$B$2:$AK$1621,MATCH(C9&"-"&D9&"-"&E9&"-"&F9,'Table Unsorted Data - Unique'!$A$2:$A$1621,0),MATCH(A9&"-"&B9,'Table Unsorted Data - Unique'!$B$1:$AK$1,0)) -> 158 | V9: =OFFSET('Table Unsorted Data - Unique'!$A$1,MATCH(C9&"-"&D9&"-"&E9&"-"&F9,'Table Unsorted Data - Unique'!$A$2:$A$1621,0),MATCH(A9&"-"&B9,'Table Unsorted Data - Unique'!$B$1:$AK$1,0)) -> 158
A10: 2016 | B10: 6 | C10: M.Mills | D10: DFG001 | E10: PA01 | F10: Forecast | H10: =VLOOKUP(A10&"-"&B10&"-"&C10&"-"&D10&"-"&E10&"-"&F10,'List Unsorted Data - Unique'!$G$2:$H$42942,2,0) -> 58 | J10: =SUMPRODUCT(('List Unsorted Data - Unique'!$G$2:$G$42942=A10&"-"&B10&"-"&C10&"-"&D10&"-"&E10&"-"&F10)*('List Unsorted Data - Unique'!$H$2:$H$42942)) -> 58 | L10: =INDEX('List Unsorted Data - Unique'!$H$2:$H$42942,MATCH(A10&"-"&B10&"-"&C10&"-"&D10&"-"&E10&"-"&F10,'List Unsorted Data - Unique'!$G$2:$G$42942,0)) -> 58 | N10: =OFFSET('List Unsorted Data - Unique'!G5,MATCH(A10&"-"&B10&"-"&C10&"-"&D10&"-"&E10&"-"&F10,'List Unsorted Data - Unique'!$G$2:$G$42942,0),1) -> 76 | P10: =VLOOKUP(C10&"-"&D10&"-"&E10&"-"&F10,'Table Unsorted Data - Unique'!$A$2:$AK$1621,MATCH(A10&"-"&B10,'Table Unsorted Data - Unique'!$A$1:$AK$1,0),0) -> 58 | R10: =SUMPRODUCT(('Table Unsorted Data - Unique'!$A$2:$A$1621=C10&"-"&D10&"-"&E10&"-"&F10)*('Table Unsorted Data - Unique'!$B$1:$AK$1=A10&"-"&B10)*('Table Unsorted Data - Unique'!$B$2:$AK$1621)) -> 58 | T10: =INDEX('Table Unsorted Data - Unique'!$B$2:$AK$1621,MATCH(C10&"-"&D10&"-"&E10&"-"&F10,'Table Unsorted Data - Unique'!$A$2:$A$1621,0),MATCH(A10&"-"&B10,'Table Unsorted Data - Unique'!$B$1:$AK$1,0)) -> 58 | V10: =OFFSET('Table Unsorted Data - Unique'!$A$1,MATCH(C10&"-"&D10&"-"&E10&"-"&F10,'Table Unsorted Data - Unique'!$A$2:$A$1621,0),MATCH(A10&"-"&B10,'Table Unsorted Data - Unique'!$B$1:$AK$1,0)) -> 58
A11: 2016 | B11: 2 | C11: B. Paisley | D11: JKL001 | E11: AK01 | F11: Actual | H11: =VLOOKUP(A11&"-"&B11&"-"&C11&"-"&D11&"-"&E11&"-"&F11,'List Unsorted Data - Unique'!$G$2:$H$42942,2,0) -> 35 | J11: =SUMPRODUCT(('List Unsorted Data - Unique'!$G$2:$G$42942=A11&"-"&B11&"-"&C11&"-"&D11&"-"&E11&"-"&F11)*('List Unsorted Data - Unique'!$H$2:$H$42942)) -> 35 | L11: =INDEX('List Unsorted Data - Unique'!$H$2:$H$42942,MATCH(A11&"-"&B11&"-"&C11&"-"&D11&"-"&E11&"-"&F11,'List Unsorted Data - Unique'!$G$2:$G$42942,0)) -> 35 | N11: =OFFSET('List Unsorted Data - Unique'!G6,MATCH(A11&"-"&B11&"-"&C11&"-"&D11&"-"&E11&"-"&F11,'List Unsorted Data - Unique'!$G$2:$G$42942,0),1) -> 196 | P11: =VLOOKUP(C11&"-"&D11&"-"&E11&"-"&F11,'Table Unsorted Data - Unique'!$A$2:$AK$1621,MATCH(A11&"-"&B11,'Table Unsorted Data - Unique'!$A$1:$AK$1,0),0) -> 35 | R11: =SUMPRODUCT(('Table Unsorted Data - Unique'!$A$2:$A$1621=C11&"-"&D11&"-"&E11&"-"&F11)*('Table Unsorted Data - Unique'!$B$1:$AK$1=A11&"-"&B11)*('Table Unsorted Data - Unique'!$B$2:$AK$1621)) -> 35 | T11: =INDEX('Table Unsorted Data - Unique'!$B$2:$AK$1621,MATCH(C11&"-"&D11&"-"&E11&"-"&F11,'Table Unsorted Data - Unique'!$A$2:$A$1621,0),MATCH(A11&"-"&B11,'Table Unsorted Data - Unique'!$B$1:$AK$1,0)) -> 35 | V11: =OFFSET('Table Unsorted Data - Unique'!$A$1,MATCH(C11&"-"&D11&"-"&E11&"-"&F11,'Table Unsorted Data - Unique'!$A$2:$A$1621,0),MATCH(A11&"-"&B11,'Table Unsorted Data - Unique'!$B$1:$AK$1,0)) -> 35
A12: 2016 | B12: 9 | C12: S. Crow | D12: ASL001 | E12: PA01 | F12: Forecast | H12: =VLOOKUP(A12&"-"&B12&"-"&C12&"-"&D12&"-"&E12&"-"&F12,'List Unsorted Data - Unique'!$G$2:$H$42942,2,0) -> 137 | J12: =SUMPRODUCT(('List Unsorted Data - Unique'!$G$2:$G$42942=A12&"-"&B12&"-"&C12&"-"&D12&"-"&E12&"-"&F12)*('List Unsorted Data - Unique'!$H$2:$H$42942)) -> 137 | L12: =INDEX('List Unsorted Data - Unique'!$H$2:$H$42942,MATCH(A12&"-"&B12&"-"&C12&"-"&D12&"-"&E12&"-"&F12,'List Unsorted Data - Unique'!$G$2:$G$42942,0)) -> 137 | N12: =OFFSET('List Unsorted Data - Unique'!G7,MATCH(A12&"-"&B12&"-"&C12&"-"&D12&"-"&E12&"-"&F12,'List Unsorted Data - Unique'!$G$2:$G$42942,0),1) -> 61 | P12: =VLOOKUP(C12&"-"&D12&"-"&E12&"-"&F12,'Table Unsorted Data - Unique'!$A$2:$AK$1621,MATCH(A12&"-"&B12,'Table Unsorted Data - Unique'!$A$1:$AK$1,0),0) -> 137 | R12: =SUMPRODUCT(('Table Unsorted Data - Unique'!$A$2:$A$1621=C12&"-"&D12&"-"&E12&"-"&F12)*('Table Unsorted Data - Unique'!$B$1:$AK$1=A12&"-"&B12)*('Table Unsorted Data - Unique'!$B$2:$AK$1621)) -> 137 | T12: =INDEX('Table Unsorted Data - Unique'!$B$2:$AK$1621,MATCH(C12&"-"&D12&"-"&E12&"-"&F12,'Table Unsorted Data - Unique'!$A$2:$A$1621,0),MATCH(A12&"-"&B12,'Table Unsorted Data - Unique'!$B$1:$AK$1,0)) -> 137 | V12: =OFFSET('Table Unsorted Data - Unique'!$A$1,MATCH(C12&"-"&D12&"-"&E12&"-"&F12,'Table Unsorted Data - Unique'!$A$2:$A$1621,0),MATCH(A12&"-"&B12,'Table Unsorted Data - Unique'!$B$1:$AK$1,0)) -> 137
A13: 2015 | B13: 9 | C13: P. Buck | D13: ASL003 | E13: LA01 | F13: Forecast | H13: =VLOOKUP(A13&"-"&B13&"-"&C13&"-"&D13&"-"&E13&"-"&F13,'List Unsorted Data - Unique'!$G$2:$H$42942,2,0) -> 459 | J13: =SUMPRODUCT(('List Unsorted Data - Unique'!$G$2:$G$42942=A13&"-"&B13&"-"&C13&"-"&D13&"-"&E13&"-"&F13)*('List Unsorted Data - Unique'!$H$2:$H$42942)) -> 459 | L13: =INDEX('List Unsorted Data - Unique'!$H$2:$H$42942,MATCH(A13&"-"&B13&"-"&C13&"-"&D13&"-"&E13&"-"&F13,'List Unsorted Data - Unique'!$G$2:$G$42942,0)) -> 459 | N13: =OFFSET('List Unsorted Data - Unique'!G8,MATCH(A13&"-"&B13&"-"&C13&"-"&D13&"-"&E13&"-"&F13,'List Unsorted Data - Unique'!$G$2:$G$42942,0),1) -> 77 | P13: =VLOOKUP(C13&"-"&D13&"-"&E13&"-"&F13,'Table Unsorted Data - Unique'!$A$2:$AK$1621,MATCH(A13&"-"&B13,'Table Unsorted Data - Unique'!$A$1:$AK$1,0),0) -> 459 | R13: =SUMPRODUCT(('Table Unsorted Data - Unique'!$A$2:$A$1621=C13&"-"&D13&"-"&E13&"-"&F13)*('Table Unsorted Data - Unique'!$B$1:$AK$1=A13&"-"&B13)*('Table Unsorted Data - Unique'!$B$2:$AK$1621)) -> 459 | T13: =INDEX('Table Unsorted Data - Unique'!$B$2:$AK$1621,MATCH(C13&"-"&D13&"-"&E13&"-"&F13,'Table Unsorted Data - Unique'!$A$2:$A$1621,0),MATCH(A13&"-"&B13,'Table Unsorted Data - Unique'!$B$1:$AK$1,0)) -> 459 | V13: =OFFSET('Table Unsorted Data - Unique'!$A$1,MATCH(C13&"-"&D13&"-"&E13&"-"&F13,'Table Unsorted Data - Unique'!$A$2:$A$1621,0),MATCH(A13&"-"&B13,'Table Unsorted Data - Unique'!$B$1:$AK$1,0)) -> 459
A14: 2015 | B14: 7 | C14: P. Buck | D14: ASL003 | E14: SD01 | F14: Actual | H14: =VLOOKUP(A14&"-"&B14&"-"&C14&"-"&D14&"-"&E14&"-"&F14,'List Unsorted Data - Unique'!$G$2:$H$42942,2,0) -> 389 | J14: =SUMPRODUCT(('List Unsorted Data - Unique'!$G$2:$G$42942=A14&"-"&B14&"-"&C14&"-"&D14&"-"&E14&"-"&F14)*('List Unsorted Data - Unique'!$H$2:$H$42942)) -> 389 | L14: =INDEX('List Unsorted Data - Unique'!$H$2:$H$42942,MATCH(A14&"-"&B14&"-"&C14&"-"&D14&"-"&E14&"-"&F14,'List Unsorted Data - Unique'!$G$2:$G$42942,0)) -> 389 | N14: =OFFSET('List Unsorted Data - Unique'!G9,MATCH(A14&"-"&B14&"-"&C14&"-"&D14&"-"&E14&"-"&F14,'List Unsorted Data - Unique'!$G$2:$G$42942,0),1) -> 151 | P14: =VLOOKUP(C14&"-"&D14&"-"&E14&"-"&F14,'Table Unsorted Data - Unique'!$A$2:$AK$1621,MATCH(A14&"-"&B14,'Table Unsorted Data - Unique'!$A$1:$AK$1,0),0) -> 389 | R14: =SUMPRODUCT(('Table Unsorted Data - Unique'!$A$2:$A$1621=C14&"-"&D14&"-"&E14&"-"&F14)*('Table Unsorted Data - Unique'!$B$1:$AK$1=A14&"-"&B14)*('Table Unsorted Data - Unique'!$B$2:$AK$1621)) -> 389 | T14: =INDEX('Table Unsorted Data - Unique'!$B$2:$AK$1621,MATCH(C14&"-"&D14&"-"&E14&"-"&F14,'Table Unsorted Data - Unique'!$A$2:$A$1621,0),MATCH(A14&"-"&B14,'Table Unsorted Data - Unique'!$B$1:$AK$1,0)) -> 389 | V14: =OFFSET('Table Unsorted Data - Unique'!$A$1,MATCH(C14&"-"&D14&"-"&E14&"-"&F14,'Table Unsorted Data - Unique'!$A$2:$A$1621,0),MATCH(A14&"-"&B14,'Table Unsorted Data - Unique'!$B$1:$AK$1,0)) -> 389
A15: 2016 | B15: 10 | C15: P. Buck | D15: PRD002 | E15: MN01 | F15: Forecast | H15: =VLOOKUP(A15&"-"&B15&"-"&C15&"-"&D15&"-"&E15&"-"&F15,'List Unsorted Data - Unique'!$G$2:$H$42942,2,0) -> 74 | J15: =SUMPRODUCT(('List Unsorted Data - Unique'!$G$2:$G$42942=A15&"-"&B15&"-"&C15&"-"&D15&"-"&E15&"-"&F15)*('List Unsorted Data - Unique'!$H$2:$H$42942)) -> 74 | L15: =INDEX('List Unsorted Data - Unique'!$H$2:$H$42942,MATCH(A15&"-"&B15&"-"&C15&"-"&D15&"-"&E15&"-"&F15,'List Unsorted Data - Unique'!$G$2:$G$42942,0)) -> 74 | N15: =OFFSET('List Unsorted Data - Unique'!G10,MATCH(A15&"-"&B15&"-"&C15&"-"&D15&"-"&E15&"-"&F15,'List Unsorted Data - Unique'!$G$2:$G$42942,0),1) -> 192 | P15: =VLOOKUP(C15&"-"&D15&"-"&E15&"-"&F15,'Table Unsorted Data - Unique'!$A$2:$AK$1621,MATCH(A15&"-"&B15,'Table Unsorted Data - Unique'!$A$1:$AK$1,0),0) -> 74 | R15: =SUMPRODUCT(('Table Unsorted Data - Unique'!$A$2:$A$1621=C15&"-"&D15&"-"&E15&"-"&F15)*('Table Unsorted Data - Unique'!$B$1:$AK$1=A15&"-"&B15)*('Table Unsorted Data - Unique'!$B$2:$AK$1621)) -> 74 | T15: =INDEX('Table Unsorted Data - Unique'!$B$2:$AK$1621,MATCH(C15&"-"&D15&"-"&E15&"-"&F15,'Table Unsorted Data - Unique'!$A$2:$A$1621,0),MATCH(A15&"-"&B15,'Table Unsorted Data - Unique'!$B$1:$AK$1,0)) -> 74 | V15: =OFFSET('Table Unsorted Data - Unique'!$A$1,MATCH(C15&"-"&D15&"-"&E15&"-"&F15,'Table Unsorted Data - Unique'!$A$2:$A$1621,0),MATCH(A15&"-"&B15,'Table Unsorted Data - Unique'!$B$1:$AK$1,0)) -> 74
A16: 2014 | B16: 6 | C16: B. Paisley | D16: DFG001 | E16: PA01 | F16: Actual | H16: =VLOOKUP(A16&"-"&B16&"-"&C16&"-"&D16&"-"&E16&"-"&F16,'List Unsorted Data - Unique'!$G$2:$H$42942,2,0) -> 124 | J16: =SUMPRODUCT(('List Unsorted Data - Unique'!$G$2:$G$42942=A16&"-"&B16&"-"&C16&"-"&D16&"-"&E16&"-"&F16)*('List Unsorted Data - Unique'!$H$2:$H$42942)) -> 124 | L16: =INDEX('List Unsorted Data - Unique'!$H$2:$H$42942,MATCH(A16&"-"&B16&"-"&C16&"-"&D16&"-"&E16&"-"&F16,'List Unsorted Data - Unique'!$G$2:$G$42942,0)) -> 124 | N16: =OFFSET('List Unsorted Data - Unique'!G11,MATCH(A16&"-"&B16&"-"&C16&"-"&D16&"-"&E16&"-"&F16,'List Unsorted Data - Unique'!$G$2:$G$42942,0),1) -> 63 | P16: =VLOOKUP(C16&"-"&D16&"-"&E16&"-"&F16,'Table Unsorted Data - Unique'!$A$2:$AK$1621,MATCH(A16&"-"&B16,'Table Unsorted Data - Unique'!$A$1:$AK$1,0),0) -> 124 | R16: =SUMPRODUCT(('Table Unsorted Data - Unique'!$A$2:$A$1621=C16&"-"&D16&"-"&E16&"-"&F16)*('Table Unsorted Data - Unique'!$B$1:$AK$1=A16&"-"&B16)*('Table Unsorted Data - Unique'!$B$2:$AK$1621)) -> 124 | T16: =INDEX('Table Unsorted Data - Unique'!$B$2:$AK$1621,MATCH(C16&"-"&D16&"-"&E16&"-"&F16,'Table Unsorted Data - Unique'!$A$2:$A$1621,0),MATCH(A16&"-"&B16,'Table Unsorted Data - Unique'!$B$1:$AK$1,0)) -> 124 | V16: =OFFSET('Table Unsorted Data - Unique'!$A$1,MATCH(C16&"-"&D16&"-"&E16&"-"&F16,'Table Unsorted Data - Unique'!$A$2:$A$1621,0),MATCH(A16&"-"&B16,'Table Unsorted Data - Unique'!$B$1:$AK$1,0)) -> 124
A17: 2015 | B17: 3 | C17: J. Lennon | D17: DFG001 | E17: PA01 | F17: Actual | H17: =VLOOKUP(A17&"-"&B17&"-"&C17&"-"&D17&"-"&E17&"-"&F17,'List Unsorted Data - Unique'!$G$2:$H$42942,2,0) -> 54 | J17: =SUMPRODUCT(('List Unsorted Data - Unique'!$G$2:$G$42942=A17&"-"&B17&"-"&C17&"-"&D17&"-"&E17&"-"&F17)*('List Unsorted Data - Unique'!$H$2:$H$42942)) -> 54 | L17: =INDEX('List Unsorted Data - Unique'!$H$2:$H$42942,MATCH(A17&"-"&B17&"-"&C17&"-"&D17&"-"&E17&"-"&F17,'List Unsorted Data - Unique'!$G$2:$G$42942,0)) -> 54 | N17: =OFFSET('List Unsorted Data - Unique'!G12,MATCH(A17&"-"&B17&"-"&C17&"-"&D17&"-"&E17&"-"&F17,'List Unsorted Data - Unique'!$G$2:$G$42942,0),1) -> 81 | P17: =VLOOKUP(C17&"-"&D17&"-"&E17&"-"&F17,'Table Unsorted Data - Unique'!$A$2:$AK$1621,MATCH(A17&"-"&B17,'Table Unsorted Data - Unique'!$A$1:$AK$1,0),0) -> 54 | R17: =SUMPRODUCT(('Table Unsorted Data - Unique'!$A$2:$A$1621=C17&"-"&D17&"-"&E17&"-"&F17)*('Table Unsorted Data - Unique'!$B$1:$AK$1=A17&"-"&B17)*('Table Unsorted Data - Unique'!$B$2:$AK$1621)) -> 54 | T17: =INDEX('Table Unsorted Data - Unique'!$B$2:$AK$1621,MATCH(C17&"-"&D17&"-"&E17&"-"&F17,'Table Unsorted Data - Unique'!$A$2:$A$1621,0),MATCH(A17&"-"&B17,'Table Unsorted Data - Unique'!$B$1:$AK$1,0)) -> 54 | V17: =OFFSET('Table Unsorted Data - Unique'!$A$1,MATCH(C17&"-"&D17&"-"&E17&"-"&F17,'Table Unsorted Data - Unique'!$A$2:$A$1621,0),MATCH(A17&"-"&B17,'Table Unsorted Data - Unique'!$B$1:$AK$1,0)) -> 54
A18: 2015 | B18: 9 | C18: M. Stipe | D18: PRD001 | E18: AK01 | F18: Forecast | H18: =VLOOKUP(A18&"-"&B18&"-"&C18&"-"&D18&"-"&E18&"-"&F18,'List Unsorted Data - Unique'!$G$2:$H$42942,2,0) -> 99 | J18: =SUMPRODUCT(('List Unsorted Data - Unique'!$G$2:$G$42942=A18&"-"&B18&"-"&C18&"-"&D18&"-"&E18&"-"&F18)*('List Unsorted Data - Unique'!$H$2:$H$42942)) -> 99 | L18: =INDEX('List Unsorted Data - Unique'!$H$2:$H$42942,MATCH(A18&"-"&B18&"-"&C18&"-"&D18&"-"&E18&"-"&F18,'List Unsorted Data - Unique'!$G$2:$G$42942,0)) -> 99 | N18: =OFFSET('List Unsorted Data - Unique'!G13,MATCH(A18&"-"&B18&"-"&C18&"-"&D18&"-"&E18&"-"&F18,'List Unsorted Data - Unique'!$G$2:$G$42942,0),1) -> 164 | P18: =VLOOKUP(C18&"-"&D18&"-"&E18&"-"&F18,'Table Unsorted Data - Unique'!$A$2:$AK$1621,MATCH(A18&"-"&B18,'Table Unsorted Data - Unique'!$A$1:$AK$1,0),0) -> 99 | R18: =SUMPRODUCT(('Table Unsorted Data - Unique'!$A$2:$A$1621=C18&"-"&D18&"-"&E18&"-"&F18)*('Table Unsorted Data - Unique'!$B$1:$AK$1=A18&"-"&B18)*('Table Unsorted Data - Unique'!$B$2:$AK$1621)) -> 99 | T18: =INDEX('Table Unsorted Data - Unique'!$B$2:$AK$1621,MATCH(C18&"-"&D18&"-"&E18&"-"&F18,'Table Unsorted Data - Unique'!$A$2:$A$1621,0),MATCH(A18&"-"&B18,'Table Unsorted Data - Unique'!$B$1:$AK$1,0)) -> 99 | V18: =OFFSET('Table Unsorted Data - Unique'!$A$1,MATCH(C18&"-"&D18&"-"&E18&"-"&F18,'Table Unsorted Data - Unique'!$A$2:$A$1621,0),MATCH(A18&"-"&B18,'Table Unsorted Data - Unique'!$B$1:$AK$1,0)) -> 99
A19: 2015 | B19: 6 | C19: J. Lennon | D19: POT001 | E19: LA01 | F19: Forecast | H19: =VLOOKUP(A19&"-"&B19&"-"&C19&"-"&D19&"-"&E19&"-"&F19,'List Unsorted Data - Unique'!$G$2:$H$42942,2,0) -> 316 | J19: =SUMPRODUCT(('List Unsorted Data - Unique'!$G$2:$G$42942=A19&"-"&B19&"-"&C19&"-"&D19&"-"&E19&"-"&F19)*('List Unsorted Data - Unique'!$H$2:$H$42942)) -> 316 | L19: =INDEX('List Unsorted Data - Unique'!$H$2:$H$42942,MATCH(A19&"-"&B19&"-"&C19&"-"&D19&"-"&E19&"-"&F19,'List Unsorted Data - Unique'!$G$2:$G$42942,0)) -> 316 | N19: =OFFSET('List Unsorted Data - Unique'!G14,MATCH(A19&"-"&B19&"-"&C19&"-"&D19&"-"&E19&"-"&F19,'List Unsorted Data - Unique'!$G$2:$G$42942,0),1) -> 216 | P19: =VLOOKUP(C19&"-"&D19&"-"&E19&"-"&F19,'Table Unsorted Data - Unique'!$A$2:$AK$1621,MATCH(A19&"-"&B19,'Table Unsorted Data - Unique'!$A$1:$AK$1,0),0) -> 316 | R19: =SUMPRODUCT(('Table Unsorted Data - Unique'!$A$2:$A$1621=C19&"-"&D19&"-"&E19&"-"&F19)*('Table Unsorted Data - Unique'!$B$1:$AK$1=A19&"-"&B19)*('Table Unsorted Data - Unique'!$B$2:$AK$1621)) -> 316 | T19: =INDEX('Table Unsorted Data - Unique'!$B$2:$AK$1621,MATCH(C19&"-"&D19&"-"&E19&"-"&F19,'Table Unsorted Data - Unique'!$A$2:$A$1621,0),MATCH(A19&"-"&B19,'Table Unsorted Data - Unique'!$B$1:$AK$1,0)) -> 316 | V19: =OFFSET('Table Unsorted Data - Unique'!$A$1,MATCH(C19&"-"&D19&"-"&E19&"-"&F19,'Table Unsorted Data - Unique'!$A$2:$A$1621,0),MATCH(A19&"-"&B19,'Table Unsorted Data - Unique'!$B$1:$AK$1,0)) -> 316
A20: 2014 | B20: 6 | C20: J. McVie | D20: JKL001 | E20: CA01 | F20: Actual | H20: =VLOOKUP(A20&"-"&B20&"-"&C20&"-"&D20&"-"&E20&"-"&F20,'List Unsorted Data - Unique'!$G$2:$H$42942,2,0) -> 35 | J20: =SUMPRODUCT(('List Unsorted Data - Unique'!$G$2:$G$42942=A20&"-"&B20&"-"&C20&"-"&D20&"-"&E20&"-"&F20)*('List Unsorted Data - Unique'!$H$2:$H$42942)) -> 35 | L20: =INDEX('List Unsorted Data - Unique'!$H$2:$H$42942,MATCH(A20&"-"&B20&"-"&C20&"-"&D20&"-"&E20&"-"&F20,'List Unsorted Data - Unique'!$G$2:$G$42942,0)) -> 35 | N20: =OFFSET('List Unsorted Data - Unique'!G15,MATCH(A20&"-"&B20&"-"&C20&"-"&D20&"-"&E20&"-"&F20,'List Unsorted Data - Unique'!$G$2:$G$42942,0),1) -> 128 | P20: =VLOOKUP(C20&"-"&D20&"-"&E20&"-"&F20,'Table Unsorted Data - Unique'!$A$2:$AK$1621,MATCH(A20&"-"&B20,'Table Unsorted Data - Unique'!$A$1:$AK$1,0),0) -> 35 | R20: =SUMPRODUCT(('Table Unsorted Data - Unique'!$A$2:$A$1621=C20&"-"&D20&"-"&E20&"-"&F20)*('Table Unsorted Data - Unique'!$B$1:$AK$1=A20&"-"&B20)*('Table Unsorted Data - Unique'!$B$2:$AK$1621)) -> 35 | T20: =INDEX('Table Unsorted Data - Unique'!$B$2:$AK$1621,MATCH(C20&"-"&D20&"-"&E20&"-"&F20,'Table Unsorted Data - Unique'!$A$2:$A$1621,0),MATCH(A20&"-"&B20,'Table Unsorted Data - Unique'!$B$1:$AK$1,0)) -> 35 | V20: =OFFSET('Table Unsorted Data - Unique'!$A$1,MATCH(C20&"-"&D20&"-"&E20&"-"&F20,'Table Unsorted Data - Unique'!$A$2:$A$1621,0),MATCH(A20&"-"&B20,'Table Unsorted Data - Unique'!$B$1:$AK$1,0)) -> 35
A21: 2015 | B21: 8 | C21: J. Lennon | D21: POT001 | E21: AK01 | F21: Actual | H21: =VLOOKUP(A21&"-"&B21&"-"&C21&"-"&D21&"-"&E21&"-"&F21,'List Unsorted Data - Unique'!$G$2:$H$42942,2,0) -> 161 | J21: =SUMPRODUCT(('List Unsorted Data - Unique'!$G$2:$G$42942=A21&"-"&B21&"-"&C21&"-"&D21&"-"&E21&"-"&F21)*('List Unsorted Data - Unique'!$H$2:$H$42942)) -> 161 | L21: =INDEX('List Unsorted Data - Unique'!$H$2:$H$42942,MATCH(A21&"-"&B21&"-"&C21&"-"&D21&"-"&E21&"-"&F21,'List Unsorted Data - Unique'!$G$2:$G$42942,0)) -> 161 | N21: =OFFSET('List Unsorted Data - Unique'!G16,MATCH(A21&"-"&B21&"-"&C21&"-"&D21&"-"&E21&"-"&F21,'List Unsorted Data - Unique'!$G$2:$G$42942,0),1) -> 96 | P21: =VLOOKUP(C21&"-"&D21&"-"&E21&"-"&F21,'Table Unsorted Data - Unique'!$A$2:$AK$1621,MATCH(A21&"-"&B21,'Table Unsorted Data - Unique'!$A$1:$AK$1,0),0) -> 161 | R21: =SUMPRODUCT(('Table Unsorted Data - Unique'!$A$2:$A$1621=C21&"-"&D21&"-"&E21&"-"&F21)*('Table Unsorted Data - Unique'!$B$1:$AK$1=A21&"-"&B21)*('Table Unsorted Data - Unique'!$B$2:$AK$1621)) -> 161 | T21: =INDEX('Table Unsorted Data - Unique'!$B$2:$AK$1621,MATCH(C21&"-"&D21&"-"&E21&"-"&F21,'Table Unsorted Data - Unique'!$A$2:$A$1621,0),MATCH(A21&"-"&B21,'Table Unsorted Data - Unique'!$B$1:$AK$1,0)) -> 161 | V21: =OFFSET('Table Unsorted Data - Unique'!$A$1,MATCH(C21&"-"&D21&"-"&E21&"-"&F21,'Table Unsorted Data - Unique'!$A$2:$A$1621,0),MATCH(A21&"-"&B21,'Table Unsorted Data - Unique'!$B$1:$AK$1,0)) -> 161
A22: 2015 | B22: 4 | C22: J. Lennon | D22: DFG001 | E22: CA01 | F22: Actual | H22: =VLOOKUP(A22&"-"&B22&"-"&C22&"-"&D22&"-"&E22&"-"&F22,'List Unsorted Data - Unique'!$G$2:$H$42942,2,0) -> 61 | J22: =SUMPRODUCT(('List Unsorted Data - Unique'!$G$2:$G$42942=A22&"-"&B22&"-"&C22&"-"&D22&"-"&E22&"-"&F22)*('List Unsorted Data - Unique'!$H$2:$H$42942)) -> 61 | L22: =INDEX('List Unsorted Data - Unique'!$H$2:$H$42942,MATCH(A22&"-"&B22&"-"&C22&"-"&D22&"-"&E22&"-"&F22,'List Unsorted Data - Unique'!$G$2:$G$42942,0)) -> 61 | N22: =OFFSET('List Unsorted Data - Unique'!G17,MATCH(A22&"-"&B22&"-"&C22&"-"&D22&"-"&E22&"-"&F22,'List Unsorted Data - Unique'!$G$2:$G$42942,0),1) -> 250 | P22: =VLOOKUP(C22&"-"&D22&"-"&E22&"-"&F22,'Table Unsorted Data - Unique'!$A$2:$AK$1621,MATCH(A22&"-"&B22,'Table Unsorted Data - Unique'!$A$1:$AK$1,0),0) -> 61 | R22: =SUMPRODUCT(('Table Unsorted Data - Unique'!$A$2:$A$1621=C22&"-"&D22&"-"&E22&"-"&F22)*('Table Unsorted Data - Unique'!$B$1:$AK$1=A22&"-"&B22)*('Table Unsorted Data - Unique'!$B$2:$AK$1621)) -> 61 | T22: =INDEX('Table Unsorted Data - Unique'!$B$2:$AK$1621,MATCH(C22&"-"&D22&"-"&E22&"-"&F22,'Table Unsorted Data - Unique'!$A$2:$A$1621,0),MATCH(A22&"-"&B22,'Table Unsorted Data - Unique'!$B$1:$AK$1,0)) -> 61 | V22: =OFFSET('Table Unsorted Data - Unique'!$A$1,MATCH(C22&"-"&D22&"-"&E22&"-"&F22,'Table Unsorted Data - Unique'!$A$2:$A$1621,0),MATCH(A22&"-"&B22,'Table Unsorted Data - Unique'!$B$1:$AK$1,0)) -> 61
A23: 2015 | B23: 11 | C23: M.Mills | D23: ASL003 | E23: MN01 | F23: Actual | H23: =VLOOKUP(A23&"-"&B23&"-"&C23&"-"&D23&"-"&E23&"-"&F23,'List Unsorted Data - Unique'!$G$2:$H$42942,2,0) -> 246 | J23: =SUMPRODUCT(('List Unsorted Data - Unique'!$G$2:$G$42942=A23&"-"&B23&"-"&C23&"-"&D23&"-"&E23&"-"&F23)*('List Unsorted Data - Unique'!$H$2:$H$42942)) -> 246 | L23: =INDEX('List Unsorted Data - Unique'!$H$2:$H$42942,MATCH(A23&"-"&B23&"-"&C23&"-"&D23&"-"&E23&"-"&F23,'List Unsorted Data - Unique'!$G$2:$G$42942,0)) -> 246 | N23: =OFFSET('List Unsorted Data - Unique'!G18,MATCH(A23&"-"&B23&"-"&C23&"-"&D23&"-"&E23&"-"&F23,'List Unsorted Data - Unique'!$G$2:$G$42942,0),1) -> 74 | P23: =VLOOKUP(C23&"-"&D23&"-"&E23&"-"&F23,'Table Unsorted Data - Unique'!$A$2:$AK$1621,MATCH(A23&"-"&B23,'Table Unsorted Data - Unique'!$A$1:$AK$1,0),0) -> 246 | R23: =SUMPRODUCT(('Table Unsorted Data - Unique'!$A$2:$A$1621=C23&"-"&D23&"-"&E23&"-"&F23)*('Table Unsorted Data - Unique'!$B$1:$AK$1=A23&"-"&B23)*('Table Unsorted Data - Unique'!$B$2:$AK$1621)) -> 246 | T23: =INDEX('Table Unsorted Data - Unique'!$B$2:$AK$1621,MATCH(C23&"-"&D23&"-"&E23&"-"&F23,'Table Unsorted Data - Unique'!$A$2:$A$1621,0),MATCH(A23&"-"&B23,'Table Unsorted Data - Unique'!$B$1:$AK$1,0)) -> 246 | V23: =OFFSET('Table Unsorted Data - Unique'!$A$1,MATCH(C23&"-"&D23&"-"&E23&"-"&F23,'Table Unsorted Data - Unique'!$A$2:$A$1621,0),MATCH(A23&"-"&B23,'Table Unsorted Data - Unique'!$B$1:$AK$1,0)) -> 246
A24: 2016 | B24: 2 | C24: J. Lennon | D24: ASL001 | E24: AK01 | F24: Forecast | H24: =VLOOKUP(A24&"-"&B24&"-"&C24&"-"&D24&"-"&E24&"-"&F24,'List Unsorted Data - Unique'!$G$2:$H$42942,2,0) -> 78 | J24: =SUMPRODUCT(('List Unsorted Data - Unique'!$G$2:$G$42942=A24&"-"&B24&"-"&C24&"-"&D24&"-"&E24&"-"&F24)*('List Unsorted Data - Unique'!$H$2:$H$42942)) -> 78 | L24: =INDEX('List Unsorted Data - Unique'!$H$2:$H$42942,MATCH(A24&"-"&B24&"-"&C24&"-"&D24&"-"&E24&"-"&F24,'List Unsorted Data - Unique'!$G$2:$G$42942,0)) -> 78 | N24: =OFFSET('List Unsorted Data - Unique'!G19,MATCH(A24&"-"&B24&"-"&C24&"-"&D24&"-"&E24&"-"&F24,'List Unsorted Data - Unique'!$G$2:$G$42942,0),1) -> 78 | P24: =VLOOKUP(C24&"-"&D24&"-"&E24&"-"&F24,'Table Unsorted Data - Unique'!$A$2:$AK$1621,MATCH(A24&"-"&B24,'Table Unsorted Data - Unique'!$A$1:$AK$1,0),0) -> 78 | R24: =SUMPRODUCT(('Table Unsorted Data - Unique'!$A$2:$A$1621=C24&"-"&D24&"-"&E24&"-"&F24)*('Table Unsorted Data - Unique'!$B$1:$AK$1=A24&"-"&B24)*('Table Unsorted Data - Unique'!$B$2:$AK$1621)) -> 78 | T24: =INDEX('Table Unsorted Data - Unique'!$B$2:$AK$1621,MATCH(C24&"-"&D24&"-"&E24&"-"&F24,'Table Unsorted Data - Unique'!$A$2:$A$1621,0),MATCH(A24&"-"&B24,'Table Unsorted Data - Unique'!$B$1:$AK$1,0)) -> 78 | V24: =OFFSET('Table Unsorted Data - Unique'!$A$1,MATCH(C24&"-"&D24&"-"&E24&"-"&F24,'Table Unsorted Data - Unique'!$A$2:$A$1621,0),MATCH(A24&"-"&B24,'Table Unsorted Data - Unique'!$B$1:$AK$1,0)) -> 78
A25: 2015 | B25: 6 | C25: M.Mills | D25: ASL002 | E25: AL01 | F25: Actual | H25: =VLOOKUP(A25&"-"&B25&"-"&C25&"-"&D25&"-"&E25&"-"&F25,'List Unsorted Data - Unique'!$G$2:$H$42942,2,0) -> 318 | J25: =SUMPRODUCT(('List Unsorted Data - Unique'!$G$2:$G$42942=A25&"-"&B25&"-"&C25&"-"&D25&"-"&E25&"-"&F25)*('List Unsorted Data - Unique'!$H$2:$H$42942)) -> 318 | L25: =INDEX('List Unsorted Data - Unique'!$H$2:$H$42942,MATCH(A25&"-"&B25&"-"&C25&"-"&D25&"-"&E25&"-"&F25,'List Unsorted Data - Unique'!$G$2:$G$42942,0)) -> 318 | N25: =OFFSET('List Unsorted Data - Unique'!G20,MATCH(A25&"-"&B25&"-"&C25&"-"&D25&"-"&E25&"-"&F25,'List Unsorted Data - Unique'!$G$2:$G$42942,0),1) -> 168 | P25: =VLOOKUP(C25&"-"&D25&"-"&E25&"-"&F25,'Table Unsorted Data - Unique'!$A$2:$AK$1621,MATCH(A25&"-"&B25,'Table Unsorted Data - Unique'!$A$1:$AK$1,0),0) -> 318 | R25: =SUMPRODUCT(('Table Unsorted Data - Unique'!$A$2:$A$1621=C25&"-"&D25&"-"&E25&"-"&F25)*('Table Unsorted Data - Unique'!$B$1:$AK$1=A25&"-"&B25)*('Table Unsorted Data - Unique'!$B$2:$AK$1621)) -> 318 | T25: =INDEX('Table Unsorted Data - Unique'!$B$2:$AK$1621,MATCH(C25&"-"&D25&"-"&E25&"-"&F25,'Table Unsorted Data - Unique'!$A$2:$A$1621,0),MATCH(A25&"-"&B25,'Table Unsorted Data - Unique'!$B$1:$AK$1,0)) -> 318 | V25: =OFFSET('Table Unsorted Data - Unique'!$A$1,MATCH(C25&"-"&D25&"-"&E25&"-"&F25,'Table Unsorted Data - Unique'!$A$2:$A$1621,0),MATCH(A25&"-"&B25,'Table Unsorted Data - Unique'!$B$1:$AK$1,0)) -> 318
A26: 2014 | B26: 4 | C26: C. Underwood | D26: JKL001 | E26: PA01 | F26: Forecast | H26: =VLOOKUP(A26&"-"&B26&"-"&C26&"-"&D26&"-"&E26&"-"&F26,'List Unsorted Data - Unique'!$G$2:$H$42942,2,0) -> 43 | J26: =SUMPRODUCT(('List Unsorted Data - Unique'!$G$2:$G$42942=A26&"-"&B26&"-"&C26&"-"&D26&"-"&E26&"-"&F26)*('List Unsorted Data - Unique'!$H$2:$H$42942)) -> 43 | L26: =INDEX('List Unsorted Data - Unique'!$H$2:$H$42942,MATCH(A26&"-"&B26&"-"&C26&"-"&D26&"-"&E26&"-"&F26,'List Unsorted Data - Unique'!$G$2:$G$42942,0)) -> 43 | N26: =OFFSET('List Unsorted Data - Unique'!G21,MATCH(A26&"-"&B26&"-"&C26&"-"&D26&"-"&E26&"-"&F26,'List Unsorted Data - Unique'!$G$2:$G$42942,0),1) -> 182 | P26: =VLOOKUP(C26&"-"&D26&"-"&E26&"-"&F26,'Table Unsorted Data - Unique'!$A$2:$AK$1621,MATCH(A26&"-"&B26,'Table Unsorted Data - Unique'!$A$1:$AK$1,0),0) -> 43 | R26: =SUMPRODUCT(('Table Unsorted Data - Unique'!$A$2:$A$1621=C26&"-"&D26&"-"&E26&"-"&F26)*('Table Unsorted Data - Unique'!$B$1:$AK$1=A26&"-"&B26)*('Table Unsorted Data - Unique'!$B$2:$AK$1621)) -> 43 | T26: =INDEX('Table Unsorted Data - Unique'!$B$2:$AK$1621,MATCH(C26&"-"&D26&"-"&E26&"-"&F26,'Table Unsorted Data - Unique'!$A$2:$A$1621,0),MATCH(A26&"-"&B26,'Table Unsorted Data - Unique'!$B$1:$AK$1,0)) -> 43 | V26: =OFFSET('Table Unsorted Data - Unique'!$A$1,MATCH(C26&"-"&D26&"-"&E26&"-"&F26,'Table Unsorted Data - Unique'!$A$2:$A$1621,0),MATCH(A26&"-"&B26,'Table Unsorted Data - Unique'!$B$1:$AK$1,0)) -> 43
A27: 2015 | B27: 7 | C27: C. Underwood | D27: PRD002 | E27: PA01 | F27: Actual | H27: =VLOOKUP(A27&"-"&B27&"-"&C27&"-"&D27&"-"&E27&"-"&F27,'List Unsorted Data - Unique'!$G$2:$H$42942,2,0) -> 469 | J27: =SUMPRODUCT(('List Unsorted Data - Unique'!$G$2:$G$42942=A27&"-"&B27&"-"&C27&"-"&D27&"-"&E27&"-"&F27)*('List Unsorted Data - Unique'!$H$2:$H$42942)) -> 469 | L27: =INDEX('List Unsorted Data - Unique'!$H$2:$H$42942,MATCH(A27&"-"&B27&"-"&C27&"-"&D27&"-"&E27&"-"&F27,'List Unsorted Data - Unique'!$G$2:$G$42942,0)) -> 469 | N27: =OFFSET('List Unsorted Data - Unique'!G22,MATCH(A27&"-"&B27&"-"&C27&"-"&D27&"-"&E27&"-"&F27,'List Unsorted Data - Unique'!$G$2:$G$42942,0),1) -> 294 | P27: =VLOOKUP(C27&"-"&D27&"-"&E27&"-"&F27,'Table Unsorted Data - Unique'!$A$2:$AK$1621,MATCH(A27&"-"&B27,'Table Unsorted Data - Unique'!$A$1:$AK$1,0),0) -> 469 | R27: =SUMPRODUCT(('Table Unsorted Data - Unique'!$A$2:$A$1621=C27&"-"&D27&"-"&E27&"-"&F27)*('Table Unsorted Data - Unique'!$B$1:$AK$1=A27&"-"&B27)*('Table Unsorted Data - Unique'!$B$2:$AK$1621)) -> 469 | T27: =INDEX('Table Unsorted Data - Unique'!$B$2:$AK$1621,MATCH(C27&"-"&D27&"-"&E27&"-"&F27,'Table Unsorted Data - Unique'!$A$2:$A$1621,0),MATCH(A27&"-"&B27,'Table Unsorted Data - Unique'!$B$1:$AK$1,0)) -> 469 | V27: =OFFSET('Table Unsorted Data - Unique'!$A$1,MATCH(C27&"-"&D27&"-"&E27&"-"&F27,'Table Unsorted Data - Unique'!$A$2:$A$1621,0),MATCH(A27&"-"&B27,'Table Unsorted Data - Unique'!$B$1:$AK$1,0)) -> 469
A28: 2014 | B28: 3 | C28: J. Lennon | D28: JKL001 | E28: NC01 | F28: Forecast | H28: =VLOOKUP(A28&"-"&B28&"-"&C28&"-"&D28&"-"&E28&"-"&F28,'List Unsorted Data - Unique'!$G$2:$H$42942,2,0) -> 123 | J28: =SUMPRODUCT(('List Unsorted Data - Unique'!$G$2:$G$42942=A28&"-"&B28&"-"&C28&"-"&D28&"-"&E28&"-"&F28)*('List Unsorted Data - Unique'!$H$2:$H$42942)) -> 123 | L28: =INDEX('List Unsorted Data - Unique'!$H$2:$H$42942,MATCH(A28&"-"&B28&"-"&C28&"-"&D28&"-"&E28&"-"&F28,'List Unsorted Data - Unique'!$G$2:$G$42942,0)) -> 123 | N28: =OFFSET('List Unsorted Data - Unique'!G23,MATCH(A28&"-"&B28&"-"&C28&"-"&D28&"-"&E28&"-"&F28,'List Unsorted Data - Unique'!$G$2:$G$42942,0),1) -> 186 | P28: =VLOOKUP(C28&"-"&D28&"-"&E28&"-"&F28,'Table Unsorted Data - Unique'!$A$2:$AK$1621,MATCH(A28&"-"&B28,'Table Unsorted Data - Unique'!$A$1:$AK$1,0),0) -> 123 | R28: =SUMPRODUCT(('Table Unsorted Data - Unique'!$A$2:$A$1621=C28&"-"&D28&"-"&E28&"-"&F28)*('Table Unsorted Data - Unique'!$B$1:$AK$1=A28&"-"&B28)*('Table Unsorted Data - Unique'!$B$2:$AK$1621)) -> 123 | T28: =INDEX('Table Unsorted Data - Unique'!$B$2:$AK$1621,MATCH(C28&"-"&D28&"-"&E28&"-"&F28,'Table Unsorted Data - Unique'!$A$2:$A$1621,0),MATCH(A28&"-"&B28,'Table Unsorted Data - Unique'!$B$1:$AK$1,0)) -> 123 | V28: =OFFSET('Table Unsorted Data - Unique'!$A$1,MATCH(C28&"-"&D28&"-"&E28&"-"&F28,'Table Unsorted Data - Unique'!$A$2:$A$1621,0),MATCH(A28&"-"&B28,'Table Unsorted Data - Unique'!$B$1:$AK$1,0)) -> 123
A29: 2016 | B29: 7 | C29: B. Paisley | D29: DFG001 | E29: SD01 | F29: Actual | H29: =VLOOKUP(A29&"-"&B29&"-"&C29&"-"&D29&"-"&E29&"-"&F29,'List Unsorted Data - Unique'!$G$2:$H$42942,2,0) -> 56 | J29: =SUMPRODUCT(('List Unsorted Data - Unique'!$G$2:$G$42942=A29&"-"&B29&"-"&C29&"-"&D29&"-"&E29&"-"&F29)*('List Unsorted Data - Unique'!$H$2:$H$42942)) -> 56 | L29: =INDEX('List Unsorted Data - Unique'!$H$2:$H$42942,MATCH(A29&"-"&B29&"-"&C29&"-"&D29&"-"&E29&"-"&F29,'List Unsorted Data - Unique'!$G$2:$G$42942,0)) -> 56 | N29: =OFFSET('List Unsorted Data - Unique'!G24,MATCH(A29&"-"&B29&"-"&C29&"-"&D29&"-"&E29&"-"&F29,'List Unsorted Data - Unique'!$G$2:$G$42942,0),1) -> 42 | P29: =VLOOKUP(C29&"-"&D29&"-"&E29&"-"&F29,'Table Unsorted Data - Unique'!$A$2:$AK$1621,MATCH(A29&"-"&B29,'Table Unsorted Data - Unique'!$A$1:$AK$1,0),0) -> 56 | R29: =SUMPRODUCT(('Table Unsorted Data - Unique'!$A$2:$A$1621=C29&"-"&D29&"-"&E29&"-"&F29)*('Table Unsorted Data - Unique'!$B$1:$AK$1=A29&"-"&B29)*('Table Unsorted Data - Unique'!$B$2:$AK$1621)) -> 56 | T29: =INDEX('Table Unsorted Data - Unique'!$B$2:$AK$1621,MATCH(C29&"-"&D29&"-"&E29&"-"&F29,'Table Unsorted Data - Unique'!$A$2:$A$1621,0),MATCH(A29&"-"&B29,'Table Unsorted Data - Unique'!$B$1:$AK$1,0)) -> 56 | V29: =OFFSET('Table Unsorted Data - Unique'!$A$1,MATCH(C29&"-"&D29&"-"&E29&"-"&F29,'Table Unsorted Data - Unique'!$A$2:$A$1621,0),MATCH(A29&"-"&B29,'Table Unsorted Data - Unique'!$B$1:$AK$1,0)) -> 56
A30: 2014 | B30: 6 | C30: J. McVie | D30: DFG001 | E30: MN01 | F30: Actual | H30: =VLOOKUP(A30&"-"&B30&"-"&C30&"-"&D30&"-"&E30&"-"&F30,'List Unsorted Data - Unique'!$G$2:$H$42942,2,0) -> 129 | J30: =SUMPRODUCT(('List Unsorted Data - Unique'!$G$2:$G$42942=A30&"-"&B30&"-"&C30&"-"&D30&"-"&E30&"-"&F30)*('List Unsorted Data - Unique'!$H$2:$H$42942)) -> 129 | L30: =INDEX('List Unsorted Data - Unique'!$H$2:$H$42942,MATCH(A30&"-"&B30&"-"&C30&"-"&D30&"-"&E30&"-"&F30,'List Unsorted Data - Unique'!$G$2:$G$42942,0)) -> 129 | N30: =OFFSET('List Unsorted Data - Unique'!G25,MATCH(A30&"-"&B30&"-"&C30&"-"&D30&"-"&E30&"-"&F30,'List Unsorted Data - Unique'!$G$2:$G$42942,0),1) -> 47 | P30: =VLOOKUP(C30&"-"&D30&"-"&E30&"-"&F30,'Table Unsorted Data - Unique'!$A$2:$AK$1621,MATCH(A30&"-"&B30,'Table Unsorted Data - Unique'!$A$1:$AK$1,0),0) -> 129 | R30: =SUMPRODUCT(('Table Unsorted Data - Unique'!$A$2:$A$1621=C30&"-"&D30&"-"&E30&"-"&F30)*('Table Unsorted Data - Unique'!$B$1:$AK$1=A30&"-"&B30)*('Table Unsorted Data - Unique'!$B$2:$AK$1621)) -> 129 | T30: =INDEX('Table Unsorted Data - Unique'!$B$2:$AK$1621,MATCH(C30&"-"&D30&"-"&E30&"-"&F30,'Table Unsorted Data - Unique'!$A$2:$A$1621,0),MATCH(A30&"-"&B30,'Table Unsorted Data - Unique'!$B$1:$AK$1,0)) -> 129 | V30: =OFFSET('Table Unsorted Data - Unique'!$A$1,MATCH(C30&"-"&D30&"-"&E30&"-"&F30,'Table Unsorted Data - Unique'!$A$2:$A$1621,0),MATCH(A30&"-"&B30,'Table Unsorted Data - Unique'!$B$1:$AK$1,0)) -> 129
A31: 2014 | B31: 12 | C31: B. Shelton | D31: PRD002 | E31: NC01 | F31: Forecast | H31: =VLOOKUP(A31&"-"&B31&"-"&C31&"-"&D31&"-"&E31&"-"&F31,'List Unsorted Data - Unique'!$G$2:$H$42942,2,0) -> 169 | J31: =SUMPRODUCT(('List Unsorted Data - Unique'!$G$2:$G$42942=A31&"-"&B31&"-"&C31&"-"&D31&"-"&E31&"-"&F31)*('List Unsorted Data - Unique'!$H$2:$H$42942)) -> 169 | L31: =INDEX('List Unsorted Data - Unique'!$H$2:$H$42942,MATCH(A31&"-"&B31&"-"&C31&"-"&D31&"-"&E31&"-"&F31,'List Unsorted Data - Unique'!$G$2:$G$42942,0)) -> 169 | N31: =OFFSET('List Unsorted Data - Unique'!G26,MATCH(A31&"-"&B31&"-"&C31&"-"&D31&"-"&E31&"-"&F31,'List Unsorted Data - Unique'!$G$2:$G$42942,0),1) -> 179 | P31: =VLOOKUP(C31&"-"&D31&"-"&E31&"-"&F31,'Table Unsorted Data - Unique'!$A$2:$AK$1621,MATCH(A31&"-"&B31,'Table Unsorted Data - Unique'!$A$1:$AK$1,0),0) -> 169 | R31: =SUMPRODUCT(('Table Unsorted Data - Unique'!$A$2:$A$1621=C31&"-"&D31&"-"&E31&"-"&F31)*('Table Unsorted Data - Unique'!$B$1:$AK$1=A31&"-"&B31)*('Table Unsorted Data - Unique'!$B$2:$AK$1621)) -> 169 | T31: =INDEX('Table Unsorted Data - Unique'!$B$2:$AK$1621,MATCH(C31&"-"&D31&"-"&E31&"-"&F31,'Table Unsorted Data - Unique'!$A$2:$A$1621,0),MATCH(A31&"-"&B31,'Table Unsorted Data - Unique'!$B$1:$AK$1,0)) -> 169 | V31: =OFFSET('Table Unsorted Data - Unique'!$A$1,MATCH(C31&"-"&D31&"-"&E31&"-"&F31,'Table Unsorted Data - Unique'!$A$2:$A$1621,0),MATCH(A31&"-"&B31,'Table Unsorted Data - Unique'!$B$1:$AK$1,0)) -> 169
A32: 2016 | B32: 4 | C32: R. Star | D32: PRD002 | E32: AK01 | F32: Actual | H32: =VLOOKUP(A32&"-"&B32&"-"&C32&"-"&D32&"-"&E32&"-"&F32,'List Unsorted Data - Unique'!$G$2:$H$42942,2,0) -> 79 | J32: =SUMPRODUCT(('List Unsorted Data - Unique'!$G$2:$G$42942=A32&"-"&B32&"-"&C32&"-"&D32&"-"&E32&"-"&F32)*('List Unsorted Data - Unique'!$H$2:$H$42942)) -> 79 | L32: =INDEX('List Unsorted Data - Unique'!$H$2:$H$42942,MATCH(A32&"-"&B32&"-"&C32&"-"&D32&"-"&E32&"-"&F32,'List Unsorted Data - Unique'!$G$2:$G$42942,0)) -> 79 | N32: =OFFSET('List Unsorted Data - Unique'!G27,MATCH(A32&"-"&B32&"-"&C32&"-"&D32&"-"&E32&"-"&F32,'List Unsorted Data - Unique'!$G$2:$G$42942,0),1) -> 68 | P32: =VLOOKUP(C32&"-"&D32&"-"&E32&"-"&F32,'Table Unsorted Data - Unique'!$A$2:$AK$1621,MATCH(A32&"-"&B32,'Table Unsorted Data - Unique'!$A$1:$AK$1,0),0) -> 79 | R32: =SUMPRODUCT(('Table Unsorted Data - Unique'!$A$2:$A$1621=C32&"-"&D32&"-"&E32&"-"&F32)*('Table Unsorted Data - Unique'!$B$1:$AK$1=A32&"-"&B32)*('Table Unsorted Data - Unique'!$B$2:$AK$1621)) -> 79 | T32: =INDEX('Table Unsorted Data - Unique'!$B$2:$AK$1621,MATCH(C32&"-"&D32&"-"&E32&"-"&F32,'Table Unsorted Data - Unique'!$A$2:$A$1621,0),MATCH(A32&"-"&B32,'Table Unsorted Data - Unique'!$B$1:$AK$1,0)) -> 79 | V32: =OFFSET('Table Unsorted Data - Unique'!$A$1,MATCH(C32&"-"&D32&"-"&E32&"-"&F32,'Table Unsorted Data - Unique'!$A$2:$A$1621,0),MATCH(A32&"-"&B32,'Table Unsorted Data - Unique'!$B$1:$AK$1,0)) -> 79
A33: 2014 | B33: 9 | C33: R. Star | D33: JKL001 | E33: CA01 | F33: Actual | H33: =VLOOKUP(A33&"-"&B33&"-"&C33&"-"&D33&"-"&E33&"-"&F33,'List Unsorted Data - Unique'!$G$2:$H$42942,2,0) -> 204 | J33: =SUMPRODUCT(('List Unsorted Data - Unique'!$G$2:$G$42942=A33&"-"&B33&"-"&C33&"-"&D33&"-"&E33&"-"&F33)*('List Unsorted Data - Unique'!$H$2:$H$42942)) -> 204 | L33: =INDEX('List Unsorted Data - Unique'!$H$2:$H$42942,MATCH(A33&"-"&B33&"-"&C33&"-"&D33&"-"&E33&"-"&F33,'List Unsorted Data - Unique'!$G$2:$G$42942,0)) -> 204 | N33: =OFFSET('List Unsorted Data - Unique'!G28,MATCH(A33&"-"&B33&"-"&C33&"-"&D33&"-"&E33&"-"&F33,'List Unsorted Data - Unique'!$G$2:$G$42942,0),1) -> 121 | P33: =VLOOKUP(C33&"-"&D33&"-"&E33&"-"&F33,'Table Unsorted Data - Unique'!$A$2:$AK$1621,MATCH(A33&"-"&B33,'Table Unsorted Data - Unique'!$A$1:$AK$1,0),0) -> 204 | R33: =SUMPRODUCT(('Table Unsorted Data - Unique'!$A$2:$A$1621=C33&"-"&D33&"-"&E33&"-"&F33)*('Table Unsorted Data - Unique'!$B$1:$AK$1=A33&"-"&B33)*('Table Unsorted Data - Unique'!$B$2:$AK$1621)) -> 204 | T33: =INDEX('Table Unsorted Data - Unique'!$B$2:$AK$1621,MATCH(C33&"-"&D33&"-"&E33&"-"&F33,'Table Unsorted Data - Unique'!$A$2:$A$1621,0),MATCH(A33&"-"&B33,'Table Unsorted Data - Unique'!$B$1:$AK$1,0)) -> 204 | V33: =OFFSET('Table Unsorted Data - Unique'!$A$1,MATCH(C33&"-"&D33&"-"&E33&"-"&F33,'Table Unsorted Data - Unique'!$A$2:$A$1621,0),MATCH(A33&"-"&B33,'Table Unsorted Data - Unique'!$B$1:$AK$1,0)) -> 204
A34: 2014 | B34: 2 | C34: M. Stipe | D34: ASL003 | E34: SD01 | F34: Forecast | H34: =VLOOKUP(A34&"-"&B34&"-"&C34&"-"&D34&"-"&E34&"-"&F34,'List Unsorted Data - Unique'!$G$2:$H$42942,2,0) -> 182 | J34: =SUMPRODUCT(('List Unsorted Data - Unique'!$G$2:$G$42942=A34&"-"&B34&"-"&C34&"-"&D34&"-"&E34&"-"&F34)*('List Unsorted Data - Unique'!$H$2:$H$42942)) -> 182 | L34: =INDEX('List Unsorted Data - Unique'!$H$2:$H$42942,MATCH(A34&"-"&B34&"-"&C34&"-"&D34&"-"&E34&"-"&F34,'List Unsorted Data - Unique'!$G$2:$G$42942,0)) -> 182 | N34: =OFFSET('List Unsorted Data - Unique'!G29,MATCH(A34&"-"&B34&"-"&C34&"-"&D34&"-"&E34&"-"&F34,'List Unsorted Data - Unique'!$G$2:$G$42942,0),1) -> 107 | P34: =VLOOKUP(C34&"-"&D34&"-"&E34&"-"&F34,'Table Unsorted Data - Unique'!$A$2:$AK$1621,MATCH(A34&"-"&B34,'Table Unsorted Data - Unique'!$A$1:$AK$1,0),0) -> 182 | R34: =SUMPRODUCT(('Table Unsorted Data - Unique'!$A$2:$A$1621=C34&"-"&D34&"-"&E34&"-"&F34)*('Table Unsorted Data - Unique'!$B$1:$AK$1=A34&"-"&B34)*('Table Unsorted Data - Unique'!$B$2:$AK$1621)) -> 182 | T34: =INDEX('Table Unsorted Data - Unique'!$B$2:$AK$1621,MATCH(C34&"-"&D34&"-"&E34&"-"&F34,'Table Unsorted Data - Unique'!$A$2:$A$1621,0),MATCH(A34&"-"&B34,'Table Unsorted Data - Unique'!$B$1:$AK$1,0)) -> 182 | V34: =OFFSET('Table Unsorted Data - Unique'!$A$1,MATCH(C34&"-"&D34&"-"&E34&"-"&F34,'Table Unsorted Data - Unique'!$A$2:$A$1621,0),MATCH(A34&"-"&B34,'Table Unsorted Data - Unique'!$B$1:$AK$1,0)) -> 182
A35: 2015 | B35: 9 | C35: M. Stipe | D35: ASL002 | E35: SD01 | F35: Forecast | H35: =VLOOKUP(A35&"-"&B35&"-"&C35&"-"&D35&"-"&E35&"-"&F35,'List Unsorted Data - Unique'!$G$2:$H$42942,2,0) -> 102 | J35: =SUMPRODUCT(('List Unsorted Data - Unique'!$G$2:$G$42942=A35&"-"&B35&"-"&C35&"-"&D35&"-"&E35&"-"&F35)*('List Unsorted Data - Unique'!$H$2:$H$42942)) -> 102 | L35: =INDEX('List Unsorted Data - Unique'!$H$2:$H$42942,MATCH(A35&"-"&B35&"-"&C35&"-"&D35&"-"&E35&"-"&F35,'List Unsorted Data - Unique'!$G$2:$G$42942,0)) -> 102 | N35: =OFFSET('List Unsorted Data - Unique'!G30,MATCH(A35&"-"&B35&"-"&C35&"-"&D35&"-"&E35&"-"&F35,'List Unsorted Data - Unique'!$G$2:$G$42942,0),1) -> 145 | P35: =VLOOKUP(C35&"-"&D35&"-"&E35&"-"&F35,'Table Unsorted Data - Unique'!$A$2:$AK$1621,MATCH(A35&"-"&B35,'Table Unsorted Data - Unique'!$A$1:$AK$1,0),0) -> 102 | R35: =SUMPRODUCT(('Table Unsorted Data - Unique'!$A$2:$A$1621=C35&"-"&D35&"-"&E35&"-"&F35)*('Table Unsorted Data - Unique'!$B$1:$AK$1=A35&"-"&B35)*('Table Unsorted Data - Unique'!$B$2:$AK$1621)) -> 102 | T35: =INDEX('Table Unsorted Data - Unique'!$B$2:$AK$1621,MATCH(C35&"-"&D35&"-"&E35&"-"&F35,'Table Unsorted Data - Unique'!$A$2:$A$1621,0),MATCH(A35&"-"&B35,'Table Unsorted Data - Unique'!$B$1:$AK$1,0)) -> 102 | V35: =OFFSET('Table Unsorted Data - Unique'!$A$1,MATCH(C35&"-"&D35&"-"&E35&"-"&F35,'Table Unsorted Data - Unique'!$A$2:$A$1621,0),MATCH(A35&"-"&B35,'Table Unsorted Data - Unique'!$B$1:$AK$1,0)) -> 102
A36: 2014 | B36: 4 | C36: J. Lennon | D36: ASL001 | E36: MN01 | F36: Actual | H36: =VLOOKUP(A36&"-"&B36&"-"&C36&"-"&D36&"-"&E36&"-"&F36,'List Unsorted Data - Unique'!$G$2:$H$42942,2,0) -> 297 | J36: =SUMPRODUCT(('List Unsorted Data - Unique'!$G$2:$G$42942=A36&"-"&B36&"-"&C36&"-"&D36&"-"&E36&"-"&F36)*('List Unsorted Data - Unique'!$H$2:$H$42942)) -> 297 | L36: =INDEX('List Unsorted Data - Unique'!$H$2:$H$42942,MATCH(A36&"-"&B36&"-"&C36&"-"&D36&"-"&E36&"-"&F36,'List Unsorted Data - Unique'!$G$2:$G$42942,0)) -> 297 | N36: =OFFSET('List Unsorted Data - Unique'!G31,MATCH(A36&"-"&B36&"-"&C36&"-"&D36&"-"&E36&"-"&F36,'List Unsorted Data - Unique'!$G$2:$G$42942,0),1) -> 167 | P36: =VLOOKUP(C36&"-"&D36&"-"&E36&"-"&F36,'Table Unsorted Data - Unique'!$A$2:$AK$1621,MATCH(A36&"-"&B36,'Table Unsorted Data - Unique'!$A$1:$AK$1,0),0) -> 297 | R36: =SUMPRODUCT(('Table Unsorted Data - Unique'!$A$2:$A$1621=C36&"-"&D36&"-"&E36&"-"&F36)*('Table Unsorted Data - Unique'!$B$1:$AK$1=A36&"-"&B36)*('Table Unsorted Data - Unique'!$B$2:$AK$1621)) -> 297 | T36: =INDEX('Table Unsorted Data - Unique'!$B$2:$AK$1621,MATCH(C36&"-"&D36&"-"&E36&"-"&F36,'Table Unsorted Data - Unique'!$A$2:$A$1621,0),MATCH(A36&"-"&B36,'Table Unsorted Data - Unique'!$B$1:$AK$1,0)) -> 297 | V36: =OFFSET('Table Unsorted Data - Unique'!$A$1,MATCH(C36&"-"&D36&"-"&E36&"-"&F36,'Table Unsorted Data - Unique'!$A$2:$A$1621,0),MATCH(A36&"-"&B36,'Table Unsorted Data - Unique'!$B$1:$AK$1,0)) -> 297
A37: 2016 | B37: 5 | C37: M.Mills | D37: PRD002 | E37: CA01 | F37: Actual | H37: =VLOOKUP(A37&"-"&B37&"-"&C37&"-"&D37&"-"&E37&"-"&F37,'List Unsorted Data - Unique'!$G$2:$H$42942,2,0) -> 157 | J37: =SUMPRODUCT(('List Unsorted Data - Unique'!$G$2:$G$42942=A37&"-"&B37&"-"&C37&"-"&D37&"-"&E37&"-"&F37)*('List Unsorted Data - Unique'!$H$2:$H$42942)) -> 157 | L37: =INDEX('List Unsorted Data - Unique'!$H$2:$H$42942,MATCH(A37&"-"&B37&"-"&C37&"-"&D37&"-"&E37&"-"&F37,'List Unsorted Data - Unique'!$G$2:$G$42942,0)) -> 157 | N37: =OFFSET('List Unsorted Data - Unique'!G32,MATCH(A37&"-"&B37&"-"&C37&"-"&D37&"-"&E37&"-"&F37,'List Unsorted Data - Unique'!$G$2:$G$42942,0),1) -> 278 | P37: =VLOOKUP(C37&"-"&D37&"-"&E37&"-"&F37,'Table Unsorted Data - Unique'!$A$2:$AK$1621,MATCH(A37&"-"&B37,'Table Unsorted Data - Unique'!$A$1:$AK$1,0),0) -> 157 | R37: =SUMPRODUCT(('Table Unsorted Data - Unique'!$A$2:$A$1621=C37&"-"&D37&"-"&E37&"-"&F37)*('Table Unsorted Data - Unique'!$B$1:$AK$1=A37&"-"&B37)*('Table Unsorted Data - Unique'!$B$2:$AK$1621)) -> 157 | T37: =INDEX('Table Unsorted Data - Unique'!$B$2:$AK$1621,MATCH(C37&"-"&D37&"-"&E37&"-"&F37,'Table Unsorted Data - Unique'!$A$2:$A$1621,0),MATCH(A37&"-"&B37,'Table Unsorted Data - Unique'!$B$1:$AK$1,0)) -> 157 | V37: =OFFSET('Table Unsorted Data - Unique'!$A$1,MATCH(C37&"-"&D37&"-"&E37&"-"&F37,'Table Unsorted Data - Unique'!$A$2:$A$1621,0),MATCH(A37&"-"&B37,'Table Unsorted Data - Unique'!$B$1:$AK$1,0)) -> 157
A38: 2015 | B38: 7 | C38: P. Buck | D38: ASL003 | E38: VA01 | F38: Actual | H38: =VLOOKUP(A38&"-"&B38&"-"&C38&"-"&D38&"-"&E38&"-"&F38,'List Unsorted Data - Unique'!$G$2:$H$42942,2,0) -> 188 | J38: =SUMPRODUCT(('List Unsorted Data - Unique'!$G$2:$G$42942=A38&"-"&B38&"-"&C38&"-"&D38&"-"&E38&"-"&F38)*('List Unsorted Data - Unique'!$H$2:$H$42942)) -> 188 | L38: =INDEX('List Unsorted Data - Unique'!$H$2:$H$42942,MATCH(A38&"-"&B38&"-"&C38&"-"&D38&"-"&E38&"-"&F38,'List Unsorted Data - Unique'!$G$2:$G$42942,0)) -> 188 | N38: =OFFSET('List Unsorted Data - Unique'!G33,MATCH(A38&"-"&B38&"-"&C38&"-"&D38&"-"&E38&"-"&F38,'List Unsorted Data - Unique'!$G$2:$G$42942,0),1) -> 72 | P38: =VLOOKUP(C38&"-"&D38&"-"&E38&"-"&F38,'Table Unsorted Data - Unique'!$A$2:$AK$1621,MATCH(A38&"-"&B38,'Table Unsorted Data - Unique'!$A$1:$AK$1,0),0) -> 188 | R38: =SUMPRODUCT(('Table Unsorted Data - Unique'!$A$2:$A$1621=C38&"-"&D38&"-"&E38&"-"&F38)*('Table Unsorted Data - Unique'!$B$1:$AK$1=A38&"-"&B38)*('Table Unsorted Data - Unique'!$B$2:$AK$1621)) -> 188 | T38: =INDEX('Table Unsorted Data - Unique'!$B$2:$AK$1621,MATCH(C38&"-"&D38&"-"&E38&"-"&F38,'Table Unsorted Data - Unique'!$A$2:$A$1621,0),MATCH(A38&"-"&B38,'Table Unsorted Data - Unique'!$B$1:$AK$1,0)) -> 188 | V38: =OFFSET('Table Unsorted Data - Unique'!$A$1,MATCH(C38&"-"&D38&"-"&E38&"-"&F38,'Table Unsorted Data - Unique'!$A$2:$A$1621,0),MATCH(A38&"-"&B38,'Table Unsorted Data - Unique'!$B$1:$AK$1,0)) -> 188
A39: 2015 | B39: 6 | C39: B. Shelton | D39: POT002 | E39: LA01 | F39: Forecast | H39: =VLOOKUP(A39&"-"&B39&"-"&C39&"-"&D39&"-"&E39&"-"&F39,'List Unsorted Data - Unique'!$G$2:$H$42942,2,0) -> 525 | J39: =SUMPRODUCT(('List Unsorted Data - Unique'!$G$2:$G$42942=A39&"-"&B39&"-"&C39&"-"&D39&"-"&E39&"-"&F39)*('List Unsorted Data - Unique'!$H$2:$H$42942)) -> 525 | L39: =INDEX('List Unsorted Data - Unique'!$H$2:$H$42942,MATCH(A39&"-"&B39&"-"&C39&"-"&D39&"-"&E39&"-"&F39,'List Unsorted Data - Unique'!$G$2:$G$42942,0)) -> 525 | N39: =OFFSET('List Unsorted Data - Unique'!G34,MATCH(A39&"-"&B39&"-"&C39&"-"&D39&"-"&E39&"-"&F39,'List Unsorted Data - Unique'!$G$2:$G$42942,0),1) -> 217 | P39: =VLOOKUP(C39&"-"&D39&"-"&E39&"-"&F39,'Table Unsorted Data - Unique'!$A$2:$AK$1621,MATCH(A39&"-"&B39,'Table Unsorted Data - Unique'!$A$1:$AK$1,0),0) -> 525 | R39: =SUMPRODUCT(('Table Unsorted Data - Unique'!$A$2:$A$1621=C39&"-"&D39&"-"&E39&"-"&F39)*('Table Unsorted Data - Unique'!$B$1:$AK$1=A39&"-"&B39)*('Table Unsorted Data - Unique'!$B$2:$AK$1621)) -> 525 | T39: =INDEX('Table Unsorted Data - Unique'!$B$2:$AK$1621,MATCH(C39&"-"&D39&"-"&E39&"-"&F39,'Table Unsorted Data - Unique'!$A$2:$A$1621,0),MATCH(A39&"-"&B39,'Table Unsorted Data - Unique'!$B$1:$AK$1,0)) -> 525 | V39: =OFFSET('Table Unsorted Data - Unique'!$A$1,MATCH(C39&"-"&D39&"-"&E39&"-"&F39,'Table Unsorted Data - Unique'!$A$2:$A$1621,0),MATCH(A39&"-"&B39,'Table Unsorted Data - Unique'!$B$1:$AK$1,0)) -> 525
A40: 2016 | B40: 8 | C40: B. Paisley | D40: POT001 | E40: VA01 | F40: Actual | H40: =VLOOKUP(A40&"-"&B40&"-"&C40&"-"&D40&"-"&E40&"-"&F40,'List Unsorted Data - Unique'!$G$2:$H$42942,2,0) -> 153 | J40: =SUMPRODUCT(('List Unsorted Data - Unique'!$G$2:$G$42942=A40&"-"&B40&"-"&C40&"-"&D40&"-"&E40&"-"&F40)*('List Unsorted Data - Unique'!$H$2:$H$42942)) -> 153 | L40: =INDEX('List Unsorted Data - Unique'!$H$2:$H$42942,MATCH(A40&"-"&B40&"-"&C40&"-"&D40&"-"&E40&"-"&F40,'List Unsorted Data - Unique'!$G$2:$G$42942,0)) -> 153 | N40: =OFFSET('List Unsorted Data - Unique'!G35,MATCH(A40&"-"&B40&"-"&C40&"-"&D40&"-"&E40&"-"&F40,'List Unsorted Data - Unique'!$G$2:$G$42942,0),1) -> 81 | P40: =VLOOKUP(C40&"-"&D40&"-"&E40&"-"&F40,'Table Unsorted Data - Unique'!$A$2:$AK$1621,MATCH(A40&"-"&B40,'Table Unsorted Data - Unique'!$A$1:$AK$1,0),0) -> 153 | R40: =SUMPRODUCT(('Table Unsorted Data - Unique'!$A$2:$A$1621=C40&"-"&D40&"-"&E40&"-"&F40)*('Table Unsorted Data - Unique'!$B$1:$AK$1=A40&"-"&B40)*('Table Unsorted Data - Unique'!$B$2:$AK$1621)) -> 153 | T40: =INDEX('Table Unsorted Data - Unique'!$B$2:$AK$1621,MATCH(C40&"-"&D40&"-"&E40&"-"&F40,'Table Unsorted Data - Unique'!$A$2:$A$1621,0),MATCH(A40&"-"&B40,'Table Unsorted Data - Unique'!$B$1:$AK$1,0)) -> 153 | V40: =OFFSET('Table Unsorted Data - Unique'!$A$1,MATCH(C40&"-"&D40&"-"&E40&"-"&F40,'Table Unsorted Data - Unique'!$A$2:$A$1621,0),MATCH(A40&"-"&B40,'Table Unsorted Data - Unique'!$B$1:$AK$1,0)) -> 153
A41: 2015 | B41: 8 | C41: J. McVie | D41: PRD002 | E41: NC01 | F41: Actual | H41: =VLOOKUP(A41&"-"&B41&"-"&C41&"-"&D41&"-"&E41&"-"&F41,'List Unsorted Data - Unique'!$G$2:$H$42942,2,0) -> 78 | J41: =SUMPRODUCT(('List Unsorted Data - Unique'!$G$2:$G$42942=A41&"-"&B41&"-"&C41&"-"&D41&"-"&E41&"-"&F41)*('List Unsorted Data - Unique'!$H$2:$H$42942)) -> 78 | L41: =INDEX('List Unsorted Data - Unique'!$H$2:$H$42942,MATCH(A41&"-"&B41&"-"&C41&"-"&D41&"-"&E41&"-"&F41,'List Unsorted Data - Unique'!$G$2:$G$42942,0)) -> 78 | N41: =OFFSET('List Unsorted Data - Unique'!G36,MATCH(A41&"-"&B41&"-"&C41&"-"&D41&"-"&E41&"-"&F41,'List Unsorted Data - Unique'!$G$2:$G$42942,0),1) -> 65 | P41: =VLOOKUP(C41&"-"&D41&"-"&E41&"-"&F41,'Table Unsorted Data - Unique'!$A$2:$AK$1621,MATCH(A41&"-"&B41,'Table Unsorted Data - Unique'!$A$1:$AK$1,0),0) -> 78 | R41: =SUMPRODUCT(('Table Unsorted Data - Unique'!$A$2:$A$1621=C41&"-"&D41&"-"&E41&"-"&F41)*('Table Unsorted Data - Unique'!$B$1:$AK$1=A41&"-"&B41)*('Table Unsorted Data - Unique'!$B$2:$AK$1621)) -> 78 | T41: =INDEX('Table Unsorted Data - Unique'!$B$2:$AK$1621,MATCH(C41&"-"&D41&"-"&E41&"-"&F41,'Table Unsorted Data - Unique'!$A$2:$A$1621,0),MATCH(A41&"-"&B41,'Table Unsorted Data - Unique'!$B$1:$AK$1,0)) -> 78 | V41: =OFFSET('Table Unsorted Data - Unique'!$A$1,MATCH(C41&"-"&D41&"-"&E41&"-"&F41,'Table Unsorted Data - Unique'!$A$2:$A$1621,0),MATCH(A41&"-"&B41,'Table Unsorted Data - Unique'!$B$1:$AK$1,0)) -> 78
A42: 2016 | B42: 7 | C42: J. McVie | D42: JKL001 | E42: SD01 | F42: Actual | H42: =VLOOKUP(A42&"-"&B42&"-"&C42&"-"&D42&"-"&E42&"-"&F42,'List Unsorted Data - Unique'!$G$2:$H$42942,2,0) -> 69 | J42: =SUMPRODUCT(('List Unsorted Data - Unique'!$G$2:$G$42942=A42&"-"&B42&"-"&C42&"-"&D42&"-"&E42&"-"&F42)*('List Unsorted Data - Unique'!$H$2:$H$42942)) -> 69 | L42: =INDEX('List Unsorted Data - Unique'!$H$2:$H$42942,MATCH(A42&"-"&B42&"-"&C42&"-"&D42&"-"&E42&"-"&F42,'List Unsorted Data - Unique'!$G$2:$G$42942,0)) -> 69 | N42: =OFFSET('List Unsorted Data - Unique'!G37,MATCH(A42&"-"&B42&"-"&C42&"-"&D42&"-"&E42&"-"&F42,'List Unsorted Data - Unique'!$G$2:$G$42942,0),1) -> 65 | P42: =VLOOKUP(C42&"-"&D42&"-"&E42&"-"&F42,'Table Unsorted Data - Unique'!$A$2:$AK$1621,MATCH(A42&"-"&B42,'Table Unsorted Data - Unique'!$A$1:$AK$1,0),0) -> 69 | R42: =SUMPRODUCT(('Table Unsorted Data - Unique'!$A$2:$A$1621=C42&"-"&D42&"-"&E42&"-"&F42)*('Table Unsorted Data - Unique'!$B$1:$AK$1=A42&"-"&B42)*('Table Unsorted Data - Unique'!$B$2:$AK$1621)) -> 69 | T42: =INDEX('Table Unsorted Data - Unique'!$B$2:$AK$1621,MATCH(C42&"-"&D42&"-"&E42&"-"&F42,'Table Unsorted Data - Unique'!$A$2:$A$1621,0),MATCH(A42&"-"&B42,'Table Unsorted Data - Unique'!$B$1:$AK$1,0)) -> 69 | V42: =OFFSET('Table Unsorted Data - Unique'!$A$1,MATCH(C42&"-"&D42&"-"&E42&"-"&F42,'Table Unsorted Data - Unique'!$A$2:$A$1621,0),MATCH(A42&"-"&B42,'Table Unsorted Data - Unique'!$B$1:$AK$1,0)) -> 69
A43: 2016 | B43: 11 | C43: B. Paisley | D43: DFG001 | E43: MN01 | F43: Forecast | H43: =VLOOKUP(A43&"-"&B43&"-"&C43&"-"&D43&"-"&E43&"-"&F43,'List Unsorted Data - Unique'!$G$2:$H$42942,2,0) -> 56 | J43: =SUMPRODUCT(('List Unsorted Data - Unique'!$G$2:$G$42942=A43&"-"&B43&"-"&C43&"-"&D43&"-"&E43&"-"&F43)*('List Unsorted Data - Unique'!$H$2:$H$42942)) -> 56 | L43: =INDEX('List Unsorted Data - Unique'!$H$2:$H$42942,MATCH(A43&"-"&B43&"-"&C43&"-"&D43&"-"&E43&"-"&F43,'List Unsorted Data - Unique'!$G$2:$G$42942,0)) -> 56 | N43: =OFFSET('List Unsorted Data - Unique'!G38,MATCH(A43&"-"&B43&"-"&C43&"-"&D43&"-"&E43&"-"&F43,'List Unsorted Data - Unique'!$G$2:$G$42942,0),1) -> 155 | P43: =VLOOKUP(C43&"-"&D43&"-"&E43&"-"&F43,'Table Unsorted Data - Unique'!$A$2:$AK$1621,MATCH(A43&"-"&B43,'Table Unsorted Data - Unique'!$A$1:$AK$1,0),0) -> 56 | R43: =SUMPRODUCT(('Table Unsorted Data - Unique'!$A$2:$A$1621=C43&"-"&D43&"-"&E43&"-"&F43)*('Table Unsorted Data - Unique'!$B$1:$AK$1=A43&"-"&B43)*('Table Unsorted Data - Unique'!$B$2:$AK$1621)) -> 56 | T43: =INDEX('Table Unsorted Data - Unique'!$B$2:$AK$1621,MATCH(C43&"-"&D43&"-"&E43&"-"&F43,'Table Unsorted Data - Unique'!$A$2:$A$1621,0),MATCH(A43&"-"&B43,'Table Unsorted Data - Unique'!$B$1:$AK$1,0)) -> 56 | V43: =OFFSET('Table Unsorted Data - Unique'!$A$1,MATCH(C43&"-"&D43&"-"&E43&"-"&F43,'Table Unsorted Data - Unique'!$A$2:$A$1621,0),MATCH(A43&"-"&B43,'Table Unsorted Data - Unique'!$B$1:$AK$1,0)) -> 56
A44: 2016 | B44: 5 | C44: P. Buck | D44: PRD002 | E44: AL01 | F44: Forecast | H44: =VLOOKUP(A44&"-"&B44&"-"&C44&"-"&D44&"-"&E44&"-"&F44,'List Unsorted Data - Unique'!$G$2:$H$42942,2,0) -> 339 | J44: =SUMPRODUCT(('List Unsorted Data - Unique'!$G$2:$G$42942=A44&"-"&B44&"-"&C44&"-"&D44&"-"&E44&"-"&F44)*('List Unsorted Data - Unique'!$H$2:$H$42942)) -> 339 | L44: =INDEX('List Unsorted Data - Unique'!$H$2:$H$42942,MATCH(A44&"-"&B44&"-"&C44&"-"&D44&"-"&E44&"-"&F44,'List Unsorted Data - Unique'!$G$2:$G$42942,0)) -> 339 | N44: =OFFSET('List Unsorted Data - Unique'!G39,MATCH(A44&"-"&B44&"-"&C44&"-"&D44&"-"&E44&"-"&F44,'List Unsorted Data - Unique'!$G$2:$G$42942,0),1) -> 49 | P44: =VLOOKUP(C44&"-"&D44&"-"&E44&"-"&F44,'Table Unsorted Data - Unique'!$A$2:$AK$1621,MATCH(A44&"-"&B44,'Table Unsorted Data - Unique'!$A$1:$AK$1,0),0) -> 339 | R44: =SUMPRODUCT(('Table Unsorted Data - Unique'!$A$2:$A$1621=C44&"-"&D44&"-"&E44&"-"&F44)*('Table Unsorted Data - Unique'!$B$1:$AK$1=A44&"-"&B44)*('Table Unsorted Data - Unique'!$B$2:$AK$1621)) -> 339 | T44: =INDEX('Table Unsorted Data - Unique'!$B$2:$AK$1621,MATCH(C44&"-"&D44&"-"&E44&"-"&F44,'Table Unsorted Data - Unique'!$A$2:$A$1621,0),MATCH(A44&"-"&B44,'Table Unsorted Data - Unique'!$B$1:$AK$1,0)) -> 339 | V44: =OFFSET('Table Unsorted Data - Unique'!$A$1,MATCH(C44&"-"&D44&"-"&E44&"-"&F44,'Table Unsorted Data - Unique'!$A$2:$A$1621,0),MATCH(A44&"-"&B44,'Table Unsorted Data - Unique'!$B$1:$AK$1,0)) -> 339
A45: 2015 | B45: 7 | C45: S. Crow | D45: POT002 | E45: CA01 | F45: Actual | H45: =VLOOKUP(A45&"-"&B45&"-"&C45&"-"&D45&"-"&E45&"-"&F45,'List Unsorted Data - Unique'!$G$2:$H$42942,2,0) -> 149 | J45: =SUMPRODUCT(('List Unsorted Data - Unique'!$G$2:$G$42942=A45&"-"&B45&"-"&C45&"-"&D45&"-"&E45&"-"&F45)*('List Unsorted Data - Unique'!$H$2:$H$42942)) -> 149 | L45: =INDEX('List Unsorted Data - Unique'!$H$2:$H$42942,MATCH(A45&"-"&B45&"-"&C45&"-"&D45&"-"&E45&"-"&F45,'List Unsorted Data - Unique'!$G$2:$G$42942,0)) -> 149 | N45: =OFFSET('List Unsorted Data - Unique'!G40,MATCH(A45&"-"&B45&"-"&C45&"-"&D45&"-"&E45&"-"&F45,'List Unsorted Data - Unique'!$G$2:$G$42942,0),1) -> 212 | P45: =VLOOKUP(C45&"-"&D45&"-"&E45&"-"&F45,'Table Unsorted Data - Unique'!$A$2:$AK$1621,MATCH(A45&"-"&B45,'Table Unsorted Data - Unique'!$A$1:$AK$1,0),0) -> 149 | R45: =SUMPRODUCT(('Table Unsorted Data - Unique'!$A$2:$A$1621=C45&"-"&D45&"-"&E45&"-"&F45)*('Table Unsorted Data - Unique'!$B$1:$AK$1=A45&"-"&B45)*('Table Unsorted Data - Unique'!$B$2:$AK$1621)) -> 149 | T45: =INDEX('Table Unsorted Data - Unique'!$B$2:$AK$1621,MATCH(C45&"-"&D45&"-"&E45&"-"&F45,'Table Unsorted Data - Unique'!$A$2:$A$1621,0),MATCH(A45&"-"&B45,'Table Unsorted Data - Unique'!$B$1:$AK$1,0)) -> 149 | V45: =OFFSET('Table Unsorted Data - Unique'!$A$1,MATCH(C45&"-"&D45&"-"&E45&"-"&F45,'Table Unsorted Data - Unique'!$A$2:$A$1621,0),MATCH(A45&"-"&B45,'Table Unsorted Data - Unique'!$B$1:$AK$1,0)) -> 149
A46: 2016 | B46: 7 | C46: B. Paisley | D46: DFG001 | E46: AK01 | F46: Forecast | H46: =VLOOKUP(A46&"-"&B46&"-"&C46&"-"&D46&"-"&E46&"-"&F46,'List Unsorted Data - Unique'!$G$2:$H$42942,2,0) -> 112 | J46: =SUMPRODUCT(('List Unsorted Data - Unique'!$G$2:$G$42942=A46&"-"&B46&"-"&C46&"-"&D46&"-"&E46&"-"&F46)*('List Unsorted Data - Unique'!$H$2:$H$42942)) -> 112 | L46: =INDEX('List Unsorted Data - Unique'!$H$2:$H$42942,MATCH(A46&"-"&B46&"-"&C46&"-"&D46&"-"&E46&"-"&F46,'List Unsorted Data - Unique'!$G$2:$G$42942,0)) -> 112 | N46: =OFFSET('List Unsorted Data - Unique'!G41,MATCH(A46&"-"&B46&"-"&C46&"-"&D46&"-"&E46&"-"&F46,'List Unsorted Data - Unique'!$G$2:$G$42942,0),1) -> 459 | P46: =VLOOKUP(C46&"-"&D46&"-"&E46&"-"&F46,'Table Unsorted Data - Unique'!$A$2:$AK$1621,MATCH(A46&"-"&B46,'Table Unsorted Data - Unique'!$A$1:$AK$1,0),0) -> 112 | R46: =SUMPRODUCT(('Table Unsorted Data - Unique'!$A$2:$A$1621=C46&"-"&D46&"-"&E46&"-"&F46)*('Table Unsorted Data - Unique'!$B$1:$AK$1=A46&"-"&B46)*('Table Unsorted Data - Unique'!$B$2:$AK$1621)) -> 112 | T46: =INDEX('Table Unsorted Data - Unique'!$B$2:$AK$1621,MATCH(C46&"-"&D46&"-"&E46&"-"&F46,'Table Unsorted Data - Unique'!$A$2:$A$1621,0),MATCH(A46&"-"&B46,'Table Unsorted Data - Unique'!$B$1:$AK$1,0)) -> 112 | V46: =OFFSET('Table Unsorted Data - Unique'!$A$1,MATCH(C46&"-"&D46&"-"&E46&"-"&F46,'Table Unsorted Data - Unique'!$A$2:$A$1621,0),MATCH(A46&"-"&B46,'Table Unsorted Data - Unique'!$B$1:$AK$1,0)) -> 112
A47: 2014 | B47: 9 | C47: B. Paisley | D47: PRD001 | E47: MN01 | F47: Actual | H47: =VLOOKUP(A47&"-"&B47&"-"&C47&"-"&D47&"-"&E47&"-"&F47,'List Unsorted Data - Unique'!$G$2:$H$42942,2,0) -> 263 | J47: =SUMPRODUCT(('List Unsorted Data - Unique'!$G$2:$G$42942=A47&"-"&B47&"-"&C47&"-"&D47&"-"&E47&"-"&F47)*('List Unsorted Data - Unique'!$H$2:$H$42942)) -> 263 | L47: =INDEX('List Unsorted Data - Unique'!$H$2:$H$42942,MATCH(A47&"-"&B47&"-"&C47&"-"&D47&"-"&E47&"-"&F47,'List Unsorted Data - Unique'!$G$2:$G$42942,0)) -> 263 | N47: =OFFSET('List Unsorted Data - Unique'!G42,MATCH(A47&"-"&B47&"-"&C47&"-"&D47&"-"&E47&"-"&F47,'List Unsorted Data - Unique'!$G$2:$G$42942,0),1) -> 167 | P47: =VLOOKUP(C47&"-"&D47&"-"&E47&"-"&F47,'Table Unsorted Data - Unique'!$A$2:$AK$1621,MATCH(A47&"-"&B47,'Table Unsorted Data - Unique'!$A$1:$AK$1,0),0) -> 263 | R47: =SUMPRODUCT(('Table Unsorted Data - Unique'!$A$2:$A$1621=C47&"-"&D47&"-"&E47&"-"&F47)*('Table Unsorted Data - Unique'!$B$1:$AK$1=A47&"-"&B47)*('Table Unsorted Data - Unique'!$B$2:$AK$1621)) -> 263 | T47: =INDEX('Table Unsorted Data - Unique'!$B$2:$AK$1621,MATCH(C47&"-"&D47&"-"&E47&"-"&F47,'Table Unsorted Data - Unique'!$A$2:$A$1621,0),MATCH(A47&"-"&B47,'Table Unsorted Data - Unique'!$B$1:$AK$1,0)) -> 263 | V47: =OFFSET('Table Unsorted Data - Unique'!$A$1,MATCH(C47&"-"&D47&"-"&E47&"-"&F47,'Table Unsorted Data - Unique'!$A$2:$A$1621,0),MATCH(A47&"-"&B47,'Table Unsorted Data - Unique'!$B$1:$AK$1,0)) -> 263
A48: 2015 | B48: 1 | C48: M. Stipe | D48: POT001 | E48: SD01 | F48: Actual | H48: =VLOOKUP(A48&"-"&B48&"-"&C48&"-"&D48&"-"&E48&"-"&F48,'List Unsorted Data - Unique'!$G$2:$H$42942,2,0) -> 152 | J48: =SUMPRODUCT(('List Unsorted Data - Unique'!$G$2:$G$42942=A48&"-"&B48&"-"&C48&"-"&D48&"-"&E48&"-"&F48)*('List Unsorted Data - Unique'!$H$2:$H$42942)) -> 152 | L48: =INDEX('List Unsorted Data - Unique'!$H$2:$H$42942,MATCH(A48&"-"&B48&"-"&C48&"-"&D48&"-"&E48&"-"&F48,'List Unsorted Data - Unique'!$G$2:$G$42942,0)) -> 152 | N48: =OFFSET('List Unsorted Data - Unique'!G43,MATCH(A48&"-"&B48&"-"&C48&"-"&D48&"-"&E48&"-"&F48,'List Unsorted Data - Unique'!$G$2:$G$42942,0),1) -> 69 | P48: =VLOOKUP(C48&"-"&D48&"-"&E48&"-"&F48,'Table Unsorted Data - Unique'!$A$2:$AK$1621,MATCH(A48&"-"&B48,'Table Unsorted Data - Unique'!$A$1:$AK$1,0),0) -> 152 | R48: =SUMPRODUCT(('Table Unsorted Data - Unique'!$A$2:$A$1621=C48&"-"&D48&"-"&E48&"-"&F48)*('Table Unsorted Data - Unique'!$B$1:$AK$1=A48&"-"&B48)*('Table Unsorted Data - Unique'!$B$2:$AK$1621)) -> 152 | T48: =INDEX('Table Unsorted Data - Unique'!$B$2:$AK$1621,MATCH(C48&"-"&D48&"-"&E48&"-"&F48,'Table Unsorted Data - Unique'!$A$2:$A$1621,0),MATCH(A48&"-"&B48,'Table Unsorted Data - Unique'!$B$1:$AK$1,0)) -> 152 | V48: =OFFSET('Table Unsorted Data - Unique'!$A$1,MATCH(C48&"-"&D48&"-"&E48&"-"&F48,'Table Unsorted Data - Unique'!$A$2:$A$1621,0),MATCH(A48&"-"&B48,'Table Unsorted Data - Unique'!$B$1:$AK$1,0)) -> 152
A49: 2015 | B49: 12 | C49: M. Stipe | D49: DFG001 | E49: AL01 | F49: Forecast | H49: =VLOOKUP(A49&"-"&B49&"-"&C49&"-"&D49&"-"&E49&"-"&F49,'List Unsorted Data - Unique'!$G$2:$H$42942,2,0) -> 59 | J49: =SUMPRODUCT(('List Unsorted Data - Unique'!$G$2:$G$42942=A49&"-"&B49&"-"&C49&"-"&D49&"-"&E49&"-"&F49)*('List Unsorted Data - Unique'!$H$2:$H$42942)) -> 59 | L49: =INDEX('List Unsorted Data - Unique'!$H$2:$H$42942,MATCH(A49&"-"&B49&"-"&C49&"-"&D49&"-"&E49&"-"&F49,'List Unsorted Data - Unique'!$G$2:$G$42942,0)) -> 59 | N49: =OFFSET('List Unsorted Data - Unique'!G44,MATCH(A49&"-"&B49&"-"&C49&"-"&D49&"-"&E49&"-"&F49,'List Unsorted Data - Unique'!$G$2:$G$42942,0),1) -> 80 | P49: =VLOOKUP(C49&"-"&D49&"-"&E49&"-"&F49,'Table Unsorted Data - Unique'!$A$2:$AK$1621,MATCH(A49&"-"&B49,'Table Unsorted Data - Unique'!$A$1:$AK$1,0),0) -> 59 | R49: =SUMPRODUCT(('Table Unsorted Data - Unique'!$A$2:$A$1621=C49&"-"&D49&"-"&E49&"-"&F49)*('Table Unsorted Data - Unique'!$B$1:$AK$1=A49&"-"&B49)*('Table Unsorted Data - Unique'!$B$2:$AK$1621)) -> 59 | T49: =INDEX('Table Unsorted Data - Unique'!$B$2:$AK$1621,MATCH(C49&"-"&D49&"-"&E49&"-"&F49,'Table Unsorted Data - Unique'!$A$2:$A$1621,0),MATCH(A49&"-"&B49,'Table Unsorted Data - Unique'!$B$1:$AK$1,0)) -> 59 | V49: =OFFSET('Table Unsorted Data - Unique'!$A$1,MATCH(C49&"-"&D49&"-"&E49&"-"&F49,'Table Unsorted Data - Unique'!$A$2:$A$1621,0),MATCH(A49&"-"&B49,'Table Unsorted Data - Unique'!$B$1:$AK$1,0)) -> 59
A50: 2016 | B50: 1 | C50: J. Lennon | D50: POT002 | E50: AL01 | F50: Actual | H50: =VLOOKUP(A50&"-"&B50&"-"&C50&"-"&D50&"-"&E50&"-"&F50,'List Unsorted Data - Unique'!$G$2:$H$42942,2,0) -> 80 | J50: =SUMPRODUCT(('List Unsorted Data - Unique'!$G$2:$G$42942=A50&"-"&B50&"-"&C50&"-"&D50&"-"&E50&"-"&F50)*('List Unsorted Data - Unique'!$H$2:$H$42942)) -> 80 | L50: =INDEX('List Unsorted Data - Unique'!$H$2:$H$42942,MATCH(A50&"-"&B50&"-"&C50&"-"&D50&"-"&E50&"-"&F50,'List Unsorted Data - Unique'!$G$2:$G$42942,0)) -> 80 | N50: =OFFSET('List Unsorted Data - Unique'!G45,MATCH(A50&"-"&B50&"-"&C50&"-"&D50&"-"&E50&"-"&F50,'List Unsorted Data - Unique'!$G$2:$G$42942,0),1) -> 52 | P50: =VLOOKUP(C50&"-"&D50&"-"&E50&"-"&F50,'Table Unsorted Data - Unique'!$A$2:$AK$1621,MATCH(A50&"-"&B50,'Table Unsorted Data - Unique'!$A$1:$AK$1,0),0) -> 80 | R50: =SUMPRODUCT(('Table Unsorted Data - Unique'!$A$2:$A$1621=C50&"-"&D50&"-"&E50&"-"&F50)*('Table Unsorted Data - Unique'!$B$1:$AK$1=A50&"-"&B50)*('Table Unsorted Data - Unique'!$B$2:$AK$1621)) -> 80 | T50: =INDEX('Table Unsorted Data - Unique'!$B$2:$AK$1621,MATCH(C50&"-"&D50&"-"&E50&"-"&F50,'Table Unsorted Data - Unique'!$A$2:$A$1621,0),MATCH(A50&"-"&B50,'Table Unsorted Data - Unique'!$B$1:$AK$1,0)) -> 80 | V50: =OFFSET('Table Unsorted Data - Unique'!$A$1,MATCH(C50&"-"&D50&"-"&E50&"-"&F50,'Table Unsorted Data - Unique'!$A$2:$A$1621,0),MATCH(A50&"-"&B50,'Table Unsorted Data - Unique'!$B$1:$AK$1,0)) -> 80
A51: 2015 | B51: 9 | C51: M.Mills | D51: POT002 | E51: AL01 | F51: Forecast | H51: =VLOOKUP(A51&"-"&B51&"-"&C51&"-"&D51&"-"&E51&"-"&F51,'List Unsorted Data - Unique'!$G$2:$H$42942,2,0) -> 145 | J51: =SUMPRODUCT(('List Unsorted Data - Unique'!$G$2:$G$42942=A51&"-"&B51&"-"&C51&"-"&D51&"-"&E51&"-"&F51)*('List Unsorted Data - Unique'!$H$2:$H$42942)) -> 145 | L51: =INDEX('List Unsorted Data - Unique'!$H$2:$H$42942,MATCH(A51&"-"&B51&"-"&C51&"-"&D51&"-"&E51&"-"&F51,'List Unsorted Data - Unique'!$G$2:$G$42942,0)) -> 145 | N51: =OFFSET('List Unsorted Data - Unique'!G46,MATCH(A51&"-"&B51&"-"&C51&"-"&D51&"-"&E51&"-"&F51,'List Unsorted Data - Unique'!$G$2:$G$42942,0),1) -> 239 | P51: =VLOOKUP(C51&"-"&D51&"-"&E51&"-"&F51,'Table Unsorted Data - Unique'!$A$2:$AK$1621,MATCH(A51&"-"&B51,'Table Unsorted Data - Unique'!$A$1:$AK$1,0),0) -> 145 | R51: =SUMPRODUCT(('Table Unsorted Data - Unique'!$A$2:$A$1621=C51&"-"&D51&"-"&E51&"-"&F51)*('Table Unsorted Data - Unique'!$B$1:$AK$1=A51&"-"&B51)*('Table Unsorted Data - Unique'!$B$2:$AK$1621)) -> 145 | T51: =INDEX('Table Unsorted Data - Unique'!$B$2:$AK$1621,MATCH(C51&"-"&D51&"-"&E51&"-"&F51,'Table Unsorted Data - Unique'!$A$2:$A$1621,0),MATCH(A51&"-"&B51,'Table Unsorted Data - Unique'!$B$1:$AK$1,0)) -> 145 | V51: =OFFSET('Table Unsorted Data - Unique'!$A$1,MATCH(C51&"-"&D51&"-"&E51&"-"&F51,'Table Unsorted Data - Unique'!$A$2:$A$1621,0),MATCH(A51&"-"&B51,'Table Unsorted Data - Unique'!$B$1:$AK$1,0)) -> 145
A52: 2016 | B52: 9 | C52: C. Underwood | D52: JKL001 | E52: MN01 | F52: Forecast | H52: =VLOOKUP(A52&"-"&B52&"-"&C52&"-"&D52&"-"&E52&"-"&F52,'List Unsorted Data - Unique'!$G$2:$H$42942,2,0) -> 122 | J52: =SUMPRODUCT(('List Unsorted Data - Unique'!$G$2:$G$42942=A52&"-"&B52&"-"&C52&"-"&D52&"-"&E52&"-"&F52)*('List Unsorted Data - Unique'!$H$2:$H$42942)) -> 122 | L52: =INDEX('List Unsorted Data - Unique'!$H$2:$H$42942,MATCH(A52&"-"&B52&"-"&C52&"-"&D52&"-"&E52&"-"&F52,'List Unsorted Data - Unique'!$G$2:$G$42942,0)) -> 122 | N52: =OFFSET('List Unsorted Data - Unique'!G47,MATCH(A52&"-"&B52&"-"&C52&"-"&D52&"-"&E52&"-"&F52,'List Unsorted Data - Unique'!$G$2:$G$42942,0),1) -> 150 | P52: =VLOOKUP(C52&"-"&D52&"-"&E52&"-"&F52,'Table Unsorted Data - Unique'!$A$2:$AK$1621,MATCH(A52&"-"&B52,'Table Unsorted Data - Unique'!$A$1:$AK$1,0),0) -> 122 | R52: =SUMPRODUCT(('Table Unsorted Data - Unique'!$A$2:$A$1621=C52&"-"&D52&"-"&E52&"-"&F52)*('Table Unsorted Data - Unique'!$B$1:$AK$1=A52&"-"&B52)*('Table Unsorted Data - Unique'!$B$2:$AK$1621)) -> 122 | T52: =INDEX('Table Unsorted Data - Unique'!$B$2:$AK$1621,MATCH(C52&"-"&D52&"-"&E52&"-"&F52,'Table Unsorted Data - Unique'!$A$2:$A$1621,0),MATCH(A52&"-"&B52,'Table Unsorted Data - Unique'!$B$1:$AK$1,0)) -> 122 | V52: =OFFSET('Table Unsorted Data - Unique'!$A$1,MATCH(C52&"-"&D52&"-"&E52&"-"&F52,'Table Unsorted Data - Unique'!$A$2:$A$1621,0),MATCH(A52&"-"&B52,'Table Unsorted Data - Unique'!$B$1:$AK$1,0)) -> 122
A53: 2015 | B53: 2 | C53: B. Paisley | D53: PRD002 | E53: AL01 | F53: Forecast | H53: =VLOOKUP(A53&"-"&B53&"-"&C53&"-"&D53&"-"&E53&"-"&F53,'List Unsorted Data - Unique'!$G$2:$H$42942,2,0) -> 240 | J53: =SUMPRODUCT(('List Unsorted Data - Unique'!$G$2:$G$42942=A53&"-"&B53&"-"&C53&"-"&D53&"-"&E53&"-"&F53)*('List Unsorted Data - Unique'!$H$2:$H$42942)) -> 240 | L53: =INDEX('List Unsorted Data - Unique'!$H$2:$H$42942,MATCH(A53&"-"&B53&"-"&C53&"-"&D53&"-"&E53&"-"&F53,'List Unsorted Data - Unique'!$G$2:$G$42942,0)) -> 240 | N53: =OFFSET('List Unsorted Data - Unique'!G48,MATCH(A53&"-"&B53&"-"&C53&"-"&D53&"-"&E53&"-"&F53,'List Unsorted Data - Unique'!$G$2:$G$42942,0),1) -> 87 | P53: =VLOOKUP(C53&"-"&D53&"-"&E53&"-"&F53,'Table Unsorted Data - Unique'!$A$2:$AK$1621,MATCH(A53&"-"&B53,'Table Unsorted Data - Unique'!$A$1:$AK$1,0),0) -> 240 | R53: =SUMPRODUCT(('Table Unsorted Data - Unique'!$A$2:$A$1621=C53&"-"&D53&"-"&E53&"-"&F53)*('Table Unsorted Data - Unique'!$B$1:$AK$1=A53&"-"&B53)*('Table Unsorted Data - Unique'!$B$2:$AK$1621)) -> 240 | T53: =INDEX('Table Unsorted Data - Unique'!$B$2:$AK$1621,MATCH(C53&"-"&D53&"-"&E53&"-"&F53,'Table Unsorted Data - Unique'!$A$2:$A$1621,0),MATCH(A53&"-"&B53,'Table Unsorted Data - Unique'!$B$1:$AK$1,0)) -> 240 | V53: =OFFSET('Table Unsorted Data - Unique'!$A$1,MATCH(C53&"-"&D53&"-"&E53&"-"&F53,'Table Unsorted Data - Unique'!$A$2:$A$1621,0),MATCH(A53&"-"&B53,'Table Unsorted Data - Unique'!$B$1:$AK$1,0)) -> 240
A54: 2015 | B54: 12 | C54: C. Underwood | D54: DFG001 | E54: MN01 | F54: Actual | H54: =VLOOKUP(A54&"-"&B54&"-"&C54&"-"&D54&"-"&E54&"-"&F54,'List Unsorted Data - Unique'!$G$2:$H$42942,2,0) -> 54 | J54: =SUMPRODUCT(('List Unsorted Data - Unique'!$G$2:$G$42942=A54&"-"&B54&"-"&C54&"-"&D54&"-"&E54&"-"&F54)*('List Unsorted Data - Unique'!$H$2:$H$42942)) -> 54 | L54: =INDEX('List Unsorted Data - Unique'!$H$2:$H$42942,MATCH(A54&"-"&B54&"-"&C54&"-"&D54&"-"&E54&"-"&F54,'List Unsorted Data - Unique'!$G$2:$G$42942,0)) -> 54 | N54: =OFFSET('List Unsorted Data - Unique'!G49,MATCH(A54&"-"&B54&"-"&C54&"-"&D54&"-"&E54&"-"&F54,'List Unsorted Data - Unique'!$G$2:$G$42942,0),1) -> 169 | P54: =VLOOKUP(C54&"-"&D54&"-"&E54&"-"&F54,'Table Unsorted Data - Unique'!$A$2:$AK$1621,MATCH(A54&"-"&B54,'Table Unsorted Data - Unique'!$A$1:$AK$1,0),0) -> 54 | R54: =SUMPRODUCT(('Table Unsorted Data - Unique'!$A$2:$A$1621=C54&"-"&D54&"-"&E54&"-"&F54)*('Table Unsorted Data - Unique'!$B$1:$AK$1=A54&"-"&B54)*('Table Unsorted Data - Unique'!$B$2:$AK$1621)) -> 54 | T54: =INDEX('Table Unsorted Data - Unique'!$B$2:$AK$1621,MATCH(C54&"-"&D54&"-"&E54&"-"&F54,'Table Unsorted Data - Unique'!$A$2:$A$1621,0),MATCH(A54&"-"&B54,'Table Unsorted Data - Unique'!$B$1:$AK$1,0)) -> 54 | V54: =OFFSET('Table Unsorted Data - Unique'!$A$1,MATCH(C54&"-"&D54&"-"&E54&"-"&F54,'Table Unsorted Data - Unique'!$A$2:$A$1621,0),MATCH(A54&"-"&B54,'Table Unsorted Data - Unique'!$B$1:$AK$1,0)) -> 54
A55: 2016 | B55: 2 | C55: B. Paisley | D55: ASL003 | E55: PA01 | F55: Forecast | H55: =VLOOKUP(A55&"-"&B55&"-"&C55&"-"&D55&"-"&E55&"-"&F55,'List Unsorted Data - Unique'!$G$2:$H$42942,2,0) -> 177 | J55: =SUMPRODUCT(('List Unsorted Data - Unique'!$G$2:$G$42942=A55&"-"&B55&"-"&C55&"-"&D55&"-"&E55&"-"&F55)*('List Unsorted Data - Unique'!$H$2:$H$42942)) -> 177 | L55: =INDEX('List Unsorted Data - Unique'!$H$2:$H$42942,MATCH(A55&"-"&B55&"-"&C55&"-"&D55&"-"&E55&"-"&F55,'List Unsorted Data - Unique'!$G$2:$G$42942,0)) -> 177 | N55: =OFFSET('List Unsorted Data - Unique'!G50,MATCH(A55&"-"&B55&"-"&C55&"-"&D55&"-"&E55&"-"&F55,'List Unsorted Data - Unique'!$G$2:$G$42942,0),1) -> 125 | P55: =VLOOKUP(C55&"-"&D55&"-"&E55&"-"&F55,'Table Unsorted Data - Unique'!$A$2:$AK$1621,MATCH(A55&"-"&B55,'Table Unsorted Data - Unique'!$A$1:$AK$1,0),0) -> 177 | R55: =SUMPRODUCT(('Table Unsorted Data - Unique'!$A$2:$A$1621=C55&"-"&D55&"-"&E55&"-"&F55)*('Table Unsorted Data - Unique'!$B$1:$AK$1=A55&"-"&B55)*('Table Unsorted Data - Unique'!$B$2:$AK$1621)) -> 177 | T55: =INDEX('Table Unsorted Data - Unique'!$B$2:$AK$1621,MATCH(C55&"-"&D55&"-"&E55&"-"&F55,'Table Unsorted Data - Unique'!$A$2:$A$1621,0),MATCH(A55&"-"&B55,'Table Unsorted Data - Unique'!$B$1:$AK$1,0)) -> 177 | V55: =OFFSET('Table Unsorted Data - Unique'!$A$1,MATCH(C55&"-"&D55&"-"&E55&"-"&F55,'Table Unsorted Data - Unique'!$A$2:$A$1621,0),MATCH(A55&"-"&B55,'Table Unsorted Data - Unique'!$B$1:$AK$1,0)) -> 177
A56: 2016 | B56: 10 | C56: R. Star | D56: PRD002 | E56: CA01 | F56: Forecast | H56: =VLOOKUP(A56&"-"&B56&"-"&C56&"-"&D56&"-"&E56&"-"&F56,'List Unsorted Data - Unique'!$G$2:$H$42942,2,0) -> 328 | J56: =SUMPRODUCT(('List Unsorted Data - Unique'!$G$2:$G$42942=A56&"-"&B56&"-"&C56&"-"&D56&"-"&E56&"-"&F56)*('List Unsorted Data - Unique'!$H$2:$H$42942)) -> 328 | L56: =INDEX('List Unsorted Data - Unique'!$H$2:$H$42942,MATCH(A56&"-"&B56&"-"&C56&"-"&D56&"-"&E56&"-"&F56,'List Unsorted Data - Unique'!$G$2:$G$42942,0)) -> 328 | N56: =OFFSET('List Unsorted Data - Unique'!G51,MATCH(A56&"-"&B56&"-"&C56&"-"&D56&"-"&E56&"-"&F56,'List Unsorted Data - Unique'!$G$2:$G$42942,0),1) -> 199 | P56: =VLOOKUP(C56&"-"&D56&"-"&E56&"-"&F56,'Table Unsorted Data - Unique'!$A$2:$AK$1621,MATCH(A56&"-"&B56,'Table Unsorted Data - Unique'!$A$1:$AK$1,0),0) -> 328 | R56: =SUMPRODUCT(('Table Unsorted Data - Unique'!$A$2:$A$1621=C56&"-"&D56&"-"&E56&"-"&F56)*('Table Unsorted Data - Unique'!$B$1:$AK$1=A56&"-"&B56)*('Table Unsorted Data - Unique'!$B$2:$AK$1621)) -> 328 | T56: =INDEX('Table Unsorted Data - Unique'!$B$2:$AK$1621,MATCH(C56&"-"&D56&"-"&E56&"-"&F56,'Table Unsorted Data - Unique'!$A$2:$A$1621,0),MATCH(A56&"-"&B56,'Table Unsorted Data - Unique'!$B$1:$AK$1,0)) -> 328 | V56: =OFFSET('Table Unsorted Data - Unique'!$A$1,MATCH(C56&"-"&D56&"-"&E56&"-"&F56,'Table Unsorted Data - Unique'!$A$2:$A$1621,0),MATCH(A56&"-"&B56,'Table Unsorted Data - Unique'!$B$1:$AK$1,0)) -> 328
A57: 2015 | B57: 6 | C57: P. Buck | D57: PRD002 | E57: NC01 | F57: Forecast | H57: =VLOOKUP(A57&"-"&B57&"-"&C57&"-"&D57&"-"&E57&"-"&F57,'List Unsorted Data - Unique'!$G$2:$H$42942,2,0) -> 324 | J57: =SUMPRODUCT(('List Unsorted Data - Unique'!$G$2:$G$42942=A57&"-"&B57&"-"&C57&"-"&D57&"-"&E57&"-"&F57)*('List Unsorted Data - Unique'!$H$2:$H$42942)) -> 324 | L57: =INDEX('List Unsorted Data - Unique'!$H$2:$H$42942,MATCH(A57&"-"&B57&"-"&C57&"-"&D57&"-"&E57&"-"&F57,'List Unsorted Data - Unique'!$G$2:$G$42942,0)) -> 324 | N57: =OFFSET('List Unsorted Data - Unique'!G52,MATCH(A57&"-"&B57&"-"&C57&"-"&D57&"-"&E57&"-"&F57,'List Unsorted Data - Unique'!$G$2:$G$42942,0),1) -> 406 | P57: =VLOOKUP(C57&"-"&D57&"-"&E57&"-"&F57,'Table Unsorted Data - Unique'!$A$2:$AK$1621,MATCH(A57&"-"&B57,'Table Unsorted Data - Unique'!$A$1:$AK$1,0),0) -> 324 | R57: =SUMPRODUCT(('Table Unsorted Data - Unique'!$A$2:$A$1621=C57&"-"&D57&"-"&E57&"-"&F57)*('Table Unsorted Data - Unique'!$B$1:$AK$1=A57&"-"&B57)*('Table Unsorted Data - Unique'!$B$2:$AK$1621)) -> 324 | T57: =INDEX('Table Unsorted Data - Unique'!$B$2:$AK$1621,MATCH(C57&"-"&D57&"-"&E57&"-"&F57,'Table Unsorted Data - Unique'!$A$2:$A$1621,0),MATCH(A57&"-"&B57,'Table Unsorted Data - Unique'!$B$1:$AK$1,0)) -> 324 | V57: =OFFSET('Table Unsorted Data - Unique'!$A$1,MATCH(C57&"-"&D57&"-"&E57&"-"&F57,'Table Unsorted Data - Unique'!$A$2:$A$1621,0),MATCH(A57&"-"&B57,'Table Unsorted Data - Unique'!$B$1:$AK$1,0)) -> 324
A58: 2016 | B58: 4 | C58: M. Stipe | D58: PRD002 | E58: PA01 | F58: Actual | H58: =VLOOKUP(A58&"-"&B58&"-"&C58&"-"&D58&"-"&E58&"-"&F58,'List Unsorted Data - Unique'!$G$2:$H$42942,2,0) -> 76 | J58: =SUMPRODUCT(('List Unsorted Data - Unique'!$G$2:$G$42942=A58&"-"&B58&"-"&C58&"-"&D58&"-"&E58&"-"&F58)*('List Unsorted Data - Unique'!$H$2:$H$42942)) -> 76 | L58: =INDEX('List Unsorted Data - Unique'!$H$2:$H$42942,MATCH(A58&"-"&B58&"-"&C58&"-"&D58&"-"&E58&"-"&F58,'List Unsorted Data - Unique'!$G$2:$G$42942,0)) -> 76 | N58: =OFFSET('List Unsorted Data - Unique'!G53,MATCH(A58&"-"&B58&"-"&C58&"-"&D58&"-"&E58&"-"&F58,'List Unsorted Data - Unique'!$G$2:$G$42942,0),1) -> 58 | P58: =VLOOKUP(C58&"-"&D58&"-"&E58&"-"&F58,'Table Unsorted Data - Unique'!$A$2:$AK$1621,MATCH(A58&"-"&B58,'Table Unsorted Data - Unique'!$A$1:$AK$1,0),0) -> 76 | R58: =SUMPRODUCT(('Table Unsorted Data - Unique'!$A$2:$A$1621=C58&"-"&D58&"-"&E58&"-"&F58)*('Table Unsorted Data - Unique'!$B$1:$AK$1=A58&"-"&B58)*('Table Unsorted Data - Unique'!$B$2:$AK$1621)) -> 76 | T58: =INDEX('Table Unsorted Data - Unique'!$B$2:$AK$1621,MATCH(C58&"-"&D58&"-"&E58&"-"&F58,'Table Unsorted Data - Unique'!$A$2:$A$1621,0),MATCH(A58&"-"&B58,'Table Unsorted Data - Unique'!$B$1:$AK$1,0)) -> 76 | V58: =OFFSET('Table Unsorted Data - Unique'!$A$1,MATCH(C58&"-"&D58&"-"&E58&"-"&F58,'Table Unsorted Data - Unique'!$A$2:$A$1621,0),MATCH(A58&"-"&B58,'Table Unsorted Data - Unique'!$B$1:$AK$1,0)) -> 76
A59: 2015 | B59: 3 | C59: B. Shelton | D59: PRD002 | E59: VA01 | F59: Actual | H59: =VLOOKUP(A59&"-"&B59&"-"&C59&"-"&D59&"-"&E59&"-"&F59,'List Unsorted Data - Unique'!$G$2:$H$42942,2,0) -> 328 | J59: =SUMPRODUCT(('List Unsorted Data - Unique'!$G$2:$G$42942=A59&"-"&B59&"-"&C59&"-"&D59&"-"&E59&"-"&F59)*('List Unsorted Data - Unique'!$H$2:$H$42942)) -> 328 | L59: =INDEX('List Unsorted Data - Unique'!$H$2:$H$42942,MATCH(A59&"-"&B59&"-"&C59&"-"&D59&"-"&E59&"-"&F59,'List Unsorted Data - Unique'!$G$2:$G$42942,0)) -> 328 | N59: =OFFSET('List Unsorted Data - Unique'!G54,MATCH(A59&"-"&B59&"-"&C59&"-"&D59&"-"&E59&"-"&F59,'List Unsorted Data - Unique'!$G$2:$G$42942,0),1) -> 63 | P59: =VLOOKUP(C59&"-"&D59&"-"&E59&"-"&F59,'Table Unsorted Data - Unique'!$A$2:$AK$1621,MATCH(A59&"-"&B59,'Table Unsorted Data - Unique'!$A$1:$AK$1,0),0) -> 328 | R59: =SUMPRODUCT(('Table Unsorted Data - Unique'!$A$2:$A$1621=C59&"-"&D59&"-"&E59&"-"&F59)*('Table Unsorted Data - Unique'!$B$1:$AK$1=A59&"-"&B59)*('Table Unsorted Data - Unique'!$B$2:$AK$1621)) -> 328 | T59: =INDEX('Table Unsorted Data - Unique'!$B$2:$AK$1621,MATCH(C59&"-"&D59&"-"&E59&"-"&F59,'Table Unsorted Data - Unique'!$A$2:$A$1621,0),MATCH(A59&"-"&B59,'Table Unsorted Data - Unique'!$B$1:$AK$1,0)) -> 328 | V59: =OFFSET('Table Unsorted Data - Unique'!$A$1,MATCH(C59&"-"&D59&"-"&E59&"-"&F59,'Table Unsorted Data - Unique'!$A$2:$A$1621,0),MATCH(A59&"-"&B59,'Table Unsorted Data - Unique'!$B$1:$AK$1,0)) -> 328
A60: 2016 | B60: 6 | C60: P. Buck | D60: ASL001 | E60: AK01 | F60: Actual | H60: =VLOOKUP(A60&"-"&B60&"-"&C60&"-"&D60&"-"&E60&"-"&F60,'List Unsorted Data - Unique'!$G$2:$H$42942,2,0) -> 210 | J60: =SUMPRODUCT(('List Unsorted Data - Unique'!$G$2:$G$42942=A60&"-"&B60&"-"&C60&"-"&D60&"-"&E60&"-"&F60)*('List Unsorted Data - Unique'!$H$2:$H$42942)) -> 210 | L60: =INDEX('List Unsorted Data - Unique'!$H$2:$H$42942,MATCH(A60&"-"&B60&"-"&C60&"-"&D60&"-"&E60&"-"&F60,'List Unsorted Data - Unique'!$G$2:$G$42942,0)) -> 210 | N60: =OFFSET('List Unsorted Data - Unique'!G55,MATCH(A60&"-"&B60&"-"&C60&"-"&D60&"-"&E60&"-"&F60,'List Unsorted Data - Unique'!$G$2:$G$42942,0),1) -> 72 | P60: =VLOOKUP(C60&"-"&D60&"-"&E60&"-"&F60,'Table Unsorted Data - Unique'!$A$2:$AK$1621,MATCH(A60&"-"&B60,'Table Unsorted Data - Unique'!$A$1:$AK$1,0),0) -> 210 | R60: =SUMPRODUCT(('Table Unsorted Data - Unique'!$A$2:$A$1621=C60&"-"&D60&"-"&E60&"-"&F60)*('Table Unsorted Data - Unique'!$B$1:$AK$1=A60&"-"&B60)*('Table Unsorted Data - Unique'!$B$2:$AK$1621)) -> 210 | T60: =INDEX('Table Unsorted Data - Unique'!$B$2:$AK$1621,MATCH(C60&"-"&D60&"-"&E60&"-"&F60,'Table Unsorted Data - Unique'!$A$2:$A$1621,0),MATCH(A60&"-"&B60,'Table Unsorted Data - Unique'!$B$1:$AK$1,0)) -> 210 | V60: =OFFSET('Table Unsorted Data - Unique'!$A$1,MATCH(C60&"-"&D60&"-"&E60&"-"&F60,'Table Unsorted Data - Unique'!$A$2:$A$1621,0),MATCH(A60&"-"&B60,'Table Unsorted Data - Unique'!$B$1:$AK$1,0)) -> 210
A61: 2015 | B61: 9 | C61: S. Crow | D61: ASL003 | E61: SD01 | F61: Forecast | H61: =VLOOKUP(A61&"-"&B61&"-"&C61&"-"&D61&"-"&E61&"-"&F61,'List Unsorted Data - Unique'!$G$2:$H$42942,2,0) -> 179 | J61: =SUMPRODUCT(('List Unsorted Data - Unique'!$G$2:$G$42942=A61&"-"&B61&"-"&C61&"-"&D61&"-"&E61&"-"&F61)*('List Unsorted Data - Unique'!$H$2:$H$42942)) -> 179 | L61: =INDEX('List Unsorted Data - Unique'!$H$2:$H$42942,MATCH(A61&"-"&B61&"-"&C61&"-"&D61&"-"&E61&"-"&F61,'List Unsorted Data - Unique'!$G$2:$G$42942,0)) -> 179 | N61: =OFFSET('List Unsorted Data - Unique'!G56,MATCH(A61&"-"&B61&"-"&C61&"-"&D61&"-"&E61&"-"&F61,'List Unsorted Data - Unique'!$G$2:$G$42942,0),1) -> 152 | P61: =VLOOKUP(C61&"-"&D61&"-"&E61&"-"&F61,'Table Unsorted Data - Unique'!$A$2:$AK$1621,MATCH(A61&"-"&B61,'Table Unsorted Data - Unique'!$A$1:$AK$1,0),0) -> 179 | R61: =SUMPRODUCT(('Table Unsorted Data - Unique'!$A$2:$A$1621=C61&"-"&D61&"-"&E61&"-"&F61)*('Table Unsorted Data - Unique'!$B$1:$AK$1=A61&"-"&B61)*('Table Unsorted Data - Unique'!$B$2:$AK$1621)) -> 179 | T61: =INDEX('Table Unsorted Data - Unique'!$B$2:$AK$1621,MATCH(C61&"-"&D61&"-"&E61&"-"&F61,'Table Unsorted Data - Unique'!$A$2:$A$1621,0),MATCH(A61&"-"&B61,'Table Unsorted Data - Unique'!$B$1:$AK$1,0)) -> 179 | V61: =OFFSET('Table Unsorted Data - Unique'!$A$1,MATCH(C61&"-"&D61&"-"&E61&"-"&F61,'Table Unsorted Data - Unique'!$A$2:$A$1621,0),MATCH(A61&"-"&B61,'Table Unsorted Data - Unique'!$B$1:$AK$1,0)) -> 179
A62: 2014 | B62: 8 | C62: P. Buck | D62: DFG001 | E62: AK01 | F62: Actual | H62: =VLOOKUP(A62&"-"&B62&"-"&C62&"-"&D62&"-"&E62&"-"&F62,'List Unsorted Data - Unique'!$G$2:$H$42942,2,0) -> 68 | J62: =SUMPRODUCT(('List Unsorted Data - Unique'!$G$2:$G$42942=A62&"-"&B62&"-"&C62&"-"&D62&"-"&E62&"-"&F62)*('List Unsorted Data - Unique'!$H$2:$H$42942)) -> 68 | L62: =INDEX('List Unsorted Data - Unique'!$H$2:$H$42942,MATCH(A62&"-"&B62&"-"&C62&"-"&D62&"-"&E62&"-"&F62,'List Unsorted Data - Unique'!$G$2:$G$42942,0)) -> 68 | N62: =OFFSET('List Unsorted Data - Unique'!G57,MATCH(A62&"-"&B62&"-"&C62&"-"&D62&"-"&E62&"-"&F62,'List Unsorted Data - Unique'!$G$2:$G$42942,0),1) -> 182 | P62: =VLOOKUP(C62&"-"&D62&"-"&E62&"-"&F62,'Table Unsorted Data - Unique'!$A$2:$AK$1621,MATCH(A62&"-"&B62,'Table Unsorted Data - Unique'!$A$1:$AK$1,0),0) -> 68 | R62: =SUMPRODUCT(('Table Unsorted Data - Unique'!$A$2:$A$1621=C62&"-"&D62&"-"&E62&"-"&F62)*('Table Unsorted Data - Unique'!$B$1:$AK$1=A62&"-"&B62)*('Table Unsorted Data - Unique'!$B$2:$AK$1621)) -> 68 | T62: =INDEX('Table Unsorted Data - Unique'!$B$2:$AK$1621,MATCH(C62&"-"&D62&"-"&E62&"-"&F62,'Table Unsorted Data - Unique'!$A$2:$A$1621,0),MATCH(A62&"-"&B62,'Table Unsorted Data - Unique'!$B$1:$AK$1,0)) -> 68 | V62: =OFFSET('Table Unsorted Data - Unique'!$A$1,MATCH(C62&"-"&D62&"-"&E62&"-"&F62,'Table Unsorted Data - Unique'!$A$2:$A$1621,0),MATCH(A62&"-"&B62,'Table Unsorted Data - Unique'!$B$1:$AK$1,0)) -> 68
A63: 2015 | B63: 10 | C63: J. Lennon | D63: DFG001 | E63: SD01 | F63: Forecast | H63: =VLOOKUP(A63&"-"&B63&"-"&C63&"-"&D63&"-"&E63&"-"&F63,'List Unsorted Data - Unique'!$G$2:$H$42942,2,0) -> 62 | J63: =SUMPRODUCT(('List Unsorted Data - Unique'!$G$2:$G$42942=A63&"-"&B63&"-"&C63&"-"&D63&"-"&E63&"-"&F63)*('List Unsorted Data - Unique'!$H$2:$H$42942)) -> 62 | L63: =INDEX('List Unsorted Data - Unique'!$H$2:$H$42942,MATCH(A63&"-"&B63&"-"&C63&"-"&D63&"-"&E63&"-"&F63,'List Unsorted Data - Unique'!$G$2:$G$42942,0)) -> 62 | N63: =OFFSET('List Unsorted Data - Unique'!G58,MATCH(A63&"-"&B63&"-"&C63&"-"&D63&"-"&E63&"-"&F63,'List Unsorted Data - Unique'!$G$2:$G$42942,0),1) -> 188 | P63: =VLOOKUP(C63&"-"&D63&"-"&E63&"-"&F63,'Table Unsorted Data - Unique'!$A$2:$AK$1621,MATCH(A63&"-"&B63,'Table Unsorted Data - Unique'!$A$1:$AK$1,0),0) -> 62 | R63: =SUMPRODUCT(('Table Unsorted Data - Unique'!$A$2:$A$1621=C63&"-"&D63&"-"&E63&"-"&F63)*('Table Unsorted Data - Unique'!$B$1:$AK$1=A63&"-"&B63)*('Table Unsorted Data - Unique'!$B$2:$AK$1621)) -> 62 | T63: =INDEX('Table Unsorted Data - Unique'!$B$2:$AK$1621,MATCH(C63&"-"&D63&"-"&E63&"-"&F63,'Table Unsorted Data - Unique'!$A$2:$A$1621,0),MATCH(A63&"-"&B63,'Table Unsorted Data - Unique'!$B$1:$AK$1,0)) -> 62 | V63: =OFFSET('Table Unsorted Data - Unique'!$A$1,MATCH(C63&"-"&D63&"-"&E63&"-"&F63,'Table Unsorted Data - Unique'!$A$2:$A$1621,0),MATCH(A63&"-"&B63,'Table Unsorted Data - Unique'!$B$1:$AK$1,0)) -> 62
A64: 2015 | B64: 11 | C64: B. Paisley | D64: PRD001 | E64: LA01 | F64: Forecast | H64: =VLOOKUP(A64&"-"&B64&"-"&C64&"-"&D64&"-"&E64&"-"&F64,'List Unsorted Data - Unique'!$G$2:$H$42942,2,0) -> 264 | J64: =SUMPRODUCT(('List Unsorted Data - Unique'!$G$2:$G$42942=A64&"-"&B64&"-"&C64&"-"&D64&"-"&E64&"-"&F64)*('List Unsorted Data - Unique'!$H$2:$H$42942)) -> 264 | L64: =INDEX('List Unsorted Data - Unique'!$H$2:$H$42942,MATCH(A64&"-"&B64&"-"&C64&"-"&D64&"-"&E64&"-"&F64,'List Unsorted Data - Unique'!$G$2:$G$42942,0)) -> 264 | N64: =OFFSET('List Unsorted Data - Unique'!G59,MATCH(A64&"-"&B64&"-"&C64&"-"&D64&"-"&E64&"-"&F64,'List Unsorted Data - Unique'!$G$2:$G$42942,0),1) -> 75 | P64: =VLOOKUP(C64&"-"&D64&"-"&E64&"-"&F64,'Table Unsorted Data - Unique'!$A$2:$AK$1621,MATCH(A64&"-"&B64,'Table Unsorted Data - Unique'!$A$1:$AK$1,0),0) -> 264 | R64: =SUMPRODUCT(('Table Unsorted Data - Unique'!$A$2:$A$1621=C64&"-"&D64&"-"&E64&"-"&F64)*('Table Unsorted Data - Unique'!$B$1:$AK$1=A64&"-"&B64)*('Table Unsorted Data - Unique'!$B$2:$AK$1621)) -> 264 | T64: =INDEX('Table Unsorted Data - Unique'!$B$2:$AK$1621,MATCH(C64&"-"&D64&"-"&E64&"-"&F64,'Table Unsorted Data - Unique'!$A$2:$A$1621,0),MATCH(A64&"-"&B64,'Table Unsorted Data - Unique'!$B$1:$AK$1,0)) -> 264 | V64: =OFFSET('Table Unsorted Data - Unique'!$A$1,MATCH(C64&"-"&D64&"-"&E64&"-"&F64,'Table Unsorted Data - Unique'!$A$2:$A$1621,0),MATCH(A64&"-"&B64,'Table Unsorted Data - Unique'!$B$1:$AK$1,0)) -> 264
A65: 2015 | B65: 7 | C65: C. Underwood | D65: ASL003 | E65: VA01 | F65: Forecast | H65: =VLOOKUP(A65&"-"&B65&"-"&C65&"-"&D65&"-"&E65&"-"&F65,'List Unsorted Data - Unique'!$G$2:$H$42942,2,0) -> 56 | J65: =SUMPRODUCT(('List Unsorted Data - Unique'!$G$2:$G$42942=A65&"-"&B65&"-"&C65&"-"&D65&"-"&E65&"-"&F65)*('List Unsorted Data - Unique'!$H$2:$H$42942)) -> 56 | L65: =INDEX('List Unsorted Data - Unique'!$H$2:$H$42942,MATCH(A65&"-"&B65&"-"&C65&"-"&D65&"-"&E65&"-"&F65,'List Unsorted Data - Unique'!$G$2:$G$42942,0)) -> 56 | N65: =OFFSET('List Unsorted Data - Unique'!G60,MATCH(A65&"-"&B65&"-"&C65&"-"&D65&"-"&E65&"-"&F65,'List Unsorted Data - Unique'!$G$2:$G$42942,0),1) -> 44 | P65: =VLOOKUP(C65&"-"&D65&"-"&E65&"-"&F65,'Table Unsorted Data - Unique'!$A$2:$AK$1621,MATCH(A65&"-"&B65,'Table Unsorted Data - Unique'!$A$1:$AK$1,0),0) -> 56 | R65: =SUMPRODUCT(('Table Unsorted Data - Unique'!$A$2:$A$1621=C65&"-"&D65&"-"&E65&"-"&F65)*('Table Unsorted Data - Unique'!$B$1:$AK$1=A65&"-"&B65)*('Table Unsorted Data - Unique'!$B$2:$AK$1621)) -> 56 | T65: =INDEX('Table Unsorted Data - Unique'!$B$2:$AK$1621,MATCH(C65&"-"&D65&"-"&E65&"-"&F65,'Table Unsorted Data - Unique'!$A$2:$A$1621,0),MATCH(A65&"-"&B65,'Table Unsorted Data - Unique'!$B$1:$AK$1,0)) -> 56 | V65: =OFFSET('Table Unsorted Data - Unique'!$A$1,MATCH(C65&"-"&D65&"-"&E65&"-"&F65,'Table Unsorted Data - Unique'!$A$2:$A$1621,0),MATCH(A65&"-"&B65,'Table Unsorted Data - Unique'!$B$1:$AK$1,0)) -> 56
A66: 2016 | B66: 9 | C66: B. Paisley | D66: ASL002 | E66: SD01 | F66: Forecast | H66: =VLOOKUP(A66&"-"&B66&"-"&C66&"-"&D66&"-"&E66&"-"&F66,'List Unsorted Data - Unique'!$G$2:$H$42942,2,0) -> 54 | J66: =SUMPRODUCT(('List Unsorted Data - Unique'!$G$2:$G$42942=A66&"-"&B66&"-"&C66&"-"&D66&"-"&E66&"-"&F66)*('List Unsorted Data - Unique'!$H$2:$H$42942)) -> 54 | L66: =INDEX('List Unsorted Data - Unique'!$H$2:$H$42942,MATCH(A66&"-"&B66&"-"&C66&"-"&D66&"-"&E66&"-"&F66,'List Unsorted Data - Unique'!$G$2:$G$42942,0)) -> 54 | N66: =OFFSET('List Unsorted Data - Unique'!G61,MATCH(A66&"-"&B66&"-"&C66&"-"&D66&"-"&E66&"-"&F66,'List Unsorted Data - Unique'!$G$2:$G$42942,0),1) -> 95 | P66: =VLOOKUP(C66&"-"&D66&"-"&E66&"-"&F66,'Table Unsorted Data - Unique'!$A$2:$AK$1621,MATCH(A66&"-"&B66,'Table Unsorted Data - Unique'!$A$1:$AK$1,0),0) -> 54 | R66: =SUMPRODUCT(('Table Unsorted Data - Unique'!$A$2:$A$1621=C66&"-"&D66&"-"&E66&"-"&F66)*('Table Unsorted Data - Unique'!$B$1:$AK$1=A66&"-"&B66)*('Table Unsorted Data - Unique'!$B$2:$AK$1621)) -> 54 | T66: =INDEX('Table Unsorted Data - Unique'!$B$2:$AK$1621,MATCH(C66&"-"&D66&"-"&E66&"-"&F66,'Table Unsorted Data - Unique'!$A$2:$A$1621,0),MATCH(A66&"-"&B66,'Table Unsorted Data - Unique'!$B$1:$AK$1,0)) -> 54 | V66: =OFFSET('Table Unsorted Data - Unique'!$A$1,MATCH(C66&"-"&D66&"-"&E66&"-"&F66,'Table Unsorted Data - Unique'!$A$2:$A$1621,0),MATCH(A66&"-"&B66,'Table Unsorted Data - Unique'!$B$1:$AK$1,0)) -> 54
A67: 2015 | B67: 8 | C67: B. Shelton | D67: ASL002 | E67: NC01 | F67: Forecast | H67: =VLOOKUP(A67&"-"&B67&"-"&C67&"-"&D67&"-"&E67&"-"&F67,'List Unsorted Data - Unique'!$G$2:$H$42942,2,0) -> 164 | J67: =SUMPRODUCT(('List Unsorted Data - Unique'!$G$2:$G$42942=A67&"-"&B67&"-"&C67&"-"&D67&"-"&E67&"-"&F67)*('List Unsorted Data - Unique'!$H$2:$H$42942)) -> 164 | L67: =INDEX('List Unsorted Data - Unique'!$H$2:$H$42942,MATCH(A67&"-"&B67&"-"&C67&"-"&D67&"-"&E67&"-"&F67,'List Unsorted Data - Unique'!$G$2:$G$42942,0)) -> 164 | N67: =OFFSET('List Unsorted Data - Unique'!G62,MATCH(A67&"-"&B67&"-"&C67&"-"&D67&"-"&E67&"-"&F67,'List Unsorted Data - Unique'!$G$2:$G$42942,0),1) -> 145 | P67: =VLOOKUP(C67&"-"&D67&"-"&E67&"-"&F67,'Table Unsorted Data - Unique'!$A$2:$AK$1621,MATCH(A67&"-"&B67,'Table Unsorted Data - Unique'!$A$1:$AK$1,0),0) -> 164 | R67: =SUMPRODUCT(('Table Unsorted Data - Unique'!$A$2:$A$1621=C67&"-"&D67&"-"&E67&"-"&F67)*('Table Unsorted Data - Unique'!$B$1:$AK$1=A67&"-"&B67)*('Table Unsorted Data - Unique'!$B$2:$AK$1621)) -> 164 | T67: =INDEX('Table Unsorted Data - Unique'!$B$2:$AK$1621,MATCH(C67&"-"&D67&"-"&E67&"-"&F67,'Table Unsorted Data - Unique'!$A$2:$A$1621,0),MATCH(A67&"-"&B67,'Table Unsorted Data - Unique'!$B$1:$AK$1,0)) -> 164 | V67: =OFFSET('Table Unsorted Data - Unique'!$A$1,MATCH(C67&"-"&D67&"-"&E67&"-"&F67,'Table Unsorted Data - Unique'!$A$2:$A$1621,0),MATCH(A67&"-"&B67,'Table Unsorted Data - Unique'!$B$1:$AK$1,0)) -> 164
A68: 2016 | B68: 6 | C68: S. Crow | D68: POT002 | E68: PA01 | F68: Actual | H68: =VLOOKUP(A68&"-"&B68&"-"&C68&"-"&D68&"-"&E68&"-"&F68,'List Unsorted Data - Unique'!$G$2:$H$42942,2,0) -> 65 | J68: =SUMPRODUCT(('List Unsorted Data - Unique'!$G$2:$G$42942=A68&"-"&B68&"-"&C68&"-"&D68&"-"&E68&"-"&F68)*('List Unsorted Data - Unique'!$H$2:$H$42942)) -> 65 | L68: =INDEX('List Unsorted Data - Unique'!$H$2:$H$42942,MATCH(A68&"-"&B68&"-"&C68&"-"&D68&"-"&E68&"-"&F68,'List Unsorted Data - Unique'!$G$2:$G$42942,0)) -> 65 | N68: =OFFSET('List Unsorted Data - Unique'!G63,MATCH(A68&"-"&B68&"-"&C68&"-"&D68&"-"&E68&"-"&F68,'List Unsorted Data - Unique'!$G$2:$G$42942,0),1) -> 158 | P68: =VLOOKUP(C68&"-"&D68&"-"&E68&"-"&F68,'Table Unsorted Data - Unique'!$A$2:$AK$1621,MATCH(A68&"-"&B68,'Table Unsorted Data - Unique'!$A$1:$AK$1,0),0) -> 65 | R68: =SUMPRODUCT(('Table Unsorted Data - Unique'!$A$2:$A$1621=C68&"-"&D68&"-"&E68&"-"&F68)*('Table Unsorted Data - Unique'!$B$1:$AK$1=A68&"-"&B68)*('Table Unsorted Data - Unique'!$B$2:$AK$1621)) -> 65 | T68: =INDEX('Table Unsorted Data - Unique'!$B$2:$AK$1621,MATCH(C68&"-"&D68&"-"&E68&"-"&F68,'Table Unsorted Data - Unique'!$A$2:$A$1621,0),MATCH(A68&"-"&B68,'Table Unsorted Data - Unique'!$B$1:$AK$1,0)) -> 65 | V68: =OFFSET('Table Unsorted Data - Unique'!$A$1,MATCH(C68&"-"&D68&"-"&E68&"-"&F68,'Table Unsorted Data - Unique'!$A$2:$A$1621,0),MATCH(A68&"-"&B68,'Table Unsorted Data - Unique'!$B$1:$AK$1,0)) -> 65
A69: 2014 | B69: 12 | C69: M. Stipe | D69: POT002 | E69: MN01 | F69: Actual | H69: =VLOOKUP(A69&"-"&B69&"-"&C69&"-"&D69&"-"&E69&"-"&F69,'List Unsorted Data - Unique'!$G$2:$H$42942,2,0) -> 143 | J69: =SUMPRODUCT(('List Unsorted Data - Unique'!$G$2:$G$42942=A69&"-"&B69&"-"&C69&"-"&D69&"-"&E69&"-"&F69)*('List Unsorted Data - Unique'!$H$2:$H$42942)) -> 143 | L69: =INDEX('List Unsorted Data - Unique'!$H$2:$H$42942,MATCH(A69&"-"&B69&"-"&C69&"-"&D69&"-"&E69&"-"&F69,'List Unsorted Data - Unique'!$G$2:$G$42942,0)) -> 143 | N69: =OFFSET('List Unsorted Data - Unique'!G64,MATCH(A69&"-"&B69&"-"&C69&"-"&D69&"-"&E69&"-"&F69,'List Unsorted Data - Unique'!$G$2:$G$42942,0),1) -> 179 | P69: =VLOOKUP(C69&"-"&D69&"-"&E69&"-"&F69,'Table Unsorted Data - Unique'!$A$2:$AK$1621,MATCH(A69&"-"&B69,'Table Unsorted Data - Unique'!$A$1:$AK$1,0),0) -> 143 | R69: =SUMPRODUCT(('Table Unsorted Data - Unique'!$A$2:$A$1621=C69&"-"&D69&"-"&E69&"-"&F69)*('Table Unsorted Data - Unique'!$B$1:$AK$1=A69&"-"&B69)*('Table Unsorted Data - Unique'!$B$2:$AK$1621)) -> 143 | T69: =INDEX('Table Unsorted Data - Unique'!$B$2:$AK$1621,MATCH(C69&"-"&D69&"-"&E69&"-"&F69,'Table Unsorted Data - Unique'!$A$2:$A$1621,0),MATCH(A69&"-"&B69,'Table Unsorted Data - Unique'!$B$1:$AK$1,0)) -> 143 | V69: =OFFSET('Table Unsorted Data - Unique'!$A$1,MATCH(C69&"-"&D69&"-"&E69&"-"&F69,'Table Unsorted Data - Unique'!$A$2:$A$1621,0),MATCH(A69&"-"&B69,'Table Unsorted Data - Unique'!$B$1:$AK$1,0)) -> 143
A70: 2015 | B70: 8 | C70: R. Star | D70: POT002 | E70: SD01 | F70: Actual | H70: =VLOOKUP(A70&"-"&B70&"-"&C70&"-"&D70&"-"&E70&"-"&F70,'List Unsorted Data - Unique'!$G$2:$H$42942,2,0) -> 151 | J70: =SUMPRODUCT(('List Unsorted Data - Unique'!$G$2:$G$42942=A70&"-"&B70&"-"&C70&"-"&D70&"-"&E70&"-"&F70)*('List Unsorted Data - Unique'!$H$2:$H$42942)) -> 151 | L70: =INDEX('List Unsorted Data - Unique'!$H$2:$H$42942,MATCH(A70&"-"&B70&"-"&C70&"-"&D70&"-"&E70&"-"&F70,'List Unsorted Data - Unique'!$G$2:$G$42942,0)) -> 151 | N70: =OFFSET('List Unsorted Data - Unique'!G65,MATCH(A70&"-"&B70&"-"&C70&"-"&D70&"-"&E70&"-"&F70,'List Unsorted Data - Unique'!$G$2:$G$42942,0),1) -> 80 | P70: =VLOOKUP(C70&"-"&D70&"-"&E70&"-"&F70,'Table Unsorted Data - Unique'!$A$2:$AK$1621,MATCH(A70&"-"&B70,'Table Unsorted Data - Unique'!$A$1:$AK$1,0),0) -> 151 | R70: =SUMPRODUCT(('Table Unsorted Data - Unique'!$A$2:$A$1621=C70&"-"&D70&"-"&E70&"-"&F70)*('Table Unsorted Data - Unique'!$B$1:$AK$1=A70&"-"&B70)*('Table Unsorted Data - Unique'!$B$2:$AK$1621)) -> 151 | T70: =INDEX('Table Unsorted Data - Unique'!$B$2:$AK$1621,MATCH(C70&"-"&D70&"-"&E70&"-"&F70,'Table Unsorted Data - Unique'!$A$2:$A$1621,0),MATCH(A70&"-"&B70,'Table Unsorted Data - Unique'!$B$1:$AK$1,0)) -> 151 | V70: =OFFSET('Table Unsorted Data - Unique'!$A$1,MATCH(C70&"-"&D70&"-"&E70&"-"&F70,'Table Unsorted Data - Unique'!$A$2:$A$1621,0),MATCH(A70&"-"&B70,'Table Unsorted Data - Unique'!$B$1:$AK$1,0)) -> 151
A71: 2015 | B71: 7 | C71: S. Crow | D71: PRD002 | E71: LA01 | F71: Forecast | H71: =VLOOKUP(A71&"-"&B71&"-"&C71&"-"&D71&"-"&E71&"-"&F71,'List Unsorted Data - Unique'!$G$2:$H$42942,2,0) -> 240 | J71: =SUMPRODUCT(('List Unsorted Data - Unique'!$G$2:$G$42942=A71&"-"&B71&"-"&C71&"-"&D71&"-"&E71&"-"&F71)*('List Unsorted Data - Unique'!$H$2:$H$42942)) -> 240 | L71: =INDEX('List Unsorted Data - Unique'!$H$2:$H$42942,MATCH(A71&"-"&B71&"-"&C71&"-"&D71&"-"&E71&"-"&F71,'List Unsorted Data - Unique'!$G$2:$G$42942,0)) -> 240 | N71: =OFFSET('List Unsorted Data - Unique'!G66,MATCH(A71&"-"&B71&"-"&C71&"-"&D71&"-"&E71&"-"&F71,'List Unsorted Data - Unique'!$G$2:$G$42942,0),1) -> 332 | P71: =VLOOKUP(C71&"-"&D71&"-"&E71&"-"&F71,'Table Unsorted Data - Unique'!$A$2:$AK$1621,MATCH(A71&"-"&B71,'Table Unsorted Data - Unique'!$A$1:$AK$1,0),0) -> 240 | R71: =SUMPRODUCT(('Table Unsorted Data - Unique'!$A$2:$A$1621=C71&"-"&D71&"-"&E71&"-"&F71)*('Table Unsorted Data - Unique'!$B$1:$AK$1=A71&"-"&B71)*('Table Unsorted Data - Unique'!$B$2:$AK$1621)) -> 240 | T71: =INDEX('Table Unsorted Data - Unique'!$B$2:$AK$1621,MATCH(C71&"-"&D71&"-"&E71&"-"&F71,'Table Unsorted Data - Unique'!$A$2:$A$1621,0),MATCH(A71&"-"&B71,'Table Unsorted Data - Unique'!$B$1:$AK$1,0)) -> 240 | V71: =OFFSET('Table Unsorted Data - Unique'!$A$1,MATCH(C71&"-"&D71&"-"&E71&"-"&F71,'Table Unsorted Data - Unique'!$A$2:$A$1621,0),MATCH(A71&"-"&B71,'Table Unsorted Data - Unique'!$B$1:$AK$1,0)) -> 240
A72: 2014 | B72: 6 | C72: C. Underwood | D72: POT002 | E72: MN01 | F72: Forecast | H72: =VLOOKUP(A72&"-"&B72&"-"&C72&"-"&D72&"-"&E72&"-"&F72,'List Unsorted Data - Unique'!$G$2:$H$42942,2,0) -> 150 | J72: =SUMPRODUCT(('List Unsorted Data - Unique'!$G$2:$G$42942=A72&"-"&B72&"-"&C72&"-"&D72&"-"&E72&"-"&F72)*('List Unsorted Data - Unique'!$H$2:$H$42942)) -> 150 | L72: =INDEX('List Unsorted Data - Unique'!$H$2:$H$42942,MATCH(A72&"-"&B72&"-"&C72&"-"&D72&"-"&E72&"-"&F72,'List Unsorted Data - Unique'!$G$2:$G$42942,0)) -> 150 | N72: =OFFSET('List Unsorted Data - Unique'!G67,MATCH(A72&"-"&B72&"-"&C72&"-"&D72&"-"&E72&"-"&F72,'List Unsorted Data - Unique'!$G$2:$G$42942,0),1) -> 238 | P72: =VLOOKUP(C72&"-"&D72&"-"&E72&"-"&F72,'Table Unsorted Data - Unique'!$A$2:$AK$1621,MATCH(A72&"-"&B72,'Table Unsorted Data - Unique'!$A$1:$AK$1,0),0) -> 150 | R72: =SUMPRODUCT(('Table Unsorted Data - Unique'!$A$2:$A$1621=C72&"-"&D72&"-"&E72&"-"&F72)*('Table Unsorted Data - Unique'!$B$1:$AK$1=A72&"-"&B72)*('Table Unsorted Data - Unique'!$B$2:$AK$1621)) -> 150 | T72: =INDEX('Table Unsorted Data - Unique'!$B$2:$AK$1621,MATCH(C72&"-"&D72&"-"&E72&"-"&F72,'Table Unsorted Data - Unique'!$A$2:$A$1621,0),MATCH(A72&"-"&B72,'Table Unsorted Data - Unique'!$B$1:$AK$1,0)) -> 150 | V72: =OFFSET('Table Unsorted Data - Unique'!$A$1,MATCH(C72&"-"&D72&"-"&E72&"-"&F72,'Table Unsorted Data - Unique'!$A$2:$A$1621,0),MATCH(A72&"-"&B72,'Table Unsorted Data - Unique'!$B$1:$AK$1,0)) -> 150
A73: 2015 | B73: 7 | C73: B. Shelton | D73: JKL001 | E73: CA01 | F73: Actual | H73: =VLOOKUP(A73&"-"&B73&"-"&C73&"-"&D73&"-"&E73&"-"&F73,'List Unsorted Data - Unique'!$G$2:$H$42942,2,0) -> 223 | J73: =SUMPRODUCT(('List Unsorted Data - Unique'!$G$2:$G$42942=A73&"-"&B73&"-"&C73&"-"&D73&"-"&E73&"-"&F73)*('List Unsorted Data - Unique'!$H$2:$H$42942)) -> 223 | L73: =INDEX('List Unsorted Data - Unique'!$H$2:$H$42942,MATCH(A73&"-"&B73&"-"&C73&"-"&D73&"-"&E73&"-"&F73,'List Unsorted Data - Unique'!$G$2:$G$42942,0)) -> 223 | N73: =OFFSET('List Unsorted Data - Unique'!G68,MATCH(A73&"-"&B73&"-"&C73&"-"&D73&"-"&E73&"-"&F73,'List Unsorted Data - Unique'!$G$2:$G$42942,0),1) -> 492 | P73: =VLOOKUP(C73&"-"&D73&"-"&E73&"-"&F73,'Table Unsorted Data - Unique'!$A$2:$AK$1621,MATCH(A73&"-"&B73,'Table Unsorted Data - Unique'!$A$1:$AK$1,0),0) -> 223 | R73: =SUMPRODUCT(('Table Unsorted Data - Unique'!$A$2:$A$1621=C73&"-"&D73&"-"&E73&"-"&F73)*('Table Unsorted Data - Unique'!$B$1:$AK$1=A73&"-"&B73)*('Table Unsorted Data - Unique'!$B$2:$AK$1621)) -> 223 | T73: =INDEX('Table Unsorted Data - Unique'!$B$2:$AK$1621,MATCH(C73&"-"&D73&"-"&E73&"-"&F73,'Table Unsorted Data - Unique'!$A$2:$A$1621,0),MATCH(A73&"-"&B73,'Table Unsorted Data - Unique'!$B$1:$AK$1,0)) -> 223 | V73: =OFFSET('Table Unsorted Data - Unique'!$A$1,MATCH(C73&"-"&D73&"-"&E73&"-"&F73,'Table Unsorted Data - Unique'!$A$2:$A$1621,0),MATCH(A73&"-"&B73,'Table Unsorted Data - Unique'!$B$1:$AK$1,0)) -> 223
A74: 2014 | B74: 6 | C74: M.Mills | D74: DFG001 | E74: SD01 | F74: Forecast | H74: =VLOOKUP(A74&"-"&B74&"-"&C74&"-"&D74&"-"&E74&"-"&F74,'List Unsorted Data - Unique'!$G$2:$H$42942,2,0) -> 112 | J74: =SUMPRODUCT(('List Unsorted Data - Unique'!$G$2:$G$42942=A74&"-"&B74&"-"&C74&"-"&D74&"-"&E74&"-"&F74)*('List Unsorted Data - Unique'!$H$2:$H$42942)) -> 112 | L74: =INDEX('List Unsorted Data - Unique'!$H$2:$H$42942,MATCH(A74&"-"&B74&"-"&C74&"-"&D74&"-"&E74&"-"&F74,'List Unsorted Data - Unique'!$G$2:$G$42942,0)) -> 112 | N74: =OFFSET('List Unsorted Data - Unique'!G69,MATCH(A74&"-"&B74&"-"&C74&"-"&D74&"-"&E74&"-"&F74,'List Unsorted Data - Unique'!$G$2:$G$42942,0),1) -> 156 | P74: =VLOOKUP(C74&"-"&D74&"-"&E74&"-"&F74,'Table Unsorted Data - Unique'!$A$2:$AK$1621,MATCH(A74&"-"&B74,'Table Unsorted Data - Unique'!$A$1:$AK$1,0),0) -> 112 | R74: =SUMPRODUCT(('Table Unsorted Data - Unique'!$A$2:$A$1621=C74&"-"&D74&"-"&E74&"-"&F74)*('Table Unsorted Data - Unique'!$B$1:$AK$1=A74&"-"&B74)*('Table Unsorted Data - Unique'!$B$2:$AK$1621)) -> 112 | T74: =INDEX('Table Unsorted Data - Unique'!$B$2:$AK$1621,MATCH(C74&"-"&D74&"-"&E74&"-"&F74,'Table Unsorted Data - Unique'!$A$2:$A$1621,0),MATCH(A74&"-"&B74,'Table Unsorted Data - Unique'!$B$1:$AK$1,0)) -> 112 | V74: =OFFSET('Table Unsorted Data - Unique'!$A$1,MATCH(C74&"-"&D74&"-"&E74&"-"&F74,'Table Unsorted Data - Unique'!$A$2:$A$1621,0),MATCH(A74&"-"&B74,'Table Unsorted Data - Unique'!$B$1:$AK$1,0)) -> 112
A75: 2014 | B75: 4 | C75: S. Crow | D75: ASL002 | E75: VA01 | F75: Forecast | H75: =VLOOKUP(A75&"-"&B75&"-"&C75&"-"&D75&"-"&E75&"-"&F75,'List Unsorted Data - Unique'!$G$2:$H$42942,2,0) -> 105 | J75: =SUMPRODUCT(('List Unsorted Data - Unique'!$G$2:$G$42942=A75&"-"&B75&"-"&C75&"-"&D75&"-"&E75&"-"&F75)*('List Unsorted Data - Unique'!$H$2:$H$42942)) -> 105 | L75: =INDEX('List Unsorted Data - Unique'!$H$2:$H$42942,MATCH(A75&"-"&B75&"-"&C75&"-"&D75&"-"&E75&"-"&F75,'List Unsorted Data - Unique'!$G$2:$G$42942,0)) -> 105 | N75: =OFFSET('List Unsorted Data - Unique'!G70,MATCH(A75&"-"&B75&"-"&C75&"-"&D75&"-"&E75&"-"&F75,'List Unsorted Data - Unique'!$G$2:$G$42942,0),1) -> 195 | P75: =VLOOKUP(C75&"-"&D75&"-"&E75&"-"&F75,'Table Unsorted Data - Unique'!$A$2:$AK$1621,MATCH(A75&"-"&B75,'Table Unsorted Data - Unique'!$A$1:$AK$1,0),0) -> 105 | R75: =SUMPRODUCT(('Table Unsorted Data - Unique'!$A$2:$A$1621=C75&"-"&D75&"-"&E75&"-"&F75)*('Table Unsorted Data - Unique'!$B$1:$AK$1=A75&"-"&B75)*('Table Unsorted Data - Unique'!$B$2:$AK$1621)) -> 105 | T75: =INDEX('Table Unsorted Data - Unique'!$B$2:$AK$1621,MATCH(C75&"-"&D75&"-"&E75&"-"&F75,'Table Unsorted Data - Unique'!$A$2:$A$1621,0),MATCH(A75&"-"&B75,'Table Unsorted Data - Unique'!$B$1:$AK$1,0)) -> 105 | V75: =OFFSET('Table Unsorted Data - Unique'!$A$1,MATCH(C75&"-"&D75&"-"&E75&"-"&F75,'Table Unsorted Data - Unique'!$A$2:$A$1621,0),MATCH(A75&"-"&B75,'Table Unsorted Data - Unique'!$B$1:$AK$1,0)) -> 105
A76: 2015 | B76: 5 | C76: P. Buck | D76: ASL002 | E76: MN01 | F76: Actual | H76: =VLOOKUP(A76&"-"&B76&"-"&C76&"-"&D76&"-"&E76&"-"&F76,'List Unsorted Data - Unique'!$G$2:$H$42942,2,0) -> 156 | J76: =SUMPRODUCT(('List Unsorted Data - Unique'!$G$2:$G$42942=A76&"-"&B76&"-"&C76&"-"&D76&"-"&E76&"-"&F76)*('List Unsorted Data - Unique'!$H$2:$H$42942)) -> 156 | L76: =INDEX('List Unsorted Data - Unique'!$H$2:$H$42942,MATCH(A76&"-"&B76&"-"&C76&"-"&D76&"-"&E76&"-"&F76,'List Unsorted Data - Unique'!$G$2:$G$42942,0)) -> 156 | N76: =OFFSET('List Unsorted Data - Unique'!G71,MATCH(A76&"-"&B76&"-"&C76&"-"&D76&"-"&E76&"-"&F76,'List Unsorted Data - Unique'!$G$2:$G$42942,0),1) -> 280 | P76: =VLOOKUP(C76&"-"&D76&"-"&E76&"-"&F76,'Table Unsorted Data - Unique'!$A$2:$AK$1621,MATCH(A76&"-"&B76,'Table Unsorted Data - Unique'!$A$1:$AK$1,0),0) -> 156 | R76: =SUMPRODUCT(('Table Unsorted Data - Unique'!$A$2:$A$1621=C76&"-"&D76&"-"&E76&"-"&F76)*('Table Unsorted Data - Unique'!$B$1:$AK$1=A76&"-"&B76)*('Table Unsorted Data - Unique'!$B$2:$AK$1621)) -> 156 | T76: =INDEX('Table Unsorted Data - Unique'!$B$2:$AK$1621,MATCH(C76&"-"&D76&"-"&E76&"-"&F76,'Table Unsorted Data - Unique'!$A$2:$A$1621,0),MATCH(A76&"-"&B76,'Table Unsorted Data - Unique'!$B$1:$AK$1,0)) -> 156 | V76: =OFFSET('Table Unsorted Data - Unique'!$A$1,MATCH(C76&"-"&D76&"-"&E76&"-"&F76,'Table Unsorted Data - Unique'!$A$2:$A$1621,0),MATCH(A76&"-"&B76,'Table Unsorted Data - Unique'!$B$1:$AK$1,0)) -> 156
A77: 2015 | B77: 7 | C77: B. Paisley | D77: PRD002 | E77: LA01 | F77: Actual | H77: =VLOOKUP(A77&"-"&B77&"-"&C77&"-"&D77&"-"&E77&"-"&F77,'List Unsorted Data - Unique'!$G$2:$H$42942,2,0) -> 239 | J77: =SUMPRODUCT(('List Unsorted Data - Unique'!$G$2:$G$42942=A77&"-"&B77&"-"&C77&"-"&D77&"-"&E77&"-"&F77)*('List Unsorted Data - Unique'!$H$2:$H$42942)) -> 239 | L77: =INDEX('List Unsorted Data - Unique'!$H$2:$H$42942,MATCH(A77&"-"&B77&"-"&C77&"-"&D77&"-"&E77&"-"&F77,'List Unsorted Data - Unique'!$G$2:$G$42942,0)) -> 239 | N77: =OFFSET('List Unsorted Data - Unique'!G72,MATCH(A77&"-"&B77&"-"&C77&"-"&D77&"-"&E77&"-"&F77,'List Unsorted Data - Unique'!$G$2:$G$42942,0),1) -> 86 | P77: =VLOOKUP(C77&"-"&D77&"-"&E77&"-"&F77,'Table Unsorted Data - Unique'!$A$2:$AK$1621,MATCH(A77&"-"&B77,'Table Unsorted Data - Unique'!$A$1:$AK$1,0),0) -> 239 | R77: =SUMPRODUCT(('Table Unsorted Data - Unique'!$A$2:$A$1621=C77&"-"&D77&"-"&E77&"-"&F77)*('Table Unsorted Data - Unique'!$B$1:$AK$1=A77&"-"&B77)*('Table Unsorted Data - Unique'!$B$2:$AK$1621)) -> 239 | T77: =INDEX('Table Unsorted Data - Unique'!$B$2:$AK$1621,MATCH(C77&"-"&D77&"-"&E77&"-"&F77,'Table Unsorted Data - Unique'!$A$2:$A$1621,0),MATCH(A77&"-"&B77,'Table Unsorted Data - Unique'!$B$1:$AK$1,0)) -> 239 | V77: =OFFSET('Table Unsorted Data - Unique'!$A$1,MATCH(C77&"-"&D77&"-"&E77&"-"&F77,'Table Unsorted Data - Unique'!$A$2:$A$1621,0),MATCH(A77&"-"&B77,'Table Unsorted Data - Unique'!$B$1:$AK$1,0)) -> 239
A78: 2015 | B78: 8 | C78: B. Shelton | D78: ASL003 | E78: VA01 | F78: Actual | H78: =VLOOKUP(A78&"-"&B78&"-"&C78&"-"&D78&"-"&E78&"-"&F78,'List Unsorted Data - Unique'!$G$2:$H$42942,2,0) -> 59 | J78: =SUMPRODUCT(('List Unsorted Data - Unique'!$G$2:$G$42942=A78&"-"&B78&"-"&C78&"-"&D78&"-"&E78&"-"&F78)*('List Unsorted Data - Unique'!$H$2:$H$42942)) -> 59 | L78: =INDEX('List Unsorted Data - Unique'!$H$2:$H$42942,MATCH(A78&"-"&B78&"-"&C78&"-"&D78&"-"&E78&"-"&F78,'List Unsorted Data - Unique'!$G$2:$G$42942,0)) -> 59 | N78: =OFFSET('List Unsorted Data - Unique'!G73,MATCH(A78&"-"&B78&"-"&C78&"-"&D78&"-"&E78&"-"&F78,'List Unsorted Data - Unique'!$G$2:$G$42942,0),1) -> 85 | P78: =VLOOKUP(C78&"-"&D78&"-"&E78&"-"&F78,'Table Unsorted Data - Unique'!$A$2:$AK$1621,MATCH(A78&"-"&B78,'Table Unsorted Data - Unique'!$A$1:$AK$1,0),0) -> 59 | R78: =SUMPRODUCT(('Table Unsorted Data - Unique'!$A$2:$A$1621=C78&"-"&D78&"-"&E78&"-"&F78)*('Table Unsorted Data - Unique'!$B$1:$AK$1=A78&"-"&B78)*('Table Unsorted Data - Unique'!$B$2:$AK$1621)) -> 59 | T78: =INDEX('Table Unsorted Data - Unique'!$B$2:$AK$1621,MATCH(C78&"-"&D78&"-"&E78&"-"&F78,'Table Unsorted Data - Unique'!$A$2:$A$1621,0),MATCH(A78&"-"&B78,'Table Unsorted Data - Unique'!$B$1:$AK$1,0)) -> 59 | V78: =OFFSET('Table Unsorted Data - Unique'!$A$1,MATCH(C78&"-"&D78&"-"&E78&"-"&F78,'Table Unsorted Data - Unique'!$A$2:$A$1621,0),MATCH(A78&"-"&B78,'Table Unsorted Data - Unique'!$B$1:$AK$1,0)) -> 59
A79: 2015 | B79: 3 | C79: M.Mills | D79: POT002 | E79: LA01 | F79: Actual | H79: =VLOOKUP(A79&"-"&B79&"-"&C79&"-"&D79&"-"&E79&"-"&F79,'List Unsorted Data - Unique'!$G$2:$H$42942,2,0) -> 203 | J79: =SUMPRODUCT(('List Unsorted Data - Unique'!$G$2:$G$42942=A79&"-"&B79&"-"&C79&"-"&D79&"-"&E79&"-"&F79)*('List Unsorted Data - Unique'!$H$2:$H$42942)) -> 203 | L79: =INDEX('List Unsorted Data - Unique'!$H$2:$H$42942,MATCH(A79&"-"&B79&"-"&C79&"-"&D79&"-"&E79&"-"&F79,'List Unsorted Data - Unique'!$G$2:$G$42942,0)) -> 203 | N79: =OFFSET('List Unsorted Data - Unique'!G74,MATCH(A79&"-"&B79&"-"&C79&"-"&D79&"-"&E79&"-"&F79,'List Unsorted Data - Unique'!$G$2:$G$42942,0),1) -> 318 | P79: =VLOOKUP(C79&"-"&D79&"-"&E79&"-"&F79,'Table Unsorted Data - Unique'!$A$2:$AK$1621,MATCH(A79&"-"&B79,'Table Unsorted Data - Unique'!$A$1:$AK$1,0),0) -> 203 | R79: =SUMPRODUCT(('Table Unsorted Data - Unique'!$A$2:$A$1621=C79&"-"&D79&"-"&E79&"-"&F79)*('Table Unsorted Data - Unique'!$B$1:$AK$1=A79&"-"&B79)*('Table Unsorted Data - Unique'!$B$2:$AK$1621)) -> 203 | T79: =INDEX('Table Unsorted Data - Unique'!$B$2:$AK$1621,MATCH(C79&"-"&D79&"-"&E79&"-"&F79,'Table Unsorted Data - Unique'!$A$2:$A$1621,0),MATCH(A79&"-"&B79,'Table Unsorted Data - Unique'!$B$1:$AK$1,0)) -> 203 | V79: =OFFSET('Table Unsorted Data - Unique'!$A$1,MATCH(C79&"-"&D79&"-"&E79&"-"&F79,'Table Unsorted Data - Unique'!$A$2:$A$1621,0),MATCH(A79&"-"&B79,'Table Unsorted Data - Unique'!$B$1:$AK$1,0)) -> 203
A80: 2015 | B80: 6 | C80: J. McVie | D80: DFG001 | E80: CA01 | F80: Actual | H80: =VLOOKUP(A80&"-"&B80&"-"&C80&"-"&D80&"-"&E80&"-"&F80,'List Unsorted Data - Unique'!$G$2:$H$42942,2,0) -> 55 | J80: =SUMPRODUCT(('List Unsorted Data - Unique'!$G$2:$G$42942=A80&"-"&B80&"-"&C80&"-"&D80&"-"&E80&"-"&F80)*('List Unsorted Data - Unique'!$H$2:$H$42942)) -> 55 | L80: =INDEX('List Unsorted Data - Unique'!$H$2:$H$42942,MATCH(A80&"-"&B80&"-"&C80&"-"&D80&"-"&E80&"-"&F80,'List Unsorted Data - Unique'!$G$2:$G$42942,0)) -> 55 | N80: =OFFSET('List Unsorted Data - Unique'!G75,MATCH(A80&"-"&B80&"-"&C80&"-"&D80&"-"&E80&"-"&F80,'List Unsorted Data - Unique'!$G$2:$G$42942,0),1) -> 77 | P80: =VLOOKUP(C80&"-"&D80&"-"&E80&"-"&F80,'Table Unsorted Data - Unique'!$A$2:$AK$1621,MATCH(A80&"-"&B80,'Table Unsorted Data - Unique'!$A$1:$AK$1,0),0) -> 55 | R80: =SUMPRODUCT(('Table Unsorted Data - Unique'!$A$2:$A$1621=C80&"-"&D80&"-"&E80&"-"&F80)*('Table Unsorted Data - Unique'!$B$1:$AK$1=A80&"-"&B80)*('Table Unsorted Data - Unique'!$B$2:$AK$1621)) -> 55 | T80: =INDEX('Table Unsorted Data - Unique'!$B$2:$AK$1621,MATCH(C80&"-"&D80&"-"&E80&"-"&F80,'Table Unsorted Data - Unique'!$A$2:$A$1621,0),MATCH(A80&"-"&B80,'Table Unsorted Data - Unique'!$B$1:$AK$1,0)) -> 55 | V80: =OFFSET('Table Unsorted Data - Unique'!$A$1,MATCH(C80&"-"&D80&"-"&E80&"-"&F80,'Table Unsorted Data - Unique'!$A$2:$A$1621,0),MATCH(A80&"-"&B80,'Table Unsorted Data - Unique'!$B$1:$AK$1,0)) -> 55
A81: 2015 | B81: 7 | C81: B. Shelton | D81: ASL002 | E81: AL01 | F81: Actual | H81: =VLOOKUP(A81&"-"&B81&"-"&C81&"-"&D81&"-"&E81&"-"&F81,'List Unsorted Data - Unique'!$G$2:$H$42942,2,0) -> 246 | J81: =SUMPRODUCT(('List Unsorted Data - Unique'!$G$2:$G$42942=A81&"-"&B81&"-"&C81&"-"&D81&"-"&E81&"-"&F81)*('List Unsorted Data - Unique'!$H$2:$H$42942)) -> 246 | L81: =INDEX('List Unsorted Data - Unique'!$H$2:$H$42942,MATCH(A81&"-"&B81&"-"&C81&"-"&D81&"-"&E81&"-"&F81,'List Unsorted Data - Unique'!$G$2:$G$42942,0)) -> 246 | N81: =OFFSET('List Unsorted Data - Unique'!G76,MATCH(A81&"-"&B81&"-"&C81&"-"&D81&"-"&E81&"-"&F81,'List Unsorted Data - Unique'!$G$2:$G$42942,0),1) -> 45 | P81: =VLOOKUP(C81&"-"&D81&"-"&E81&"-"&F81,'Table Unsorted Data - Unique'!$A$2:$AK$1621,MATCH(A81&"-"&B81,'Table Unsorted Data - Unique'!$A$1:$AK$1,0),0) -> 246 | R81: =SUMPRODUCT(('Table Unsorted Data - Unique'!$A$2:$A$1621=C81&"-"&D81&"-"&E81&"-"&F81)*('Table Unsorted Data - Unique'!$B$1:$AK$1=A81&"-"&B81)*('Table Unsorted Data - Unique'!$B$2:$AK$1621)) -> 246 | T81: =INDEX('Table Unsorted Data - Unique'!$B$2:$AK$1621,MATCH(C81&"-"&D81&"-"&E81&"-"&F81,'Table Unsorted Data - Unique'!$A$2:$A$1621,0),MATCH(A81&"-"&B81,'Table Unsorted Data - Unique'!$B$1:$AK$1,0)) -> 246 | V81: =OFFSET('Table Unsorted Data - Unique'!$A$1,MATCH(C81&"-"&D81&"-"&E81&"-"&F81,'Table Unsorted Data - Unique'!$A$2:$A$1621,0),MATCH(A81&"-"&B81,'Table Unsorted Data - Unique'!$B$1:$AK$1,0)) -> 246
A82: 2016 | B82: 3 | C82: C. Underwood | D82: ASL003 | E82: AL01 | F82: Actual | H82: =VLOOKUP(A82&"-"&B82&"-"&C82&"-"&D82&"-"&E82&"-"&F82,'List Unsorted Data - Unique'!$G$2:$H$42942,2,0) -> 124 | J82: =SUMPRODUCT(('List Unsorted Data - Unique'!$G$2:$G$42942=A82&"-"&B82&"-"&C82&"-"&D82&"-"&E82&"-"&F82)*('List Unsorted Data - Unique'!$H$2:$H$42942)) -> 124 | L82: =INDEX('List Unsorted Data - Unique'!$H$2:$H$42942,MATCH(A82&"-"&B82&"-"&C82&"-"&D82&"-"&E82&"-"&F82,'List Unsorted Data - Unique'!$G$2:$G$42942,0)) -> 124 | N82: =OFFSET('List Unsorted Data - Unique'!G77,MATCH(A82&"-"&B82&"-"&C82&"-"&D82&"-"&E82&"-"&F82,'List Unsorted Data - Unique'!$G$2:$G$42942,0),1) -> 65 | P82: =VLOOKUP(C82&"-"&D82&"-"&E82&"-"&F82,'Table Unsorted Data - Unique'!$A$2:$AK$1621,MATCH(A82&"-"&B82,'Table Unsorted Data - Unique'!$A$1:$AK$1,0),0) -> 124 | R82: =SUMPRODUCT(('Table Unsorted Data - Unique'!$A$2:$A$1621=C82&"-"&D82&"-"&E82&"-"&F82)*('Table Unsorted Data - Unique'!$B$1:$AK$1=A82&"-"&B82)*('Table Unsorted Data - Unique'!$B$2:$AK$1621)) -> 124 | T82: =INDEX('Table Unsorted Data - Unique'!$B$2:$AK$1621,MATCH(C82&"-"&D82&"-"&E82&"-"&F82,'Table Unsorted Data - Unique'!$A$2:$A$1621,0),MATCH(A82&"-"&B82,'Table Unsorted Data - Unique'!$B$1:$AK$1,0)) -> 124 | V82: =OFFSET('Table Unsorted Data - Unique'!$A$1,MATCH(C82&"-"&D82&"-"&E82&"-"&F82,'Table Unsorted Data - Unique'!$A$2:$A$1621,0),MATCH(A82&"-"&B82,'Table Unsorted Data - Unique'!$B$1:$AK$1,0)) -> 124
A83: 2016 | B83: 1 | C83: J. McVie | D83: POT002 | E83: NC01 | F83: Actual | H83: =VLOOKUP(A83&"-"&B83&"-"&C83&"-"&D83&"-"&E83&"-"&F83,'List Unsorted Data - Unique'!$G$2:$H$42942,2,0) -> 64 | J83: =SUMPRODUCT(('List Unsorted Data - Unique'!$G$2:$G$42942=A83&"-"&B83&"-"&C83&"-"&D83&"-"&E83&"-"&F83)*('List Unsorted Data - Unique'!$H$2:$H$42942)) -> 64 | L83: =INDEX('List Unsorted Data - Unique'!$H$2:$H$42942,MATCH(A83&"-"&B83&"-"&C83&"-"&D83&"-"&E83&"-"&F83,'List Unsorted Data - Unique'!$G$2:$G$42942,0)) -> 64 | N83: =OFFSET('List Unsorted Data - Unique'!G78,MATCH(A83&"-"&B83&"-"&C83&"-"&D83&"-"&E83&"-"&F83,'List Unsorted Data - Unique'!$G$2:$G$42942,0),1) -> 78 | P83: =VLOOKUP(C83&"-"&D83&"-"&E83&"-"&F83,'Table Unsorted Data - Unique'!$A$2:$AK$1621,MATCH(A83&"-"&B83,'Table Unsorted Data - Unique'!$A$1:$AK$1,0),0) -> 64 | R83: =SUMPRODUCT(('Table Unsorted Data - Unique'!$A$2:$A$1621=C83&"-"&D83&"-"&E83&"-"&F83)*('Table Unsorted Data - Unique'!$B$1:$AK$1=A83&"-"&B83)*('Table Unsorted Data - Unique'!$B$2:$AK$1621)) -> 64 | T83: =INDEX('Table Unsorted Data - Unique'!$B$2:$AK$1621,MATCH(C83&"-"&D83&"-"&E83&"-"&F83,'Table Unsorted Data - Unique'!$A$2:$A$1621,0),MATCH(A83&"-"&B83,'Table Unsorted Data - Unique'!$B$1:$AK$1,0)) -> 64 | V83: =OFFSET('Table Unsorted Data - Unique'!$A$1,MATCH(C83&"-"&D83&"-"&E83&"-"&F83,'Table Unsorted Data - Unique'!$A$2:$A$1621,0),MATCH(A83&"-"&B83,'Table Unsorted Data - Unique'!$B$1:$AK$1,0)) -> 64
A84: 2016 | B84: 5 | C84: M.Mills | D84: ASL001 | E84: MN01 | F84: Forecast | H84: =VLOOKUP(A84&"-"&B84&"-"&C84&"-"&D84&"-"&E84&"-"&F84,'List Unsorted Data - Unique'!$G$2:$H$42942,2,0) -> 62 | J84: =SUMPRODUCT(('List Unsorted Data - Unique'!$G$2:$G$42942=A84&"-"&B84&"-"&C84&"-"&D84&"-"&E84&"-"&F84)*('List Unsorted Data - Unique'!$H$2:$H$42942)) -> 62 | L84: =INDEX('List Unsorted Data - Unique'!$H$2:$H$42942,MATCH(A84&"-"&B84&"-"&C84&"-"&D84&"-"&E84&"-"&F84,'List Unsorted Data - Unique'!$G$2:$G$42942,0)) -> 62 | N84: =OFFSET('List Unsorted Data - Unique'!G79,MATCH(A84&"-"&B84&"-"&C84&"-"&D84&"-"&E84&"-"&F84,'List Unsorted Data - Unique'!$G$2:$G$42942,0),1) -> 50 | P84: =VLOOKUP(C84&"-"&D84&"-"&E84&"-"&F84,'Table Unsorted Data - Unique'!$A$2:$AK$1621,MATCH(A84&"-"&B84,'Table Unsorted Data - Unique'!$A$1:$AK$1,0),0) -> 62 | R84: =SUMPRODUCT(('Table Unsorted Data - Unique'!$A$2:$A$1621=C84&"-"&D84&"-"&E84&"-"&F84)*('Table Unsorted Data - Unique'!$B$1:$AK$1=A84&"-"&B84)*('Table Unsorted Data - Unique'!$B$2:$AK$1621)) -> 62 | T84: =INDEX('Table Unsorted Data - Unique'!$B$2:$AK$1621,MATCH(C84&"-"&D84&"-"&E84&"-"&F84,'Table Unsorted Data - Unique'!$A$2:$A$1621,0),MATCH(A84&"-"&B84,'Table Unsorted Data - Unique'!$B$1:$AK$1,0)) -> 62 | V84: =OFFSET('Table Unsorted Data - Unique'!$A$1,MATCH(C84&"-"&D84&"-"&E84&"-"&F84,'Table Unsorted Data - Unique'!$A$2:$A$1621,0),MATCH(A84&"-"&B84,'Table Unsorted Data - Unique'!$B$1:$AK$1,0)) -> 62
A85: 2015 | B85: 7 | C85: M.Mills | D85: PRD001 | E85: AK01 | F85: Forecast | H85: =VLOOKUP(A85&"-"&B85&"-"&C85&"-"&D85&"-"&E85&"-"&F85,'List Unsorted Data - Unique'!$G$2:$H$42942,2,0) -> 198 | J85: =SUMPRODUCT(('List Unsorted Data - Unique'!$G$2:$G$42942=A85&"-"&B85&"-"&C85&"-"&D85&"-"&E85&"-"&F85)*('List Unsorted Data - Unique'!$H$2:$H$42942)) -> 198 | L85: =INDEX('List Unsorted Data - Unique'!$H$2:$H$42942,MATCH(A85&"-"&B85&"-"&C85&"-"&D85&"-"&E85&"-"&F85,'List Unsorted Data - Unique'!$G$2:$G$42942,0)) -> 198 | N85: =OFFSET('List Unsorted Data - Unique'!G80,MATCH(A85&"-"&B85&"-"&C85&"-"&D85&"-"&E85&"-"&F85,'List Unsorted Data - Unique'!$G$2:$G$42942,0),1) -> 141 | P85: =VLOOKUP(C85&"-"&D85&"-"&E85&"-"&F85,'Table Unsorted Data - Unique'!$A$2:$AK$1621,MATCH(A85&"-"&B85,'Table Unsorted Data - Unique'!$A$1:$AK$1,0),0) -> 198 | R85: =SUMPRODUCT(('Table Unsorted Data - Unique'!$A$2:$A$1621=C85&"-"&D85&"-"&E85&"-"&F85)*('Table Unsorted Data - Unique'!$B$1:$AK$1=A85&"-"&B85)*('Table Unsorted Data - Unique'!$B$2:$AK$1621)) -> 198 | T85: =INDEX('Table Unsorted Data - Unique'!$B$2:$AK$1621,MATCH(C85&"-"&D85&"-"&E85&"-"&F85,'Table Unsorted Data - Unique'!$A$2:$A$1621,0),MATCH(A85&"-"&B85,'Table Unsorted Data - Unique'!$B$1:$AK$1,0)) -> 198 | V85: =OFFSET('Table Unsorted Data - Unique'!$A$1,MATCH(C85&"-"&D85&"-"&E85&"-"&F85,'Table Unsorted Data - Unique'!$A$2:$A$1621,0),MATCH(A85&"-"&B85,'Table Unsorted Data - Unique'!$B$1:$AK$1,0)) -> 198
A86: 2015 | B86: 6 | C86: C. Underwood | D86: JKL001 | E86: AL01 | F86: Actual | H86: =VLOOKUP(A86&"-"&B86&"-"&C86&"-"&D86&"-"&E86&"-"&F86,'List Unsorted Data - Unique'!$G$2:$H$42942,2,0) -> 80 | J86: =SUMPRODUCT(('List Unsorted Data - Unique'!$G$2:$G$42942=A86&"-"&B86&"-"&C86&"-"&D86&"-"&E86&"-"&F86)*('List Unsorted Data - Unique'!$H$2:$H$42942)) -> 80 | L86: =INDEX('List Unsorted Data - Unique'!$H$2:$H$42942,MATCH(A86&"-"&B86&"-"&C86&"-"&D86&"-"&E86&"-"&F86,'List Unsorted Data - Unique'!$G$2:$G$42942,0)) -> 80 | N86: =OFFSET('List Unsorted Data - Unique'!G81,MATCH(A86&"-"&B86&"-"&C86&"-"&D86&"-"&E86&"-"&F86,'List Unsorted Data - Unique'!$G$2:$G$42942,0),1) -> 57 | P86: =VLOOKUP(C86&"-"&D86&"-"&E86&"-"&F86,'Table Unsorted Data - Unique'!$A$2:$AK$1621,MATCH(A86&"-"&B86,'Table Unsorted Data - Unique'!$A$1:$AK$1,0),0) -> 80 | R86: =SUMPRODUCT(('Table Unsorted Data - Unique'!$A$2:$A$1621=C86&"-"&D86&"-"&E86&"-"&F86)*('Table Unsorted Data - Unique'!$B$1:$AK$1=A86&"-"&B86)*('Table Unsorted Data - Unique'!$B$2:$AK$1621)) -> 80 | T86: =INDEX('Table Unsorted Data - Unique'!$B$2:$AK$1621,MATCH(C86&"-"&D86&"-"&E86&"-"&F86,'Table Unsorted Data - Unique'!$A$2:$A$1621,0),MATCH(A86&"-"&B86,'Table Unsorted Data - Unique'!$B$1:$AK$1,0)) -> 80 | V86: =OFFSET('Table Unsorted Data - Unique'!$A$1,MATCH(C86&"-"&D86&"-"&E86&"-"&F86,'Table Unsorted Data - Unique'!$A$2:$A$1621,0),MATCH(A86&"-"&B86,'Table Unsorted Data - Unique'!$B$1:$AK$1,0)) -> 80
A87: 2015 | B87: 12 | C87: S. Crow | D87: DFG001 | E87: SD01 | F87: Forecast | H87: =VLOOKUP(A87&"-"&B87&"-"&C87&"-"&D87&"-"&E87&"-"&F87,'List Unsorted Data - Unique'!$G$2:$H$42942,2,0) -> 62 | J87: =SUMPRODUCT(('List Unsorted Data - Unique'!$G$2:$G$42942=A87&"-"&B87&"-"&C87&"-"&D87&"-"&E87&"-"&F87)*('List Unsorted Data - Unique'!$H$2:$H$42942)) -> 62 | L87: =INDEX('List Unsorted Data - Unique'!$H$2:$H$42942,MATCH(A87&"-"&B87&"-"&C87&"-"&D87&"-"&E87&"-"&F87,'List Unsorted Data - Unique'!$G$2:$G$42942,0)) -> 62 | N87: =OFFSET('List Unsorted Data - Unique'!G82,MATCH(A87&"-"&B87&"-"&C87&"-"&D87&"-"&E87&"-"&F87,'List Unsorted Data - Unique'!$G$2:$G$42942,0),1) -> 65 | P87: =VLOOKUP(C87&"-"&D87&"-"&E87&"-"&F87,'Table Unsorted Data - Unique'!$A$2:$AK$1621,MATCH(A87&"-"&B87,'Table Unsorted Data - Unique'!$A$1:$AK$1,0),0) -> 62 | R87: =SUMPRODUCT(('Table Unsorted Data - Unique'!$A$2:$A$1621=C87&"-"&D87&"-"&E87&"-"&F87)*('Table Unsorted Data - Unique'!$B$1:$AK$1=A87&"-"&B87)*('Table Unsorted Data - Unique'!$B$2:$AK$1621)) -> 62 | T87: =INDEX('Table Unsorted Data - Unique'!$B$2:$AK$1621,MATCH(C87&"-"&D87&"-"&E87&"-"&F87,'Table Unsorted Data - Unique'!$A$2:$A$1621,0),MATCH(A87&"-"&B87,'Table Unsorted Data - Unique'!$B$1:$AK$1,0)) -> 62 | V87: =OFFSET('Table Unsorted Data - Unique'!$A$1,MATCH(C87&"-"&D87&"-"&E87&"-"&F87,'Table Unsorted Data - Unique'!$A$2:$A$1621,0),MATCH(A87&"-"&B87,'Table Unsorted Data - Unique'!$B$1:$AK$1,0)) -> 62
A88: 2016 | B88: 6 | C88: J. McVie | D88: PRD002 | E88: SD01 | F88: Actual | H88: =VLOOKUP(A88&"-"&B88&"-"&C88&"-"&D88&"-"&E88&"-"&F88,'List Unsorted Data - Unique'!$G$2:$H$42942,2,0) -> 73 | J88: =SUMPRODUCT(('List Unsorted Data - Unique'!$G$2:$G$42942=A88&"-"&B88&"-"&C88&"-"&D88&"-"&E88&"-"&F88)*('List Unsorted Data - Unique'!$H$2:$H$42942)) -> 73 | L88: =INDEX('List Unsorted Data - Unique'!$H$2:$H$42942,MATCH(A88&"-"&B88&"-"&C88&"-"&D88&"-"&E88&"-"&F88,'List Unsorted Data - Unique'!$G$2:$G$42942,0)) -> 73 | N88: =OFFSET('List Unsorted Data - Unique'!G83,MATCH(A88&"-"&B88&"-"&C88&"-"&D88&"-"&E88&"-"&F88,'List Unsorted Data - Unique'!$G$2:$G$42942,0),1) -> 101 | P88: =VLOOKUP(C88&"-"&D88&"-"&E88&"-"&F88,'Table Unsorted Data - Unique'!$A$2:$AK$1621,MATCH(A88&"-"&B88,'Table Unsorted Data - Unique'!$A$1:$AK$1,0),0) -> 73 | R88: =SUMPRODUCT(('Table Unsorted Data - Unique'!$A$2:$A$1621=C88&"-"&D88&"-"&E88&"-"&F88)*('Table Unsorted Data - Unique'!$B$1:$AK$1=A88&"-"&B88)*('Table Unsorted Data - Unique'!$B$2:$AK$1621)) -> 73 | T88: =INDEX('Table Unsorted Data - Unique'!$B$2:$AK$1621,MATCH(C88&"-"&D88&"-"&E88&"-"&F88,'Table Unsorted Data - Unique'!$A$2:$A$1621,0),MATCH(A88&"-"&B88,'Table Unsorted Data - Unique'!$B$1:$AK$1,0)) -> 73 | V88: =OFFSET('Table Unsorted Data - Unique'!$A$1,MATCH(C88&"-"&D88&"-"&E88&"-"&F88,'Table Unsorted Data - Unique'!$A$2:$A$1621,0),MATCH(A88&"-"&B88,'Table Unsorted Data - Unique'!$B$1:$AK$1,0)) -> 73
A89: 2015 | B89: 7 | C89: C. Underwood | D89: ASL002 | E89: MN01 | F89: Forecast | H89: =VLOOKUP(A89&"-"&B89&"-"&C89&"-"&D89&"-"&E89&"-"&F89,'List Unsorted Data - Unique'!$G$2:$H$42942,2,0) -> 375 | J89: =SUMPRODUCT(('List Unsorted Data - Unique'!$G$2:$G$42942=A89&"-"&B89&"-"&C89&"-"&D89&"-"&E89&"-"&F89)*('List Unsorted Data - Unique'!$H$2:$H$42942)) -> 375 | L89: =INDEX('List Unsorted Data - Unique'!$H$2:$H$42942,MATCH(A89&"-"&B89&"-"&C89&"-"&D89&"-"&E89&"-"&F89,'List Unsorted Data - Unique'!$G$2:$G$42942,0)) -> 375 | N89: =OFFSET('List Unsorted Data - Unique'!G84,MATCH(A89&"-"&B89&"-"&C89&"-"&D89&"-"&E89&"-"&F89,'List Unsorted Data - Unique'!$G$2:$G$42942,0),1) -> 111 | P89: =VLOOKUP(C89&"-"&D89&"-"&E89&"-"&F89,'Table Unsorted Data - Unique'!$A$2:$AK$1621,MATCH(A89&"-"&B89,'Table Unsorted Data - Unique'!$A$1:$AK$1,0),0) -> 375 | R89: =SUMPRODUCT(('Table Unsorted Data - Unique'!$A$2:$A$1621=C89&"-"&D89&"-"&E89&"-"&F89)*('Table Unsorted Data - Unique'!$B$1:$AK$1=A89&"-"&B89)*('Table Unsorted Data - Unique'!$B$2:$AK$1621)) -> 375 | T89: =INDEX('Table Unsorted Data - Unique'!$B$2:$AK$1621,MATCH(C89&"-"&D89&"-"&E89&"-"&F89,'Table Unsorted Data - Unique'!$A$2:$A$1621,0),MATCH(A89&"-"&B89,'Table Unsorted Data - Unique'!$B$1:$AK$1,0)) -> 375 | V89: =OFFSET('Table Unsorted Data - Unique'!$A$1,MATCH(C89&"-"&D89&"-"&E89&"-"&F89,'Table Unsorted Data - Unique'!$A$2:$A$1621,0),MATCH(A89&"-"&B89,'Table Unsorted Data - Unique'!$B$1:$AK$1,0)) -> 375
A90: 2015 | B90: 9 | C90: B. Paisley | D90: JKL001 | E90: LA01 | F90: Actual | H90: =VLOOKUP(A90&"-"&B90&"-"&C90&"-"&D90&"-"&E90&"-"&F90,'List Unsorted Data - Unique'!$G$2:$H$42942,2,0) -> 172 | J90: =SUMPRODUCT(('List Unsorted Data - Unique'!$G$2:$G$42942=A90&"-"&B90&"-"&C90&"-"&D90&"-"&E90&"-"&F90)*('List Unsorted Data - Unique'!$H$2:$H$42942)) -> 172 | L90: =INDEX('List Unsorted Data - Unique'!$H$2:$H$42942,MATCH(A90&"-"&B90&"-"&C90&"-"&D90&"-"&E90&"-"&F90,'List Unsorted Data - Unique'!$G$2:$G$42942,0)) -> 172 | N90: =OFFSET('List Unsorted Data - Unique'!G85,MATCH(A90&"-"&B90&"-"&C90&"-"&D90&"-"&E90&"-"&F90,'List Unsorted Data - Unique'!$G$2:$G$42942,0),1) -> 116 | P90: =VLOOKUP(C90&"-"&D90&"-"&E90&"-"&F90,'Table Unsorted Data - Unique'!$A$2:$AK$1621,MATCH(A90&"-"&B90,'Table Unsorted Data - Unique'!$A$1:$AK$1,0),0) -> 172 | R90: =SUMPRODUCT(('Table Unsorted Data - Unique'!$A$2:$A$1621=C90&"-"&D90&"-"&E90&"-"&F90)*('Table Unsorted Data - Unique'!$B$1:$AK$1=A90&"-"&B90)*('Table Unsorted Data - Unique'!$B$2:$AK$1621)) -> 172 | T90: =INDEX('Table Unsorted Data - Unique'!$B$2:$AK$1621,MATCH(C90&"-"&D90&"-"&E90&"-"&F90,'Table Unsorted Data - Unique'!$A$2:$A$1621,0),MATCH(A90&"-"&B90,'Table Unsorted Data - Unique'!$B$1:$AK$1,0)) -> 172 | V90: =OFFSET('Table Unsorted Data - Unique'!$A$1,MATCH(C90&"-"&D90&"-"&E90&"-"&F90,'Table Unsorted Data - Unique'!$A$2:$A$1621,0),MATCH(A90&"-"&B90,'Table Unsorted Data - Unique'!$B$1:$AK$1,0)) -> 172
A91: 2015 | B91: 4 | C91: C. Underwood | D91: DFG001 | E91: MN01 | F91: Actual | H91: =VLOOKUP(A91&"-"&B91&"-"&C91&"-"&D91&"-"&E91&"-"&F91,'List Unsorted Data - Unique'!$G$2:$H$42942,2,0) -> 117 | J91: =SUMPRODUCT(('List Unsorted Data - Unique'!$G$2:$G$42942=A91&"-"&B91&"-"&C91&"-"&D91&"-"&E91&"-"&F91)*('List Unsorted Data - Unique'!$H$2:$H$42942)) -> 117 | L91: =INDEX('List Unsorted Data - Unique'!$H$2:$H$42942,MATCH(A91&"-"&B91&"-"&C91&"-"&D91&"-"&E91&"-"&F91,'List Unsorted Data - Unique'!$G$2:$G$42942,0)) -> 117 | N91: =OFFSET('List Unsorted Data - Unique'!G86,MATCH(A91&"-"&B91&"-"&C91&"-"&D91&"-"&E91&"-"&F91,'List Unsorted Data - Unique'!$G$2:$G$42942,0),1) -> 545 | P91: =VLOOKUP(C91&"-"&D91&"-"&E91&"-"&F91,'Table Unsorted Data - Unique'!$A$2:$AK$1621,MATCH(A91&"-"&B91,'Table Unsorted Data - Unique'!$A$1:$AK$1,0),0) -> 117 | R91: =SUMPRODUCT(('Table Unsorted Data - Unique'!$A$2:$A$1621=C91&"-"&D91&"-"&E91&"-"&F91)*('Table Unsorted Data - Unique'!$B$1:$AK$1=A91&"-"&B91)*('Table Unsorted Data - Unique'!$B$2:$AK$1621)) -> 117 | T91: =INDEX('Table Unsorted Data - Unique'!$B$2:$AK$1621,MATCH(C91&"-"&D91&"-"&E91&"-"&F91,'Table Unsorted Data - Unique'!$A$2:$A$1621,0),MATCH(A91&"-"&B91,'Table Unsorted Data - Unique'!$B$1:$AK$1,0)) -> 117 | V91: =OFFSET('Table Unsorted Data - Unique'!$A$1,MATCH(C91&"-"&D91&"-"&E91&"-"&F91,'Table Unsorted Data - Unique'!$A$2:$A$1621,0),MATCH(A91&"-"&B91,'Table Unsorted Data - Unique'!$B$1:$AK$1,0)) -> 117
A92: 2015 | B92: 4 | C92: B. Paisley | D92: PRD002 | E92: LA01 | F92: Actual | H92: =VLOOKUP(A92&"-"&B92&"-"&C92&"-"&D92&"-"&E92&"-"&F92,'List Unsorted Data - Unique'!$G$2:$H$42942,2,0) -> 74 | J92: =SUMPRODUCT(('List Unsorted Data - Unique'!$G$2:$G$42942=A92&"-"&B92&"-"&C92&"-"&D92&"-"&E92&"-"&F92)*('List Unsorted Data - Unique'!$H$2:$H$42942)) -> 74 | L92: =INDEX('List Unsorted Data - Unique'!$H$2:$H$42942,MATCH(A92&"-"&B92&"-"&C92&"-"&D92&"-"&E92&"-"&F92,'List Unsorted Data - Unique'!$G$2:$G$42942,0)) -> 74 | N92: =OFFSET('List Unsorted Data - Unique'!G87,MATCH(A92&"-"&B92&"-"&C92&"-"&D92&"-"&E92&"-"&F92,'List Unsorted Data - Unique'!$G$2:$G$42942,0),1) -> 207 | P92: =VLOOKUP(C92&"-"&D92&"-"&E92&"-"&F92,'Table Unsorted Data - Unique'!$A$2:$AK$1621,MATCH(A92&"-"&B92,'Table Unsorted Data - Unique'!$A$1:$AK$1,0),0) -> 74 | R92: =SUMPRODUCT(('Table Unsorted Data - Unique'!$A$2:$A$1621=C92&"-"&D92&"-"&E92&"-"&F92)*('Table Unsorted Data - Unique'!$B$1:$AK$1=A92&"-"&B92)*('Table Unsorted Data - Unique'!$B$2:$AK$1621)) -> 74 | T92: =INDEX('Table Unsorted Data - Unique'!$B$2:$AK$1621,MATCH(C92&"-"&D92&"-"&E92&"-"&F92,'Table Unsorted Data - Unique'!$A$2:$A$1621,0),MATCH(A92&"-"&B92,'Table Unsorted Data - Unique'!$B$1:$AK$1,0)) -> 74 | V92: =OFFSET('Table Unsorted Data - Unique'!$A$1,MATCH(C92&"-"&D92&"-"&E92&"-"&F92,'Table Unsorted Data - Unique'!$A$2:$A$1621,0),MATCH(A92&"-"&B92,'Table Unsorted Data - Unique'!$B$1:$AK$1,0)) -> 74
A93: 2015 | B93: 10 | C93: S. Crow | D93: DFG001 | E93: AL01 | F93: Actual | H93: =VLOOKUP(A93&"-"&B93&"-"&C93&"-"&D93&"-"&E93&"-"&F93,'List Unsorted Data - Unique'!$G$2:$H$42942,2,0) -> 50 | J93: =SUMPRODUCT(('List Unsorted Data - Unique'!$G$2:$G$42942=A93&"-"&B93&"-"&C93&"-"&D93&"-"&E93&"-"&F93)*('List Unsorted Data - Unique'!$H$2:$H$42942)) -> 50 | L93: =INDEX('List Unsorted Data - Unique'!$H$2:$H$42942,MATCH(A93&"-"&B93&"-"&C93&"-"&D93&"-"&E93&"-"&F93,'List Unsorted Data - Unique'!$G$2:$G$42942,0)) -> 50 | N93: =OFFSET('List Unsorted Data - Unique'!G88,MATCH(A93&"-"&B93&"-"&C93&"-"&D93&"-"&E93&"-"&F93,'List Unsorted Data - Unique'!$G$2:$G$42942,0),1) -> 138 | P93: =VLOOKUP(C93&"-"&D93&"-"&E93&"-"&F93,'Table Unsorted Data - Unique'!$A$2:$AK$1621,MATCH(A93&"-"&B93,'Table Unsorted Data - Unique'!$A$1:$AK$1,0),0) -> 50 | R93: =SUMPRODUCT(('Table Unsorted Data - Unique'!$A$2:$A$1621=C93&"-"&D93&"-"&E93&"-"&F93)*('Table Unsorted Data - Unique'!$B$1:$AK$1=A93&"-"&B93)*('Table Unsorted Data - Unique'!$B$2:$AK$1621)) -> 50 | T93: =INDEX('Table Unsorted Data - Unique'!$B$2:$AK$1621,MATCH(C93&"-"&D93&"-"&E93&"-"&F93,'Table Unsorted Data - Unique'!$A$2:$A$1621,0),MATCH(A93&"-"&B93,'Table Unsorted Data - Unique'!$B$1:$AK$1,0)) -> 50 | V93: =OFFSET('Table Unsorted Data - Unique'!$A$1,MATCH(C93&"-"&D93&"-"&E93&"-"&F93,'Table Unsorted Data - Unique'!$A$2:$A$1621,0),MATCH(A93&"-"&B93,'Table Unsorted Data - Unique'!$B$1:$AK$1,0)) -> 50
A94: 2014 | B94: 7 | C94: M.Mills | D94: PRD002 | E94: AK01 | F94: Actual | H94: =VLOOKUP(A94&"-"&B94&"-"&C94&"-"&D94&"-"&E94&"-"&F94,'List Unsorted Data - Unique'!$G$2:$H$42942,2,0) -> 89 | J94: =SUMPRODUCT(('List Unsorted Data - Unique'!$G$2:$G$42942=A94&"-"&B94&"-"&C94&"-"&D94&"-"&E94&"-"&F94)*('List Unsorted Data - Unique'!$H$2:$H$42942)) -> 89 | L94: =INDEX('List Unsorted Data - Unique'!$H$2:$H$42942,MATCH(A94&"-"&B94&"-"&C94&"-"&D94&"-"&E94&"-"&F94,'List Unsorted Data - Unique'!$G$2:$G$42942,0)) -> 89 | N94: =OFFSET('List Unsorted Data - Unique'!G89,MATCH(A94&"-"&B94&"-"&C94&"-"&D94&"-"&E94&"-"&F94,'List Unsorted Data - Unique'!$G$2:$G$42942,0),1) -> 201 | P94: =VLOOKUP(C94&"-"&D94&"-"&E94&"-"&F94,'Table Unsorted Data - Unique'!$A$2:$AK$1621,MATCH(A94&"-"&B94,'Table Unsorted Data - Unique'!$A$1:$AK$1,0),0) -> 89 | R94: =SUMPRODUCT(('Table Unsorted Data - Unique'!$A$2:$A$1621=C94&"-"&D94&"-"&E94&"-"&F94)*('Table Unsorted Data - Unique'!$B$1:$AK$1=A94&"-"&B94)*('Table Unsorted Data - Unique'!$B$2:$AK$1621)) -> 89 | T94: =INDEX('Table Unsorted Data - Unique'!$B$2:$AK$1621,MATCH(C94&"-"&D94&"-"&E94&"-"&F94,'Table Unsorted Data - Unique'!$A$2:$A$1621,0),MATCH(A94&"-"&B94,'Table Unsorted Data - Unique'!$B$1:$AK$1,0)) -> 89 | V94: =OFFSET('Table Unsorted Data - Unique'!$A$1,MATCH(C94&"-"&D94&"-"&E94&"-"&F94,'Table Unsorted Data - Unique'!$A$2:$A$1621,0),MATCH(A94&"-"&B94,'Table Unsorted Data - Unique'!$B$1:$AK$1,0)) -> 89
A95: 2015 | B95: 6 | C95: P. Buck | D95: ASL002 | E95: CA01 | F95: Forecast | H95: =VLOOKUP(A95&"-"&B95&"-"&C95&"-"&D95&"-"&E95&"-"&F95,'List Unsorted Data - Unique'!$G$2:$H$42942,2,0) -> 97 | J95: =SUMPRODUCT(('List Unsorted Data - Unique'!$G$2:$G$42942=A95&"-"&B95&"-"&C95&"-"&D95&"-"&E95&"-"&F95)*('List Unsorted Data - Unique'!$H$2:$H$42942)) -> 97 | L95: =INDEX('List Unsorted Data - Unique'!$H$2:$H$42942,MATCH(A95&"-"&B95&"-"&C95&"-"&D95&"-"&E95&"-"&F95,'List Unsorted Data - Unique'!$G$2:$G$42942,0)) -> 97 | N95: =OFFSET('List Unsorted Data - Unique'!G90,MATCH(A95&"-"&B95&"-"&C95&"-"&D95&"-"&E95&"-"&F95,'List Unsorted Data - Unique'!$G$2:$G$42942,0),1) -> 75 | P95: =VLOOKUP(C95&"-"&D95&"-"&E95&"-"&F95,'Table Unsorted Data - Unique'!$A$2:$AK$1621,MATCH(A95&"-"&B95,'Table Unsorted Data - Unique'!$A$1:$AK$1,0),0) -> 97 | R95: =SUMPRODUCT(('Table Unsorted Data - Unique'!$A$2:$A$1621=C95&"-"&D95&"-"&E95&"-"&F95)*('Table Unsorted Data - Unique'!$B$1:$AK$1=A95&"-"&B95)*('Table Unsorted Data - Unique'!$B$2:$AK$1621)) -> 97 | T95: =INDEX('Table Unsorted Data - Unique'!$B$2:$AK$1621,MATCH(C95&"-"&D95&"-"&E95&"-"&F95,'Table Unsorted Data - Unique'!$A$2:$A$1621,0),MATCH(A95&"-"&B95,'Table Unsorted Data - Unique'!$B$1:$AK$1,0)) -> 97 | V95: =OFFSET('Table Unsorted Data - Unique'!$A$1,MATCH(C95&"-"&D95&"-"&E95&"-"&F95,'Table Unsorted Data - Unique'!$A$2:$A$1621,0),MATCH(A95&"-"&B95,'Table Unsorted Data - Unique'!$B$1:$AK$1,0)) -> 97
A96: 2015 | B96: 12 | C96: P. Buck | D96: ASL003 | E96: AL01 | F96: Forecast | H96: =VLOOKUP(A96&"-"&B96&"-"&C96&"-"&D96&"-"&E96&"-"&F96,'List Unsorted Data - Unique'!$G$2:$H$42942,2,0) -> 184 | J96: =SUMPRODUCT(('List Unsorted Data - Unique'!$G$2:$G$42942=A96&"-"&B96&"-"&C96&"-"&D96&"-"&E96&"-"&F96)*('List Unsorted Data - Unique'!$H$2:$H$42942)) -> 184 | L96: =INDEX('List Unsorted Data - Unique'!$H$2:$H$42942,MATCH(A96&"-"&B96&"-"&C96&"-"&D96&"-"&E96&"-"&F96,'List Unsorted Data - Unique'!$G$2:$G$42942,0)) -> 184 | N96: =OFFSET('List Unsorted Data - Unique'!G91,MATCH(A96&"-"&B96&"-"&C96&"-"&D96&"-"&E96&"-"&F96,'List Unsorted Data - Unique'!$G$2:$G$42942,0),1) -> 163 | P96: =VLOOKUP(C96&"-"&D96&"-"&E96&"-"&F96,'Table Unsorted Data - Unique'!$A$2:$AK$1621,MATCH(A96&"-"&B96,'Table Unsorted Data - Unique'!$A$1:$AK$1,0),0) -> 184 | R96: =SUMPRODUCT(('Table Unsorted Data - Unique'!$A$2:$A$1621=C96&"-"&D96&"-"&E96&"-"&F96)*('Table Unsorted Data - Unique'!$B$1:$AK$1=A96&"-"&B96)*('Table Unsorted Data - Unique'!$B$2:$AK$1621)) -> 184 | T96: =INDEX('Table Unsorted Data - Unique'!$B$2:$AK$1621,MATCH(C96&"-"&D96&"-"&E96&"-"&F96,'Table Unsorted Data - Unique'!$A$2:$A$1621,0),MATCH(A96&"-"&B96,'Table Unsorted Data - Unique'!$B$1:$AK$1,0)) -> 184 | V96: =OFFSET('Table Unsorted Data - Unique'!$A$1,MATCH(C96&"-"&D96&"-"&E96&"-"&F96,'Table Unsorted Data - Unique'!$A$2:$A$1621,0),MATCH(A96&"-"&B96,'Table Unsorted Data - Unique'!$B$1:$AK$1,0)) -> 184
A97: 2016 | B97: 11 | C97: C. Underwood | D97: DFG001 | E97: PA01 | F97: Actual | H97: =VLOOKUP(A97&"-"&B97&"-"&C97&"-"&D97&"-"&E97&"-"&F97,'List Unsorted Data - Unique'!$G$2:$H$42942,2,0) -> 433 | J97: =SUMPRODUCT(('List Unsorted Data - Unique'!$G$2:$G$42942=A97&"-"&B97&"-"&C97&"-"&D97&"-"&E97&"-"&F97)*('List Unsorted Data - Unique'!$H$2:$H$42942)) -> 433 | L97: =INDEX('List Unsorted Data - Unique'!$H$2:$H$42942,MATCH(A97&"-"&B97&"-"&C97&"-"&D97&"-"&E97&"-"&F97,'List Unsorted Data - Unique'!$G$2:$G$42942,0)) -> 433 | N97: =OFFSET('List Unsorted Data - Unique'!G92,MATCH(A97&"-"&B97&"-"&C97&"-"&D97&"-"&E97&"-"&F97,'List Unsorted Data - Unique'!$G$2:$G$42942,0),1) -> 223 | P97: =VLOOKUP(C97&"-"&D97&"-"&E97&"-"&F97,'Table Unsorted Data - Unique'!$A$2:$AK$1621,MATCH(A97&"-"&B97,'Table Unsorted Data - Unique'!$A$1:$AK$1,0),0) -> 433 | R97: =SUMPRODUCT(('Table Unsorted Data - Unique'!$A$2:$A$1621=C97&"-"&D97&"-"&E97&"-"&F97)*('Table Unsorted Data - Unique'!$B$1:$AK$1=A97&"-"&B97)*('Table Unsorted Data - Unique'!$B$2:$AK$1621)) -> 433 | T97: =INDEX('Table Unsorted Data - Unique'!$B$2:$AK$1621,MATCH(C97&"-"&D97&"-"&E97&"-"&F97,'Table Unsorted Data - Unique'!$A$2:$A$1621,0),MATCH(A97&"-"&B97,'Table Unsorted Data - Unique'!$B$1:$AK$1,0)) -> 433 | V97: =OFFSET('Table Unsorted Data - Unique'!$A$1,MATCH(C97&"-"&D97&"-"&E97&"-"&F97,'Table Unsorted Data - Unique'!$A$2:$A$1621,0),MATCH(A97&"-"&B97,'Table Unsorted Data - Unique'!$B$1:$AK$1,0)) -> 433
A98: 2016 | B98: 5 | C98: M.Mills | D98: POT002 | E98: AL01 | F98: Actual | H98: =VLOOKUP(A98&"-"&B98&"-"&C98&"-"&D98&"-"&E98&"-"&F98,'List Unsorted Data - Unique'!$G$2:$H$42942,2,0) -> 218 | J98: =SUMPRODUCT(('List Unsorted Data - Unique'!$G$2:$G$42942=A98&"-"&B98&"-"&C98&"-"&D98&"-"&E98&"-"&F98)*('List Unsorted Data - Unique'!$H$2:$H$42942)) -> 218 | L98: =INDEX('List Unsorted Data - Unique'!$H$2:$H$42942,MATCH(A98&"-"&B98&"-"&C98&"-"&D98&"-"&E98&"-"&F98,'List Unsorted Data - Unique'!$G$2:$G$42942,0)) -> 218 | N98: =OFFSET('List Unsorted Data - Unique'!G93,MATCH(A98&"-"&B98&"-"&C98&"-"&D98&"-"&E98&"-"&F98,'List Unsorted Data - Unique'!$G$2:$G$42942,0),1) -> 59 | P98: =VLOOKUP(C98&"-"&D98&"-"&E98&"-"&F98,'Table Unsorted Data - Unique'!$A$2:$AK$1621,MATCH(A98&"-"&B98,'Table Unsorted Data - Unique'!$A$1:$AK$1,0),0) -> 218 | R98: =SUMPRODUCT(('Table Unsorted Data - Unique'!$A$2:$A$1621=C98&"-"&D98&"-"&E98&"-"&F98)*('Table Unsorted Data - Unique'!$B$1:$AK$1=A98&"-"&B98)*('Table Unsorted Data - Unique'!$B$2:$AK$1621)) -> 218 | T98: =INDEX('Table Unsorted Data - Unique'!$B$2:$AK$1621,MATCH(C98&"-"&D98&"-"&E98&"-"&F98,'Table Unsorted Data - Unique'!$A$2:$A$1621,0),MATCH(A98&"-"&B98,'Table Unsorted Data - Unique'!$B$1:$AK$1,0)) -> 218 | V98: =OFFSET('Table Unsorted Data - Unique'!$A$1,MATCH(C98&"-"&D98&"-"&E98&"-"&F98,'Table Unsorted Data - Unique'!$A$2:$A$1621,0),MATCH(A98&"-"&B98,'Table Unsorted Data - Unique'!$B$1:$AK$1,0)) -> 218
A99: 2015 | B99: 2 | C99: B. Paisley | D99: DFG001 | E99: LA01 | F99: Actual | H99: =VLOOKUP(A99&"-"&B99&"-"&C99&"-"&D99&"-"&E99&"-"&F99,'List Unsorted Data - Unique'!$G$2:$H$42942,2,0) -> 236 | J99: =SUMPRODUCT(('List Unsorted Data - Unique'!$G$2:$G$42942=A99&"-"&B99&"-"&C99&"-"&D99&"-"&E99&"-"&F99)*('List Unsorted Data - Unique'!$H$2:$H$42942)) -> 236 | L99: =INDEX('List Unsorted Data - Unique'!$H$2:$H$42942,MATCH(A99&"-"&B99&"-"&C99&"-"&D99&"-"&E99&"-"&F99,'List Unsorted Data - Unique'!$G$2:$G$42942,0)) -> 236 | N99: =OFFSET('List Unsorted Data - Unique'!G94,MATCH(A99&"-"&B99&"-"&C99&"-"&D99&"-"&E99&"-"&F99,'List Unsorted Data - Unique'!$G$2:$G$42942,0),1) -> 84 | P99: =VLOOKUP(C99&"-"&D99&"-"&E99&"-"&F99,'Table Unsorted Data - Unique'!$A$2:$AK$1621,MATCH(A99&"-"&B99,'Table Unsorted Data - Unique'!$A$1:$AK$1,0),0) -> 236 | R99: =SUMPRODUCT(('Table Unsorted Data - Unique'!$A$2:$A$1621=C99&"-"&D99&"-"&E99&"-"&F99)*('Table Unsorted Data - Unique'!$B$1:$AK$1=A99&"-"&B99)*('Table Unsorted Data - Unique'!$B$2:$AK$1621)) -> 236 | T99: =INDEX('Table Unsorted Data - Unique'!$B$2:$AK$1621,MATCH(C99&"-"&D99&"-"&E99&"-"&F99,'Table Unsorted Data - Unique'!$A$2:$A$1621,0),MATCH(A99&"-"&B99,'Table Unsorted Data - Unique'!$B$1:$AK$1,0)) -> 236 | V99: =OFFSET('Table Unsorted Data - Unique'!$A$1,MATCH(C99&"-"&D99&"-"&E99&"-"&F99,'Table Unsorted Data - Unique'!$A$2:$A$1621,0),MATCH(A99&"-"&B99,'Table Unsorted Data - Unique'!$B$1:$AK$1,0)) -> 236
A100: 2015 | B100: 3 | C100: B. Paisley | D100: ASL001 | E100: PA01 | F100: Forecast | H100: =VLOOKUP(A100&"-"&B100&"-"&C100&"-"&D100&"-"&E100&"-"&F100,'List Unsorted Data - Unique'!$G$2:$H$42942,2,0) -> 336 | J100: =SUMPRODUCT(('List Unsorted Data - Unique'!$G$2:$G$42942=A100&"-"&B100&"-"&C100&"-"&D100&"-"&E100&"-"&F100)*('List Unsorted Data - Unique'!$H$2:$H$42942)) -> 336 | L100: =INDEX('List Unsorted Data - Unique'!$H$2:$H$42942,MATCH(A100&"-"&B100&"-"&C100&"-"&D100&"-"&E100&"-"&F100,'List Unsorted Data - Unique'!$G$2:$G$42942,0)) -> 336 | N100: =OFFSET('List Unsorted Data - Unique'!G95,MATCH(A100&"-"&B100&"-"&C100&"-"&D100&"-"&E100&"-"&F100,'List Unsorted Data - Unique'!$G$2:$G$42942,0),1) -> 80 | P100: =VLOOKUP(C100&"-"&D100&"-"&E100&"-"&F100,'Table Unsorted Data - Unique'!$A$2:$AK$1621,MATCH(A100&"-"&B100,'Table Unsorted Data - Unique'!$A$1:$AK$1,0),0) -> 336 | R100: =SUMPRODUCT(('Table Unsorted Data - Unique'!$A$2:$A$1621=C100&"-"&D100&"-"&E100&"-"&F100)*('Table Unsorted Data - Unique'!$B$1:$AK$1=A100&"-"&B100)*('Table Unsorted Data - Unique'!$B$2:$AK$1621)) -> 336 | T100: =INDEX('Table Unsorted Data - Unique'!$B$2:$AK$1621,MATCH(C100&"-"&D100&"-"&E100&"-"&F100,'Table Unsorted Data - Unique'!$A$2:$A$1621,0),MATCH(A100&"-"&B100,'Table Unsorted Data - Unique'!$B$1:$AK$1,0)) -> 336 | V100: =OFFSET('Table Unsorted Data - Unique'!$A$1,MATCH(C100&"-"&D100&"-"&E100&"-"&F100,'Table Unsorted Data - Unique'!$A$2:$A$1621,0),MATCH(A100&"-"&B100,'Table Unsorted Data - Unique'!$B$1:$AK$1,0)) -> 336
A101: 2016 | B101: 6 | C101: M. Stipe | D101: JKL001 | E101: AL01 | F101: Actual | H101: =VLOOKUP(A101&"-"&B101&"-"&C101&"-"&D101&"-"&E101&"-"&F101,'List Unsorted Data - Unique'!$G$2:$H$42942,2,0) -> 105 | J101: =SUMPRODUCT(('List Unsorted Data - Unique'!$G$2:$G$42942=A101&"-"&B101&"-"&C101&"-"&D101&"-"&E101&"-"&F101)*('List Unsorted Data - Unique'!$H$2:$H$42942)) -> 105 | L101: =INDEX('List Unsorted Data - Unique'!$H$2:$H$42942,MATCH(A101&"-"&B101&"-"&C101&"-"&D101&"-"&E101&"-"&F101,'List Unsorted Data - Unique'!$G$2:$G$42942,0)) -> 105 | N101: =OFFSET('List Unsorted Data - Unique'!G96,MATCH(A101&"-"&B101&"-"&C101&"-"&D101&"-"&E101&"-"&F101,'List Unsorted Data - Unique'!$G$2:$G$42942,0),1) -> 71 | P101: =VLOOKUP(C101&"-"&D101&"-"&E101&"-"&F101,'Table Unsorted Data - Unique'!$A$2:$AK$1621,MATCH(A101&"-"&B101,'Table Unsorted Data - Unique'!$A$1:$AK$1,0),0) -> 105 | R101: =SUMPRODUCT(('Table Unsorted Data - Unique'!$A$2:$A$1621=C101&"-"&D101&"-"&E101&"-"&F101)*('Table Unsorted Data - Unique'!$B$1:$AK$1=A101&"-"&B101)*('Table Unsorted Data - Unique'!$B$2:$AK$1621)) -> 105 | T101: =INDEX('Table Unsorted Data - Unique'!$B$2:$AK$1621,MATCH(C101&"-"&D101&"-"&E101&"-"&F101,'Table Unsorted Data - Unique'!$A$2:$A$1621,0),MATCH(A101&"-"&B101,'Table Unsorted Data - Unique'!$B$1:$AK$1,0)) -> 105 | V101: =OFFSET('Table Unsorted Data - Unique'!$A$1,MATCH(C101&"-"&D101&"-"&E101&"-"&F101,'Table Unsorted Data - Unique'!$A$2:$A$1621,0),MATCH(A101&"-"&B101,'Table Unsorted Data - Unique'!$B$1:$AK$1,0)) -> 105
A102: 2015 | B102: 9 | C102: C. Underwood | D102: PRD001 | E102: PA01 | F102: Forecast | H102: =VLOOKUP(A102&"-"&B102&"-"&C102&"-"&D102&"-"&E102&"-"&F102,'List Unsorted Data - Unique'!$G$2:$H$42942,2,0) -> 82 | J102: =SUMPRODUCT(('List Unsorted Data - Unique'!$G$2:$G$42942=A102&"-"&B102&"-"&C102&"-"&D102&"-"&E102&"-"&F102)*('List Unsorted Data - Unique'!$H$2:$H$42942)) -> 82 | L102: =INDEX('List Unsorted Data - Unique'!$H$2:$H$42942,MATCH(A102&"-"&B102&"-"&C102&"-"&D102&"-"&E102&"-"&F102,'List Unsorted Data - Unique'!$G$2:$G$42942,0)) -> 82 | N102: =OFFSET('List Unsorted Data - Unique'!G97,MATCH(A102&"-"&B102&"-"&C102&"-"&D102&"-"&E102&"-"&F102,'List Unsorted Data - Unique'!$G$2:$G$42942,0),1) -> 129 | P102: =VLOOKUP(C102&"-"&D102&"-"&E102&"-"&F102,'Table Unsorted Data - Unique'!$A$2:$AK$1621,MATCH(A102&"-"&B102,'Table Unsorted Data - Unique'!$A$1:$AK$1,0),0) -> 82 | R102: =SUMPRODUCT(('Table Unsorted Data - Unique'!$A$2:$A$1621=C102&"-"&D102&"-"&E102&"-"&F102)*('Table Unsorted Data - Unique'!$B$1:$AK$1=A102&"-"&B102)*('Table Unsorted Data - Unique'!$B$2:$AK$1621)) -> 82 | T102: =INDEX('Table Unsorted Data - Unique'!$B$2:$AK$1621,MATCH(C102&"-"&D102&"-"&E102&"-"&F102,'Table Unsorted Data - Unique'!$A$2:$A$1621,0),MATCH(A102&"-"&B102,'Table Unsorted Data - Unique'!$B$1:$AK$1,0)) -> 82 | V102: =OFFSET('Table Unsorted Data - Unique'!$A$1,MATCH(C102&"-"&D102&"-"&E102&"-"&F102,'Table Unsorted Data - Unique'!$A$2:$A$1621,0),MATCH(A102&"-"&B102,'Table Unsorted Data - Unique'!$B$1:$AK$1,0)) -> 82
A103: 2016 | B103: 8 | C103: P. Buck | D103: ASL001 | E103: AL01 | F103: Forecast | H103: =VLOOKUP(A103&"-"&B103&"-"&C103&"-"&D103&"-"&E103&"-"&F103,'List Unsorted Data - Unique'!$G$2:$H$42942,2,0) -> 279 | J103: =SUMPRODUCT(('List Unsorted Data - Unique'!$G$2:$G$42942=A103&"-"&B103&"-"&C103&"-"&D103&"-"&E103&"-"&F103)*('List Unsorted Data - Unique'!$H$2:$H$42942)) -> 279 | L103: =INDEX('List Unsorted Data - Unique'!$H$2:$H$42942,MATCH(A103&"-"&B103&"-"&C103&"-"&D103&"-"&E103&"-"&F103,'List Unsorted Data - Unique'!$G$2:$G$42942,0)) -> 279 | N103: =OFFSET('List Unsorted Data - Unique'!G98,MATCH(A103&"-"&B103&"-"&C103&"-"&D103&"-"&E103&"-"&F103,'List Unsorted Data - Unique'!$G$2:$G$42942,0),1) -> 64 | P103: =VLOOKUP(C103&"-"&D103&"-"&E103&"-"&F103,'Table Unsorted Data - Unique'!$A$2:$AK$1621,MATCH(A103&"-"&B103,'Table Unsorted Data - Unique'!$A$1:$AK$1,0),0) -> 279 | R103: =SUMPRODUCT(('Table Unsorted Data - Unique'!$A$2:$A$1621=C103&"-"&D103&"-"&E103&"-"&F103)*('Table Unsorted Data - Unique'!$B$1:$AK$1=A103&"-"&B103)*('Table Unsorted Data - Unique'!$B$2:$AK$1621)) -> 279 | T103: =INDEX('Table Unsorted Data - Unique'!$B$2:$AK$1621,MATCH(C103&"-"&D103&"-"&E103&"-"&F103,'Table Unsorted Data - Unique'!$A$2:$A$1621,0),MATCH(A103&"-"&B103,'Table Unsorted Data - Unique'!$B$1:$AK$1,0)) -> 279 | V103: =OFFSET('Table Unsorted Data - Unique'!$A$1,MATCH(C103&"-"&D103&"-"&E103&"-"&F103,'Table Unsorted Data - Unique'!$A$2:$A$1621,0),MATCH(A103&"-"&B103,'Table Unsorted Data - Unique'!$B$1:$AK$1,0)) -> 279
A104: 2016 | B104: 6 | C104: B. Paisley | D104: ASL003 | E104: LA01 | F104: Forecast | H104: =VLOOKUP(A104&"-"&B104&"-"&C104&"-"&D104&"-"&E104&"-"&F104,'List Unsorted Data - Unique'!$G$2:$H$42942,2,0) -> 175 | J104: =SUMPRODUCT(('List Unsorted Data - Unique'!$G$2:$G$42942=A104&"-"&B104&"-"&C104&"-"&D104&"-"&E104&"-"&F104)*('List Unsorted Data - Unique'!$H$2:$H$42942)) -> 175 | L104: =INDEX('List Unsorted Data - Unique'!$H$2:$H$42942,MATCH(A104&"-"&B104&"-"&C104&"-"&D104&"-"&E104&"-"&F104,'List Unsorted Data - Unique'!$G$2:$G$42942,0)) -> 175 | N104: =OFFSET('List Unsorted Data - Unique'!G99,MATCH(A104&"-"&B104&"-"&C104&"-"&D104&"-"&E104&"-"&F104,'List Unsorted Data - Unique'!$G$2:$G$42942,0),1) -> 315 | P104: =VLOOKUP(C104&"-"&D104&"-"&E104&"-"&F104,'Table Unsorted Data - Unique'!$A$2:$AK$1621,MATCH(A104&"-"&B104,'Table Unsorted Data - Unique'!$A$1:$AK$1,0),0) -> 175 | R104: =SUMPRODUCT(('Table Unsorted Data - Unique'!$A$2:$A$1621=C104&"-"&D104&"-"&E104&"-"&F104)*('Table Unsorted Data - Unique'!$B$1:$AK$1=A104&"-"&B104)*('Table Unsorted Data - Unique'!$B$2:$AK$1621)) -> 175 | T104: =INDEX('Table Unsorted Data - Unique'!$B$2:$AK$1621,MATCH(C104&"-"&D104&"-"&E104&"-"&F104,'Table Unsorted Data - Unique'!$A$2:$A$1621,0),MATCH(A104&"-"&B104,'Table Unsorted Data - Unique'!$B$1:$AK$1,0)) -> 175 | V104: =OFFSET('Table Unsorted Data - Unique'!$A$1,MATCH(C104&"-"&D104&"-"&E104&"-"&F104,'Table Unsorted Data - Unique'!$A$2:$A$1621,0),MATCH(A104&"-"&B104,'Table Unsorted Data - Unique'!$B$1:$AK$1,0)) -> 175
A105: 2015 | B105: 8 | C105: B. Paisley | D105: POT001 | E105: PA01 | F105: Forecast | H105: =VLOOKUP(A105&"-"&B105&"-"&C105&"-"&D105&"-"&E105&"-"&F105,'List Unsorted Data - Unique'!$G$2:$H$42942,2,0) -> 335 | J105: =SUMPRODUCT(('List Unsorted Data - Unique'!$G$2:$G$42942=A105&"-"&B105&"-"&C105&"-"&D105&"-"&E105&"-"&F105)*('List Unsorted Data - Unique'!$H$2:$H$42942)) -> 335 | L105: =INDEX('List Unsorted Data - Unique'!$H$2:$H$42942,MATCH(A105&"-"&B105&"-"&C105&"-"&D105&"-"&E105&"-"&F105,'List Unsorted Data - Unique'!$G$2:$G$42942,0)) -> 335 | N105: =OFFSET('List Unsorted Data - Unique'!G100,MATCH(A105&"-"&B105&"-"&C105&"-"&D105&"-"&E105&"-"&F105,'List Unsorted Data - Unique'!$G$2:$G$42942,0),1) -> 75 | P105: =VLOOKUP(C105&"-"&D105&"-"&E105&"-"&F105,'Table Unsorted Data - Unique'!$A$2:$AK$1621,MATCH(A105&"-"&B105,'Table Unsorted Data - Unique'!$A$1:$AK$1,0),0) -> 335 | R105: =SUMPRODUCT(('Table Unsorted Data - Unique'!$A$2:$A$1621=C105&"-"&D105&"-"&E105&"-"&F105)*('Table Unsorted Data - Unique'!$B$1:$AK$1=A105&"-"&B105)*('Table Unsorted Data - Unique'!$B$2:$AK$1621)) -> 335 | T105: =INDEX('Table Unsorted Data - Unique'!$B$2:$AK$1621,MATCH(C105&"-"&D105&"-"&E105&"-"&F105,'Table Unsorted Data - Unique'!$A$2:$A$1621,0),MATCH(A105&"-"&B105,'Table Unsorted Data - Unique'!$B$1:$AK$1,0)) -> 335 | V105: =OFFSET('Table Unsorted Data - Unique'!$A$1,MATCH(C105&"-"&D105&"-"&E105&"-"&F105,'Table Unsorted Data - Unique'!$A$2:$A$1621,0),MATCH(A105&"-"&B105,'Table Unsorted Data - Unique'!$B$1:$AK$1,0)) -> 335
H107: VLOOKUP | J107: SUMPRODUCT | L107: INDEX/MATCH | N107: OFFSET/MATCH | P107: VLOOKUP/MATCH | R107: SUMPRODUCT | T107: INDEX/MATCH/MATCH | V107: OFFSET/MATCH/MATCH
H108: Unsorted List | J108: Unsorted List | L108: Unsorted List | N108: Unsorted List | P108: Unsorted Table | R108: Unsorted Table | T108: Unsorted Table | V108: Unsorted Table
F110: Time #1 | H110: 0.1172 | J110: 0.55985 | L110: 0.12011 | N110: 0.11444 | P110: 0.0139 | R110: 0.33671 | T110: 0.01491 | V110: 0.01449
F111: Time #2 | H111: 0.11293 | J111: 0.56998 | L111: 0.12882 | N111: 0.10385 | P111: 0.00146 | R111: 0.33845 | T111: 0.01546 | V111: 0.01554
F112: Time #3 | H112: 0.10388 | J112: 0.56461 | L112: 0.12429 | N112: 0.09425 | P112: 0.01528 | R112: 0.36861 | T112: 0.01405 | V112: 0.01461
F113: Time #4 | H113: 0.10548 | J113: 0.57008 | L113: 0.10492 | N113: 0.10477 | P113: 0.01466 | R113: 0.3485 | T113: 0.01486 | V113: 0.01507
F114: Time #5 | H114: 0.1135 | J114: 0.57113 | L114: 0.10032 | N114: 0.09912 | P114: 0.01509 | R114: 0.35722 | T114: 0.01552 | V114: 0.01507
F116: Average: | H116: =AVERAGE(H110:H114) -> 0.110598 | J116: =AVERAGE(J110:J114) -> 0.56713 | L116: =AVERAGE(L110:L114) -> 0.115692 | N116: =AVERAGE(N110:N114) -> 0.103286 | P116: =AVERAGE(P110:P114) -> 0.012078 | R116: =AVERAGE(R110:R114) -> 0.349898 | T116: =AVERAGE(T110:T114) -> 0.01496 | V116: =AVERAGE(V110:V114) -> 0.014956
L118: % of list equivalent | P118: =P116/H116 -> 0.1092063148 | R118: =R116/J116 -> 0.6169626012 | T118: =T116/L116 -> 0.1293088545 | V118: =V116/N116 -> 0.1448018124
L120: % of slowest list | P120: =P116/MAX($H$116:$N$116) -> 0.02129670446 | R120: =R116/MAX($H$116:$N$116) -> 0.6169626012 | T120: =T116/MAX($H$116:$N$116) -> 0.02637843175 | V120: =V116/MAX($H$116:$N$116) -> 0.0263713787

Sheet List Unsorted Data - Unique
A1: Year | B1: Period | C1: Sales Person | D1: Product | E1: Customer | F1: Forecast/Actual | G1: Helper | H1: Value
A2: 2015 | B2: 1 | C2: B. Shelton | D2: ASL001 | E2: CA01 | F2: Actual | G2: 2015-1-B. Shelton-ASL001-CA01-Actual | H2: 145
A3: 2015 | B3: 5 | C3: M. Stipe | D3: POT002 | E3: SD01 | F3: Actual | G3: 2015-5-M. Stipe-POT002-SD01-Actual | H3: 220
A4: 2016 | B4: 3 | C4: P. Buck | D4: POT002 | E4: AK01 | F4: Actual | G4: 2016-3-P. Buck-POT002-AK01-Actual | H4: 207
A5: 2015 | B5: 9 | C5: M. Stipe | D5: ASL003 | E5: CA01 | F5: Forecast | G5: 2015-9-M. Stipe-ASL003-CA01-Forecast | H5: 174
A6: 2016 | B6: 11 | C6: R. Star | D6: PRD002 | E6: AL01 | F6: Forecast | G6: 2016-11-R. Star-PRD002-AL01-Forecast | H6: 314
A7: 2016 | B7: 11 | C7: R. Star | D7: POT002 | E7: NC01 | F7: Actual | G7: 2016-11-R. Star-POT002-NC01-Actual | H7: 135
A8: 2015 | B8: 6 | C8: P. Buck | D8: PRD002 | E8: SD01 | F8: Actual | G8: 2015-6-P. Buck-PRD002-SD01-Actual | H8: 383
A9: 2015 | B9: 7 | C9: J. Lennon | D9: JKL001 | E9: PA01 | F9: Forecast | G9: 2015-7-J. Lennon-JKL001-PA01-Forecast | H9: 77
A10: 2016 | B10: 4 | C10: C. Underwood | D10: POT001 | E10: AL01 | F10: Actual | G10: 2016-4-C. Underwood-POT001-AL01-Actual | H10: 157
A11: 2016 | B11: 2 | C11: J. Lennon | D11: ASL002 | E11: MN01 | F11: Forecast | G11: 2016-2-J. Lennon-ASL002-MN01-Forecast | H11: 57
A12: 2016 | B12: 10 | C12: P. Buck | D12: JKL001 | E12: PA01 | F12: Actual | G12: 2016-10-P. Buck-JKL001-PA01-Actual | H12: 76
A13: 2015 | B13: 2 | C13: R. Star | D13: DFG001 | E13: SD01 | F13: Forecast | G13: 2015-2-R. Star-DFG001-SD01-Forecast | H13: 239
A14: 2016 | B14: 10 | C14: B. Paisley | D14: POT001 | E14: AL01 | F14: Actual | G14: 2016-10-B. Paisley-POT001-AL01-Actual | H14: 76
A15: 2015 | B15: 9 | C15: M. Stipe | D15: POT002 | E15: AK01 | F15: Forecast | G15: 2015-9-M. Stipe-POT002-AK01-Forecast | H15: 198
A16: 2015 | B16: 5 | C16: B. Paisley | D16: JKL001 | E16: CA01 | F16: Actual | G16: 2015-5-B. Paisley-JKL001-CA01-Actual | H16: 224
A17: 2015 | B17: 5 | C17: S. Crow | D17: POT001 | E17: CA01 | F17: Actual | G17: 2015-5-S. Crow-POT001-CA01-Actual | H17: 82
A18: 2014 | B18: 2 | C18: B. Paisley | D18: ASL001 | E18: LA01 | F18: Forecast | G18: 2014-2-B. Paisley-ASL001-LA01-Forecast | H18: 340
A19: 2015 | B19: 4 | C19: B. Paisley | D19: JKL001 | E19: PA01 | F19: Forecast | G19: 2015-4-B. Paisley-JKL001-PA01-Forecast | H19: 204
A20: 2015 | B20: 12 | C20: R. Star | D20: POT001 | E20: PA01 | F20: Actual | G20: 2015-12-R. Star-POT001-PA01-Actual | H20: 329
A21: 2014 | B21: 8 | C21: B. Paisley | D21: PRD002 | E21: AK01 | F21: Forecast | G21: 2014-8-B. Paisley-PRD002-AK01-Forecast | H21: 162
A22: 2015 | B22: 2 | C22: P. Buck | D22: ASL001 | E22: AL01 | F22: Actual | G22: 2015-2-P. Buck-ASL001-AL01-Actual | H22: 492
A23: 2015 | B23: 8 | C23: M. Stipe | D23: POT001 | E23: CA01 | F23: Actual | G23: 2015-8-M. Stipe-POT001-CA01-Actual | H23: 304
A24: 2015 | B24: 11 | C24: P. Buck | D24: JKL001 | E24: CA01 | F24: Actual | G24: 2015-11-P. Buck-JKL001-CA01-Actual | H24: 132
A25: 2014 | B25: 9 | C25: B. Paisley | D25: ASL001 | E25: AK01 | F25: Actual | G25: 2014-9-B. Paisley-ASL001-AK01-Actual | H25: 70
A26: 2015 | B26: 6 | C26: M. Stipe | D26: ASL001 | E26: LA01 | F26: Actual | G26: 2015-6-M. Stipe-ASL001-LA01-Actual | H26: 456
A27: 2014 | B27: 12 | C27: J. Lennon | D27: JKL001 | E27: SD01 | F27: Actual | G27: 2014-12-J. Lennon-JKL001-SD01-Actual | H27: 131
A28: 2015 | B28: 4 | C28: B. Shelton | D28: POT002 | E28: CA01 | F28: Forecast | G28: 2015-4-B. Shelton-POT002-CA01-Forecast | H28: 352
A29: 2015 | B29: 2 | C29: R. Star | D29: ASL001 | E29: MN01 | F29: Actual | G29: 2015-2-R. Star-ASL001-MN01-Actual | H29: 492
A30: 2016 | B30: 5 | C30: J. McVie | D30: PRD001 | E30: VA01 | F30: Forecast | G30: 2016-5-J. McVie-PRD001-VA01-Forecast | H30: 86
A31: 2015 | B31: 5 | C31: M. Stipe | D31: POT001 | E31: SD01 | F31: Forecast | G31: 2015-5-M. Stipe-POT001-SD01-Forecast | H31: 240
A32: 2016 | B32: 3 | C32: M.Mills | D32: PRD002 | E32: AL01 | F32: Forecast | G32: 2016-3-M.Mills-PRD002-AL01-Forecast | H32: 170
A33: 2015 | B33: 4 | C33: S. Crow | D33: POT001 | E33: CA01 | F33: Forecast | G33: 2015-4-S. Crow-POT001-CA01-Forecast | H33: 313
A34: 2015 | B34: 5 | C34: M.Mills | D34: ASL001 | E34: VA01 | F34: Forecast | G34: 2015-5-M.Mills-ASL001-VA01-Forecast | H34: 283
A35: 2014 | B35: 2 | C35: C. Underwood | D35: POT001 | E35: MN01 | F35: Actual | G35: 2014-2-C. Underwood-POT001-MN01-Actual | H35: 328
A36: 2015 | B36: 11 | C36: R. Star | D36: JKL001 | E36: NC01 | F36: Actual | G36: 2015-11-R. Star-JKL001-NC01-Actual | H36: 284
A37: 2015 | B37: 3 | C37: R. Star | D37: ASL003 | E37: AL01 | F37: Actual | G37: 2015-3-R. Star-ASL003-AL01-Actual | H37: 255
A38: 2015 | B38: 5 | C38: P. Buck | D38: DFG001 | E38: PA01 | F38: Forecast | G38: 2015-5-P. Buck-DFG001-PA01-Forecast | H38: 175
A39: 2015 | B39: 10 | C39: M.Mills | D39: ASL002 | E39: LA01 | F39: Actual | G39: 2015-10-M.Mills-ASL002-LA01-Actual | H39: 158
A40: 2016 | B40: 11 | C40: J. McVie | D40: PRD001 | E40: AL01 | F40: Forecast | G40: 2016-11-J. McVie-PRD001-AL01-Forecast | H40: 85
A41: 2015 | B41: 1 | C41: M.Mills | D41: JKL001 | E41: LA01 | F41: Actual | G41: 2015-1-M.Mills-JKL001-LA01-Actual | H41: 87
A42: 2015 | B42: 9 | C42: J. McVie | D42: POT002 | E42: SD01 | F42: Actual | G42: 2015-9-J. McVie-POT002-SD01-Actual | H42: 268
A43: 2014 | B43: 12 | C43: B. Shelton | D43: ASL001 | E43: NC01 | F43: Forecast | G43: 2014-12-B. Shelton-ASL001-NC01-Forecast | H43: 74
A44: 2016 | B44: 7 | C44: C. Underwood | D44: PRD002 | E44: MN01 | F44: Forecast | G44: 2016-7-C. Underwood-PRD002-MN01-Forecast | H44: 414
A45: 2015 | B45: 12 | C45: B. Shelton | D45: ASL001 | E45: MN01 | F45: Actual | G45: 2015-12-B. Shelton-ASL001-MN01-Actual | H45: 132
A46: 2014 | B46: 4 | C46: P. Buck | D46: PRD002 | E46: LA01 | F46: Actual | G46: 2014-4-P. Buck-PRD002-LA01-Actual | H46: 170
A47: 2016 | B47: 8 | C47: B. Shelton | D47: POT002 | E47: CA01 | F47: Actual | G47: 2016-8-B. Shelton-POT002-CA01-Actual | H47: 289
A48: 2015 | B48: 10 | C48: C. Underwood | D48: PRD001 | E48: AK01 | F48: Forecast | G48: 2015-10-C. Underwood-PRD001-AK01-Forecast | H48: 88
A49: 2015 | B49: 7 | C49: J. McVie | D49: POT002 | E49: NC01 | F49: Forecast | G49: 2015-7-J. McVie-POT002-NC01-Forecast | H49: 141
A50: 2015 | B50: 9 | C50: M.Mills | D50: POT001 | E50: NC01 | F50: Actual | G50: 2015-9-M.Mills-POT001-NC01-Actual | H50: 492
A51: 2014 | B51: 6 | C51: J. Lennon | D51: JKL001 | E51: CA01 | F51: Actual | G51: 2014-6-J. Lennon-JKL001-CA01-Actual | H51: 79
A52: 2014 | B52: 5 | C52: B. Paisley | D52: ASL002 | E52: SD01 | F52: Forecast | G52: 2014-5-B. Paisley-ASL002-SD01-Forecast | H52: 152
A53: 2015 | B53: 11 | C53: B. Shelton | D53: ASL003 | E53: MN01 | F53: Forecast | G53: 2015-11-B. Shelton-ASL003-MN01-Forecast | H53: 303
A54: 2015 | B54: 11 | C54: C. Underwood | D54: JKL001 | E54: MN01 | F54: Forecast | G54: 2015-11-C. Underwood-JKL001-MN01-Forecast | H54: 235
A55: 2014 | B55: 11 | C55: P. Buck | D55: DFG001 | E55: PA01 | F55: Actual | G55: 2014-11-P. Buck-DFG001-PA01-Actual | H55: 62
A56: 2015 | B56: 9 | C56: R. Star | D56: DFG001 | E56: SD01 | F56: Actual | G56: 2015-9-R. Star-DFG001-SD01-Actual | H56: 115
A57: 2015 | B57: 7 | C57: P. Buck | D57: ASL003 | E57: SD01 | F57: Actual | G57: 2015-7-P. Buck-ASL003-SD01-Actual | H57: 389
A58: 2015 | B58: 7 | C58: M.Mills | D58: PRD001 | E58: SD01 | F58: Actual | G58: 2015-7-M.Mills-PRD001-SD01-Actual | H58: 351
A59: 2015 | B59: 5 | C59: C. Underwood | D59: PRD002 | E59: AL01 | F59: Actual | G59: 2015-5-C. Underwood-PRD002-AL01-Actual | H59: 240
A60: 2015 | B60: 11 | C60: R. Star | D60: ASL001 | E60: LA01 | F60: Actual | G60: 2015-11-R. Star-ASL001-LA01-Actual | H60: 290
A61: 2015 | B61: 12 | C61: J. Lennon | D61: POT001 | E61: MN01 | F61: Actual | G61: 2015-12-J. Lennon-POT001-MN01-Actual | H61: 326
A62: 2016 | B62: 4 | C62: C. Underwood | D62: ASL002 | E62: LA01 | F62: Forecast | G62: 2016-4-C. Underwood-ASL002-LA01-Forecast | H62: 159
A63: 2014 | B63: 10 | C63: M.Mills | D63: JKL001 | E63: LA01 | F63: Forecast | G63: 2014-10-M.Mills-JKL001-LA01-Forecast | H63: 168
A64: 2015 | B64: 5 | C64: M. Stipe | D64: ASL003 | E64: CA01 | F64: Actual | G64: 2015-5-M. Stipe-ASL003-CA01-Actual | H64: 162
A65: 2014 | B65: 7 | C65: B. Paisley | D65: ASL002 | E65: LA01 | F65: Actual | G65: 2014-7-B. Paisley-ASL002-LA01-Actual | H65: 151
A66: 2014 | B66: 10 | C66: P. Buck | D66: ASL001 | E66: AL01 | F66: Forecast | G66: 2014-10-P. Buck-ASL001-AL01-Forecast | H66: 72
A67: 2015 | B67: 5 | C67: P. Buck | D67: ASL001 | E67: MN01 | F67: Actual | G67: 2015-5-P. Buck-ASL001-MN01-Actual | H67: 480
A68: 2015 | B68: 4 | C68: M. Stipe | D68: POT002 | E68: VA01 | F68: Actual | G68: 2015-4-M. Stipe-POT002-VA01-Actual | H68: 350
A69: 2014 | B69: 9 | C69: M. Stipe | D69: POT001 | E69: AL01 | F69: Forecast | G69: 2014-9-M. Stipe-POT001-AL01-Forecast | H69: 233
A70: 2014 | B70: 10 | C70: J. Lennon | D70: ASL003 | E70: PA01 | F70: Forecast | G70: 2014-10-J. Lennon-ASL003-PA01-Forecast | H70: 412
A71: 2015 | B71: 11 | C71: J. McVie | D71: DFG001 | E71: SD01 | F71: Actual | G71: 2015-11-J. McVie-DFG001-SD01-Actual | H71: 58
A72: 2015 | B72: 9 | C72: C. Underwood | D72: POT002 | E72: AK01 | F72: Forecast | G72: 2015-9-C. Underwood-POT002-AK01-Forecast | H72: 72
A73: 2015 | B73: 12 | C73: J. Lennon | D73: JKL001 | E73: LA01 | F73: Actual | G73: 2015-12-J. Lennon-JKL001-LA01-Actual | H73: 188
A74: 2015 | B74: 8 | C74: M.Mills | D74: POT002 | E74: MN01 | F74: Actual | G74: 2015-8-M.Mills-POT002-MN01-Actual | H74: 271
A75: 2015 | B75: 11 | C75: J. Lennon | D75: PRD002 | E75: MN01 | F75: Forecast | G75: 2015-11-J. Lennon-PRD002-MN01-Forecast | H75: 499
A76: 2016 | B76: 5 | C76: R. Star | D76: ASL003 | E76: AK01 | F76: Forecast | G76: 2016-5-R. Star-ASL003-AK01-Forecast | H76: 367
A77: 2015 | B77: 3 | C77: P. Buck | D77: JKL001 | E77: SD01 | F77: Actual | G77: 2015-3-P. Buck-JKL001-SD01-Actual | H77: 306
A78: 2014 | B78: 9 | C78: B. Shelton | D78: POT002 | E78: SD01 | F78: Actual | G78: 2014-9-B. Shelton-POT002-SD01-Actual | H78: 211
A79: 2015 | B79: 2 | C79: C. Underwood | D79: PRD002 | E79: PA01 | F79: Actual | G79: 2015-2-C. Underwood-PRD002-PA01-Actual | H79: 415
A80: 2015 | B80: 3 | C80: R. Star | D80: JKL001 | E80: NC01 | F80: Forecast | G80: 2015-3-R. Star-JKL001-NC01-Forecast | H80: 151
A81: 2016 | B81: 5 | C81: M.Mills | D81: ASL001 | E81: CA01 | F81: Actual | G81: 2016-5-M.Mills-ASL001-CA01-Actual | H81: 64
A82: 2015 | B82: 2 | C82: M.Mills | D82: POT002 | E82: VA01 | F82: Actual | G82: 2015-2-M.Mills-POT002-VA01-Actual | H82: 134
A83: 2016 | B83: 11 | C83: R. Star | D83: POT001 | E83: AK01 | F83: Actual | G83: 2016-11-R. Star-POT001-AK01-Actual | H83: 303
A84: 2015 | B84: 2 | C84: M. Stipe | D84: ASL001 | E84: SD01 | F84: Forecast | G84: 2015-2-M. Stipe-ASL001-SD01-Forecast | H84: 268
A85: 2015 | B85: 2 | C85: S. Crow | D85: POT001 | E85: SD01 | F85: Forecast | G85: 2015-2-S. Crow-POT001-SD01-Forecast | H85: 242
A86: 2015 | B86: 5 | C86: J. Lennon | D86: ASL002 | E86: CA01 | F86: Forecast | G86: 2015-5-J. Lennon-ASL002-CA01-Forecast | H86: 370
A87: 2016 | B87: 6 | C87: P. Buck | D87: PRD002 | E87: AK01 | F87: Forecast | G87: 2016-6-P. Buck-PRD002-AK01-Forecast | H87: 158
A88: 2016 | B88: 11 | C88: J. Lennon | D88: JKL001 | E88: MN01 | F88: Forecast | G88: 2016-11-J. Lennon-JKL001-MN01-Forecast | H88: 107
A89: 2015 | B89: 10 | C89: B. Shelton | D89: JKL001 | E89: AL01 | F89: Forecast | G89: 2015-10-B. Shelton-JKL001-AL01-Forecast | H89: 151
A90: 2016 | B90: 11 | C90: C. Underwood | D90: POT002 | E90: AL01 | F90: Actual | G90: 2016-11-C. Underwood-POT002-AL01-Actual | H90: 223
A91: 2014 | B91: 6 | C91: S. Crow | D91: DFG001 | E91: AL01 | F91: Forecast | G91: 2014-6-S. Crow-DFG001-AL01-Forecast | H91: 59
A92: 2015 | B92: 9 | C92: M. Stipe | D92: ASL002 | E92: VA01 | F92: Actual | G92: 2015-9-M. Stipe-ASL002-VA01-Actual | H92: 91
A93: 2014 | B93: 9 | C93: B. Paisley | D93: POT002 | E93: MN01 | F93: Actual | G93: 2014-9-B. Paisley-POT002-MN01-Actual | H93: 278
A94: 2015 | B94: 10 | C94: J. McVie | D94: ASL003 | E94: PA01 | F94: Forecast | G94: 2015-10-J. McVie-ASL003-PA01-Forecast | H94: 281
A95: 2015 | B95: 11 | C95: R. Star | D95: ASL001 | E95: LA01 | F95: Forecast | G95: 2015-11-R. Star-ASL001-LA01-Forecast | H95: 491
A96: 2015 | B96: 9 | C96: C. Underwood | D96: ASL003 | E96: MN01 | F96: Actual | G96: 2015-9-C. Underwood-ASL003-MN01-Actual | H96: 189
A97: 2016 | B97: 1 | C97: J. McVie | D97: PRD002 | E97: AK01 | F97: Forecast | G97: 2016-1-J. McVie-PRD002-AK01-Forecast | H97: 71
A98: 2016 | B98: 3 | C98: S. Crow | D98: PRD001 | E98: AK01 | F98: Actual | G98: 2016-3-S. Crow-PRD001-AK01-Actual | H98: 91
A99: 2014 | B99: 7 | C99: M. Stipe | D99: ASL001 | E99: CA01 | F99: Actual | G99: 2014-7-M. Stipe-ASL001-CA01-Actual | H99: 74
A100: 2015 | B100: 10 | C100: B. Shelton | D100: ASL002 | E100: NC01 | F100: Forecast | G100: 2015-10-B. Shelton-ASL002-NC01-Forecast | H100: 264
A101: 2015 | B101: 9 | C101: R. Star | D101: ASL001 | E101: AL01 | F101: Actual | G101: 2015-9-R. Star-ASL001-AL01-Actual | H101: 73
A102: 2014 | B102: 12 | C102: M. Stipe | D102: PRD001 | E102: AK01 | F102: Forecast | G102: 2014-12-M. Stipe-PRD001-AK01-Forecast | H102: 175
A103: 2014 | B103: 8 | C103: C. Underwood | D103: ASL002 | E103: PA01 | F103: Forecast | G103: 2014-8-C. Underwood-ASL002-PA01-Forecast | H103: 135
A104: 2015 | B104: 1 | C104: C. Underwood | D104: POT002 | E104: CA01 | F104: Actual | G104: 2015-1-C. Underwood-POT002-CA01-Actual | H104: 140
A105: 2014 | B105: 8 | C105: S. Crow | D105: ASL002 | E105: CA01 | F105: Forecast | G105: 2014-8-S. Crow-ASL002-CA01-Forecast | H105: 202
A106: 2015 | B106: 3 | C106: M.Mills | D106: JKL001 | E106: PA01 | F106: Actual | G106: 2015-3-M.Mills-JKL001-PA01-Actual | H106: 132
A107: 2014 | B107: 5 | C107: M. Stipe | D107: POT001 | E107: PA01 | F107: Forecast | G107: 2014-5-M. Stipe-POT001-PA01-Forecast | H107: 385
A108: 2015 | B108: 8 | C108: M. Stipe | D108: ASL002 | E108: CA01 | F108: Actual | G108: 2015-8-M. Stipe-ASL002-CA01-Actual | H108: 247
A109: 2014 | B109: 3 | C109: J. Lennon | D109: ASL003 | E109: AL01 | F109: Forecast | G109: 2014-3-J. Lennon-ASL003-AL01-Forecast | H109: 175
A110: 2016 | B110: 8 | C110: S. Crow | D110: JKL001 | E110: LA01 | F110: Actual | G110: 2016-8-S. Crow-JKL001-LA01-Actual | H110: 48
A111: 2016 | B111: 12 | C111: B. Paisley | D111: ASL003 | E111: CA01 | F111: Actual | G111: 2016-12-B. Paisley-ASL003-CA01-Actual | H111: 114
A112: 2015 | B112: 1 | C112: B. Shelton | D112: JKL001 | E112: NC01 | F112: Forecast | G112: 2015-1-B. Shelton-JKL001-NC01-Forecast | H112: 81
A113: 2016 | B113: 4 | C113: B. Paisley | D113: ASL002 | E113: PA01 | F113: Actual | G113: 2016-4-B. Paisley-ASL002-PA01-Actual | H113: 275
A114: 2016 | B114: 11 | C114: P. Buck | D114: PRD002 | E114: NC01 | F114: Forecast | G114: 2016-11-P. Buck-PRD002-NC01-Forecast | H114: 165
A115: 2015 | B115: 4 | C115: P. Buck | D115: ASL002 | E115: MN01 | F115: Actual | G115: 2015-4-P. Buck-ASL002-MN01-Actual | H115: 196
A116: 2015 | B116: 10 | C116: B. Paisley | D116: PRD002 | E116: MN01 | F116: Actual | G116: 2015-10-B. Paisley-PRD002-MN01-Actual | H116: 496
A117: 2014 | B117: 2 | C117: M. Stipe | D117: POT002 | E117: SD01 | F117: Actual | G117: 2014-2-M. Stipe-POT002-SD01-Actual | H117: 138
A118: 2014 | B118: 1 | C118: S. Crow | D118: ASL001 | E118: AK01 | F118: Forecast | G118: 2014-1-S. Crow-ASL001-AK01-Forecast | H118: 66
A119: 2015 | B119: 11 | C119: P. Buck | D119: PRD002 | E119: PA01 | F119: Actual | G119: 2015-11-P. Buck-PRD002-PA01-Actual | H119: 498
A120: 2015 | B120: 3 | C120: P. Buck | D120: POT002 | E120: AL01 | F120: Actual | G120: 2015-3-P. Buck-POT002-AL01-Actual | H120: 520
A121: 2015 | B121: 12 | C121: R. Star | D121: ASL001 | E121: MN01 | F121: Forecast | G121: 2015-12-R. Star-ASL001-MN01-Forecast | H121: 75
A122: 2014 | B122: 9 | C122: P. Buck | D122: PRD002 | E122: NC01 | F122: Actual | G122: 2014-9-P. Buck-PRD002-NC01-Actual | H122: 245
A123: 2015 | B123: 4 | C123: P. Buck | D123: PRD002 | E123: SD01 | F123: Actual | G123: 2015-4-P. Buck-PRD002-SD01-Actual | H123: 241
A124: 2016 | B124: 1 | C124: R. Star | D124: POT002 | E124: AL01 | F124: Actual | G124: 2016-1-R. Star-POT002-AL01-Actual | H124: 135
A125: 2014 | B125: 2 | C125: C. Underwood | D125: ASL003 | E125: AL01 | F125: Forecast | G125: 2014-2-C. Underwood-ASL003-AL01-Forecast | H125: 167
A126: 2014 | B126: 6 | C126: J. Lennon | D126: POT001 | E126: PA01 | F126: Actual | G126: 2014-6-J. Lennon-POT001-PA01-Actual | H126: 307
A127: 2014 | B127: 10 | C127: M.Mills | D127: PRD002 | E127: CA01 | F127: Actual | G127: 2014-10-M.Mills-PRD002-CA01-Actual | H127: 398
A128: 2015 | B128: 8 | C128: J. Lennon | D128: DFG001 | E128: CA01 | F128: Forecast | G128: 2015-8-J. Lennon-DFG001-CA01-Forecast | H128: 105
A129: 2014 | B129: 6 | C129: J. Lennon | D129: ASL003 | E129: LA01 | F129: Forecast | G129: 2014-6-J. Lennon-ASL003-LA01-Forecast | H129: 132
A130: 2014 | B130: 3 | C130: M.Mills | D130: ASL001 | E130: LA01 | F130: Actual | G130: 2014-3-M.Mills-ASL001-LA01-Actual | H130: 60
A131: 2016 | B131: 2 | C131: R. Star | D131: ASL001 | E131: NC01 | F131: Forecast | G131: 2016-2-R. Star-ASL001-NC01-Forecast | H131: 202
A132: 2015 | B132: 2 | C132: S. Crow | D132: ASL001 | E132: AL01 | F132: Actual | G132: 2015-2-S. Crow-ASL001-AL01-Actual | H132: 140
A133: 2014 | B133: 9 | C133: J. Lennon | D133: PRD002 | E133: NC01 | F133: Forecast | G133: 2014-9-J. Lennon-PRD002-NC01-Forecast | H133: 570
A134: 2016 | B134: 9 | C134: J. McVie | D134: POT001 | E134: SD01 | F134: Actual | G134: 2016-9-J. McVie-POT001-SD01-Actual | H134: 80
A135: 2015 | B135: 8 | C135: M.Mills | D135: ASL002 | E135: MN01 | F135: Forecast | G135: 2015-8-M.Mills-ASL002-MN01-Forecast | H135: 168
A136: 2015 | B136: 3 | C136: C. Underwood | D136: POT002 | E136: AL01 | F136: Forecast | G136: 2015-3-C. Underwood-POT002-AL01-Forecast | H136: 421
A137: 2014 | B137: 4 | C137: P. Buck | D137: ASL001 | E137: CA01 | F137: Forecast | G137: 2014-4-P. Buck-ASL001-CA01-Forecast | H137: 68
A138: 2016 | B138: 7 | C138: R. Star | D138: ASL003 | E138: MN01 | F138: Forecast | G138: 2016-7-R. Star-ASL003-MN01-Forecast | H138: 303
A139: 2016 | B139: 9 | C139: R. Star | D139: ASL002 | E139: LA01 | F139: Actual | G139: 2016-9-R. Star-ASL002-LA01-Actual | H139: 115
A140: 2015 | B140: 9 | C140: M.Mills | D140: PRD002 | E140: VA01 | F140: Actual | G140: 2015-9-M.Mills-PRD002-VA01-Actual | H140: 409
A141: 2014 | B141: 5 | C141: M. Stipe | D141: DFG001 | E141: LA01 | F141: Actual | G141: 2014-5-M. Stipe-DFG001-LA01-Actual | H141: 51
A142: 2015 | B142: 8 | C142: J. Lennon | D142: PRD002 | E142: MN01 | F142: Actual | G142: 2015-8-J. Lennon-PRD002-MN01-Actual | H142: 396
A143: 2015 | B143: 2 | C143: B. Shelton | D143: ASL003 | E143: CA01 | F143: Actual | G143: 2015-2-B. Shelton-ASL003-CA01-Actual | H143: 303
A144: 2015 | B144: 5 | C144: R. Star | D144: ASL002 | E144: PA01 | F144: Actual | G144: 2015-5-R. Star-ASL002-PA01-Actual | H144: 265
A145: 2015 | B145: 10 | C145: B. Paisley | D145: POT002 | E145: AK01 | F145: Forecast | G145: 2015-10-B. Paisley-POT002-AK01-Forecast | H145: 156
A146: 2014 | B146: 11 | C146: B. Shelton | D146: PRD001 | E146: MN01 | F146: Forecast | G146: 2014-11-B. Shelton-PRD001-MN01-Forecast | H146: 187
A147: 2015 | B147: 4 | C147: M.Mills | D147: PRD002 | E147: SD01 | F147: Actual | G147: 2015-4-M.Mills-PRD002-SD01-Actual | H147: 157
A148: 2015 | B148: 6 | C148: J. McVie | D148: JKL001 | E148: SD01 | F148: Actual | G148: 2015-6-J. McVie-JKL001-SD01-Actual | H148: 81
A149: 2016 | B149: 3 | C149: R. Star | D149: ASL003 | E149: MN01 | F149: Actual | G149: 2016-3-R. Star-ASL003-MN01-Actual | H149: 126
A150: 2015 | B150: 10 | C150: C. Underwood | D150: JKL001 | E150: CA01 | F150: Actual | G150: 2015-10-C. Underwood-JKL001-CA01-Actual | H150: 157
A151: 2015 | B151: 8 | C151: J. Lennon | D151: POT001 | E151: AL01 | F151: Actual | G151: 2015-8-J. Lennon-POT001-AL01-Actual | H151: 559
A152: 2016 | B152: 11 | C152: R. Star | D152: POT001 | E152: LA01 | F152: Actual | G152: 2016-11-R. Star-POT001-LA01-Actual | H152: 244
A153: 2014 | B153: 3 | C153: P. Buck | D153: POT002 | E153: PA01 | F153: Actual | G153: 2014-3-P. Buck-POT002-PA01-Actual | H153: 127
A154: 2015 | B154: 6 | C154: P. Buck | D154: PRD001 | E154: MN01 | F154: Actual | G154: 2015-6-P. Buck-PRD001-MN01-Actual | H154: 544
A155: 2016 | B155: 8 | C155: M.Mills | D155: ASL001 | E155: LA01 | F155: Actual | G155: 2016-8-M.Mills-ASL001-LA01-Actual | H155: 287
A156: 2014 | B156: 6 | C156: J. Lennon | D156: PRD002 | E156: PA01 | F156: Actual | G156: 2014-6-J. Lennon-PRD002-PA01-Actual | H156: 237
A157: 2014 | B157: 4 | C157: C. Underwood | D157: ASL001 | E157: SD01 | F157: Forecast | G157: 2014-4-C. Underwood-ASL001-SD01-Forecast | H157: 77
A158: 2016 | B158: 5 | C158: S. Crow | D158: POT002 | E158: AL01 | F158: Forecast | G158: 2016-5-S. Crow-POT002-AL01-Forecast | H158: 227
A159: 2015 | B159: 8 | C159: M.Mills | D159: ASL002 | E159: SD01 | F159: Forecast | G159: 2015-8-M.Mills-ASL002-SD01-Forecast | H159: 262
A160: 2016 | B160: 7 | C160: C. Underwood | D160: ASL003 | E160: NC01 | F160: Forecast | G160: 2016-7-C. Underwood-ASL003-NC01-Forecast | H160: 244
A161: 2016 | B161: 5 | C161: B. Shelton | D161: DFG001 | E161: SD01 | F161: Actual | G161: 2016-5-B. Shelton-DFG001-SD01-Actual | H161: 179
A162: 2016 | B162: 1 | C162: M. Stipe | D162: POT001 | E162: AL01 | F162: Forecast | G162: 2016-1-M. Stipe-POT001-AL01-Forecast | H162: 230
A163: 2015 | B163: 4 | C163: B. Paisley | D163: ASL003 | E163: PA01 | F163: Forecast | G163: 2015-4-B. Paisley-ASL003-PA01-Forecast | H163: 179
A164: 2014 | B164: 7 | C164: B. Paisley | D164: ASL002 | E164: MN01 | F164: Forecast | G164: 2014-7-B. Paisley-ASL002-MN01-Forecast | H164: 372
A165: 2014 | B165: 5 | C165: C. Underwood | D165: POT001 | E165: SD01 | F165: Actual | G165: 2014-5-C. Underwood-POT001-SD01-Actual | H165: 148
A166: 2016 | B166: 8 | C166: P. Buck | D166: POT001 | E166: SD01 | F166: Forecast | G166: 2016-8-P. Buck-POT001-SD01-Forecast | H166: 316
A167: 2015 | B167: 3 | C167: P. Buck | D167: POT002 | E167: AK01 | F167: Forecast | G167: 2015-3-P. Buck-POT002-AK01-Forecast | H167: 357
A168: 2014 | B168: 1 | C168: C. Underwood | D168: JKL001 | E168: LA01 | F168: Actual | G168: 2014-1-C. Underwood-JKL001-LA01-Actual | H168: 73
A169: 2015 | B169: 8 | C169: J. Lennon | D169: ASL003 | E169: PA01 | F169: Actual | G169: 2015-8-J. Lennon-ASL003-PA01-Actual | H169: 429
A170: 2015 | B170: 8 | C170: P. Buck | D170: ASL003 | E170: AK01 | F170: Actual | G170: 2015-8-P. Buck-ASL003-AK01-Actual | H170: 316
A171: 2015 | B171: 2 | C171: R. Star | D171: ASL003 | E171: AL01 | F171: Actual | G171: 2015-2-R. Star-ASL003-AL01-Actual | H171: 301
A172: 2015 | B172: 8 | C172: M.Mills | D172: ASL003 | E172: MN01 | F172: Actual | G172: 2015-8-M.Mills-ASL003-MN01-Actual | H172: 421
A173: 2014 | B173: 4 | C173: B. Shelton | D173: PRD002 | E173: PA01 | F173: Actual | G173: 2014-4-B. Shelton-PRD002-PA01-Actual | H173: 72
A174: 2014 | B174: 7 | C174: S. Crow | D174: JKL001 | E174: SD01 | F174: Actual | G174: 2014-7-S. Crow-JKL001-SD01-Actual | H174: 49
A175: 2015 | B175: 5 | C175: R. Star | D175: ASL002 | E175: AL01 | F175: Actual | G175: 2015-5-R. Star-ASL002-AL01-Actual | H175: 357
A176: 2015 | B176: 2 | C176: J. Lennon | D176: DFG001 | E176: PA01 | F176: Actual | G176: 2015-2-J. Lennon-DFG001-PA01-Actual | H176: 182
A177: 2015 | B177: 4 | C177: S. Crow | D177: DFG001 | E177: AL01 | F177: Forecast | G177: 2015-4-S. Crow-DFG001-AL01-Forecast | H177: 182
A178: 2015 | B178: 7 | C178: M.Mills | D178: ASL003 | E178: MN01 | F178: Actual | G178: 2015-7-M.Mills-ASL003-MN01-Actual | H178: 281
A179: 2014 | B179: 3 | C179: C. Underwood | D179: PRD001 | E179: AK01 | F179: Forecast | G179: 2014-3-C. Underwood-PRD001-AK01-Forecast | H179: 348
A180: 2015 | B180: 11 | C180: S. Crow | D180: POT001 | E180: LA01 | F180: Forecast | G180: 2015-11-S. Crow-POT001-LA01-Forecast | H180: 249
A181: 2016 | B181: 10 | C181: M. Stipe | D181: ASL002 | E181: SD01 | F181: Actual | G181: 2016-10-M. Stipe-ASL002-SD01-Actual | H181: 102
A182: 2014 | B182: 4 | C182: B. Shelton | D182: POT001 | E182: AK01 | F182: Actual | G182: 2014-4-B. Shelton-POT001-AK01-Actual | H182: 162
A183: 2014 | B183: 5 | C183: P. Buck | D183: POT001 | E183: SD01 | F183: Actual | G183: 2014-5-P. Buck-POT001-SD01-Actual | H183: 156
A184: 2015 | B184: 8 | C184: B. Paisley | D184: PRD002 | E184: AL01 | F184: Forecast | G184: 2015-8-B. Paisley-PRD002-AL01-Forecast | H184: 260
A185: 2014 | B185: 2 | C185: B. Paisley | D185: ASL002 | E185: VA01 | F185: Forecast | G185: 2014-2-B. Paisley-ASL002-VA01-Forecast | H185: 102
A186: 2014 | B186: 3 | C186: M.Mills | D186: POT001 | E186: LA01 | F186: Actual | G186: 2014-3-M.Mills-POT001-LA01-Actual | H186: 305
A187: 2014 | B187: 10 | C187: M. Stipe | D187: ASL002 | E187: AL01 | F187: Actual | G187: 2014-10-M. Stipe-ASL002-AL01-Actual | H187: 156
A188: 2014 | B188: 7 | C188: J. Lennon | D188: JKL001 | E188: AL01 | F188: Forecast | G188: 2014-7-J. Lennon-JKL001-AL01-Forecast | H188: 89
A189: 2015 | B189: 8 | C189: P. Buck | D189: ASL003 | E189: PA01 | F189: Forecast | G189: 2015-8-P. Buck-ASL003-PA01-Forecast | H189: 302
A190: 2015 | B190: 8 | C190: P. Buck | D190: POT002 | E190: LA01 | F190: Forecast | G190: 2015-8-P. Buck-POT002-LA01-Forecast | H190: 554
A191: 2015 | B191: 8 | C191: R. Star | D191: ASL002 | E191: AK01 | F191: Forecast | G191: 2015-8-R. Star-ASL002-AK01-Forecast | H191: 194
A192: 2015 | B192: 4 | C192: P. Buck | D192: POT001 | E192: CA01 | F192: Actual | G192: 2015-4-P. Buck-POT001-CA01-Actual | H192: 682
A193: 2016 | B193: 3 | C193: J. Lennon | D193: PRD001 | E193: SD01 | F193: Forecast | G193: 2016-3-J. Lennon-PRD001-SD01-Forecast | H193: 181
A194: 2016 | B194: 10 | C194: R. Star | D194: PRD002 | E194: AL01 | F194: Actual | G194: 2016-10-R. Star-PRD002-AL01-Actual | H194: 227
A195: 2016 | B195: 8 | C195: M.Mills | D195: ASL003 | E195: AL01 | F195: Actual | G195: 2016-8-M.Mills-ASL003-AL01-Actual | H195: 174
A196: 2015 | B196: 2 | C196: J. McVie | D196: PRD001 | E196: CA01 | F196: Actual | G196: 2015-2-J. McVie-PRD001-CA01-Actual | H196: 454
A197: 2016 | B197: 2 | C197: M.Mills | D197: ASL003 | E197: AK01 | F197: Actual | G197: 2016-2-M.Mills-ASL003-AK01-Actual | H197: 235
A198: 2015 | B198: 3 | C198: M.Mills | D198: DFG001 | E198: LA01 | F198: Forecast | G198: 2015-3-M.Mills-DFG001-LA01-Forecast | H198: 243
A199: 2016 | B199: 5 | C199: M.Mills | D199: PRD001 | E199: VA01 | F199: Forecast | G199: 2016-5-M.Mills-PRD001-VA01-Forecast | H199: 367
A200: 2016 | B200: 5 | C200: R. Star | D200: POT001 | E200: LA01 | F200: Forecast | G200: 2016-5-R. Star-POT001-LA01-Forecast | H200: 564
... 4300 more rows

Sheet Table Unsorted Data - Unique
B1: 2014-1 | C1: 2014-2 | D1: 2014-3 | E1: 2014-4 | F1: 2014-5 | G1: 2014-6 | H1: 2014-7 | I1: 2014-8 | J1: 2014-9 | K1: 2014-10 | L1: 2014-11 | M1: 2014-12 | N1: 2015-1 | O1: 2015-2 | P1: 2015-3 | Q1: 2015-4 | R1: 2015-5 | S1: 2015-6 | T1: 2015-7 | U1: 2015-8 | V1: 2015-9 | W1: 2015-10 | X1: 2015-11 | Y1: 2015-12 | Z1: 2016-1 | AA1: 2016-2 | AB1: 2016-3 | AC1: 2016-4 | AD1: 2016-5 | AE1: 2016-6 | AF1: 2016-7 | AG1: 2016-8 | AH1: 2016-9 | AI1: 2016-10 | AJ1: 2016-11 | AK1: 2016-12
A2: B. Shelton-ASL001-CA01-Actual | B2: 0 | C2: 0 | D2: 282 | E2: 0 | F2: 142 | G2: 147 | H2: 131 | I2: 0 | J2: 137 | K2: 262 | L2: 205 | M2: 0 | N2: 145 | O2: 0 | P2: 212 | Q2: 134 | R2: 347 | S2: 286 | T2: 573 | U2: 217 | V2: 64 | W2: 135 | X2: 145 | Y2: 139 | Z2: 0 | AA2: 208 | AB2: 77 | AC2: 133 | AD2: 0 | AE2: 278 | AF2: 68 | AG2: 206 | AH2: 0 | AI2: 137 | AJ2: 145 | AK2: 60
A3: M. Stipe-POT002-SD01-Actual | B3: 137 | C3: 138 | D3: 147 | E3: 142 | F3: 75 | G3: 130 | H3: 141 | I3: 73 | J3: 71 | K3: 132 | L3: 283 | M3: 0 | N3: 134 | O3: 134 | P3: 267 | Q3: 272 | R3: 220 | S3: 216 | T3: 275 | U3: 208 | V3: 67 | W3: 203 | X3: 421 | Y3: 128 | Z3: 0 | AA3: 65 | AB3: 71 | AC3: 218 | AD3: 73 | AE3: 216 | AF3: 209 | AG3: 138 | AH3: 0 | AI3: 348 | AJ3: 195 | AK3: 0
A4: P. Buck-POT002-AK01-Actual | B4: 0 | C4: 61 | D4: 80 | E4: 0 | F4: 213 | G4: 137 | H4: 62 | I4: 0 | J4: 68 | K4: 0 | L4: 69 | M4: 123 | N4: 69 | O4: 63 | P4: 216 | Q4: 0 | R4: 208 | S4: 0 | T4: 144 | U4: 218 | V4: 146 | W4: 70 | X4: 68 | Y4: 0 | Z4: 0 | AA4: 0 | AB4: 207 | AC4: 62 | AD4: 0 | AE4: 126 | AF4: 70 | AG4: 0 | AH4: 77 | AI4: 65 | AJ4: 78 | AK4: 63
A5: M. Stipe-ASL003-CA01-Forecast | B5: 124 | C5: 235 | D5: 181 | E5: 272 | F5: 185 | G5: 69 | H5: 51 | I5: 170 | J5: 119 | K5: 0 | L5: 0 | M5: 109 | N5: 119 | O5: 186 | P5: 215 | Q5: 246 | R5: 305 | S5: 421 | T5: 179 | U5: 292 | V5: 174 | W5: 242 | X5: 225 | Y5: 130 | Z5: 0 | AA5: 67 | AB5: 58 | AC5: 59 | AD5: 120 | AE5: 0 | AF5: 122 | AG5: 129 | AH5: 54 | AI5: 307 | AJ5: 0 | AK5: 59
A6: R. Star-PRD002-AL01-Forecast | B6: 88 | C6: 71 | D6: 336 | E6: 166 | F6: 72 | G6: 0 | H6: 148 | I6: 404 | J6: 0 | K6: 72 | L6: 169 | M6: 0 | N6: 226 | O6: 410 | P6: 569 | Q6: 470 | R6: 0 | S6: 241 | T6: 227 | U6: 398 | V6: 576 | W6: 171 | X6: 250 | Y6: 152 | Z6: 79 | AA6: 162 | AB6: 0 | AC6: 313 | AD6: 231 | AE6: 147 | AF6: 166 | AG6: 162 | AH6: 309 | AI6: 244 | AJ6: 314 | AK6: 79
A7: R. Star-POT002-NC01-Actual | B7: 0 | C7: 148 | D7: 217 | E7: 0 | F7: 74 | G7: 138 | H7: 66 | I7: 136 | J7: 364 | K7: 149 | L7: 367 | M7: 143 | N7: 207 | O7: 207 | P7: 540 | Q7: 348 | R7: 143 | S7: 491 | T7: 210 | U7: 272 | V7: 128 | W7: 497 | X7: 416 | Y7: 301 | Z7: 76 | AA7: 63 | AB7: 70 | AC7: 76 | AD7: 431 | AE7: 208 | AF7: 0 | AG7: 209 | AH7: 353 | AI7: 139 | AJ7: 135 | AK7: 64
A8: P. Buck-PRD002-SD01-Actual | B8: 89 | C8: 161 | D8: 75 | E8: 0 | F8: 153 | G8: 234 | H8: 222 | I8: 76 | J8: 0 | K8: 166 | L8: 79 | M8: 82 | N8: 158 | O8: 492 | P8: 334 | Q8: 241 | R8: 158 | S8: 383 | T8: 87 | U8: 245 | V8: 479 | W8: 559 | X8: 392 | Y8: 161 | Z8: 73 | AA8: 145 | AB8: 164 | AC8: 218 | AD8: 176 | AE8: 84 | AF8: 76 | AG8: 159 | AH8: 78 | AI8: 158 | AJ8: 147 | AK8: 0
A9: J. Lennon-JKL001-PA01-Forecast | B9: 0 | C9: 91 | D9: 198 | E9: 0 | F9: 91 | G9: 81 | H9: 141 | I9: 75 | J9: 136 | K9: 129 | L9: 0 | M9: 127 | N9: 116 | O9: 207 | P9: 225 | Q9: 132 | R9: 241 | S9: 120 | T9: 77 | U9: 93 | V9: 108 | W9: 30 | X9: 115 | Y9: 0 | Z9: 49 | AA9: 31 | AB9: 79 | AC9: 98 | AD9: 47 | AE9: 83 | AF9: 0 | AG9: 82 | AH9: 205 | AI9: 89 | AJ9: 91 | AK9: 42
A10: C. Underwood-POT001-AL01-Actual | B10: 0 | C10: 77 | D10: 80 | E10: 80 | F10: 234 | G10: 246 | H10: 0 | I10: 163 | J10: 0 | K10: 223 | L10: 236 | M10: 0 | N10: 150 | O10: 224 | P10: 334 | Q10: 384 | R10: 405 | S10: 344 | T10: 779 | U10: 494 | V10: 239 | W10: 291 | X10: 238 | Y10: 229 | Z10: 328 | AA10: 166 | AB10: 247 | AC10: 157 | AD10: 147 | AE10: 234 | AF10: 254 | AG10: 247 | AH10: 72 | AI10: 85 | AJ10: 316 | AK10: 0
A11: J. Lennon-ASL002-MN01-Forecast | B11: 97 | C11: 44 | D11: 50 | E11: 60 | F11: 0 | G11: 114 | H11: 153 | I11: 159 | J11: 0 | K11: 195 | L11: 101 | M11: 43 | N11: 54 | O11: 258 | P11: 43 | Q11: 155 | R11: 91 | S11: 252 | T11: 364 | U11: 205 | V11: 198 | W11: 301 | X11: 92 | Y11: 51 | Z11: 85 | AA11: 57 | AB11: 54 | AC11: 155 | AD11: 94 | AE11: 60 | AF11: 0 | AG11: 147 | AH11: 49 | AI11: 101 | AJ11: 0 | AK11: 0
A12: P. Buck-JKL001-PA01-Actual | B12: 0 | C12: 50 | D12: 68 | E12: 92 | F12: 113 | G12: 79 | H12: 86 | I12: 76 | J12: 117 | K12: 31 | L12: 121 | M12: 0 | N12: 134 | O12: 152 | P12: 36 | Q12: 302 | R12: 123 | S12: 289 | T12: 193 | U12: 295 | V12: 128 | W12: 114 | X12: 31 | Y12: 153 | Z12: 31 | AA12: 95 | AB12: 0 | AC12: 163 | AD12: 47 | AE12: 40 | AF12: 0 | AG12: 49 | AH12: 120 | AI12: 76 | AJ12: 158 | AK12: 45
A13: R. Star-DFG001-SD01-Forecast | B13: 60 | C13: 0 | D13: 131 | E13: 188 | F13: 0 | G13: 59 | H13: 135 | I13: 0 | J13: 0 | K13: 58 | L13: 67 | M13: 61 | N13: 50 | O13: 239 | P13: 0 | Q13: 125 | R13: 57 | S13: 123 | T13: 180 | U13: 113 | V13: 178 | W13: 120 | X13: 0 | Y13: 52 | Z13: 57 | AA13: 66 | AB13: 0 | AC13: 182 | AD13: 118 | AE13: 65 | AF13: 179 | AG13: 121 | AH13: 131 | AI13: 52 | AJ13: 64 | AK13: 174
A14: B. Paisley-POT001-AL01-Actual | B14: 89 | C14: 153 | D14: 223 | E14: 307 | F14: 149 | G14: 159 | H14: 169 | I14: 234 | J14: 0 | K14: 170 | L14: 0 | M14: 153 | N14: 0 | O14: 172 | P14: 164 | Q14: 252 | R14: 328 | S14: 496 | T14: 244 | U14: 71 | V14: 400 | W14: 84 | X14: 496 | Y14: 72 | Z14: 0 | AA14: 148 | AB14: 0 | AC14: 152 | AD14: 312 | AE14: 85 | AF14: 232 | AG14: 174 | AH14: 335 | AI14: 76 | AJ14: 79 | AK14: 0
A15: M. Stipe-POT002-AK01-Forecast | B15: 71 | C15: 0 | D15: 65 | E15: 288 | F15: 143 | G15: 67 | H15: 0 | I15: 0 | J15: 79 | K15: 0 | L15: 0 | M15: 0 | N15: 64 | O15: 295 | P15: 155 | Q15: 294 | R15: 64 | S15: 207 | T15: 126 | U15: 0 | V15: 198 | W15: 151 | X15: 71 | Y15: 138 | Z15: 0 | AA15: 273 | AB15: 71 | AC15: 0 | AD15: 0 | AE15: 68 | AF15: 0 | AG15: 0 | AH15: 62 | AI15: 0 | AJ15: 63 | AK15: 0
A16: B. Paisley-JKL001-CA01-Actual | B16: 0 | C16: 35 | D16: 85 | E16: 0 | F16: 131 | G16: 0 | H16: 103 | I16: 120 | J16: 42 | K16: 104 | L16: 150 | M16: 0 | N16: 49 | O16: 198 | P16: 132 | Q16: 154 | R16: 224 | S16: 82 | T16: 108 | U16: 79 | V16: 162 | W16: 115 | X16: 232 | Y16: 112 | Z16: 0 | AA16: 132 | AB16: 79 | AC16: 149 | AD16: 31 | AE16: 183 | AF16: 124 | AG16: 0 | AH16: 199 | AI16: 80 | AJ16: 0 | AK16: 84
A17: S. Crow-POT001-CA01-Actual | B17: 75 | C17: 86 | D17: 155 | E17: 76 | F17: 155 | G17: 74 | H17: 0 | I17: 87 | J17: 0 | K17: 170 | L17: 0 | M17: 78 | N17: 0 | O17: 177 | P17: 0 | Q17: 73 | R17: 82 | S17: 552 | T17: 82 | U17: 0 | V17: 228 | W17: 74 | X17: 218 | Y17: 73 | Z17: 0 | AA17: 0 | AB17: 90 | AC17: 82 | AD17: 0 | AE17: 80 | AF17: 173 | AG17: 71 | AH17: 83 | AI17: 0 | AJ17: 246 | AK17: 90
A18: B. Paisley-ASL001-LA01-Forecast | B18: 0 | C18: 340 | D18: 148 | E18: 68 | F18: 144 | G18: 216 | H18: 128 | I18: 63 | J18: 199 | K18: 61 | L18: 80 | M18: 75 | N18: 72 | O18: 217 | P18: 193 | Q18: 266 | R18: 347 | S18: 285 | T18: 186 | U18: 277 | V18: 364 | W18: 271 | X18: 349 | Y18: 204 | Z18: 0 | AA18: 223 | AB18: 147 | AC18: 231 | AD18: 213 | AE18: 225 | AF18: 275 | AG18: 269 | AH18: 149 | AI18: 262 | AJ18: 145 | AK18: 0
A19: B. Paisley-JKL001-PA01-Forecast | B19: 0 | C19: 122 | D19: 40 | E19: 81 | F19: 144 | G19: 89 | H19: 80 | I19: 41 | J19: 0 | K19: 75 | L19: 40 | M19: 48 | N19: 63 | O19: 208 | P19: 88 | Q19: 204 | R19: 130 | S19: 74 | T19: 167 | U19: 82 | V19: 160 | W19: 167 | X19: 111 | Y19: 102 | Z19: 79 | AA19: 68 | AB19: 0 | AC19: 177 | AD19: 131 | AE19: 231 | AF19: 41 | AG19: 77 | AH19: 44 | AI19: 34 | AJ19: 36 | AK19: 136
A20: R. Star-POT001-PA01-Actual | B20: 157 | C20: 77 | D20: 75 | E20: 248 | F20: 258 | G20: 169 | H20: 228 | I20: 75 | J20: 88 | K20: 330 | L20: 155 | M20: 0 | N20: 77 | O20: 381 | P20: 308 | Q20: 317 | R20: 240 | S20: 335 | T20: 149 | U20: 534 | V20: 144 | W20: 643 | X20: 302 | Y20: 329 | Z20: 0 | AA20: 233 | AB20: 340 | AC20: 0 | AD20: 149 | AE20: 252 | AF20: 77 | AG20: 146 | AH20: 387 | AI20: 395 | AJ20: 245 | AK20: 87
A21: B. Paisley-PRD002-AK01-Forecast | B21: 89 | C21: 263 | D21: 0 | E21: 88 | F21: 154 | G21: 0 | H21: 150 | I21: 162 | J21: 147 | K21: 0 | L21: 90 | M21: 74 | N21: 249 | O21: 70 | P21: 177 | Q21: 250 | R21: 161 | S21: 154 | T21: 162 | U21: 170 | V21: 72 | W21: 73 | X21: 169 | Y21: 158 | Z21: 88 | AA21: 166 | AB21: 142 | AC21: 0 | AD21: 164 | AE21: 71 | AF21: 86 | AG21: 0 | AH21: 0 | AI21: 86 | AJ21: 0 | AK21: 75
A22: P. Buck-ASL001-AL01-Actual | B22: 129 | C22: 218 | D22: 148 | E22: 78 | F22: 201 | G22: 147 | H22: 130 | I22: 294 | J22: 71 | K22: 284 | L22: 414 | M22: 153 | N22: 222 | O22: 492 | P22: 503 | Q22: 259 | R22: 495 | S22: 392 | T22: 351 | U22: 78 | V22: 222 | W22: 425 | X22: 282 | Y22: 68 | Z22: 135 | AA22: 215 | AB22: 297 | AC22: 128 | AD22: 61 | AE22: 145 | AF22: 274 | AG22: 300 | AH22: 73 | AI22: 204 | AJ22: 0 | AK22: 0
A23: M. Stipe-POT001-CA01-Actual | B23: 79 | C23: 168 | D23: 155 | E23: 153 | F23: 0 | G23: 162 | H23: 88 | I23: 74 | J23: 252 | K23: 0 | L23: 314 | M23: 73 | N23: 0 | O23: 304 | P23: 164 | Q23: 404 | R23: 154 | S23: 227 | T23: 159 | U23: 304 | V23: 308 | W23: 166 | X23: 641 | Y23: 75 | Z23: 149 | AA23: 248 | AB23: 77 | AC23: 238 | AD23: 238 | AE23: 149 | AF23: 75 | AG23: 153 | AH23: 245 | AI23: 231 | AJ23: 161 | AK23: 164
A24: P. Buck-JKL001-CA01-Actual | B24: 78 | C24: 129 | D24: 75 | E24: 64 | F24: 123 | G24: 192 | H24: 0 | I24: 0 | J24: 115 | K24: 80 | L24: 83 | M24: 49 | N24: 66 | O24: 206 | P24: 136 | Q24: 30 | R24: 200 | S24: 33 | T24: 114 | U24: 236 | V24: 89 | W24: 172 | X24: 132 | Y24: 0 | Z24: 80 | AA24: 0 | AB24: 206 | AC24: 0 | AD24: 34 | AE24: 125 | AF24: 44 | AG24: 118 | AH24: 0 | AI24: 130 | AJ24: 40 | AK24: 102
A25: B. Paisley-ASL001-AK01-Actual | B25: 0 | C25: 150 | D25: 143 | E25: 63 | F25: 0 | G25: 76 | H25: 0 | I25: 0 | J25: 70 | K25: 219 | L25: 0 | M25: 0 | N25: 134 | O25: 63 | P25: 217 | Q25: 229 | R25: 63 | S25: 66 | T25: 70 | U25: 76 | V25: 127 | W25: 62 | X25: 132 | Y25: 68 | Z25: 0 | AA25: 75 | AB25: 79 | AC25: 61 | AD25: 0 | AE25: 61 | AF25: 79 | AG25: 80 | AH25: 76 | AI25: 205 | AJ25: 0 | AK25: 0
A26: M. Stipe-ASL001-LA01-Actual | B26: 0 | C26: 212 | D26: 0 | E26: 76 | F26: 205 | G26: 72 | H26: 129 | I26: 355 | J26: 0 | K26: 129 | L26: 62 | M26: 61 | N26: 0 | O26: 218 | P26: 75 | Q26: 281 | R26: 637 | S26: 456 | T26: 206 | U26: 274 | V26: 221 | W26: 146 | X26: 436 | Y26: 0 | Z26: 0 | AA26: 200 | AB26: 236 | AC26: 140 | AD26: 78 | AE26: 127 | AF26: 75 | AG26: 150 | AH26: 0 | AI26: 342 | AJ26: 140 | AK26: 0
A27: J. Lennon-JKL001-SD01-Actual | B27: 66 | C27: 0 | D27: 85 | E27: 47 | F27: 82 | G27: 0 | H27: 0 | I27: 65 | J27: 273 | K27: 49 | L27: 104 | M27: 131 | N27: 117 | O27: 197 | P27: 127 | Q27: 425 | R27: 78 | S27: 160 | T27: 157 | U27: 240 | V27: 42 | W27: 0 | X27: 106 | Y27: 47 | Z27: 0 | AA27: 128 | AB27: 39 | AC27: 0 | AD27: 93 | AE27: 0 | AF27: 77 | AG27: 122 | AH27: 69 | AI27: 78 | AJ27: 49 | AK27: 0
A28: B. Shelton-POT002-CA01-Forecast | B28: 0 | C28: 61 | D28: 152 | E28: 143 | F28: 68 | G28: 62 | H28: 0 | I28: 214 | J28: 67 | K28: 77 | L28: 211 | M28: 70 | N28: 147 | O28: 213 | P28: 378 | Q28: 352 | R28: 284 | S28: 578 | T28: 128 | U28: 399 | V28: 428 | W28: 355 | X28: 218 | Y28: 292 | Z28: 0 | AA28: 207 | AB28: 144 | AC28: 61 | AD28: 192 | AE28: 67 | AF28: 64 | AG28: 157 | AH28: 351 | AI28: 224 | AJ28: 72 | AK28: 0
A29: R. Star-ASL001-MN01-Actual | B29: 0 | C29: 72 | D29: 223 | E29: 135 | F29: 207 | G29: 70 | H29: 207 | I29: 67 | J29: 75 | K29: 0 | L29: 77 | M29: 142 | N29: 78 | O29: 492 | P29: 401 | Q29: 420 | R29: 501 | S29: 554 | T29: 674 | U29: 375 | V29: 425 | W29: 233 | X29: 263 | Y29: 0 | Z29: 0 | AA29: 66 | AB29: 147 | AC29: 263 | AD29: 135 | AE29: 0 | AF29: 69 | AG29: 158 | AH29: 146 | AI29: 352 | AJ29: 70 | AK29: 0
A30: J. McVie-PRD001-VA01-Forecast | B30: 0 | C30: 83 | D30: 0 | E30: 0 | F30: 0 | G30: 0 | H30: 0 | I30: 0 | J30: 0 | K30: 0 | L30: 82 | M30: 0 | N30: 0 | O30: 99 | P30: 0 | Q30: 90 | R30: 0 | S30: 94 | T30: 0 | U30: 0 | V30: 0 | W30: 0 | X30: 169 | Y30: 93 | Z30: 0 | AA30: 91 | AB30: 86 | AC30: 0 | AD30: 86 | AE30: 98 | AF30: 0 | AG30: 0 | AH30: 0 | AI30: 0 | AJ30: 0 | AK30: 0
A31: M. Stipe-POT001-SD01-Forecast | B31: 88 | C31: 161 | D31: 237 | E31: 251 | F31: 86 | G31: 157 | H31: 83 | I31: 313 | J31: 0 | K31: 158 | L31: 74 | M31: 81 | N31: 151 | O31: 83 | P31: 231 | Q31: 411 | R31: 240 | S31: 223 | T31: 75 | U31: 243 | V31: 255 | W31: 147 | X31: 382 | Y31: 73 | Z31: 78 | AA31: 90 | AB31: 84 | AC31: 169 | AD31: 255 | AE31: 160 | AF31: 0 | AG31: 0 | AH31: 395 | AI31: 229 | AJ31: 0 | AK31: 0
A32: M.Mills-PRD002-AL01-Forecast | B32: 236 | C32: 157 | D32: 0 | E32: 236 | F32: 87 | G32: 80 | H32: 0 | I32: 237 | J32: 0 | K32: 320 | L32: 159 | M32: 242 | N32: 169 | O32: 238 | P32: 313 | Q32: 168 | R32: 477 | S32: 84 | T32: 579 | U32: 395 | V32: 80 | W32: 244 | X32: 152 | Y32: 148 | Z32: 84 | AA32: 77 | AB32: 170 | AC32: 173 | AD32: 169 | AE32: 88 | AF32: 0 | AG32: 486 | AH32: 0 | AI32: 85 | AJ32: 161 | AK32: 81
A33: S. Crow-POT001-CA01-Forecast | B33: 0 | C33: 75 | D33: 0 | E33: 0 | F33: 0 | G33: 0 | H33: 0 | I33: 0 | J33: 0 | K33: 76 | L33: 155 | M33: 0 | N33: 74 | O33: 228 | P33: 166 | Q33: 313 | R33: 90 | S33: 228 | T33: 80 | U33: 231 | V33: 161 | W33: 155 | X33: 0 | Y33: 78 | Z33: 0 | AA33: 161 | AB33: 250 | AC33: 0 | AD33: 0 | AE33: 0 | AF33: 0 | AG33: 0 | AH33: 0 | AI33: 158 | AJ33: 84 | AK33: 88
A34: M.Mills-ASL001-VA01-Forecast | B34: 60 | C34: 66 | D34: 62 | E34: 76 | F34: 0 | G34: 0 | H34: 144 | I34: 215 | J34: 0 | K34: 202 | L34: 0 | M34: 0 | N34: 0 | O34: 0 | P34: 213 | Q34: 123 | R34: 283 | S34: 0 | T34: 286 | U34: 0 | V34: 151 | W34: 132 | X34: 73 | Y34: 61 | Z34: 0 | AA34: 148 | AB34: 134 | AC34: 150 | AD34: 0 | AE34: 0 | AF34: 153 | AG34: 0 | AH34: 140 | AI34: 0 | AJ34: 146 | AK34: 79
A35: C. Underwood-POT001-MN01-Actual | B35: 77 | C35: 328 | D35: 70 | E35: 167 | F35: 76 | G35: 173 | H35: 169 | I35: 166 | J35: 158 | K35: 219 | L35: 150 | M35: 0 | N35: 72 | O35: 172 | P35: 402 | Q35: 422 | R35: 630 | S35: 718 | T35: 308 | U35: 545 | V35: 241 | W35: 72 | X35: 235 | Y35: 77 | Z35: 78 | AA35: 82 | AB35: 0 | AC35: 173 | AD35: 0 | AE35: 87 | AF35: 158 | AG35: 0 | AH35: 70 | AI35: 228 | AJ35: 72 | AK35: 0
A36: R. Star-JKL001-NC01-Actual | B36: 64 | C36: 114 | D36: 120 | E36: 134 | F36: 0 | G36: 0 | H36: 173 | I36: 31 | J36: 93 | K36: 50 | L36: 0 | M36: 0 | N36: 39 | O36: 160 | P36: 232 | Q36: 83 | R36: 133 | S36: 240 | T36: 113 | U36: 286 | V36: 141 | W36: 195 | X36: 284 | Y36: 47 | Z36: 46 | AA36: 46 | AB36: 89 | AC36: 45 | AD36: 37 | AE36: 76 | AF36: 109 | AG36: 119 | AH36: 0 | AI36: 46 | AJ36: 41 | AK36: 71
A37: R. Star-ASL003-AL01-Actual | B37: 0 | C37: 247 | D37: 186 | E37: 238 | F37: 237 | G37: 51 | H37: 120 | I37: 127 | J37: 184 | K37: 174 | L37: 116 | M37: 69 | N37: 0 | O37: 301 | P37: 255 | Q37: 319 | R37: 295 | S37: 234 | T37: 109 | U37: 224 | V37: 102 | W37: 201 | X37: 168 | Y37: 62 | Z37: 0 | AA37: 116 | AB37: 124 | AC37: 124 | AD37: 227 | AE37: 108 | AF37: 122 | AG37: 58 | AH37: 224 | AI37: 58 | AJ37: 355 | AK37: 0
A38: P. Buck-DFG001-PA01-Forecast | B38: 56 | C38: 52 | D38: 67 | E38: 180 | F38: 53 | G38: 170 | H38: 50 | I38: 169 | J38: 0 | K38: 174 | L38: 61 | M38: 0 | N38: 121 | O38: 118 | P38: 176 | Q38: 165 | R38: 175 | S38: 0 | T38: 270 | U38: 132 | V38: 68 | W38: 64 | X38: 66 | Y38: 65 | Z38: 0 | AA38: 0 | AB38: 0 | AC38: 0 | AD38: 120 | AE38: 61 | AF38: 58 | AG38: 0 | AH38: 59 | AI38: 0 | AJ38: 59 | AK38: 0
A39: M.Mills-ASL002-LA01-Actual | B39: 53 | C39: 104 | D39: 186 | E39: 200 | F39: 186 | G39: 50 | H39: 92 | I39: 139 | J39: 99 | K39: 97 | L39: 120 | M39: 53 | N39: 138 | O39: 349 | P39: 139 | Q39: 154 | R39: 179 | S39: 179 | T39: 154 | U39: 302 | V39: 41 | W39: 158 | X39: 304 | Y39: 154 | Z39: 0 | AA39: 100 | AB39: 106 | AC39: 100 | AD39: 172 | AE39: 0 | AF39: 148 | AG39: 41 | AH39: 238 | AI39: 150 | AJ39: 43 | AK39: 0
A40: J. McVie-PRD001-AL01-Forecast | B40: 0 | C40: 0 | D40: 0 | E40: 171 | F40: 0 | G40: 0 | H40: 81 | I40: 0 | J40: 0 | K40: 83 | L40: 0 | M40: 81 | N40: 86 | O40: 0 | P40: 84 | Q40: 0 | R40: 263 | S40: 175 | T40: 93 | U40: 0 | V40: 177 | W40: 271 | X40: 91 | Y40: 0 | Z40: 0 | AA40: 0 | AB40: 0 | AC40: 0 | AD40: 0 | AE40: 89 | AF40: 0 | AG40: 180 | AH40: 0 | AI40: 87 | AJ40: 85 | AK40: 0
A41: M.Mills-JKL001-LA01-Actual | B41: 78 | C41: 33 | D41: 62 | E41: 37 | F41: 34 | G41: 77 | H41: 45 | I41: 152 | J41: 91 | K41: 37 | L41: 37 | M41: 30 | N41: 87 | O41: 128 | P41: 186 | Q41: 120 | R41: 209 | S41: 38 | T41: 89 | U41: 213 | V41: 236 | W41: 67 | X41: 313 | Y41: 45 | Z41: 46 | AA41: 94 | AB41: 298 | AC41: 89 | AD41: 65 | AE41: 68 | AF41: 0 | AG41: 48 | AH41: 43 | AI41: 165 | AJ41: 115 | AK41: 0
A42: J. McVie-POT002-SD01-Actual | B42: 77 | C42: 342 | D42: 69 | E42: 71 | F42: 0 | G42: 0 | H42: 0 | I42: 78 | J42: 0 | K42: 0 | L42: 0 | M42: 0 | N42: 0 | O42: 73 | P42: 133 | Q42: 0 | R42: 348 | S42: 140 | T42: 0 | U42: 271 | V42: 268 | W42: 149 | X42: 140 | Y42: 0 | Z42: 68 | AA42: 207 | AB42: 0 | AC42: 286 | AD42: 63 | AE42: 138 | AF42: 0 | AG42: 77 | AH42: 126 | AI42: 0 | AJ42: 62 | AK42: 76
A43: B. Shelton-ASL001-NC01-Forecast | B43: 79 | C43: 78 | D43: 135 | E43: 219 | F43: 270 | G43: 78 | H43: 79 | I43: 298 | J43: 0 | K43: 60 | L43: 195 | M43: 74 | N43: 76 | O43: 217 | P43: 293 | Q43: 65 | R43: 279 | S43: 131 | T43: 635 | U43: 477 | V43: 615 | W43: 284 | X43: 294 | Y43: 272 | Z43: 0 | AA43: 287 | AB43: 419 | AC43: 60 | AD43: 138 | AE43: 144 | AF43: 77 | AG43: 146 | AH43: 138 | AI43: 268 | AJ43: 212 | AK43: 77
A44: C. Underwood-PRD002-MN01-Forecast | B44: 0 | C44: 146 | D44: 240 | E44: 159 | F44: 400 | G44: 321 | H44: 237 | I44: 246 | J44: 246 | K44: 150 | L44: 258 | M44: 223 | N44: 71 | O44: 330 | P44: 481 | Q44: 387 | R44: 511 | S44: 398 | T44: 626 | U44: 310 | V44: 713 | W44: 0 | X44: 82 | Y44: 86 | Z44: 176 | AA44: 84 | AB44: 158 | AC44: 84 | AD44: 81 | AE44: 175 | AF44: 414 | AG44: 226 | AH44: 81 | AI44: 161 | AJ44: 80 | AK44: 0
A45: B. Shelton-ASL001-MN01-Actual | B45: 236 | C45: 151 | D45: 65 | E45: 217 | F45: 273 | G45: 135 | H45: 0 | I45: 201 | J45: 282 | K45: 61 | L45: 198 | M45: 209 | N45: 0 | O45: 205 | P45: 336 | Q45: 544 | R45: 348 | S45: 140 | T45: 292 | U45: 205 | V45: 343 | W45: 65 | X45: 228 | Y45: 132 | Z45: 0 | AA45: 71 | AB45: 69 | AC45: 120 | AD45: 157 | AE45: 64 | AF45: 143 | AG45: 61 | AH45: 0 | AI45: 226 | AJ45: 126 | AK45: 67
A46: P. Buck-PRD002-LA01-Actual | B46: 235 | C46: 0 | D46: 0 | E46: 170 | F46: 250 | G46: 85 | H46: 0 | I46: 154 | J46: 158 | K46: 84 | L46: 153 | M46: 143 | N46: 153 | O46: 238 | P46: 306 | Q46: 254 | R46: 254 | S46: 321 | T46: 305 | U46: 238 | V46: 247 | W46: 156 | X46: 312 | Y46: 0 | Z46: 160 | AA46: 258 | AB46: 311 | AC46: 155 | AD46: 160 | AE46: 151 | AF46: 76 | AG46: 73 | AH46: 414 | AI46: 236 | AJ46: 0 | AK46: 74
A47: B. Shelton-POT002-CA01-Actual | B47: 138 | C47: 153 | D47: 276 | E47: 140 | F47: 125 | G47: 190 | H47: 151 | I47: 61 | J47: 0 | K47: 0 | L47: 75 | M47: 0 | N47: 156 | O47: 341 | P47: 414 | Q47: 343 | R47: 220 | S47: 365 | T47: 340 | U47: 72 | V47: 61 | W47: 207 | X47: 433 | Y47: 200 | Z47: 74 | AA47: 153 | AB47: 370 | AC47: 146 | AD47: 134 | AE47: 66 | AF47: 69 | AG47: 289 | AH47: 0 | AI47: 74 | AJ47: 361 | AK47: 0
A48: C. Underwood-PRD001-AK01-Forecast | B48: 0 | C48: 0 | D48: 348 | E48: 189 | F48: 0 | G48: 91 | H48: 0 | I48: 0 | J48: 99 | K48: 85 | L48: 87 | M48: 0 | N48: 93 | O48: 98 | P48: 179 | Q48: 89 | R48: 176 | S48: 88 | T48: 478 | U48: 85 | V48: 0 | W48: 88 | X48: 0 | Y48: 84 | Z48: 0 | AA48: 80 | AB48: 0 | AC48: 94 | AD48: 95 | AE48: 0 | AF48: 81 | AG48: 0 | AH48: 85 | AI48: 0 | AJ48: 93 | AK48: 185
A49: J. McVie-POT002-NC01-Forecast | B49: 61 | C49: 0 | D49: 0 | E49: 276 | F49: 226 | G49: 63 | H49: 76 | I49: 72 | J49: 0 | K49: 218 | L49: 214 | M49: 65 | N49: 0 | O49: 0 | P49: 219 | Q49: 268 | R49: 206 | S49: 0 | T49: 141 | U49: 70 | V49: 146 | W49: 153 | X49: 68 | Y49: 143 | Z49: 0 | AA49: 72 | AB49: 219 | AC49: 0 | AD49: 0 | AE49: 0 | AF49: 72 | AG49: 200 | AH49: 135 | AI49: 0 | AJ49: 218 | AK49: 0
A50: M.Mills-POT001-NC01-Actual | B50: 167 | C50: 172 | D50: 82 | E50: 146 | F50: 72 | G50: 81 | H50: 319 | I50: 163 | J50: 84 | K50: 0 | L50: 76 | M50: 163 | N50: 81 | O50: 484 | P50: 311 | Q50: 158 | R50: 417 | S50: 160 | T50: 469 | U50: 225 | V50: 492 | W50: 236 | X50: 169 | Y50: 79 | Z50: 75 | AA50: 169 | AB50: 249 | AC50: 231 | AD50: 0 | AE50: 164 | AF50: 82 | AG50: 80 | AH50: 404 | AI50: 0 | AJ50: 310 | AK50: 236
A51: J. Lennon-JKL001-CA01-Actual | B51: 0 | C51: 126 | D51: 82 | E51: 111 | F51: 33 | G51: 79 | H51: 179 | I51: 88 | J51: 96 | K51: 73 | L51: 0 | M51: 83 | N51: 43 | O51: 79 | P51: 151 | Q51: 121 | R51: 84 | S51: 140 | T51: 150 | U51: 111 | V51: 149 | W51: 115 | X51: 237 | Y51: 31 | Z51: 0 | AA51: 130 | AB51: 83 | AC51: 161 | AD51: 76 | AE51: 155 | AF51: 87 | AG51: 139 | AH51: 81 | AI51: 151 | AJ51: 184 | AK51: 0
A52: B. Paisley-ASL002-SD01-Forecast | B52: 48 | C52: 210 | D52: 58 | E52: 139 | F52: 152 | G52: 96 | H52: 149 | I52: 46 | J52: 105 | K52: 161 | L52: 190 | M52: 0 | N52: 141 | O52: 332 | P52: 265 | Q52: 145 | R52: 198 | S52: 204 | T52: 279 | U52: 195 | V52: 255 | W52: 166 | X52: 140 | Y52: 49 | Z52: 0 | AA52: 0 | AB52: 108 | AC52: 204 | AD52: 100 | AE52: 51 | AF52: 100 | AG52: 46 | AH52: 54 | AI52: 50 | AJ52: 53 | AK52: 97
A53: B. Shelton-ASL003-MN01-Forecast | B53: 119 | C53: 121 | D53: 67 | E53: 66 | F53: 163 | G53: 131 | H53: 177 | I53: 64 | J53: 168 | K53: 115 | L53: 115 | M53: 132 | N53: 62 | O53: 68 | P53: 184 | Q53: 62 | R53: 308 | S53: 313 | T53: 66 | U53: 123 | V53: 185 | W53: 168 | X53: 303 | Y53: 134 | Z53: 0 | AA53: 0 | AB53: 62 | AC53: 121 | AD53: 52 | AE53: 198 | AF53: 240 | AG53: 191 | AH53: 133 | AI53: 115 | AJ53: 184 | AK53: 117
A54: C. Underwood-JKL001-MN01-Forecast | B54: 0 | C54: 0 | D54: 43 | E54: 219 | F54: 0 | G54: 0 | H54: 76 | I54: 100 | J54: 72 | K54: 48 | L54: 37 | M54: 41 | N54: 188 | O54: 319 | P54: 89 | Q54: 49 | R54: 41 | S54: 248 | T54: 197 | U54: 228 | V54: 113 | W54: 202 | X54: 235 | Y54: 38 | Z54: 0 | AA54: 50 | AB54: 162 | AC54: 50 | AD54: 75 | AE54: 31 | AF54: 0 | AG54: 144 | AH54: 122 | AI54: 112 | AJ54: 89 | AK54: 38
A55: P. Buck-DFG001-PA01-Actual | B55: 0 | C55: 63 | D55: 63 | E55: 0 | F55: 121 | G55: 162 | H55: 0 | I55: 0 | J55: 63 | K55: 64 | L55: 62 | M55: 53 | N55: 0 | O55: 110 | P55: 319 | Q55: 0 | R55: 177 | S55: 67 | T55: 115 | U55: 65 | V55: 61 | W55: 167 | X55: 0 | Y55: 0 | Z55: 0 | AA55: 53 | AB55: 68 | AC55: 0 | AD55: 52 | AE55: 114 | AF55: 62 | AG55: 0 | AH55: 0 | AI55: 68 | AJ55: 62 | AK55: 0
A56: R. Star-DFG001-SD01-Actual | B56: 0 | C56: 64 | D56: 50 | E56: 0 | F56: 0 | G56: 0 | H56: 0 | I56: 64 | J56: 64 | K56: 52 | L56: 66 | M56: 0 | N56: 0 | O56: 0 | P56: 70 | Q56: 107 | R56: 172 | S56: 122 | T56: 117 | U56: 120 | V56: 115 | W56: 113 | X56: 173 | Y56: 68 | Z56: 68 | AA56: 58 | AB56: 0 | AC56: 0 | AD56: 0 | AE56: 54 | AF56: 0 | AG56: 0 | AH56: 125 | AI56: 0 | AJ56: 55 | AK56: 66
A57: P. Buck-ASL003-SD01-Actual | B57: 58 | C57: 332 | D57: 106 | E57: 54 | F57: 0 | G57: 56 | H57: 126 | I57: 51 | J57: 114 | K57: 238 | L57: 125 | M57: 51 | N57: 52 | O57: 409 | P57: 181 | Q57: 181 | R57: 352 | S57: 315 | T57: 389 | U57: 220 | V57: 232 | W57: 425 | X57: 117 | Y57: 122 | Z57: 0 | AA57: 169 | AB57: 123 | AC57: 66 | AD57: 117 | AE57: 136 | AF57: 69 | AG57: 54 | AH57: 61 | AI57: 121 | AJ57: 52 | AK57: 54
A58: M.Mills-PRD001-SD01-Actual | B58: 82 | C58: 265 | D58: 0 | E58: 95 | F58: 85 | G58: 0 | H58: 262 | I58: 82 | J58: 91 | K58: 0 | L58: 269 | M58: 0 | N58: 186 | O58: 89 | P58: 267 | Q58: 0 | R58: 95 | S58: 181 | T58: 351 | U58: 262 | V58: 0 | W58: 0 | X58: 463 | Y58: 90 | Z58: 0 | AA58: 172 | AB58: 92 | AC58: 94 | AD58: 0 | AE58: 261 | AF58: 89 | AG58: 372 | AH58: 173 | AI58: 0 | AJ58: 0 | AK58: 0
A59: C. Underwood-PRD002-AL01-Actual | B59: 148 | C59: 90 | D59: 90 | E59: 230 | F59: 71 | G59: 72 | H59: 254 | I59: 238 | J59: 398 | K59: 224 | L59: 337 | M59: 0 | N59: 150 | O59: 0 | P59: 388 | Q59: 370 | R59: 240 | S59: 305 | T59: 402 | U59: 393 | V59: 146 | W59: 0 | X59: 305 | Y59: 254 | Z59: 80 | AA59: 160 | AB59: 0 | AC59: 170 | AD59: 340 | AE59: 79 | AF59: 326 | AG59: 170 | AH59: 155 | AI59: 163 | AJ59: 250 | AK59: 75
A60: R. Star-ASL001-LA01-Actual | B60: 150 | C60: 197 | D60: 214 | E60: 142 | F60: 62 | G60: 0 | H60: 204 | I60: 63 | J60: 123 | K60: 68 | L60: 412 | M60: 60 | N60: 65 | O60: 146 | P60: 61 | Q60: 211 | R60: 143 | S60: 199 | T60: 338 | U60: 294 | V60: 265 | W60: 209 | X60: 290 | Y60: 127 | Z60: 79 | AA60: 149 | AB60: 146 | AC60: 143 | AD60: 353 | AE60: 0 | AF60: 63 | AG60: 150 | AH60: 69 | AI60: 66 | AJ60: 72 | AK60: 0
A61: J. Lennon-POT001-MN01-Actual | B61: 83 | C61: 85 | D61: 0 | E61: 0 | F61: 155 | G61: 318 | H61: 235 | I61: 173 | J61: 87 | K61: 328 | L61: 176 | M61: 0 | N61: 231 | O61: 318 | P61: 315 | Q61: 408 | R61: 341 | S61: 416 | T61: 78 | U61: 304 | V61: 557 | W61: 395 | X61: 235 | Y61: 326 | Z61: 0 | AA61: 0 | AB61: 83 | AC61: 74 | AD61: 249 | AE61: 159 | AF61: 84 | AG61: 153 | AH61: 73 | AI61: 247 | AJ61: 0 | AK61: 86
A62: C. Underwood-ASL002-LA01-Forecast | B62: 55 | C62: 89 | D62: 0 | E62: 56 | F62: 43 | G62: 58 | H62: 252 | I62: 0 | J62: 195 | K62: 90 | L62: 104 | M62: 95 | N62: 117 | O62: 147 | P62: 190 | Q62: 244 | R62: 204 | S62: 283 | T62: 360 | U62: 361 | V62: 150 | W62: 141 | X62: 291 | Y62: 94 | Z62: 0 | AA62: 47 | AB62: 97 | AC62: 159 | AD62: 157 | AE62: 51 | AF62: 54 | AG62: 154 | AH62: 0 | AI62: 44 | AJ62: 90 | AK62: 56
A63: M.Mills-JKL001-LA01-Forecast | B63: 0 | C63: 89 | D63: 122 | E63: 0 | F63: 170 | G63: 134 | H63: 0 | I63: 88 | J63: 80 | K63: 168 | L63: 66 | M63: 33 | N63: 34 | O63: 80 | P63: 50 | Q63: 163 | R63: 163 | S63: 122 | T63: 413 | U63: 181 | V63: 166 | W63: 141 | X63: 178 | Y63: 0 | Z63: 91 | AA63: 109 | AB63: 161 | AC63: 41 | AD63: 43 | AE63: 71 | AF63: 132 | AG63: 226 | AH63: 38 | AI63: 41 | AJ63: 77 | AK63: 0
A64: M. Stipe-ASL003-CA01-Actual | B64: 58 | C64: 121 | D64: 163 | E64: 126 | F64: 109 | G64: 199 | H64: 122 | I64: 244 | J64: 0 | K64: 57 | L64: 183 | M64: 0 | N64: 116 | O64: 0 | P64: 173 | Q64: 472 | R64: 162 | S64: 124 | T64: 183 | U64: 120 | V64: 489 | W64: 311 | X64: 270 | Y64: 68 | Z64: 54 | AA64: 0 | AB64: 66 | AC64: 0 | AD64: 0 | AE64: 51 | AF64: 60 | AG64: 240 | AH64: 69 | AI64: 182 | AJ64: 166 | AK64: 0
A65: B. Paisley-ASL002-LA01-Actual | B65: 56 | C65: 57 | D65: 0 | E65: 42 | F65: 98 | G65: 106 | H65: 151 | I65: 184 | J65: 153 | K65: 0 | L65: 146 | M65: 0 | N65: 181 | O65: 258 | P65: 131 | Q65: 257 | R65: 305 | S65: 105 | T65: 146 | U65: 300 | V65: 203 | W65: 448 | X65: 126 | Y65: 60 | Z65: 0 | AA65: 0 | AB65: 150 | AC65: 0 | AD65: 165 | AE65: 152 | AF65: 112 | AG65: 112 | AH65: 107 | AI65: 153 | AJ65: 47 | AK65: 0
A66: P. Buck-ASL001-AL01-Forecast | B66: 0 | C66: 62 | D66: 0 | E66: 72 | F66: 76 | G66: 76 | H66: 0 | I66: 212 | J66: 212 | K66: 72 | L66: 146 | M66: 66 | N66: 210 | O66: 72 | P66: 288 | Q66: 273 | R66: 208 | S66: 77 | T66: 220 | U66: 369 | V66: 70 | W66: 267 | X66: 424 | Y66: 206 | Z66: 75 | AA66: 136 | AB66: 63 | AC66: 193 | AD66: 199 | AE66: 70 | AF66: 66 | AG66: 279 | AH66: 61 | AI66: 61 | AJ66: 78 | AK66: 75
A67: P. Buck-ASL001-MN01-Actual | B67: 138 | C67: 221 | D67: 64 | E67: 73 | F67: 146 | G67: 124 | H67: 77 | I67: 63 | J67: 194 | K67: 132 | L67: 0 | M67: 140 | N67: 70 | O67: 230 | P67: 403 | Q67: 198 | R67: 480 | S67: 148 | T67: 210 | U67: 652 | V67: 75 | W67: 274 | X67: 0 | Y67: 0 | Z67: 61 | AA67: 205 | AB67: 151 | AC67: 63 | AD67: 222 | AE67: 79 | AF67: 213 | AG67: 221 | AH67: 210 | AI67: 129 | AJ67: 76 | AK67: 61
A68: M. Stipe-POT002-VA01-Actual | B68: 70 | C68: 0 | D68: 274 | E68: 0 | F68: 0 | G68: 200 | H68: 137 | I68: 0 | J68: 0 | K68: 77 | L68: 0 | M68: 60 | N68: 0 | O68: 150 | P68: 0 | Q68: 350 | R68: 129 | S68: 67 | T68: 152 | U68: 0 | V68: 73 | W68: 197 | X68: 147 | Y68: 73 | Z68: 76 | AA68: 76 | AB68: 68 | AC68: 0 | AD68: 71 | AE68: 155 | AF68: 68 | AG68: 0 | AH68: 0 | AI68: 63 | AJ68: 75 | AK68: 0
A69: M. Stipe-POT001-AL01-Forecast | B69: 72 | C69: 0 | D69: 249 | E69: 72 | F69: 244 | G69: 0 | H69: 235 | I69: 75 | J69: 233 | K69: 0 | L69: 250 | M69: 0 | N69: 163 | O69: 482 | P69: 239 | Q69: 394 | R69: 496 | S69: 412 | T69: 556 | U69: 71 | V69: 404 | W69: 164 | X69: 220 | Y69: 398 | Z69: 230 | AA69: 221 | AB69: 167 | AC69: 316 | AD69: 328 | AE69: 88 | AF69: 312 | AG69: 151 | AH69: 166 | AI69: 0 | AJ69: 165 | AK69: 0
A70: J. Lennon-ASL003-PA01-Forecast | B70: 119 | C70: 0 | D70: 59 | E70: 0 | F70: 56 | G70: 0 | H70: 0 | I70: 62 | J70: 180 | K70: 412 | L70: 0 | M70: 0 | N70: 53 | O70: 111 | P70: 295 | Q70: 409 | R70: 365 | S70: 241 | T70: 185 | U70: 235 | V70: 54 | W70: 316 | X70: 241 | Y70: 138 | Z70: 171 | AA70: 121 | AB70: 0 | AC70: 61 | AD70: 174 | AE70: 64 | AF70: 121 | AG70: 103 | AH70: 0 | AI70: 66 | AJ70: 53 | AK70: 0
A71: J. McVie-DFG001-SD01-Actual | B71: 0 | C71: 0 | D71: 0 | E71: 0 | F71: 62 | G71: 0 | H71: 55 | I71: 0 | J71: 0 | K71: 57 | L71: 65 | M71: 0 | N71: 66 | O71: 56 | P71: 0 | Q71: 0 | R71: 70 | S71: 126 | T71: 130 | U71: 54 | V71: 0 | W71: 59 | X71: 58 | Y71: 0 | Z71: 61 | AA71: 0 | AB71: 0 | AC71: 0 | AD71: 0 | AE71: 0 | AF71: 0 | AG71: 61 | AH71: 62 | AI71: 0 | AJ71: 51 | AK71: 0
A72: C. Underwood-POT002-AK01-Forecast | B72: 70 | C72: 71 | D72: 71 | E72: 224 | F72: 198 | G72: 0 | H72: 0 | I72: 0 | J72: 61 | K72: 0 | L72: 0 | M72: 0 | N72: 0 | O72: 72 | P72: 138 | Q72: 0 | R72: 265 | S72: 207 | T72: 0 | U72: 75 | V72: 72 | W72: 77 | X72: 77 | Y72: 0 | Z72: 73 | AA72: 61 | AB72: 68 | AC72: 143 | AD72: 0 | AE72: 0 | AF72: 74 | AG72: 0 | AH72: 64 | AI72: 0 | AJ72: 282 | AK72: 0
A73: J. Lennon-JKL001-LA01-Actual | B73: 38 | C73: 93 | D73: 72 | E73: 88 | F73: 48 | G73: 96 | H73: 127 | I73: 46 | J73: 37 | K73: 73 | L73: 48 | M73: 41 | N73: 204 | O73: 243 | P73: 212 | Q73: 71 | R73: 153 | S73: 121 | T73: 38 | U73: 202 | V73: 203 | W73: 33 | X73: 137 | Y73: 188 | Z73: 45 | AA73: 95 | AB73: 169 | AC73: 155 | AD73: 33 | AE73: 36 | AF73: 81 | AG73: 30 | AH73: 88 | AI73: 74 | AJ73: 252 | AK73: 0
A74: M.Mills-POT002-MN01-Actual | B74: 0 | C74: 204 | D74: 146 | E74: 145 | F74: 361 | G74: 286 | H74: 65 | I74: 209 | J74: 202 | K74: 79 | L74: 62 | M74: 77 | N74: 129 | O74: 348 | P74: 151 | Q74: 227 | R74: 133 | S74: 283 | T74: 213 | U74: 271 | V74: 62 | W74: 379 | X74: 409 | Y74: 206 | Z74: 132 | AA74: 152 | AB74: 354 | AC74: 292 | AD74: 188 | AE74: 357 | AF74: 62 | AG74: 62 | AH74: 224 | AI74: 141 | AJ74: 73 | AK74: 206
A75: J. Lennon-PRD002-MN01-Forecast | B75: 70 | C75: 0 | D75: 245 | E75: 322 | F75: 169 | G75: 158 | H75: 315 | I75: 167 | J75: 226 | K75: 164 | L75: 81 | M75: 475 | N75: 155 | O75: 421 | P75: 149 | Q75: 421 | R75: 317 | S75: 314 | T75: 552 | U75: 160 | V75: 163 | W75: 83 | X75: 499 | Y75: 226 | Z75: 157 | AA75: 226 | AB75: 303 | AC75: 241 | AD75: 231 | AE75: 71 | AF75: 85 | AG75: 327 | AH75: 513 | AI75: 313 | AJ75: 0 | AK75: 88
A76: R. Star-ASL003-AK01-Forecast | B76: 64 | C76: 0 | D76: 52 | E76: 0 | F76: 68 | G76: 0 | H76: 63 | I76: 54 | J76: 0 | K76: 53 | L76: 61 | M76: 0 | N76: 0 | O76: 0 | P76: 66 | Q76: 202 | R76: 188 | S76: 185 | T76: 189 | U76: 135 | V76: 180 | W76: 68 | X76: 161 | Y76: 0 | Z76: 0 | AA76: 0 | AB76: 125 | AC76: 57 | AD76: 367 | AE76: 0 | AF76: 0 | AG76: 59 | AH76: 0 | AI76: 0 | AJ76: 65 | AK76: 0
A77: P. Buck-JKL001-SD01-Actual | B77: 165 | C77: 179 | D77: 184 | E77: 76 | F77: 80 | G77: 157 | H77: 32 | I77: 78 | J77: 171 | K77: 88 | L77: 174 | M77: 45 | N77: 83 | O77: 78 | P77: 306 | Q77: 313 | R77: 277 | S77: 227 | T77: 46 | U77: 260 | V77: 202 | W77: 72 | X77: 44 | Y77: 113 | Z77: 36 | AA77: 117 | AB77: 0 | AC77: 40 | AD77: 190 | AE77: 117 | AF77: 41 | AG77: 122 | AH77: 91 | AI77: 77 | AJ77: 113 | AK77: 0
A78: B. Shelton-POT002-SD01-Actual | B78: 80 | C78: 491 | D78: 202 | E78: 66 | F78: 133 | G78: 151 | H78: 61 | I78: 127 | J78: 211 | K78: 134 | L78: 80 | M78: 0 | N78: 350 | O78: 352 | P78: 510 | Q78: 399 | R78: 338 | S78: 348 | T78: 353 | U78: 79 | V78: 0 | W78: 420 | X78: 269 | Y78: 61 | Z78: 0 | AA78: 72 | AB78: 60 | AC78: 79 | AD78: 265 | AE78: 156 | AF78: 221 | AG78: 274 | AH78: 279 | AI78: 151 | AJ78: 548 | AK78: 73
A79: C. Underwood-PRD002-PA01-Actual | B79: 0 | C79: 346 | D79: 0 | E79: 88 | F79: 240 | G79: 162 | H79: 170 | I79: 0 | J79: 249 | K79: 88 | L79: 76 | M79: 0 | N79: 161 | O79: 415 | P79: 401 | Q79: 559 | R79: 419 | S79: 164 | T79: 469 | U79: 329 | V79: 387 | W79: 646 | X79: 329 | Y79: 74 | Z79: 0 | AA79: 86 | AB79: 245 | AC79: 239 | AD79: 79 | AE79: 78 | AF79: 177 | AG79: 331 | AH79: 74 | AI79: 234 | AJ79: 170 | AK79: 0
A80: R. Star-JKL001-NC01-Forecast | B80: 0 | C80: 50 | D80: 33 | E80: 114 | F80: 44 | G80: 77 | H80: 168 | I80: 48 | J80: 108 | K80: 43 | L80: 78 | M80: 32 | N80: 63 | O80: 117 | P80: 151 | Q80: 181 | R80: 96 | S80: 69 | T80: 90 | U80: 0 | V80: 0 | W80: 88 | X80: 258 | Y80: 78 | Z80: 0 | AA80: 33 | AB80: 164 | AC80: 172 | AD80: 138 | AE80: 84 | AF80: 115 | AG80: 77 | AH80: 0 | AI80: 0 | AJ80: 0 | AK80: 0
A81: M.Mills-ASL001-CA01-Actual | B81: 77 | C81: 0 | D81: 141 | E81: 65 | F81: 147 | G81: 135 | H81: 63 | I81: 64 | J81: 150 | K81: 407 | L81: 281 | M81: 0 | N81: 151 | O81: 284 | P81: 279 | Q81: 216 | R81: 211 | S81: 210 | T81: 411 | U81: 289 | V81: 270 | W81: 435 | X81: 350 | Y81: 153 | Z81: 215 | AA81: 0 | AB81: 212 | AC81: 64 | AD81: 64 | AE81: 216 | AF81: 65 | AG81: 130 | AH81: 198 | AI81: 0 | AJ81: 65 | AK81: 137
A82: M.Mills-POT002-VA01-Actual | B82: 0 | C82: 218 | D82: 0 | E82: 65 | F82: 0 | G82: 212 | H82: 0 | I82: 68 | J82: 0 | K82: 146 | L82: 0 | M82: 68 | N82: 152 | O82: 134 | P82: 212 | Q82: 148 | R82: 74 | S82: 205 | T82: 71 | U82: 227 | V82: 0 | W82: 143 | X82: 78 | Y82: 64 | Z82: 0 | AA82: 0 | AB82: 0 | AC82: 63 | AD82: 67 | AE82: 68 | AF82: 0 | AG82: 141 | AH82: 0 | AI82: 68 | AJ82: 0 | AK82: 0
A83: R. Star-POT001-AK01-Actual | B83: 0 | C83: 0 | D83: 242 | E83: 180 | F83: 0 | G83: 0 | H83: 0 | I83: 153 | J83: 0 | K83: 0 | L83: 0 | M83: 0 | N83: 0 | O83: 164 | P83: 320 | Q83: 168 | R83: 85 | S83: 74 | T83: 233 | U83: 0 | V83: 387 | W83: 151 | X83: 0 | Y83: 71 | Z83: 0 | AA83: 0 | AB83: 0 | AC83: 73 | AD83: 0 | AE83: 0 | AF83: 179 | AG83: 74 | AH83: 147 | AI83: 79 | AJ83: 303 | AK83: 0
A84: M. Stipe-ASL001-SD01-Forecast | B84: 77 | C84: 67 | D84: 217 | E84: 0 | F84: 0 | G84: 132 | H84: 74 | I84: 75 | J84: 135 | K84: 0 | L84: 0 | M84: 0 | N84: 143 | O84: 268 | P84: 215 | Q84: 281 | R84: 152 | S84: 138 | T84: 357 | U84: 256 | V84: 225 | W84: 269 | X84: 285 | Y84: 0 | Z84: 67 | AA84: 137 | AB84: 146 | AC84: 328 | AD84: 207 | AE84: 157 | AF84: 64 | AG84: 197 | AH84: 148 | AI84: 370 | AJ84: 74 | AK84: 61
A85: S. Crow-POT001-SD01-Forecast | B85: 0 | C85: 79 | D85: 0 | E85: 0 | F85: 76 | G85: 0 | H85: 79 | I85: 78 | J85: 73 | K85: 77 | L85: 146 | M85: 0 | N85: 76 | O85: 242 | P85: 0 | Q85: 0 | R85: 147 | S85: 71 | T85: 89 | U85: 71 | V85: 0 | W85: 83 | X85: 74 | Y85: 0 | Z85: 0 | AA85: 166 | AB85: 163 | AC85: 86 | AD85: 171 | AE85: 233 | AF85: 0 | AG85: 77 | AH85: 162 | AI85: 89 | AJ85: 0 | AK85: 0
A86: J. Lennon-ASL002-CA01-Forecast | B86: 0 | C86: 0 | D86: 53 | E86: 108 | F86: 47 | G86: 105 | H86: 43 | I86: 205 | J86: 164 | K86: 194 | L86: 103 | M86: 0 | N86: 0 | O86: 115 | P86: 220 | Q86: 195 | R86: 370 | S86: 155 | T86: 248 | U86: 334 | V86: 217 | W86: 243 | X86: 106 | Y86: 40 | Z86: 0 | AA86: 0 | AB86: 44 | AC86: 159 | AD86: 113 | AE86: 99 | AF86: 93 | AG86: 56 | AH86: 43 | AI86: 109 | AJ86: 91 | AK86: 102
A87: P. Buck-PRD002-AK01-Forecast | B87: 0 | C87: 163 | D87: 76 | E87: 0 | F87: 85 | G87: 0 | H87: 0 | I87: 0 | J87: 84 | K87: 0 | L87: 85 | M87: 82 | N87: 160 | O87: 85 | P87: 0 | Q87: 0 | R87: 0 | S87: 246 | T87: 0 | U87: 516 | V87: 255 | W87: 162 | X87: 412 | Y87: 172 | Z87: 0 | AA87: 162 | AB87: 88 | AC87: 296 | AD87: 87 | AE87: 158 | AF87: 0 | AG87: 0 | AH87: 84 | AI87: 78 | AJ87: 151 | AK87: 85
A88: J. Lennon-JKL001-MN01-Forecast | B88: 0 | C88: 0 | D88: 164 | E88: 111 | F88: 233 | G88: 0 | H88: 31 | I88: 46 | J88: 216 | K88: 44 | L88: 92 | M88: 37 | N88: 0 | O88: 41 | P88: 140 | Q88: 108 | R88: 177 | S88: 166 | T88: 143 | U88: 0 | V88: 287 | W88: 108 | X88: 187 | Y88: 0 | Z88: 78 | AA88: 81 | AB88: 76 | AC88: 0 | AD88: 104 | AE88: 83 | AF88: 80 | AG88: 38 | AH88: 31 | AI88: 117 | AJ88: 107 | AK88: 91
A89: B. Shelton-JKL001-AL01-Forecast | B89: 85 | C89: 126 | D89: 0 | E89: 211 | F89: 0 | G89: 68 | H89: 34 | I89: 0 | J89: 161 | K89: 110 | L89: 40 | M89: 80 | N89: 77 | O89: 195 | P89: 79 | Q89: 226 | R89: 112 | S89: 134 | T89: 130 | U89: 199 | V89: 322 | W89: 151 | X89: 124 | Y89: 134 | Z89: 0 | AA89: 30 | AB89: 30 | AC89: 80 | AD89: 114 | AE89: 159 | AF89: 48 | AG89: 34 | AH89: 159 | AI89: 41 | AJ89: 97 | AK89: 0
A90: C. Underwood-POT002-AL01-Actual | B90: 0 | C90: 143 | D90: 0 | E90: 141 | F90: 284 | G90: 60 | H90: 292 | I90: 0 | J90: 0 | K90: 296 | L90: 287 | M90: 131 | N90: 148 | O90: 468 | P90: 371 | Q90: 276 | R90: 155 | S90: 229 | T90: 229 | U90: 125 | V90: 124 | W90: 206 | X90: 279 | Y90: 293 | Z90: 198 | AA90: 230 | AB90: 340 | AC90: 280 | AD90: 123 | AE90: 201 | AF90: 143 | AG90: 139 | AH90: 0 | AI90: 142 | AJ90: 223 | AK90: 70
A91: S. Crow-DFG001-AL01-Forecast | B91: 56 | C91: 0 | D91: 0 | E91: 169 | F91: 0 | G91: 59 | H91: 0 | I91: 0 | J91: 0 | K91: 0 | L91: 64 | M91: 52 | N91: 0 | O91: 54 | P91: 65 | Q91: 182 | R91: 0 | S91: 0 | T91: 60 | U91: 63 | V91: 0 | W91: 0 | X91: 55 | Y91: 0 | Z91: 0 | AA91: 0 | AB91: 55 | AC91: 51 | AD91: 125 | AE91: 59 | AF91: 0 | AG91: 64 | AH91: 0 | AI91: 0 | AJ91: 0 | AK91: 0
A92: M. Stipe-ASL002-VA01-Actual | B92: 0 | C92: 0 | D92: 0 | E92: 0 | F92: 0 | G92: 106 | H92: 48 | I92: 40 | J92: 0 | K92: 49 | L92: 52 | M92: 0 | N92: 51 | O92: 261 | P92: 132 | Q92: 0 | R92: 0 | S92: 110 | T92: 91 | U92: 96 | V92: 91 | W92: 55 | X92: 152 | Y92: 46 | Z92: 60 | AA92: 0 | AB92: 48 | AC92: 0 | AD92: 199 | AE92: 0 | AF92: 110 | AG92: 48 | AH92: 47 | AI92: 47 | AJ92: 0 | AK92: 0
A93: B. Paisley-POT002-MN01-Actual | B93: 142 | C93: 61 | D93: 156 | E93: 278 | F93: 286 | G93: 141 | H93: 73 | I93: 200 | J93: 278 | K93: 213 | L93: 203 | M93: 0 | N93: 79 | O93: 142 | P93: 130 | Q93: 68 | R93: 278 | S93: 123 | T93: 556 | U93: 134 | V93: 427 | W93: 347 | X93: 208 | Y93: 64 | Z93: 148 | AA93: 0 | AB93: 218 | AC93: 0 | AD93: 76 | AE93: 195 | AF93: 0 | AG93: 145 | AH93: 274 | AI93: 66 | AJ93: 147 | AK93: 62
A94: J. McVie-ASL003-PA01-Forecast | B94: 0 | C94: 59 | D94: 189 | E94: 127 | F94: 63 | G94: 51 | H94: 59 | I94: 0 | J94: 66 | K94: 0 | L94: 256 | M94: 63 | N94: 64 | O94: 50 | P94: 64 | Q94: 285 | R94: 0 | S94: 188 | T94: 361 | U94: 54 | V94: 256 | W94: 281 | X94: 0 | Y94: 62 | Z94: 57 | AA94: 61 | AB94: 0 | AC94: 131 | AD94: 0 | AE94: 0 | AF94: 115 | AG94: 0 | AH94: 67 | AI94: 0 | AJ94: 0 | AK94: 63
A95: R. Star-ASL001-LA01-Forecast | B95: 77 | C95: 142 | D95: 210 | E95: 76 | F95: 74 | G95: 206 | H95: 66 | I95: 195 | J95: 76 | K95: 215 | L95: 0 | M95: 339 | N95: 67 | O95: 416 | P95: 150 | Q95: 349 | R95: 269 | S95: 292 | T95: 201 | U95: 288 | V95: 357 | W95: 217 | X95: 491 | Y95: 0 | Z95: 0 | AA95: 196 | AB95: 135 | AC95: 224 | AD95: 137 | AE95: 201 | AF95: 69 | AG95: 74 | AH95: 66 | AI95: 72 | AJ95: 61 | AK95: 142
A96: C. Underwood-ASL003-MN01-Actual | B96: 62 | C96: 258 | D96: 259 | E96: 183 | F96: 0 | G96: 174 | H96: 58 | I96: 128 | J96: 130 | K96: 289 | L96: 118 | M96: 117 | N96: 61 | O96: 188 | P96: 316 | Q96: 338 | R96: 386 | S96: 103 | T96: 127 | U96: 226 | V96: 189 | W96: 54 | X96: 289 | Y96: 0 | Z96: 54 | AA96: 130 | AB96: 130 | AC96: 133 | AD96: 125 | AE96: 347 | AF96: 54 | AG96: 329 | AH96: 354 | AI96: 223 | AJ96: 173 | AK96: 121
A97: J. McVie-PRD002-AK01-Forecast | B97: 0 | C97: 0 | D97: 74 | E97: 0 | F97: 74 | G97: 0 | H97: 0 | I97: 0 | J97: 0 | K97: 73 | L97: 76 | M97: 0 | N97: 0 | O97: 158 | P97: 71 | Q97: 163 | R97: 0 | S97: 85 | T97: 85 | U97: 0 | V97: 75 | W97: 74 | X97: 80 | Y97: 159 | Z97: 71 | AA97: 0 | AB97: 0 | AC97: 85 | AD97: 85 | AE97: 81 | AF97: 0 | AG97: 0 | AH97: 168 | AI97: 0 | AJ97: 0 | AK97: 0
A98: S. Crow-PRD001-AK01-Actual | B98: 0 | C98: 0 | D98: 0 | E98: 0 | F98: 0 | G98: 0 | H98: 0 | I98: 83 | J98: 0 | K98: 0 | L98: 0 | M98: 99 | N98: 0 | O98: 0 | P98: 0 | Q98: 0 | R98: 165 | S98: 0 | T98: 0 | U98: 0 | V98: 91 | W98: 0 | X98: 0 | Y98: 0 | Z98: 95 | AA98: 0 | AB98: 91 | AC98: 0 | AD98: 0 | AE98: 0 | AF98: 0 | AG98: 0 | AH98: 0 | AI98: 0 | AJ98: 0 | AK98: 0
A99: M. Stipe-ASL001-CA01-Actual | B99: 78 | C99: 74 | D99: 152 | E99: 223 | F99: 74 | G99: 125 | H99: 74 | I99: 154 | J99: 140 | K99: 136 | L99: 130 | M99: 70 | N99: 0 | O99: 206 | P99: 274 | Q99: 210 | R99: 153 | S99: 222 | T99: 280 | U99: 215 | V99: 216 | W99: 464 | X99: 215 | Y99: 201 | Z99: 60 | AA99: 68 | AB99: 73 | AC99: 190 | AD99: 145 | AE99: 69 | AF99: 0 | AG99: 80 | AH99: 136 | AI99: 79 | AJ99: 69 | AK99: 76
A100: B. Shelton-ASL002-NC01-Forecast | B100: 0 | C100: 46 | D100: 96 | E100: 105 | F100: 47 | G100: 0 | H100: 102 | I100: 57 | J100: 266 | K100: 100 | L100: 137 | M100: 158 | N100: 58 | O100: 254 | P100: 405 | Q100: 55 | R100: 290 | S100: 233 | T100: 48 | U100: 164 | V100: 52 | W100: 264 | X100: 194 | Y100: 213 | Z100: 0 | AA100: 53 | AB100: 99 | AC100: 201 | AD100: 146 | AE100: 158 | AF100: 0 | AG100: 0 | AH100: 0 | AI100: 0 | AJ100: 153 | AK100: 0
A101: R. Star-ASL001-AL01-Actual | B101: 127 | C101: 131 | D101: 212 | E101: 76 | F101: 212 | G101: 140 | H101: 68 | I101: 63 | J101: 68 | K101: 127 | L101: 80 | M101: 220 | N101: 214 | O101: 405 | P101: 515 | Q101: 232 | R101: 269 | S101: 210 | T101: 435 | U101: 268 | V101: 73 | W101: 130 | X101: 283 | Y101: 144 | Z101: 140 | AA101: 139 | AB101: 215 | AC101: 60 | AD101: 61 | AE101: 80 | AF101: 74 | AG101: 128 | AH101: 0 | AI101: 287 | AJ101: 140 | AK101: 0
A102: M. Stipe-PRD001-AK01-Forecast | B102: 0 | C102: 92 | D102: 0 | E102: 88 | F102: 183 | G102: 0 | H102: 0 | I102: 0 | J102: 98 | K102: 95 | L102: 89 | M102: 175 | N102: 0 | O102: 92 | P102: 260 | Q102: 87 | R102: 91 | S102: 185 | T102: 89 | U102: 0 | V102: 99 | W102: 0 | X102: 0 | Y102: 0 | Z102: 0 | AA102: 0 | AB102: 0 | AC102: 0 | AD102: 0 | AE102: 0 | AF102: 0 | AG102: 0 | AH102: 0 | AI102: 99 | AJ102: 0 | AK102: 87
A103: C. Underwood-ASL002-PA01-Forecast | B103: 106 | C103: 101 | D103: 97 | E103: 154 | F103: 0 | G103: 99 | H103: 100 | I103: 135 | J103: 105 | K103: 0 | L103: 52 | M103: 0 | N103: 113 | O103: 142 | P103: 56 | Q103: 105 | R103: 86 | S103: 294 | T103: 290 | U103: 103 | V103: 108 | W103: 0 | X103: 250 | Y103: 94 | Z103: 153 | AA103: 101 | AB103: 45 | AC103: 54 | AD103: 50 | AE103: 216 | AF103: 0 | AG103: 0 | AH103: 0 | AI103: 103 | AJ103: 103 | AK103: 0
A104: C. Underwood-POT002-CA01-Actual | B104: 61 | C104: 211 | D104: 210 | E104: 66 | F104: 0 | G104: 72 | H104: 148 | I104: 213 | J104: 137 | K104: 71 | L104: 268 | M104: 72 | N104: 140 | O104: 143 | P104: 143 | Q104: 148 | R104: 515 | S104: 190 | T104: 266 | U104: 214 | V104: 220 | W104: 70 | X104: 652 | Y104: 133 | Z104: 0 | AA104: 271 | AB104: 124 | AC104: 135 | AD104: 73 | AE104: 69 | AF104: 216 | AG104: 191 | AH104: 0 | AI104: 73 | AJ104: 77 | AK104: 60
A105: S. Crow-ASL002-CA01-Forecast | B105: 0 | C105: 104 | D105: 49 | E105: 0 | F105: 93 | G105: 50 | H105: 58 | I105: 202 | J105: 49 | K105: 146 | L105: 60 | M105: 0 | N105: 147 | O105: 159 | P105: 44 | Q105: 157 | R105: 111 | S105: 229 | T105: 0 | U105: 0 | V105: 199 | W105: 149 | X105: 151 | Y105: 45 | Z105: 0 | AA105: 0 | AB105: 0 | AC105: 47 | AD105: 0 | AE105: 0 | AF105: 153 | AG105: 43 | AH105: 57 | AI105: 56 | AJ105: 0 | AK105: 0
A106: M.Mills-JKL001-PA01-Actual | B106: 0 | C106: 68 | D106: 43 | E106: 64 | F106: 33 | G106: 90 | H106: 0 | I106: 79 | J106: 122 | K106: 153 | L106: 34 | M106: 90 | N106: 32 | O106: 79 | P106: 132 | Q106: 120 | R106: 77 | S106: 190 | T106: 154 | U106: 119 | V106: 92 | W106: 69 | X106: 126 | Y106: 85 | Z106: 192 | AA106: 0 | AB106: 145 | AC106: 45 | AD106: 81 | AE106: 132 | AF106: 80 | AG106: 112 | AH106: 78 | AI106: 131 | AJ106: 44 | AK106: 0
A107: M. Stipe-POT001-PA01-Forecast | B107: 73 | C107: 158 | D107: 88 | E107: 163 | F107: 385 | G107: 415 | H107: 310 | I107: 76 | J107: 161 | K107: 74 | L107: 0 | M107: 0 | N107: 162 | O107: 306 | P107: 388 | Q107: 83 | R107: 238 | S107: 155 | T107: 325 | U107: 392 | V107: 241 | W107: 307 | X107: 414 | Y107: 154 | Z107: 74 | AA107: 238 | AB107: 259 | AC107: 251 | AD107: 330 | AE107: 319 | AF107: 233 | AG107: 86 | AH107: 172 | AI107: 160 | AJ107: 154 | AK107: 0
A108: M. Stipe-ASL002-CA01-Actual | B108: 0 | C108: 0 | D108: 98 | E108: 237 | F108: 52 | G108: 102 | H108: 0 | I108: 58 | J108: 94 | K108: 104 | L108: 186 | M108: 42 | N108: 0 | O108: 140 | P108: 100 | Q108: 112 | R108: 181 | S108: 213 | T108: 100 | U108: 247 | V108: 0 | W108: 95 | X108: 260 | Y108: 208 | Z108: 0 | AA108: 369 | AB108: 211 | AC108: 109 | AD108: 101 | AE108: 145 | AF108: 98 | AG108: 50 | AH108: 143 | AI108: 0 | AJ108: 152 | AK108: 56
A109: J. Lennon-ASL003-AL01-Forecast | B109: 0 | C109: 194 | D109: 175 | E109: 128 | F109: 296 | G109: 51 | H109: 191 | I109: 67 | J109: 184 | K109: 0 | L109: 121 | M109: 0 | N109: 54 | O109: 169 | P109: 184 | Q109: 57 | R109: 50 | S109: 307 | T109: 349 | U109: 311 | V109: 242 | W109: 114 | X109: 303 | Y109: 160 | Z109: 0 | AA109: 175 | AB109: 67 | AC109: 61 | AD109: 165 | AE109: 180 | AF109: 60 | AG109: 289 | AH109: 69 | AI109: 0 | AJ109: 302 | AK109: 130
A110: S. Crow-JKL001-LA01-Actual | B110: 0 | C110: 43 | D110: 109 | E110: 46 | F110: 83 | G110: 0 | H110: 74 | I110: 0 | J110: 116 | K110: 44 | L110: 98 | M110: 0 | N110: 0 | O110: 86 | P110: 188 | Q110: 112 | R110: 45 | S110: 36 | T110: 0 | U110: 48 | V110: 0 | W110: 32 | X110: 33 | Y110: 36 | Z110: 38 | AA110: 43 | AB110: 35 | AC110: 32 | AD110: 80 | AE110: 0 | AF110: 37 | AG110: 48 | AH110: 42 | AI110: 138 | AJ110: 0 | AK110: 91
A111: B. Paisley-ASL003-CA01-Actual | B111: 179 | C111: 306 | D111: 182 | E111: 66 | F111: 280 | G111: 180 | H111: 122 | I111: 106 | J111: 187 | K111: 118 | L111: 0 | M111: 65 | N111: 255 | O111: 317 | P111: 441 | Q111: 247 | R111: 294 | S111: 125 | T111: 260 | U111: 299 | V111: 248 | W111: 132 | X111: 245 | Y111: 0 | Z111: 118 | AA111: 119 | AB111: 120 | AC111: 184 | AD111: 109 | AE111: 51 | AF111: 188 | AG111: 127 | AH111: 227 | AI111: 131 | AJ111: 122 | AK111: 114
A112: B. Shelton-JKL001-NC01-Forecast | B112: 94 | C112: 37 | D112: 105 | E112: 124 | F112: 138 | G112: 215 | H112: 49 | I112: 34 | J112: 79 | K112: 67 | L112: 0 | M112: 79 | N112: 81 | O112: 82 | P112: 180 | Q112: 117 | R112: 157 | S112: 167 | T112: 201 | U112: 122 | V112: 0 | W112: 161 | X112: 194 | Y112: 38 | Z112: 0 | AA112: 36 | AB112: 0 | AC112: 77 | AD112: 122 | AE112: 117 | AF112: 0 | AG112: 124 | AH112: 77 | AI112: 217 | AJ112: 47 | AK112: 0
A113: B. Paisley-ASL002-PA01-Actual | B113: 107 | C113: 0 | D113: 97 | E113: 98 | F113: 140 | G113: 103 | H113: 96 | I113: 0 | J113: 60 | K113: 93 | L113: 203 | M113: 51 | N113: 142 | O113: 139 | P113: 262 | Q113: 41 | R113: 305 | S113: 383 | T113: 340 | U113: 0 | V113: 57 | W113: 47 | X113: 373 | Y113: 60 | Z113: 0 | AA113: 0 | AB113: 94 | AC113: 275 | AD113: 140 | AE113: 94 | AF113: 103 | AG113: 42 | AH113: 0 | AI113: 143 | AJ113: 253 | AK113: 152
A114: P. Buck-PRD002-NC01-Forecast | B114: 89 | C114: 74 | D114: 231 | E114: 88 | F114: 0 | G114: 0 | H114: 170 | I114: 152 | J114: 82 | K114: 167 | L114: 73 | M114: 72 | N114: 167 | O114: 308 | P114: 175 | Q114: 475 | R114: 157 | S114: 324 | T114: 247 | U114: 494 | V114: 520 | W114: 84 | X114: 385 | Y114: 80 | Z114: 0 | AA114: 0 | AB114: 0 | AC114: 151 | AD114: 78 | AE114: 89 | AF114: 486 | AG114: 73 | AH114: 147 | AI114: 399 | AJ114: 165 | AK114: 0
A115: P. Buck-ASL002-MN01-Actual | B115: 43 | C115: 60 | D115: 99 | E115: 206 | F115: 48 | G115: 0 | H115: 169 | I115: 47 | J115: 208 | K115: 100 | L115: 42 | M115: 106 | N115: 141 | O115: 92 | P115: 100 | Q115: 196 | R115: 156 | S115: 236 | T115: 515 | U115: 147 | V115: 149 | W115: 136 | X115: 102 | Y115: 97 | Z115: 0 | AA115: 0 | AB115: 167 | AC115: 93 | AD115: 144 | AE115: 106 | AF115: 0 | AG115: 0 | AH115: 198 | AI115: 94 | AJ115: 145 | AK115: 94
A116: B. Paisley-PRD002-MN01-Actual | B116: 0 | C116: 157 | D116: 164 | E116: 339 | F116: 0 | G116: 0 | H116: 238 | I116: 236 | J116: 219 | K116: 249 | L116: 242 | M116: 80 | N116: 253 | O116: 254 | P116: 317 | Q116: 409 | R116: 321 | S116: 417 | T116: 158 | U116: 552 | V116: 175 | W116: 496 | X116: 418 | Y116: 0 | Z116: 158 | AA116: 0 | AB116: 154 | AC116: 0 | AD116: 236 | AE116: 322 | AF116: 72 | AG116: 146 | AH116: 84 | AI116: 0 | AJ116: 313 | AK116: 152
A117: S. Crow-ASL001-AK01-Forecast | B117: 66 | C117: 0 | D117: 0 | E117: 65 | F117: 0 | G117: 0 | H117: 66 | I117: 144 | J117: 152 | K117: 0 | L117: 0 | M117: 73 | N117: 67 | O117: 0 | P117: 124 | Q117: 0 | R117: 65 | S117: 272 | T117: 139 | U117: 0 | V117: 196 | W117: 79 | X117: 65 | Y117: 0 | Z117: 66 | AA117: 0 | AB117: 72 | AC117: 0 | AD117: 64 | AE117: 0 | AF117: 0 | AG117: 78 | AH117: 152 | AI117: 136 | AJ117: 0 | AK117: 0
A118: P. Buck-PRD002-PA01-Actual | B118: 87 | C118: 149 | D118: 0 | E118: 0 | F118: 165 | G118: 79 | H118: 396 | I118: 242 | J118: 0 | K118: 164 | L118: 83 | M118: 232 | N118: 249 | O118: 718 | P118: 416 | Q118: 163 | R118: 326 | S118: 335 | T118: 87 | U118: 335 | V118: 413 | W118: 320 | X118: 498 | Y118: 76 | Z118: 81 | AA118: 148 | AB118: 243 | AC118: 72 | AD118: 160 | AE118: 0 | AF118: 258 | AG118: 73 | AH118: 87 | AI118: 75 | AJ118: 156 | AK118: 0
A119: P. Buck-POT002-AL01-Actual | B119: 69 | C119: 198 | D119: 70 | E119: 148 | F119: 0 | G119: 153 | H119: 80 | I119: 65 | J119: 227 | K119: 75 | L119: 72 | M119: 0 | N119: 147 | O119: 71 | P119: 520 | Q119: 140 | R119: 195 | S119: 431 | T119: 361 | U119: 214 | V119: 218 | W119: 461 | X119: 133 | Y119: 70 | Z119: 145 | AA119: 0 | AB119: 0 | AC119: 141 | AD119: 66 | AE119: 204 | AF119: 224 | AG119: 145 | AH119: 136 | AI119: 149 | AJ119: 342 | AK119: 61
A120: R. Star-ASL001-MN01-Forecast | B120: 0 | C120: 0 | D120: 199 | E120: 130 | F120: 60 | G120: 144 | H120: 0 | I120: 0 | J120: 149 | K120: 63 | L120: 136 | M120: 73 | N120: 136 | O120: 342 | P120: 356 | Q120: 344 | R120: 63 | S120: 286 | T120: 68 | U120: 199 | V120: 278 | W120: 143 | X120: 146 | Y120: 75 | Z120: 77 | AA120: 196 | AB120: 68 | AC120: 68 | AD120: 135 | AE120: 62 | AF120: 72 | AG120: 0 | AH120: 148 | AI120: 136 | AJ120: 72 | AK120: 150
A121: P. Buck-PRD002-NC01-Actual | B121: 0 | C121: 244 | D121: 72 | E121: 90 | F121: 74 | G121: 159 | H121: 328 | I121: 234 | J121: 245 | K121: 152 | L121: 75 | M121: 78 | N121: 0 | O121: 312 | P121: 169 | Q121: 414 | R121: 330 | S121: 547 | T121: 481 | U121: 89 | V121: 242 | W121: 500 | X121: 340 | Y121: 166 | Z121: 163 | AA121: 329 | AB121: 158 | AC121: 0 | AD121: 84 | AE121: 0 | AF121: 327 | AG121: 82 | AH121: 258 | AI121: 167 | AJ121: 242 | AK121: 0
A122: R. Star-POT002-AL01-Actual | B122: 70 | C122: 207 | D122: 296 | E122: 150 | F122: 214 | G122: 376 | H122: 74 | I122: 279 | J122: 191 | K122: 198 | L122: 146 | M122: 61 | N122: 130 | O122: 210 | P122: 63 | Q122: 550 | R122: 284 | S122: 636 | T122: 468 | U122: 129 | V122: 203 | W122: 210 | X122: 445 | Y122: 143 | Z122: 135 | AA122: 136 | AB122: 71 | AC122: 0 | AD122: 66 | AE122: 352 | AF122: 220 | AG122: 0 | AH122: 289 | AI122: 67 | AJ122: 68 | AK122: 207
A123: C. Underwood-ASL003-AL01-Forecast | B123: 61 | C123: 167 | D123: 0 | E123: 177 | F123: 177 | G123: 126 | H123: 122 | I123: 59 | J123: 63 | K123: 192 | L123: 0 | M123: 0 | N123: 112 | O123: 63 | P123: 178 | Q123: 120 | R123: 125 | S123: 196 | T123: 260 | U123: 118 | V123: 288 | W123: 381 | X123: 126 | Y123: 170 | Z123: 118 | AA123: 320 | AB123: 122 | AC123: 0 | AD123: 61 | AE123: 173 | AF123: 67 | AG123: 0 | AH123: 61 | AI123: 51 | AJ123: 0 | AK123: 0
A124: J. Lennon-POT001-PA01-Actual | B124: 0 | C124: 304 | D124: 74 | E124: 242 | F124: 73 | G124: 307 | H124: 76 | I124: 241 | J124: 166 | K124: 169 | L124: 247 | M124: 75 | N124: 320 | O124: 246 | P124: 240 | Q124: 665 | R124: 393 | S124: 463 | T124: 307 | U124: 251 | V124: 233 | W124: 336 | X124: 170 | Y124: 149 | Z124: 87 | AA124: 76 | AB124: 307 | AC124: 157 | AD124: 146 | AE124: 0 | AF124: 243 | AG124: 82 | AH124: 159 | AI124: 81 | AJ124: 82 | AK124: 79
A125: M.Mills-PRD002-CA01-Actual | B125: 70 | C125: 175 | D125: 177 | E125: 84 | F125: 0 | G125: 224 | H125: 74 | I125: 80 | J125: 314 | K125: 398 | L125: 168 | M125: 0 | N125: 90 | O125: 151 | P125: 325 | Q125: 299 | R125: 574 | S125: 368 | T125: 416 | U125: 308 | V125: 83 | W125: 487 | X125: 483 | Y125: 165 | Z125: 147 | AA125: 167 | AB125: 73 | AC125: 0 | AD125: 157 | AE125: 77 | AF125: 70 | AG125: 155 | AH125: 88 | AI125: 158 | AJ125: 241 | AK125: 160
A126: J. Lennon-DFG001-CA01-Forecast | B126: 0 | C126: 0 | D126: 66 | E126: 65 | F126: 225 | G126: 123 | H126: 63 | I126: 0 | J126: 56 | K126: 114 | L126: 0 | M126: 0 | N126: 65 | O126: 161 | P126: 169 | Q126: 126 | R126: 118 | S126: 61 | T126: 122 | U126: 105 | V126: 130 | W126: 0 | X126: 132 | Y126: 51 | Z126: 0 | AA126: 0 | AB126: 0 | AC126: 115 | AD126: 57 | AE126: 64 | AF126: 0 | AG126: 59 | AH126: 393 | AI126: 68 | AJ126: 117 | AK126: 60
A127: J. Lennon-ASL003-LA01-Forecast | B127: 115 | C127: 52 | D127: 173 | E127: 0 | F127: 121 | G127: 132 | H127: 114 | I127: 0 | J127: 123 | K127: 62 | L127: 0 | M127: 0 | N127: 139 | O127: 173 | P127: 118 | Q127: 108 | R127: 178 | S127: 0 | T127: 546 | U127: 277 | V127: 325 | W127: 177 | X127: 351 | Y127: 0 | Z127: 121 | AA127: 119 | AB127: 62 | AC127: 66 | AD127: 67 | AE127: 57 | AF127: 52 | AG127: 0 | AH127: 298 | AI127: 116 | AJ127: 0 | AK127: 0
A128: M.Mills-ASL001-LA01-Actual | B128: 72 | C128: 60 | D128: 60 | E128: 134 | F128: 70 | G128: 0 | H128: 74 | I128: 77 | J128: 0 | K128: 296 | L128: 133 | M128: 69 | N128: 150 | O128: 353 | P128: 203 | Q128: 277 | R128: 0 | S128: 566 | T128: 358 | U128: 343 | V128: 421 | W128: 402 | X128: 468 | Y128: 0 | Z128: 211 | AA128: 204 | AB128: 0 | AC128: 205 | AD128: 134 | AE128: 75 | AF128: 0 | AG128: 287 | AH128: 290 | AI128: 205 | AJ128: 204 | AK128: 143
A129: R. Star-ASL001-NC01-Forecast | B129: 133 | C129: 70 | D129: 357 | E129: 125 | F129: 73 | G129: 127 | H129: 65 | I129: 0 | J129: 217 | K129: 0 | L129: 0 | M129: 68 | N129: 423 | O129: 205 | P129: 226 | Q129: 279 | R129: 431 | S129: 192 | T129: 290 | U129: 275 | V129: 499 | W129: 69 | X129: 341 | Y129: 71 | Z129: 63 | AA129: 202 | AB129: 337 | AC129: 196 | AD129: 135 | AE129: 206 | AF129: 76 | AG129: 445 | AH129: 0 | AI129: 147 | AJ129: 74 | AK129: 224
A130: S. Crow-ASL001-AL01-Actual | B130: 147 | C130: 73 | D130: 0 | E130: 287 | F130: 0 | G130: 143 | H130: 0 | I130: 0 | J130: 75 | K130: 136 | L130: 76 | M130: 0 | N130: 0 | O130: 140 | P130: 68 | Q130: 267 | R130: 271 | S130: 290 | T130: 0 | U130: 272 | V130: 63 | W130: 0 | X130: 137 | Y130: 0 | Z130: 69 | AA130: 0 | AB130: 0 | AC130: 0 | AD130: 61 | AE130: 71 | AF130: 0 | AG130: 71 | AH130: 142 | AI130: 71 | AJ130: 147 | AK130: 79
A131: J. Lennon-PRD002-NC01-Forecast | B131: 161 | C131: 370 | D131: 257 | E131: 316 | F131: 83 | G131: 89 | H131: 160 | I131: 162 | J131: 570 | K131: 159 | L131: 297 | M131: 158 | N131: 0 | O131: 236 | P131: 377 | Q131: 445 | R131: 414 | S131: 545 | T131: 243 | U131: 328 | V131: 248 | W131: 427 | X131: 324 | Y131: 173 | Z131: 0 | AA131: 254 | AB131: 89 | AC131: 142 | AD131: 162 | AE131: 168 | AF131: 254 | AG131: 79 | AH131: 318 | AI131: 321 | AJ131: 164 | AK131: 145
A132: J. McVie-POT001-SD01-Actual | B132: 0 | C132: 85 | D132: 160 | E132: 70 | F132: 0 | G132: 152 | H132: 0 | I132: 168 | J132: 85 | K132: 84 | L132: 161 | M132: 0 | N132: 154 | O132: 158 | P132: 80 | Q132: 0 | R132: 476 | S132: 166 | T132: 72 | U132: 85 | V132: 151 | W132: 165 | X132: 88 | Y132: 79 | Z132: 0 | AA132: 148 | AB132: 87 | AC132: 0 | AD132: 0 | AE132: 246 | AF132: 259 | AG132: 76 | AH132: 80 | AI132: 161 | AJ132: 0 | AK132: 0
A133: M.Mills-ASL002-MN01-Forecast | B133: 60 | C133: 89 | D133: 261 | E133: 0 | F133: 0 | G133: 217 | H133: 116 | I133: 45 | J133: 0 | K133: 94 | L133: 264 | M133: 0 | N133: 96 | O133: 189 | P133: 196 | Q133: 93 | R133: 160 | S133: 52 | T133: 90 | U133: 168 | V133: 185 | W133: 56 | X133: 256 | Y133: 0 | Z133: 41 | AA133: 146 | AB133: 181 | AC133: 0 | AD133: 50 | AE133: 145 | AF133: 44 | AG133: 111 | AH133: 225 | AI133: 105 | AJ133: 210 | AK133: 0
A134: C. Underwood-POT002-AL01-Forecast | B134: 0 | C134: 0 | D134: 0 | E134: 68 | F134: 143 | G134: 278 | H134: 143 | I134: 143 | J134: 0 | K134: 72 | L134: 210 | M134: 0 | N134: 70 | O134: 217 | P134: 421 | Q134: 284 | R134: 206 | S134: 137 | T134: 431 | U134: 424 | V134: 661 | W134: 292 | X134: 365 | Y134: 64 | Z134: 196 | AA134: 74 | AB134: 149 | AC134: 0 | AD134: 0 | AE134: 295 | AF134: 275 | AG134: 72 | AH134: 131 | AI134: 286 | AJ134: 60 | AK134: 0
A135: P. Buck-ASL001-CA01-Forecast | B135: 74 | C135: 284 | D135: 0 | E135: 68 | F135: 0 | G135: 0 | H135: 0 | I135: 0 | J135: 68 | K135: 0 | L135: 64 | M135: 157 | N135: 216 | O135: 204 | P135: 155 | Q135: 274 | R135: 270 | S135: 349 | T135: 69 | U135: 194 | V135: 297 | W135: 78 | X135: 207 | Y135: 217 | Z135: 65 | AA135: 61 | AB135: 290 | AC135: 60 | AD135: 0 | AE135: 0 | AF135: 151 | AG135: 69 | AH135: 154 | AI135: 211 | AJ135: 146 | AK135: 0
A136: R. Star-ASL003-MN01-Forecast | B136: 185 | C136: 134 | D136: 285 | E136: 173 | F136: 121 | G136: 0 | H136: 178 | I136: 0 | J136: 0 | K136: 66 | L136: 0 | M136: 65 | N136: 60 | O136: 114 | P136: 292 | Q136: 254 | R136: 189 | S136: 310 | T136: 244 | U136: 193 | V136: 503 | W136: 239 | X136: 182 | Y136: 291 | Z136: 70 | AA136: 193 | AB136: 124 | AC136: 64 | AD136: 110 | AE136: 0 | AF136: 303 | AG136: 0 | AH136: 182 | AI136: 183 | AJ136: 198 | AK136: 237
A137: R. Star-ASL002-LA01-Actual | B137: 0 | C137: 56 | D137: 95 | E137: 110 | F137: 0 | G137: 43 | H137: 142 | I137: 98 | J137: 51 | K137: 60 | L137: 58 | M137: 0 | N137: 0 | O137: 148 | P137: 263 | Q137: 184 | R137: 89 | S137: 150 | T137: 440 | U137: 205 | V137: 164 | W137: 91 | X137: 241 | Y137: 141 | Z137: 91 | AA137: 49 | AB137: 96 | AC137: 156 | AD137: 261 | AE137: 175 | AF137: 107 | AG137: 183 | AH137: 115 | AI137: 102 | AJ137: 47 | AK137: 0
A138: M.Mills-PRD002-VA01-Actual | B138: 163 | C138: 0 | D138: 81 | E138: 0 | F138: 0 | G138: 144 | H138: 160 | I138: 71 | J138: 156 | K138: 0 | L138: 77 | M138: 0 | N138: 88 | O138: 321 | P138: 0 | Q138: 160 | R138: 0 | S138: 78 | T138: 397 | U138: 256 | V138: 409 | W138: 232 | X138: 0 | Y138: 80 | Z138: 78 | AA138: 84 | AB138: 0 | AC138: 0 | AD138: 86 | AE138: 84 | AF138: 0 | AG138: 0 | AH138: 0 | AI138: 76 | AJ138: 231 | AK138: 76
A139: M. Stipe-DFG001-LA01-Actual | B139: 0 | C139: 56 | D139: 57 | E139: 0 | F139: 51 | G139: 0 | H139: 66 | I139: 62 | J139: 0 | K139: 70 | L139: 107 | M139: 0 | N139: 0 | O139: 61 | P139: 120 | Q139: 120 | R139: 158 | S139: 178 | T139: 190 | U139: 185 | V139: 65 | W139: 66 | X139: 0 | Y139: 0 | Z139: 0 | AA139: 69 | AB139: 114 | AC139: 0 | AD139: 117 | AE139: 179 | AF139: 64 | AG139: 69 | AH139: 66 | AI139: 0 | AJ139: 132 | AK139: 0
A140: J. Lennon-PRD002-MN01-Actual | B140: 0 | C140: 0 | D140: 317 | E140: 167 | F140: 235 | G140: 156 | H140: 85 | I140: 245 | J140: 404 | K140: 0 | L140: 552 | M140: 0 | N140: 72 | O140: 551 | P140: 167 | Q140: 403 | R140: 233 | S140: 223 | T140: 390 | U140: 396 | V140: 466 | W140: 87 | X140: 383 | Y140: 239 | Z140: 0 | AA140: 81 | AB140: 72 | AC140: 552 | AD140: 252 | AE140: 231 | AF140: 84 | AG140: 469 | AH140: 171 | AI140: 170 | AJ140: 177 | AK140: 163
A141: B. Shelton-ASL003-CA01-Actual | B141: 118 | C141: 127 | D141: 58 | E141: 68 | F141: 109 | G141: 201 | H141: 123 | I141: 59 | J141: 124 | K141: 130 | L141: 59 | M141: 69 | N141: 57 | O141: 303 | P141: 269 | Q141: 316 | R141: 315 | S141: 247 | T141: 493 | U141: 164 | V141: 70 | W141: 474 | X141: 419 | Y141: 0 | Z141: 186 | AA141: 62 | AB141: 184 | AC141: 123 | AD141: 187 | AE141: 195 | AF141: 161 | AG141: 116 | AH141: 62 | AI141: 68 | AJ141: 61 | AK141: 56
A142: R. Star-ASL002-PA01-Actual | B142: 101 | C142: 55 | D142: 94 | E142: 0 | F142: 103 | G142: 0 | H142: 103 | I142: 50 | J142: 52 | K142: 102 | L142: 99 | M142: 54 | N142: 201 | O142: 91 | P142: 157 | Q142: 260 | R142: 265 | S142: 151 | T142: 125 | U142: 266 | V142: 101 | W142: 198 | X142: 102 | Y142: 0 | Z142: 108 | AA142: 93 | AB142: 102 | AC142: 110 | AD142: 88 | AE142: 54 | AF142: 85 | AG142: 151 | AH142: 108 | AI142: 41 | AJ142: 198 | AK142: 91
A143: B. Paisley-POT002-AK01-Forecast | B143: 67 | C143: 77 | D143: 77 | E143: 140 | F143: 0 | G143: 0 | H143: 0 | I143: 0 | J143: 141 | K143: 0 | L143: 0 | M143: 77 | N143: 67 | O143: 0 | P143: 76 | Q143: 63 | R143: 439 | S143: 0 | T143: 221 | U143: 221 | V143: 150 | W143: 156 | X143: 68 | Y143: 153 | Z143: 0 | AA143: 71 | AB143: 67 | AC143: 0 | AD143: 127 | AE143: 0 | AF143: 133 | AG143: 68 | AH143: 68 | AI143: 73 | AJ143: 63 | AK143: 0
A144: B. Shelton-PRD001-MN01-Forecast | B144: 0 | C144: 167 | D144: 0 | E144: 95 | F144: 162 | G144: 0 | H144: 0 | I144: 0 | J144: 89 | K144: 260 | L144: 187 | M144: 0 | N144: 0 | O144: 81 | P144: 85 | Q144: 181 | R144: 192 | S144: 446 | T144: 253 | U144: 87 | V144: 92 | W144: 167 | X144: 0 | Y144: 0 | Z144: 82 | AA144: 92 | AB144: 92 | AC144: 0 | AD144: 167 | AE144: 81 | AF144: 0 | AG144: 86 | AH144: 0 | AI144: 196 | AJ144: 0 | AK144: 0
A145: M.Mills-PRD002-SD01-Actual | B145: 0 | C145: 83 | D145: 0 | E145: 240 | F145: 168 | G145: 0 | H145: 410 | I145: 313 | J145: 253 | K145: 71 | L145: 90 | M145: 0 | N145: 249 | O145: 586 | P145: 153 | Q145: 157 | R145: 731 | S145: 90 | T145: 149 | U145: 486 | V145: 302 | W145: 90 | X145: 404 | Y145: 245 | Z145: 0 | AA145: 84 | AB145: 310 | AC145: 177 | AD145: 153 | AE145: 72 | AF145: 79 | AG145: 386 | AH145: 174 | AI145: 81 | AJ145: 168 | AK145: 0
A146: J. McVie-JKL001-SD01-Actual | B146: 0 | C146: 0 | D146: 85 | E146: 0 | F146: 45 | G146: 0 | H146: 74 | I146: 37 | J146: 130 | K146: 0 | L146: 40 | M146: 0 | N146: 93 | O146: 108 | P146: 38 | Q146: 68 | R146: 48 | S146: 81 | T146: 0 | U146: 171 | V146: 78 | W146: 120 | X146: 160 | Y146: 0 | Z146: 43 | AA146: 50 | AB146: 47 | AC146: 0 | AD146: 49 | AE146: 73 | AF146: 69 | AG146: 0 | AH146: 36 | AI146: 49 | AJ146: 70 | AK146: 0
A147: R. Star-ASL003-MN01-Actual | B147: 61 | C147: 55 | D147: 129 | E147: 59 | F147: 54 | G147: 260 | H147: 236 | I147: 169 | J147: 68 | K147: 51 | L147: 110 | M147: 59 | N147: 222 | O147: 250 | P147: 242 | Q147: 170 | R147: 236 | S147: 109 | T147: 156 | U147: 248 | V147: 413 | W147: 496 | X147: 232 | Y147: 252 | Z147: 122 | AA147: 232 | AB147: 126 | AC147: 181 | AD147: 0 | AE147: 192 | AF147: 179 | AG147: 62 | AH147: 191 | AI147: 52 | AJ147: 116 | AK147: 120
A148: C. Underwood-JKL001-CA01-Actual | B148: 0 | C148: 110 | D148: 169 | E148: 72 | F148: 119 | G148: 186 | H148: 128 | I148: 43 | J148: 39 | K148: 158 | L148: 245 | M148: 122 | N148: 82 | O148: 34 | P148: 170 | Q148: 175 | R148: 121 | S148: 141 | T148: 292 | U148: 289 | V148: 120 | W148: 157 | X148: 77 | Y148: 37 | Z148: 78 | AA148: 49 | AB148: 114 | AC148: 121 | AD148: 72 | AE148: 88 | AF148: 82 | AG148: 49 | AH148: 281 | AI148: 83 | AJ148: 38 | AK148: 84
A149: J. Lennon-POT001-AL01-Actual | B149: 151 | C149: 172 | D149: 391 | E149: 327 | F149: 165 | G149: 156 | H149: 165 | I149: 74 | J149: 81 | K149: 423 | L149: 255 | M149: 230 | N149: 155 | O149: 168 | P149: 416 | Q149: 308 | R149: 232 | S149: 392 | T149: 0 | U149: 559 | V149: 317 | W149: 391 | X149: 574 | Y149: 78 | Z149: 80 | AA149: 328 | AB149: 76 | AC149: 259 | AD149: 326 | AE149: 258 | AF149: 0 | AG149: 0 | AH149: 162 | AI149: 0 | AJ149: 79 | AK149: 82
A150: R. Star-POT001-LA01-Actual | B150: 0 | C150: 172 | D150: 0 | E150: 146 | F150: 159 | G150: 79 | H150: 84 | I150: 171 | J150: 83 | K150: 338 | L150: 0 | M150: 165 | N150: 85 | O150: 254 | P150: 409 | Q150: 74 | R150: 304 | S150: 243 | T150: 236 | U150: 219 | V150: 160 | W150: 248 | X150: 394 | Y150: 161 | Z150: 83 | AA150: 470 | AB150: 80 | AC150: 288 | AD150: 163 | AE150: 149 | AF150: 231 | AG150: 311 | AH150: 165 | AI150: 164 | AJ150: 244 | AK150: 88
A151: P. Buck-POT002-PA01-Actual | B151: 69 | C151: 410 | D151: 127 | E151: 67 | F151: 157 | G151: 139 | H151: 74 | I151: 344 | J151: 0 | K151: 78 | L151: 130 | M151: 0 | N151: 337 | O151: 350 | P151: 344 | Q151: 345 | R151: 210 | S151: 259 | T151: 149 | U151: 65 | V151: 137 | W151: 203 | X151: 283 | Y151: 202 | Z151: 141 | AA151: 0 | AB151: 68 | AC151: 187 | AD151: 67 | AE151: 223 | AF151: 0 | AG151: 285 | AH151: 0 | AI151: 0 | AJ151: 0 | AK151: 68
A152: P. Buck-PRD001-MN01-Actual | B152: 0 | C152: 92 | D152: 359 | E152: 99 | F152: 92 | G152: 0 | H152: 0 | I152: 0 | J152: 80 | K152: 172 | L152: 169 | M152: 0 | N152: 188 | O152: 272 | P152: 264 | Q152: 97 | R152: 172 | S152: 544 | T152: 82 | U152: 363 | V152: 168 | W152: 175 | X152: 258 | Y152: 0 | Z152: 80 | AA152: 0 | AB152: 0 | AC152: 181 | AD152: 0 | AE152: 0 | AF152: 0 | AG152: 99 | AH152: 0 | AI152: 81 | AJ152: 0 | AK152: 0
A153: J. Lennon-PRD002-PA01-Actual | B153: 0 | C153: 89 | D153: 88 | E153: 0 | F153: 152 | G153: 237 | H153: 75 | I153: 155 | J153: 164 | K153: 88 | L153: 238 | M153: 0 | N153: 82 | O153: 565 | P153: 317 | Q153: 255 | R153: 331 | S153: 244 | T153: 311 | U153: 147 | V153: 707 | W153: 412 | X153: 84 | Y153: 75 | Z153: 0 | AA153: 74 | AB153: 589 | AC153: 170 | AD153: 253 | AE153: 0 | AF153: 76 | AG153: 303 | AH153: 163 | AI153: 242 | AJ153: 253 | AK153: 74
A154: C. Underwood-ASL001-SD01-Forecast | B154: 61 | C154: 216 | D154: 282 | E154: 77 | F154: 205 | G154: 135 | H154: 151 | I154: 69 | J154: 227 | K154: 79 | L154: 202 | M154: 0 | N154: 290 | O154: 136 | P154: 135 | Q154: 424 | R154: 294 | S154: 287 | T154: 577 | U154: 71 | V154: 392 | W154: 276 | X154: 274 | Y154: 63 | Z154: 67 | AA154: 68 | AB154: 140 | AC154: 132 | AD154: 129 | AE154: 212 | AF154: 67 | AG154: 340 | AH154: 80 | AI154: 130 | AJ154: 285 | AK154: 80
A155: S. Crow-POT002-AL01-Forecast | B155: 70 | C155: 67 | D155: 68 | E155: 0 | F155: 77 | G155: 0 | H155: 80 | I155: 72 | J155: 0 | K155: 129 | L155: 229 | M155: 61 | N155: 0 | O155: 212 | P155: 69 | Q155: 141 | R155: 200 | S155: 0 | T155: 220 | U155: 141 | V155: 198 | W155: 76 | X155: 283 | Y155: 271 | Z155: 0 | AA155: 0 | AB155: 0 | AC155: 200 | AD155: 227 | AE155: 0 | AF155: 75 | AG155: 0 | AH155: 61 | AI155: 157 | AJ155: 78 | AK155: 72
A156: M.Mills-ASL002-SD01-Forecast | B156: 192 | C156: 99 | D156: 54 | E156: 60 | F156: 159 | G156: 109 | H156: 53 | I156: 100 | J156: 96 | K156: 0 | L156: 52 | M156: 110 | N156: 43 | O156: 258 | P156: 54 | Q156: 440 | R156: 314 | S156: 127 | T156: 194 | U156: 262 | V156: 209 | W156: 344 | X156: 92 | Y156: 113 | Z156: 45 | AA156: 118 | AB156: 99 | AC156: 107 | AD156: 0 | AE156: 237 | AF156: 215 | AG156: 164 | AH156: 0 | AI156: 105 | AJ156: 0 | AK156: 0
A157: C. Underwood-ASL003-NC01-Forecast | B157: 52 | C157: 235 | D157: 0 | E157: 125 | F157: 170 | G157: 50 | H157: 109 | I157: 187 | J157: 111 | K157: 59 | L157: 122 | M157: 181 | N157: 284 | O157: 229 | P157: 360 | Q157: 0 | R157: 131 | S157: 419 | T157: 229 | U157: 164 | V157: 346 | W157: 181 | X157: 105 | Y157: 129 | Z157: 64 | AA157: 69 | AB157: 183 | AC157: 231 | AD157: 127 | AE157: 53 | AF157: 244 | AG157: 167 | AH157: 321 | AI157: 0 | AJ157: 57 | AK157: 60
A158: B. Shelton-DFG001-SD01-Actual | B158: 0 | C158: 132 | D158: 182 | E158: 170 | F158: 0 | G158: 0 | H158: 62 | I158: 63 | J158: 0 | K158: 56 | L158: 55 | M158: 65 | N158: 58 | O158: 0 | P158: 230 | Q158: 67 | R158: 314 | S158: 54 | T158: 235 | U158: 114 | V158: 114 | W158: 56 | X158: 57 | Y158: 185 | Z158: 0 | AA158: 0 | AB158: 0 | AC158: 53 | AD158: 179 | AE158: 0 | AF158: 115 | AG158: 61 | AH158: 177 | AI158: 120 | AJ158: 0 | AK158: 0
A159: B. Paisley-ASL003-PA01-Forecast | B159: 58 | C159: 59 | D159: 388 | E159: 237 | F159: 236 | G159: 0 | H159: 59 | I159: 226 | J159: 130 | K159: 63 | L159: 361 | M159: 55 | N159: 52 | O159: 127 | P159: 230 | Q159: 179 | R159: 258 | S159: 195 | T159: 159 | U159: 275 | V159: 378 | W159: 234 | X159: 380 | Y159: 65 | Z159: 179 | AA159: 177 | AB159: 0 | AC159: 189 | AD159: 50 | AE159: 51 | AF159: 122 | AG159: 131 | AH159: 58 | AI159: 119 | AJ159: 0 | AK159: 185
A160: B. Paisley-ASL002-MN01-Forecast | B160: 0 | C160: 41 | D160: 105 | E160: 191 | F160: 162 | G160: 104 | H160: 372 | I160: 87 | J160: 0 | K160: 56 | L160: 0 | M160: 51 | N160: 149 | O160: 51 | P160: 0 | Q160: 273 | R160: 202 | S160: 145 | T160: 91 | U160: 183 | V160: 85 | W160: 360 | X160: 158 | Y160: 0 | Z160: 0 | AA160: 98 | AB160: 59 | AC160: 426 | AD160: 106 | AE160: 148 | AF160: 189 | AG160: 163 | AH160: 108 | AI160: 0 | AJ160: 147 | AK160: 101
A161: C. Underwood-POT001-SD01-Actual | B161: 157 | C161: 172 | D161: 149 | E161: 327 | F161: 148 | G161: 0 | H161: 169 | I161: 75 | J161: 76 | K161: 167 | L161: 84 | M161: 78 | N161: 312 | O161: 389 | P161: 417 | Q161: 165 | R161: 492 | S161: 231 | T161: 632 | U161: 496 | V161: 161 | W161: 488 | X161: 0 | Y161: 159 | Z161: 83 | AA161: 70 | AB161: 87 | AC161: 0 | AD161: 0 | AE161: 156 | AF161: 239 | AG161: 77 | AH161: 327 | AI161: 243 | AJ161: 167 | AK161: 0
A162: P. Buck-POT001-SD01-Forecast | B162: 0 | C162: 163 | D162: 82 | E162: 167 | F162: 84 | G162: 165 | H162: 169 | I162: 233 | J162: 163 | K162: 159 | L162: 154 | M162: 0 | N162: 0 | O162: 434 | P162: 405 | Q162: 145 | R162: 154 | S162: 313 | T162: 435 | U162: 398 | V162: 302 | W162: 87 | X162: 311 | Y162: 399 | Z162: 151 | AA162: 74 | AB162: 76 | AC162: 89 | AD162: 295 | AE162: 256 | AF162: 0 | AG162: 316 | AH162: 84 | AI162: 151 | AJ162: 144 | AK162: 174
A163: P. Buck-POT002-AK01-Forecast | B163: 0 | C163: 67 | D163: 78 | E163: 0 | F163: 72 | G163: 135 | H163: 79 | I163: 346 | J163: 148 | K163: 74 | L163: 79 | M163: 0 | N163: 0 | O163: 132 | P163: 357 | Q163: 493 | R163: 77 | S163: 151 | T163: 283 | U163: 132 | V163: 144 | W163: 263 | X163: 191 | Y163: 142 | Z163: 0 | AA163: 63 | AB163: 0 | AC163: 131 | AD163: 64 | AE163: 139 | AF163: 0 | AG163: 69 | AH163: 280 | AI163: 129 | AJ163: 0 | AK163: 0
A164: C. Underwood-JKL001-LA01-Actual | B164: 73 | C164: 164 | D164: 117 | E164: 75 | F164: 46 | G164: 121 | H164: 92 | I164: 46 | J164: 160 | K164: 40 | L164: 37 | M164: 33 | N164: 179 | O164: 76 | P164: 252 | Q164: 257 | R164: 123 | S164: 31 | T164: 71 | U164: 34 | V164: 219 | W164: 80 | X164: 214 | Y164: 0 | Z164: 93 | AA164: 120 | AB164: 47 | AC164: 0 | AD164: 117 | AE164: 140 | AF164: 152 | AG164: 122 | AH164: 39 | AI164: 113 | AJ164: 144 | AK164: 65
A165: J. Lennon-ASL003-PA01-Actual | B165: 174 | C165: 66 | D165: 54 | E165: 0 | F165: 0 | G165: 60 | H165: 154 | I165: 57 | J165: 186 | K165: 61 | L165: 455 | M165: 0 | N165: 250 | O165: 352 | P165: 233 | Q165: 417 | R165: 296 | S165: 235 | T165: 178 | U165: 429 | V165: 119 | W165: 188 | X165: 195 | Y165: 125 | Z165: 57 | AA165: 124 | AB165: 170 | AC165: 0 | AD165: 119 | AE165: 170 | AF165: 115 | AG165: 135 | AH165: 174 | AI165: 63 | AJ165: 50 | AK165: 52
A166: P. Buck-ASL003-AK01-Actual | B166: 0 | C166: 0 | D166: 0 | E166: 0 | F166: 0 | G166: 0 | H166: 125 | I166: 119 | J166: 0 | K166: 127 | L166: 106 | M166: 0 | N166: 102 | O166: 299 | P166: 0 | Q166: 52 | R166: 61 | S166: 51 | T166: 58 | U166: 316 | V166: 117 | W166: 112 | X166: 193 | Y166: 118 | Z166: 58 | AA166: 56 | AB166: 0 | AC166: 130 | AD166: 0 | AE166: 57 | AF166: 0 | AG166: 0 | AH166: 129 | AI166: 0 | AJ166: 0 | AK166: 0
A167: M.Mills-ASL003-MN01-Actual | B167: 166 | C167: 190 | D167: 177 | E167: 65 | F167: 0 | G167: 124 | H167: 0 | I167: 167 | J167: 0 | K167: 138 | L167: 55 | M167: 0 | N167: 123 | O167: 223 | P167: 225 | Q167: 175 | R167: 120 | S167: 299 | T167: 281 | U167: 421 | V167: 191 | W167: 303 | X167: 246 | Y167: 194 | Z167: 50 | AA167: 68 | AB167: 57 | AC167: 66 | AD167: 173 | AE167: 55 | AF167: 195 | AG167: 196 | AH167: 0 | AI167: 119 | AJ167: 58 | AK167: 129
A168: B. Shelton-PRD002-PA01-Actual | B168: 73 | C168: 165 | D168: 163 | E168: 72 | F168: 296 | G168: 170 | H168: 234 | I168: 405 | J168: 320 | K168: 87 | L168: 253 | M168: 86 | N168: 85 | O168: 171 | P168: 407 | Q168: 499 | R168: 382 | S168: 620 | T168: 258 | U168: 414 | V168: 318 | W168: 334 | X168: 158 | Y168: 166 | Z168: 0 | AA168: 160 | AB168: 72 | AC168: 323 | AD168: 243 | AE168: 170 | AF168: 312 | AG168: 164 | AH168: 493 | AI168: 327 | AJ168: 173 | AK168: 165
A169: S. Crow-JKL001-SD01-Actual | B169: 0 | C169: 33 | D169: 0 | E169: 91 | F169: 40 | G169: 0 | H169: 49 | I169: 0 | J169: 0 | K169: 0 | L169: 47 | M169: 0 | N169: 0 | O169: 82 | P169: 113 | Q169: 84 | R169: 162 | S169: 125 | T169: 0 | U169: 32 | V169: 34 | W169: 106 | X169: 107 | Y169: 48 | Z169: 0 | AA169: 44 | AB169: 40 | AC169: 161 | AD169: 46 | AE169: 46 | AF169: 0 | AG169: 0 | AH169: 41 | AI169: 73 | AJ169: 66 | AK169: 45
A170: R. Star-ASL002-AL01-Actual | B170: 104 | C170: 41 | D170: 0 | E170: 92 | F170: 195 | G170: 231 | H170: 108 | I170: 211 | J170: 167 | K170: 134 | L170: 115 | M170: 90 | N170: 0 | O170: 91 | P170: 129 | Q170: 164 | R170: 357 | S170: 190 | T170: 49 | U170: 92 | V170: 0 | W170: 239 | X170: 256 | Y170: 149 | Z170: 108 | AA170: 117 | AB170: 160 | AC170: 113 | AD170: 200 | AE170: 46 | AF170: 59 | AG170: 103 | AH170: 107 | AI170: 48 | AJ170: 191 | AK170: 102
A171: J. Lennon-DFG001-PA01-Actual | B171: 0 | C171: 107 | D171: 191 | E171: 65 | F171: 66 | G171: 0 | H171: 69 | I171: 54 | J171: 0 | K171: 51 | L171: 0 | M171: 69 | N171: 56 | O171: 182 | P171: 54 | Q171: 169 | R171: 56 | S171: 287 | T171: 308 | U171: 173 | V171: 103 | W171: 56 | X171: 235 | Y171: 0 | Z171: 0 | AA171: 64 | AB171: 0 | AC171: 0 | AD171: 0 | AE171: 0 | AF171: 69 | AG171: 60 | AH171: 66 | AI171: 131 | AJ171: 109 | AK171: 0
A172: S. Crow-POT001-LA01-Forecast | B172: 0 | C172: 0 | D172: 84 | E172: 0 | F172: 163 | G172: 161 | H172: 152 | I172: 0 | J172: 256 | K172: 88 | L172: 162 | M172: 0 | N172: 0 | O172: 242 | P172: 157 | Q172: 75 | R172: 409 | S172: 0 | T172: 304 | U172: 88 | V172: 81 | W172: 236 | X172: 249 | Y172: 0 | Z172: 78 | AA172: 160 | AB172: 0 | AC172: 248 | AD172: 89 | AE172: 0 | AF172: 153 | AG172: 250 | AH172: 0 | AI172: 170 | AJ172: 163 | AK172: 0
A173: M. Stipe-ASL002-SD01-Actual | B173: 57 | C173: 47 | D173: 156 | E173: 49 | F173: 42 | G173: 199 | H173: 42 | I173: 323 | J173: 0 | K173: 108 | L173: 188 | M173: 54 | N173: 53 | O173: 154 | P173: 203 | Q173: 57 | R173: 250 | S173: 96 | T173: 161 | U173: 209 | V173: 156 | W173: 60 | X173: 198 | Y173: 92 | Z173: 40 | AA173: 102 | AB173: 49 | AC173: 112 | AD173: 0 | AE173: 44 | AF173: 224 | AG173: 43 | AH173: 101 | AI173: 102 | AJ173: 143 | AK173: 46
A174: B. Shelton-POT001-AK01-Actual | B174: 77 | C174: 77 | D174: 81 | E174: 162 | F174: 165 | G174: 0 | H174: 83 | I174: 89 | J174: 0 | K174: 76 | L174: 83 | M174: 78 | N174: 76 | O174: 314 | P174: 81 | Q174: 150 | R174: 155 | S174: 171 | T174: 86 | U174: 164 | V174: 238 | W174: 87 | X174: 161 | Y174: 0 | Z174: 80 | AA174: 81 | AB174: 0 | AC174: 322 | AD174: 81 | AE174: 168 | AF174: 0 | AG174: 170 | AH174: 0 | AI174: 0 | AJ174: 147 | AK174: 0
A175: P. Buck-POT001-SD01-Actual | B175: 79 | C175: 80 | D175: 0 | E175: 157 | F175: 156 | G175: 151 | H175: 150 | I175: 221 | J175: 244 | K175: 89 | L175: 78 | M175: 0 | N175: 152 | O175: 473 | P175: 401 | Q175: 477 | R175: 232 | S175: 399 | T175: 328 | U175: 0 | V175: 154 | W175: 0 | X175: 247 | Y175: 230 | Z175: 88 | AA175: 0 | AB175: 80 | AC175: 153 | AD175: 169 | AE175: 477 | AF175: 175 | AG175: 232 | AH175: 331 | AI175: 75 | AJ175: 0 | AK175: 0
A176: B. Paisley-PRD002-AL01-Forecast | B176: 159 | C176: 88 | D176: 84 | E176: 156 | F176: 71 | G176: 0 | H176: 163 | I176: 73 | J176: 312 | K176: 158 | L176: 413 | M176: 255 | N176: 74 | O176: 240 | P176: 328 | Q176: 307 | R176: 328 | S176: 179 | T176: 77 | U176: 260 | V176: 219 | W176: 555 | X176: 323 | Y176: 325 | Z176: 0 | AA176: 90 | AB176: 149 | AC176: 325 | AD176: 144 | AE176: 324 | AF176: 0 | AG176: 159 | AH176: 166 | AI176: 0 | AJ176: 0 | AK176: 0
A177: B. Paisley-ASL002-VA01-Forecast | B177: 0 | C177: 102 | D177: 0 | E177: 0 | F177: 48 | G177: 0 | H177: 184 | I177: 110 | J177: 0 | K177: 84 | L177: 0 | M177: 0 | N177: 0 | O177: 0 | P177: 42 | Q177: 87 | R177: 105 | S177: 259 | T177: 268 | U177: 44 | V177: 88 | W177: 48 | X177: 41 | Y177: 0 | Z177: 0 | AA177: 0 | AB177: 108 | AC177: 0 | AD177: 0 | AE177: 43 | AF177: 196 | AG177: 0 | AH177: 91 | AI177: 101 | AJ177: 48 | AK177: 43
A178: M.Mills-POT001-LA01-Actual | B178: 77 | C178: 167 | D178: 305 | E178: 164 | F178: 76 | G178: 167 | H178: 163 | I178: 245 | J178: 73 | K178: 79 | L178: 80 | M178: 162 | N178: 323 | O178: 155 | P178: 563 | Q178: 145 | R178: 174 | S178: 236 | T178: 415 | U178: 380 | V178: 239 | W178: 327 | X178: 151 | Y178: 252 | Z178: 0 | AA178: 247 | AB178: 72 | AC178: 73 | AD178: 72 | AE178: 76 | AF178: 86 | AG178: 330 | AH178: 161 | AI178: 495 | AJ178: 320 | AK178: 76
A179: M. Stipe-ASL002-AL01-Actual | B179: 50 | C179: 99 | D179: 45 | E179: 92 | F179: 244 | G179: 155 | H179: 0 | I179: 195 | J179: 49 | K179: 156 | L179: 98 | M179: 117 | N179: 158 | O179: 421 | P179: 82 | Q179: 227 | R179: 254 | S179: 252 | T179: 51 | U179: 98 | V179: 106 | W179: 161 | X179: 54 | Y179: 90 | Z179: 166 | AA179: 143 | AB179: 115 | AC179: 139 | AD179: 52 | AE179: 46 | AF179: 88 | AG179: 42 | AH179: 46 | AI179: 153 | AJ179: 141 | AK179: 0
A180: J. Lennon-JKL001-AL01-Forecast | B180: 191 | C180: 49 | D180: 288 | E180: 0 | F180: 135 | G180: 119 | H180: 89 | I180: 0 | J180: 0 | K180: 99 | L180: 72 | M180: 39 | N180: 100 | O180: 157 | P180: 194 | Q180: 163 | R180: 44 | S180: 207 | T180: 208 | U180: 247 | V180: 0 | W180: 165 | X180: 244 | Y180: 72 | Z180: 32 | AA180: 34 | AB180: 81 | AC180: 71 | AD180: 197 | AE180: 82 | AF180: 95 | AG180: 0 | AH180: 128 | AI180: 0 | AJ180: 80 | AK180: 80
A181: P. Buck-ASL003-PA01-Forecast | B181: 124 | C181: 55 | D181: 0 | E181: 65 | F181: 53 | G181: 122 | H181: 52 | I181: 67 | J181: 289 | K181: 120 | L181: 0 | M181: 65 | N181: 123 | O181: 175 | P181: 185 | Q181: 308 | R181: 284 | S181: 324 | T181: 0 | U181: 302 | V181: 224 | W181: 301 | X181: 295 | Y181: 62 | Z181: 0 | AA181: 114 | AB181: 61 | AC181: 55 | AD181: 53 | AE181: 231 | AF181: 122 | AG181: 0 | AH181: 136 | AI181: 301 | AJ181: 184 | AK181: 124
A182: P. Buck-POT002-LA01-Forecast | B182: 194 | C182: 73 | D182: 211 | E182: 150 | F182: 141 | G182: 210 | H182: 66 | I182: 146 | J182: 0 | K182: 219 | L182: 78 | M182: 0 | N182: 70 | O182: 132 | P182: 409 | Q182: 72 | R182: 496 | S182: 143 | T182: 135 | U182: 554 | V182: 343 | W182: 280 | X182: 433 | Y182: 283 | Z182: 135 | AA182: 209 | AB182: 224 | AC182: 0 | AD182: 205 | AE182: 138 | AF182: 276 | AG182: 61 | AH182: 352 | AI182: 263 | AJ182: 186 | AK182: 0
A183: R. Star-ASL002-AK01-Forecast | B183: 0 | C183: 90 | D183: 96 | E183: 0 | F183: 53 | G183: 0 | H183: 55 | I183: 46 | J183: 0 | K183: 56 | L183: 58 | M183: 0 | N183: 93 | O183: 58 | P183: 82 | Q183: 0 | R183: 96 | S183: 147 | T183: 257 | U183: 194 | V183: 0 | W183: 256 | X183: 213 | Y183: 0 | Z183: 0 | AA183: 41 | AB183: 52 | AC183: 47 | AD183: 0 | AE183: 0 | AF183: 0 | AG183: 49 | AH183: 91 | AI183: 0 | AJ183: 147 | AK183: 50
A184: P. Buck-POT001-CA01-Actual | B184: 0 | C184: 0 | D184: 0 | E184: 463 | F184: 156 | G184: 89 | H184: 0 | I184: 466 | J184: 160 | K184: 150 | L184: 254 | M184: 83 | N184: 242 | O184: 306 | P184: 331 | Q184: 682 | R184: 247 | S184: 402 | T184: 391 | U184: 487 | V184: 239 | W184: 330 | X184: 321 | Y184: 80 | Z184: 164 | AA184: 241 | AB184: 162 | AC184: 0 | AD184: 170 | AE184: 247 | AF184: 85 | AG184: 161 | AH184: 153 | AI184: 79 | AJ184: 165 | AK184: 0
A185: J. Lennon-PRD001-SD01-Forecast | B185: 97 | C185: 83 | D185: 81 | E185: 188 | F185: 92 | G185: 89 | H185: 93 | I185: 176 | J185: 90 | K185: 259 | L185: 99 | M185: 0 | N185: 175 | O185: 0 | P185: 184 | Q185: 270 | R185: 371 | S185: 186 | T185: 84 | U185: 86 | V185: 263 | W185: 266 | X185: 92 | Y185: 97 | Z185: 190 | AA185: 87 | AB185: 181 | AC185: 0 | AD185: 84 | AE185: 193 | AF185: 89 | AG185: 347 | AH185: 291 | AI185: 93 | AJ185: 86 | AK185: 0
A186: R. Star-PRD002-AL01-Actual | B186: 152 | C186: 0 | D186: 82 | E186: 76 | F186: 158 | G186: 82 | H186: 148 | I186: 153 | J186: 83 | K186: 244 | L186: 90 | M186: 0 | N186: 0 | O186: 295 | P186: 563 | Q186: 244 | R186: 341 | S186: 72 | T186: 402 | U186: 224 | V186: 248 | W186: 0 | X186: 388 | Y186: 172 | Z186: 0 | AA186: 240 | AB186: 167 | AC186: 0 | AD186: 149 | AE186: 90 | AF186: 310 | AG186: 0 | AH186: 176 | AI186: 227 | AJ186: 76 | AK186: 87
A187: M.Mills-ASL003-AL01-Actual | B187: 62 | C187: 0 | D187: 243 | E187: 123 | F187: 0 | G187: 56 | H187: 113 | I187: 62 | J187: 239 | K187: 252 | L187: 63 | M187: 116 | N187: 160 | O187: 252 | P187: 239 | Q187: 242 | R187: 491 | S187: 69 | T187: 349 | U187: 310 | V187: 194 | W187: 361 | X187: 116 | Y187: 0 | Z187: 0 | AA187: 116 | AB187: 0 | AC187: 60 | AD187: 68 | AE187: 178 | AF187: 58 | AG187: 174 | AH187: 57 | AI187: 226 | AJ187: 0 | AK187: 0
A188: J. McVie-PRD001-CA01-Actual | B188: 0 | C188: 87 | D188: 0 | E188: 0 | F188: 0 | G188: 98 | H188: 0 | I188: 95 | J188: 0 | K188: 100 | L188: 0 | M188: 0 | N188: 92 | O188: 454 | P188: 172 | Q188: 0 | R188: 0 | S188: 83 | T188: 0 | U188: 189 | V188: 177 | W188: 81 | X188: 97 | Y188: 0 | Z188: 0 | AA188: 0 | AB188: 0 | AC188: 0 | AD188: 0 | AE188: 192 | AF188: 97 | AG188: 96 | AH188: 0 | AI188: 0 | AJ188: 100 | AK188: 0
A189: M.Mills-ASL003-AK01-Actual | B189: 63 | C189: 0 | D189: 61 | E189: 0 | F189: 104 | G189: 178 | H189: 249 | I189: 68 | J189: 54 | K189: 53 | L189: 65 | M189: 0 | N189: 0 | O189: 0 | P189: 63 | Q189: 180 | R189: 50 | S189: 0 | T189: 304 | U189: 121 | V189: 66 | W189: 325 | X189: 119 | Y189: 0 | Z189: 0 | AA189: 235 | AB189: 123 | AC189: 61 | AD189: 50 | AE189: 187 | AF189: 61 | AG189: 0 | AH189: 0 | AI189: 69 | AJ189: 0 | AK189: 51
A190: M.Mills-DFG001-LA01-Forecast | B190: 0 | C190: 67 | D190: 251 | E190: 56 | F190: 0 | G190: 0 | H190: 105 | I190: 56 | J190: 0 | K190: 0 | L190: 112 | M190: 0 | N190: 58 | O190: 112 | P190: 243 | Q190: 123 | R190: 121 | S190: 231 | T190: 171 | U190: 0 | V190: 114 | W190: 234 | X190: 67 | Y190: 68 | Z190: 0 | AA190: 0 | AB190: 172 | AC190: 61 | AD190: 69 | AE190: 69 | AF190: 116 | AG190: 127 | AH190: 0 | AI190: 108 | AJ190: 0 | AK190: 0
A191: M.Mills-PRD001-VA01-Forecast | B191: 0 | C191: 86 | D191: 92 | E191: 0 | F191: 84 | G191: 0 | H191: 84 | I191: 0 | J191: 0 | K191: 0 | L191: 0 | M191: 0 | N191: 0 | O191: 93 | P191: 93 | Q191: 0 | R191: 0 | S191: 86 | T191: 81 | U191: 0 | V191: 0 | W191: 81 | X191: 97 | Y191: 81 | Z191: 0 | AA191: 0 | AB191: 0 | AC191: 0 | AD191: 367 | AE191: 0 | AF191: 0 | AG191: 86 | AH191: 0 | AI191: 0 | AJ191: 0 | AK191: 0
A192: R. Star-POT001-LA01-Forecast | B192: 162 | C192: 225 | D192: 254 | E192: 245 | F192: 259 | G192: 164 | H192: 0 | I192: 235 | J192: 232 | K192: 77 | L192: 81 | M192: 88 | N192: 143 | O192: 86 | P192: 248 | Q192: 224 | R192: 248 | S192: 71 | T192: 408 | U192: 158 | V192: 231 | W192: 469 | X192: 478 | Y192: 166 | Z192: 0 | AA192: 217 | AB192: 243 | AC192: 85 | AD192: 564 | AE192: 150 | AF192: 160 | AG192: 171 | AH192: 79 | AI192: 0 | AJ192: 169 | AK192: 78
A193: M. Stipe-ASL003-NC01-Actual | B193: 68 | C193: 119 | D193: 51 | E193: 56 | F193: 190 | G193: 296 | H193: 61 | I193: 309 | J193: 0 | K193: 0 | L193: 67 | M193: 0 | N193: 70 | O193: 118 | P193: 54 | Q193: 105 | R193: 247 | S193: 381 | T193: 249 | U193: 58 | V193: 160 | W193: 254 | X193: 499 | Y193: 235 | Z193: 125 | AA193: 65 | AB193: 0 | AC193: 114 | AD193: 293 | AE193: 257 | AF193: 119 | AG193: 247 | AH193: 126 | AI193: 59 | AJ193: 61 | AK193: 0
A194: B. Shelton-DFG001-AL01-Actual | B194: 0 | C194: 0 | D194: 65 | E194: 55 | F194: 0 | G194: 61 | H194: 0 | I194: 67 | J194: 178 | K194: 55 | L194: 0 | M194: 63 | N194: 0 | O194: 108 | P194: 171 | Q194: 231 | R194: 68 | S194: 134 | T194: 258 | U194: 66 | V194: 59 | W194: 54 | X194: 253 | Y194: 58 | Z194: 0 | AA194: 0 | AB194: 123 | AC194: 58 | AD194: 136 | AE194: 127 | AF194: 70 | AG194: 0 | AH194: 0 | AI194: 53 | AJ194: 184 | AK194: 0
A195: M.Mills-DFG001-VA01-Forecast | B195: 0 | C195: 0 | D195: 67 | E195: 0 | F195: 0 | G195: 183 | H195: 62 | I195: 0 | J195: 68 | K195: 0 | L195: 0 | M195: 0 | N195: 60 | O195: 67 | P195: 0 | Q195: 0 | R195: 0 | S195: 125 | T195: 0 | U195: 118 | V195: 62 | W195: 120 | X195: 117 | Y195: 0 | Z195: 0 | AA195: 0 | AB195: 119 | AC195: 0 | AD195: 0 | AE195: 0 | AF195: 0 | AG195: 56 | AH195: 117 | AI195: 56 | AJ195: 62 | AK195: 106
A196: C. Underwood-POT002-PA01-Forecast | B196: 68 | C196: 159 | D196: 126 | E196: 198 | F196: 193 | G196: 68 | H196: 231 | I196: 335 | J196: 346 | K196: 68 | L196: 73 | M196: 0 | N196: 202 | O196: 212 | P196: 255 | Q196: 288 | R196: 285 | S196: 278 | T196: 73 | U196: 350 | V196: 220 | W196: 294 | X196: 205 | Y196: 184 | Z196: 133 | AA196: 147 | AB196: 202 | AC196: 65 | AD196: 71 | AE196: 0 | AF196: 0 | AG196: 0 | AH196: 130 | AI196: 146 | AJ196: 72 | AK196: 70
A197: B. Shelton-POT001-NC01-Forecast | B197: 0 | C197: 72 | D197: 148 | E197: 88 | F197: 170 | G197: 249 | H197: 0 | I197: 82 | J197: 82 | K197: 87 | L197: 79 | M197: 85 | N197: 156 | O197: 324 | P197: 392 | Q197: 81 | R197: 144 | S197: 73 | T197: 564 | U197: 407 | V197: 250 | W197: 414 | X197: 151 | Y197: 89 | Z197: 0 | AA197: 171 | AB197: 76 | AC197: 159 | AD197: 306 | AE197: 79 | AF197: 298 | AG197: 169 | AH197: 397 | AI197: 166 | AJ197: 73 | AK197: 82
A198: C. Underwood-PRD001-CA01-Actual | B198: 0 | C198: 0 | D198: 169 | E198: 0 | F198: 84 | G198: 84 | H198: 0 | I198: 191 | J198: 82 | K198: 263 | L198: 90 | M198: 98 | N198: 0 | O198: 433 | P198: 84 | Q198: 178 | R198: 370 | S198: 0 | T198: 97 | U198: 192 | V198: 191 | W198: 358 | X198: 164 | Y198: 94 | Z198: 0 | AA198: 98 | AB198: 184 | AC198: 180 | AD198: 96 | AE198: 95 | AF198: 258 | AG198: 84 | AH198: 181 | AI198: 83 | AJ198: 88 | AK198: 0
A199: J. Lennon-ASL001-NC01-Actual | B199: 0 | C199: 0 | D199: 62 | E199: 0 | F199: 204 | G199: 136 | H199: 71 | I199: 208 | J199: 199 | K199: 200 | L199: 0 | M199: 70 | N199: 0 | O199: 214 | P199: 0 | Q199: 277 | R199: 285 | S199: 281 | T199: 352 | U199: 209 | V199: 432 | W199: 478 | X199: 62 | Y199: 151 | Z199: 150 | AA199: 218 | AB199: 69 | AC199: 61 | AD199: 0 | AE199: 201 | AF199: 144 | AG199: 66 | AH199: 362 | AI199: 140 | AJ199: 293 | AK199: 143
A200: B. Shelton-ASL003-PA01-Actual | B200: 66 | C200: 64 | D200: 199 | E200: 173 | F200: 65 | G200: 65 | H200: 0 | I200: 55 | J200: 61 | K200: 349 | L200: 54 | M200: 116 | N200: 56 | O200: 301 | P200: 220 | Q200: 314 | R200: 179 | S200: 421 | T200: 247 | U200: 59 | V200: 537 | W200: 0 | X200: 221 | Y200: 0 | Z200: 51 | AA200: 63 | AB200: 0 | AC200: 180 | AD200: 0 | AE200: 105 | AF200: 62 | AG200: 0 | AH200: 185 | AI200: 56 | AJ200: 61 | AK200: 0
... 1421 more rows
